Workbook

Sheet Lista (hidden)
A1: Depto | B1: Mpio | D1: Udepto | E1: Filtro | H1: Mpio Unicos | N1: Dpto | O1: mpio | P1: para unicos
A2: =_xlfn.UNIQUE(N2:O5000) -> Sin Info | B2: Sin Info | D2: =_xlfn._xlws.SORT(_xlfn.UNIQUE(A2:A4500),,1) -> 0 | E2: =_xlfn._xlws.FILTER($A$2:$B$4500,$A$2:$A$4500=Visor!$Q$7,"") -> ANTIOQUIA | F2: MEDELLÍN | H2: =_xlfn._xlws.SORT(_xlfn.UNIQUE($F$2:$F$1000),,1) -> ABEJORRAL | J2: Conteo | N2: Sin Info | O2: Sin Info | Q2: MES | R2: Diciembre
A3: ANTIOQUIA | B3: MEDELLÍN | D3: AMAZONAS | E3: ANTIOQUIA | F3: GUARNE | H3: ABRIAQUÍ | J3: =COUNTIF(_xlfn.ANCHORARRAY(H2),"<>"&"")-1 -> 125 | N3: Sin Info | O3: Sin Info
A4: BOGOTÁ, D.C. | B4: BOGOTÁ, D.C. | D4: ANTIOQUIA | E4: ANTIOQUIA | F4: LA UNIÓN | H4: ALEJANDRÍA | N4: Sin Info | O4: Sin Info
A5: VALLE DEL CAUCA | B5: CALI | D5: ARAUCA | E5: ANTIOQUIA | F5: SABANETA | H5: AMAGÁ | N5: ANTIOQUIA | O5: MEDELLÍN
A6: TOLIMA | B6: MELGAR | D6: ARCHIPIÉLAGO DE SAN ANDRÉS, PROVIDENCIA Y SANTA CATALINA | E6: ANTIOQUIA | F6: JARDÍN | H6: AMALFI | N6: BOGOTÁ, D.C. | O6: BOGOTÁ, D.C.
A7: ANTIOQUIA | B7: GUARNE | D7: ATLÁNTICO | E7: ANTIOQUIA | F7: ENVIGADO | H7: ANDES | N7: BOGOTÁ, D.C. | O7: BOGOTÁ, D.C.
A8: ANTIOQUIA | B8: LA UNIÓN | D8: BOGOTÁ, D.C. | E8: ANTIOQUIA | F8: RETIRO | H8: ANGELÓPOLIS | N8: VALLE DEL CAUCA | O8: CALI
A9: SANTANDER | B9: BUCARAMANGA | D9: BOLÍVAR | E9: ANTIOQUIA | F9: PUERTO BERRÍO | H9: ANGOSTURA | N9: BOGOTÁ, D.C. | O9: BOGOTÁ, D.C.
A10: ANTIOQUIA | B10: SABANETA | D10: BOYACÁ | E10: ANTIOQUIA | F10: RIONEGRO | H10: ANORÍ | N10: VALLE DEL CAUCA | O10: CALI
A11: BOLÍVAR | B11: CARTAGENA | D11: CALDAS | E11: ANTIOQUIA | F11: BARBOSA | H11: ANZA | N11: TOLIMA | O11: MELGAR
A12: SANTANDER | B12: AGUADA | D12: CAQUETÁ | E12: ANTIOQUIA | F12: BELLO | H12: APARTADÓ | N12: ANTIOQUIA | O12: GUARNE
A13: CUNDINAMARCA | B13: CAJICÁ | D13: CASANARE | E13: ANTIOQUIA | F13: ARMENIA | H13: ARBOLETES | N13: ANTIOQUIA | O13: MEDELLÍN
A14: HUILA | B14: NEIVA | D14: CAUCA | E14: ANTIOQUIA | F14: COPACABANA | H14: ARGELIA | N14: ANTIOQUIA | O14: LA UNIÓN
A15: QUINDÍO | B15: ARMENIA | D15: CESAR | E15: ANTIOQUIA | F15: BETANIA | H15: ARMENIA | N15: SANTANDER | O15: BUCARAMANGA
A16: CÓRDOBA | B16: MONTERÍA | D16: CHOCÓ | E16: ANTIOQUIA | F16: SEGOVIA | H16: BARBOSA | N16: ANTIOQUIA | O16: SABANETA
A17: ATLÁNTICO | B17: BARRANQUILLA | D17: CÓRDOBA | E17: ANTIOQUIA | F17: VIGÍA DEL FUERTE | H17: BELLO | N17: BOLÍVAR | O17: CARTAGENA
A18: CUNDINAMARCA | B18: CHÍA | D18: CUNDINAMARCA | E18: ANTIOQUIA | F18: ABRIAQUÍ | H18: BELMIRA | N18: SANTANDER | O18: AGUADA
A19: META | B19: ACACÍAS | D19: GUAINÍA | E19: ANTIOQUIA | F19: NARIÑO | H19: BETANIA | N19: CUNDINAMARCA | O19: CAJICÁ
A20: TOLIMA | B20: IBAGUÉ | D20: GUAVIARE | E20: ANTIOQUIA | F20: FREDONIA | H20: BETULIA | N20: HUILA | O20: NEIVA
A21: CAUCA | B21: SANTANDER DE QUILICHAO | D21: HUILA | E21: ANTIOQUIA | F21: CALDAS | H21: BRICEÑO | N21: ANTIOQUIA | O21: MEDELLÍN
A22: RISARALDA | B22: LA VIRGINIA | D22: LA GUAJIRA | E22: ANTIOQUIA | F22: ITAGUI | H22: BURITICÁ | N22: QUINDÍO | O22: ARMENIA
A23: TOLIMA | B23: HONDA | D23: MAGDALENA | E23: ANTIOQUIA | F23: FRONTINO | H23: CÁCERES | N23: CÓRDOBA | O23: MONTERÍA
A24: META | B24: VILLAVICENCIO | D24: META | E24: ANTIOQUIA | F24: SANTO DOMINGO | H24: CAICEDO | N24: CÓRDOBA | O24: MONTERÍA
A25: NORTE DE SANTANDER | B25: LOS PATIOS | D25: NARIÑO | E25: ANTIOQUIA | F25: APARTADÓ | H25: CALDAS | N25: SANTANDER | O25: BUCARAMANGA
A26: META | B26: CUMARAL | D26: NORTE DE SANTANDER | E26: ANTIOQUIA | F26: SOPETRÁN | H26: CAMPAMENTO | N26: ATLÁNTICO | O26: BARRANQUILLA
A27: SANTANDER | B27: ZAPATOCA | D27: PUTUMAYO | E27: ANTIOQUIA | F27: MARINILLA | H27: CAÑASGORDAS | N27: CUNDINAMARCA | O27: CHÍA
A28: CUNDINAMARCA | B28: TENJO | D28: QUINDÍO | E28: ANTIOQUIA | F28: TOLEDO | H28: CARACOLÍ | N28: META | O28: ACACÍAS
A29: MAGDALENA | B29: SANTA MARTA | D29: RISARALDA | E29: ANTIOQUIA | F29: LA CEJA | H29: CARAMANTA | N29: SANTANDER | O29: BUCARAMANGA
A30: SANTANDER | B30: FLORIDABLANCA | D30: SANTANDER | E30: ANTIOQUIA | F30: LA ESTRELLA | H30: CAREPA | N30: TOLIMA | O30: IBAGUÉ
A31: CAUCA | B31: POPAYÁN | D31: Sin Info | E31: ANTIOQUIA | F31: VALPARAÍSO | H31: CAROLINA | N31: ATLÁNTICO | O31: BARRANQUILLA
A32: CUNDINAMARCA | B32: GIRARDOT | D32: SUCRE | E32: ANTIOQUIA | F32: ENTRERRIOS | H32: CAUCASIA | N32: CAUCA | O32: SANTANDER DE QUILICHAO
A33: RISARALDA | B33: PEREIRA | D33: TOLIMA | E33: ANTIOQUIA | F33: PUERTO NARE | H33: CHIGORODÓ | N33: HUILA | O33: NEIVA
A34: ARAUCA | B34: FORTUL | D34: VALLE DEL CAUCA | E34: ANTIOQUIA | F34: PUERTO TRIUNFO | H34: CISNEROS | N34: RISARALDA | O34: LA VIRGINIA
A35: CUNDINAMARCA | B35: FUSAGASUGÁ | D35: VAUPÉS | E35: ANTIOQUIA | F35: GIRARDOTA | H35: CIUDAD BOLÍVAR | N35: TOLIMA | O35: HONDA
A36: CUNDINAMARCA | B36: LA VEGA | D36: VICHADA | E36: ANTIOQUIA | F36: SAN JERÓNIMO | H36: COCORNÁ | N36: META | O36: VILLAVICENCIO
A37: CUNDINAMARCA | B37: SOPÓ | D37: 0 | E37: ANTIOQUIA | F37: SANTAFÉ DE ANTIOQUIA | H37: CONCEPCIÓN | N37: NORTE DE SANTANDER | O37: LOS PATIOS
A38: ANTIOQUIA | B38: JARDÍN | E38: ANTIOQUIA | F38: CONCORDIA | H38: CONCORDIA | N38: META | O38: CUMARAL
A39: BOYACÁ | B39: SOGAMOSO | E39: ANTIOQUIA | F39: SAN PEDRO DE LOS MILAGROS | H39: COPACABANA | N39: SANTANDER | O39: ZAPATOCA
A40: BOYACÁ | B40: DUITAMA | E40: ANTIOQUIA | F40: EL SANTUARIO | H40: DABEIBA | N40: CUNDINAMARCA | O40: TENJO
A41: BOYACÁ | B41: SUTATENZA | E41: ANTIOQUIA | F41: ARGELIA | H41: DON MATÍAS | N41: MAGDALENA | O41: SANTA MARTA
A42: CÓRDOBA | B42: SAN PELAYO | E42: ANTIOQUIA | F42: CAUCASIA | H42: EBÉJICO | N42: SANTANDER | O42: FLORIDABLANCA
A43: VALLE DEL CAUCA | B43: TULUÁ | E43: ANTIOQUIA | F43: EL CARMEN DE VIBORAL | H43: EL BAGRE | N43: CAUCA | O43: POPAYÁN
A44: CALDAS | B44: MANIZALES | E44: ANTIOQUIA | F44: ABEJORRAL | H44: EL CARMEN DE VIBORAL | N44: BOLÍVAR | O44: CARTAGENA
A45: TOLIMA | B45: ESPINAL | E45: ANTIOQUIA | F45: URRAO | H45: EL SANTUARIO | N45: CUNDINAMARCA | O45: GIRARDOT
A46: CESAR | B46: VALLEDUPAR | E46: ANTIOQUIA | F46: ALEJANDRÍA | H46: ENTRERRIOS | N46: RISARALDA | O46: PEREIRA
A47: CUNDINAMARCA | B47: VILLA DE SAN DIEGO DE UBATE | E47: ANTIOQUIA | F47: AMAGÁ | H47: ENVIGADO | N47: ARAUCA | O47: FORTUL
A48: CUNDINAMARCA | B48: ZIPAQUIRÁ | E48: ANTIOQUIA | F48: AMALFI | H48: FREDONIA | N48: VALLE DEL CAUCA | O48: CALI
A49: ARCHIPIÉLAGO DE SAN ANDRÉS, PROVIDENCIA Y SANTA CATALINA | B49: SAN ANDRÉS | E49: ANTIOQUIA | F49: ANDES | H49: FRONTINO | N49: CUNDINAMARCA | O49: FUSAGASUGÁ
A50: NORTE DE SANTANDER | B50: CÚCUTA | E50: ANTIOQUIA | F50: JERICÓ | H50: GIRALDO | N50: CUNDINAMARCA | O50: LA VEGA
A51: CUNDINAMARCA | B51: TOCAIMA | E51: ANTIOQUIA | F51: HISPANIA | H51: GIRARDOTA | N51: TOLIMA | O51: IBAGUÉ
A52: CUNDINAMARCA | B52: LA MESA | E52: ANTIOQUIA | F52: ANGOSTURA | H52: GÓMEZ PLATA | N52: CUNDINAMARCA | O52: SOPÓ
A53: CALDAS | B53: AGUADAS | E53: ANTIOQUIA | F53: TURBO | H53: GRANADA | N53: ANTIOQUIA | O53: JARDÍN
A54: META | B54: SAN MARTÍN | E54: ANTIOQUIA | F54: DON MATÍAS | H54: GUADALUPE | N54: BOYACÁ | O54: SOGAMOSO
A55: CUNDINAMARCA | B55: VILLETA | E55: ANTIOQUIA | F55: BETULIA | H55: GUARNE | N55: BOYACÁ | O55: DUITAMA
A56: BOYACÁ | B56: CHIQUINQUIRÁ | E56: ANTIOQUIA | F56: CIUDAD BOLÍVAR | H56: GUATAPE | N56: BOYACÁ | O56: SUTATENZA
A57: CASANARE | B57: TAURAMENA | E57: ANTIOQUIA | F57: BURITICÁ | H57: HELICONIA | N57: CÓRDOBA | O57: SAN PELAYO
A58: BOYACÁ | B58: PAIPA | E58: ANTIOQUIA | F58: CÁCERES | H58: HISPANIA | N58: VALLE DEL CAUCA | O58: TULUÁ
A59: BOYACÁ | B59: TUNJA | E59: ANTIOQUIA | F59: YARUMAL | H59: ITAGUI | N59: META | O59: VILLAVICENCIO
A60: CUNDINAMARCA | B60: ANAPOIMA | E60: ANTIOQUIA | F60: CAMPAMENTO | H60: ITUANGO | N60: CALDAS | O60: MANIZALES
A61: NARIÑO | B61: PASTO | E61: ANTIOQUIA | F61: REMEDIOS | H61: JARDÍN | N61: TOLIMA | O61: ESPINAL
A62: SANTANDER | B62: PUENTE NACIONAL | E62: ANTIOQUIA | F62: VENECIA | H62: JERICÓ | N62: CESAR | O62: VALLEDUPAR
A63: LA GUAJIRA | B63: RIOHACHA | E63: ANTIOQUIA | F63: CHIGORODÓ | H63: LA CEJA | N63: CUNDINAMARCA | O63: VILLA DE SAN DIEGO DE UBATE
A64: CUNDINAMARCA | B64: LA CALERA | E64: ANTIOQUIA | F64: TITIRIBÍ | H64: LA ESTRELLA | N64: CUNDINAMARCA | O64: ZIPAQUIRÁ
A65: CUNDINAMARCA | B65: AGUA DE DIOS | E65: ANTIOQUIA | F65: CISNEROS | H65: LA PINTADA | N65: ARCHIPIÉLAGO DE SAN ANDRÉS, PROVIDENCIA Y SANTA CATALINA | O65: SAN ANDRÉS
A66: CUNDINAMARCA | B66: MOSQUERA | E66: ANTIOQUIA | F66: CONCEPCIÓN | H66: LA UNIÓN | N66: NORTE DE SANTANDER | O66: CÚCUTA
A67: CESAR | B67: AGUACHICA | E67: ANTIOQUIA | F67: COCORNÁ | H67: LIBORINA | N67: NORTE DE SANTANDER | O67: CÚCUTA
A68: TOLIMA | B68: VILLARRICA | E68: ANTIOQUIA | F68: ARBOLETES | H68: MACEO | N68: CUNDINAMARCA | O68: TOCAIMA
A69: CUNDINAMARCA | B69: FACATATIVÁ | E69: ANTIOQUIA | F69: EBÉJICO | H69: MARINILLA | N69: CUNDINAMARCA | O69: LA MESA
A70: CUNDINAMARCA | B70: TABIO | E70: ANTIOQUIA | F70: SANTA ROSA DE OSOS | H70: MEDELLÍN | N70: CALDAS | O70: AGUADAS
A71: CUNDINAMARCA | B71: SUBACHOQUE | E71: ANTIOQUIA | F71: SANTA BÁRBARA | H71: MONTEBELLO | N71: META | O71: SAN MARTÍN
A72: CUNDINAMARCA | B72: GUASCA | E72: ANTIOQUIA | F72: SAN VICENTE | H72: MURINDÓ | N72: CUNDINAMARCA | O72: VILLETA
A73: CAUCA | B73: PIENDAMÓ | E73: ANTIOQUIA | F73: GIRALDO | H73: MUTATÁ | N73: BOYACÁ | O73: CHIQUINQUIRÁ
A74: TOLIMA | B74: SUÁREZ | E74: ANTIOQUIA | F74: GÓMEZ PLATA | H74: NARIÑO | N74: CASANARE | O74: TAURAMENA
A75: CUNDINAMARCA | B75: FUNZA | E75: ANTIOQUIA | F75: GUATAPE | H75: NECHÍ | N75: BOYACÁ | O75: PAIPA
A76: BOYACÁ | B76: GUATEQUE | E76: ANTIOQUIA | F76: CAROLINA | H76: NECOCLÍ | N76: BOYACÁ | O76: TUNJA
A77: META | B77: GRANADA | E77: ANTIOQUIA | F77: GRANADA | H77: OLAYA | N77: CUNDINAMARCA | O77: ANAPOIMA
A78: CALDAS | B78: LA DORADA | E78: ANTIOQUIA | F78: PEÑOL | H78: PEÑOL | N78: NARIÑO | O78: PASTO
A79: SANTANDER | B79: GIRÓN | E79: ANTIOQUIA | F79: SAN RAFAEL | H79: PEQUE | N79: ANTIOQUIA | O79: SABANETA
A80: SANTANDER | B80: BARRANCABERMEJA | E80: ANTIOQUIA | F80: MURINDÓ | H80: PUEBLORRICO | N80: SANTANDER | O80: PUENTE NACIONAL
A81: TOLIMA | B81: ROVIRA | E81: ANTIOQUIA | F81: OLAYA | H81: PUERTO BERRÍO | N81: CUNDINAMARCA | O81: CHÍA
A82: CUNDINAMARCA | B82: APULO | E82: ANTIOQUIA | F82: SAN JOSÉ DE LA MONTAÑA | H82: PUERTO NARE | N82: LA GUAJIRA | O82: RIOHACHA
A83: VALLE DEL CAUCA | B83: CARTAGO | E83: ANTIOQUIA | F83: PUEBLORRICO | H83: PUERTO TRIUNFO | N83: CUNDINAMARCA | O83: LA CALERA
A84: ANTIOQUIA | B84: ENVIGADO | E84: ANTIOQUIA | F84: SAN ROQUE | H84: REMEDIOS | N84: CUNDINAMARCA | O84: AGUA DE DIOS
A85: ARAUCA | B85: ARAUCA | E85: ANTIOQUIA | F85: YONDÓ | H85: RETIRO | N85: CUNDINAMARCA | O85: TOCAIMA
A86: VALLE DEL CAUCA | B86: PALMIRA | E86: ANTIOQUIA | F86: CARACOLÍ | H86: RIONEGRO | N86: CUNDINAMARCA | O86: MOSQUERA
A87: SANTANDER | B87: SAN GIL | E87: ANTIOQUIA | F87: BELMIRA | H87: SABANALARGA | N87: CESAR | O87: AGUACHICA
A88: SANTANDER | B88: VÉLEZ | E88: ANTIOQUIA | F88: SALGAR | H88: SABANETA | N88: TOLIMA | O88: VILLARRICA
A89: ANTIOQUIA | B89: RETIRO | E89: ANTIOQUIA | F89: TÁMESIS | H89: SALGAR | N89: ANTIOQUIA | O89: GUARNE
A90: GUAVIARE | B90: CALAMAR | E90: ANTIOQUIA | F90: LA PINTADA | H90: SAN ANDRÉS DE CUERQUÍA | N90: CUNDINAMARCA | O90: FACATATIVÁ
A91: CUNDINAMARCA | B91: SOACHA | E91: ANTIOQUIA | F91: SONSON | H91: SAN CARLOS | N91: CUNDINAMARCA | O91: TABIO
A92: VALLE DEL CAUCA | B92: SEVILLA | E92: ANTIOQUIA | F92: TARSO | H92: SAN FRANCISCO | N92: CUNDINAMARCA | O92: SUBACHOQUE
A93: TOLIMA | B93: FLANDES | E93: ANTIOQUIA | F93: VALDIVIA | H93: SAN JERÓNIMO | N93: CUNDINAMARCA | O93: GUASCA
A94: CÓRDOBA | B94: SAHAGÚN | E94: ANTIOQUIA | F94: SAN ANDRÉS DE CUERQUÍA | H94: SAN JOSÉ DE LA MONTAÑA | N94: CAUCA | O94: PIENDAMÓ
A95: ANTIOQUIA | B95: PUERTO BERRÍO | E95: ANTIOQUIA | F95: EL BAGRE | H95: SAN JUAN DE URABÁ | N95: TOLIMA | O95: SUÁREZ
A96: VALLE DEL CAUCA | B96: FLORIDA | E96: ANTIOQUIA | F96: ZARAGOZA | H96: SAN LUIS | N96: CUNDINAMARCA | O96: FUNZA
A97: CUNDINAMARCA | B97: COTA | E97: ANTIOQUIA | F97: SAN FRANCISCO | H97: SAN PEDRO DE LOS MILAGROS | N97: BOYACÁ | O97: GUATEQUE
A98: ATLÁNTICO | B98: SOLEDAD | E98: ANTIOQUIA | F98: CAREPA | H98: SAN PEDRO DE URABA | N98: NORTE DE SANTANDER | O98: CÚCUTA
A99: CUNDINAMARCA | B99: SAN FRANCISCO | E99: ANTIOQUIA | F99: ANORÍ | H99: SAN RAFAEL | N99: META | O99: GRANADA
A100: ANTIOQUIA | B100: RIONEGRO | E100: ANTIOQUIA | F100: ANGELÓPOLIS | H100: SAN ROQUE | N100: CALDAS | O100: LA DORADA
A101: CUNDINAMARCA | B101: MADRID | E101: ANTIOQUIA | F101: SAN PEDRO DE URABA | H101: SAN VICENTE | N101: SANTANDER | O101: GIRÓN
A102: SUCRE | B102: SINCELEJO | E102: ANTIOQUIA | F102: CARAMANTA | H102: SANTA BÁRBARA | N102: SANTANDER | O102: BARRANCABERMEJA
A103: CASANARE | B103: PAZ DE ARIPORO | E103: ANTIOQUIA | F103: MACEO | H103: SANTA ROSA DE OSOS | N103: TOLIMA | O103: ROVIRA
A104: QUINDÍO | B104: CALARCA | E104: ANTIOQUIA | F104: PEQUE | H104: SANTAFÉ DE ANTIOQUIA | N104: CUNDINAMARCA | O104: APULO
A105: CUNDINAMARCA | B105: GRANADA | E105: ANTIOQUIA | F105: SAN CARLOS | H105: SANTO DOMINGO | N105: VALLE DEL CAUCA | O105: CARTAGO
A106: CASANARE | B106: MONTERREY | E106: ANTIOQUIA | F106: SAN JUAN DE URABÁ | H106: SEGOVIA | N106: ANTIOQUIA | O106: ENVIGADO
A107: CUNDINAMARCA | B107: ALBÁN | E107: ANTIOQUIA | F107: NECHÍ | H107: SONSON | N107: ARAUCA | O107: ARAUCA
A108: VALLE DEL CAUCA | B108: GUADALAJARA DE BUGA | E108: ANTIOQUIA | F108: YOLOMBÓ | H108: SOPETRÁN | N108: BOYACÁ | O108: TUNJA
A109: CUNDINAMARCA | B109: TOCANCIPÁ | E109: ANTIOQUIA | F109: VEGACHÍ | H109: TÁMESIS | N109: VALLE DEL CAUCA | O109: PALMIRA
A110: ANTIOQUIA | B110: BARBOSA | E110: ANTIOQUIA | F110: NECOCLÍ | H110: TARAZÁ | N110: SANTANDER | O110: SAN GIL
A111: TOLIMA | B111: SANTA ISABEL | E111: ANTIOQUIA | F111: SAN LUIS | H111: TARSO | N111: SANTANDER | O111: VÉLEZ
A112: BOYACÁ | B112: BOYACÁ | E112: ANTIOQUIA | F112: SABANALARGA | H112: TITIRIBÍ | N112: ANTIOQUIA | O112: RETIRO
A113: HUILA | B113: RIVERA | E113: ANTIOQUIA | F113: MONTEBELLO | H113: TOLEDO | N113: GUAVIARE | O113: CALAMAR
A114: SANTANDER | B114: OIBA | E114: ANTIOQUIA | F114: MUTATÁ | H114: TURBO | N114: CUNDINAMARCA | O114: SOACHA
A115: CUNDINAMARCA | B115: GUADUAS | E115: ANTIOQUIA | F115: BRICEÑO | H115: URAMITA | N115: VALLE DEL CAUCA | O115: SEVILLA
A116: CUNDINAMARCA | B116: ANOLAIMA | E116: ANTIOQUIA | F116: CAÑASGORDAS | H116: URRAO | N116: TOLIMA | O116: FLANDES
A117: CUNDINAMARCA | B117: NEMOCÓN | E117: ANTIOQUIA | F117: YALÍ | H117: VALDIVIA | N117: CÓRDOBA | O117: SAHAGÚN
A118: CUNDINAMARCA | B118: SASAIMA | E118: ANTIOQUIA | F118: URAMITA | H118: VALPARAÍSO | N118: CUNDINAMARCA | O118: MOSQUERA
A119: ANTIOQUIA | B119: BELLO | E119: ANTIOQUIA | F119: GUADALUPE | H119: VEGACHÍ | N119: ANTIOQUIA | O119: PUERTO BERRÍO
A120: VICHADA | B120: CUMARIBO | E120: ANTIOQUIA | F120: CAICEDO | H120: VENECIA | N120: VALLE DEL CAUCA | O120: FLORIDA
A121: CUNDINAMARCA | B121: TENA | E121: ANTIOQUIA | F121: ITUANGO | H121: VIGÍA DEL FUERTE | N121: CUNDINAMARCA | O121: COTA
A122: VALLE DEL CAUCA | B122: LA UNIÓN | E122: ANTIOQUIA | F122: TARAZÁ | H122: YALÍ | N122: ATLÁNTICO | O122: SOLEDAD
A123: CUNDINAMARCA | B123: SAN JUAN DE RÍO SECO | E123: ANTIOQUIA | F123: DABEIBA | H123: YARUMAL | N123: CUNDINAMARCA | O123: SAN FRANCISCO
A124: SANTANDER | B124: SABANA DE TORRES | E124: ANTIOQUIA | F124: ANZA | H124: YOLOMBÓ | N124: ANTIOQUIA | O124: RIONEGRO
A125: GUAVIARE | B125: SAN JOSÉ DEL GUAVIARE | E125: ANTIOQUIA | F125: HELICONIA | H125: YONDÓ | N125: CUNDINAMARCA | O125: MADRID
A126: CUNDINAMARCA | B126: FOMEQUE | E126: ANTIOQUIA | F126: LIBORINA | H126: ZARAGOZA | N126: CUNDINAMARCA | O126: MADRID
A127: CUNDINAMARCA | B127: QUEBRADANEGRA | H127: 0 | N127: SUCRE | O127: SINCELEJO
A128: CUNDINAMARCA | B128: GUAYABAL DE SIQUIMA | N128: CUNDINAMARCA | O128: FUNZA
A129: CHOCÓ | B129: ACANDÍ | N129: CUNDINAMARCA | O129: ZIPAQUIRÁ
A130: CUNDINAMARCA | B130: SIBATÉ | N130: CASANARE | O130: PAZ DE ARIPORO
A131: BOYACÁ | B131: VILLA DE LEYVA | N131: SUCRE | O131: SINCELEJO
A132: CUNDINAMARCA | B132: EL ROSAL | N132: QUINDÍO | O132: CALARCA
A133: ANTIOQUIA | B133: ARMENIA | N133: CUNDINAMARCA | O133: GRANADA
A134: LA GUAJIRA | B134: MAICAO | N134: CUNDINAMARCA | O134: FUSAGASUGÁ
A135: CASANARE | B135: YOPAL | N135: CUNDINAMARCA | O135: SOACHA
A136: CUNDINAMARCA | B136: CAPARRAPÍ | N136: CASANARE | O136: MONTERREY
A137: CUNDINAMARCA | B137: QUIPILE | N137: CUNDINAMARCA | O137: ALBÁN
A138: VALLE DEL CAUCA | B138: JAMUNDÍ | N138: VALLE DEL CAUCA | O138: GUADALAJARA DE BUGA
A139: CUNDINAMARCA | B139: COGUA | N139: CUNDINAMARCA | O139: FACATATIVÁ
A140: TOLIMA | B140: FRESNO | N140: CUNDINAMARCA | O140: TOCANCIPÁ
A141: RISARALDA | B141: DOSQUEBRADAS | N141: ANTIOQUIA | O141: BARBOSA
A142: CUNDINAMARCA | B142: SESQUILÉ | N142: META | O142: ACACÍAS
A143: CUNDINAMARCA | B143: UBALÁ | N143: TOLIMA | O143: SANTA ISABEL
A144: SANTANDER | B144: PUERTO PARRA | N144: CUNDINAMARCA | O144: ALBÁN
A145: PUTUMAYO | B145: MOCOA | N145: BOYACÁ | O145: BOYACÁ
A146: PUTUMAYO | B146: PUERTO ASÍS | N146: HUILA | O146: RIVERA
A147: CUNDINAMARCA | B147: CHOCONTÁ | N147: RISARALDA | O147: PEREIRA
A148: HUILA | B148: GARZÓN | N148: SANTANDER | O148: OIBA
A149: CUNDINAMARCA | B149: VENECIA | N149: CUNDINAMARCA | O149: GUADUAS
A150: CUNDINAMARCA | B150: RICAURTE | N150: CUNDINAMARCA | O150: FACATATIVÁ
A151: HUILA | B151: LA PLATA | N151: CUNDINAMARCA | O151: ANOLAIMA
A152: CUNDINAMARCA | B152: SUESCA | N152: CUNDINAMARCA | O152: AGUA DE DIOS
A153: BOLÍVAR | B153: EL CARMEN DE BOLÍVAR | N153: CUNDINAMARCA | O153: NEMOCÓN
A154: CASANARE | B154: VILLANUEVA | N154: CUNDINAMARCA | O154: LA VEGA
A155: CUNDINAMARCA | B155: EL COLEGIO | N155: META | O155: SAN MARTÍN
A156: CUNDINAMARCA | B156: VIOTÁ | N156: CUNDINAMARCA | O156: SASAIMA
A157: CUNDINAMARCA | B157: CACHIPAY | N157: CUNDINAMARCA | O157: VILLA DE SAN DIEGO DE UBATE
A158: BOYACÁ | B158: CHIVOR | N158: SANTANDER | O158: BARRANCABERMEJA
A159: TOLIMA | B159: MARIQUITA | N159: BOYACÁ | O159: DUITAMA
A160: CUNDINAMARCA | B160: ARBELÁEZ | N160: ANTIOQUIA | O160: BELLO
A161: CUNDINAMARCA | B161: BELTRÁN | N161: CUNDINAMARCA | O161: AGUA DE DIOS
A162: META | B162: PUERTO LÓPEZ | N162: VICHADA | O162: CUMARIBO
A163: META | B163: PUERTO GAITÁN | N163: BOYACÁ | O163: SOGAMOSO
A164: TOLIMA | B164: AMBALEMA | N164: CUNDINAMARCA | O164: TENA
A165: TOLIMA | B165: LÉRIDA | N165: VALLE DEL CAUCA | O165: LA UNIÓN
A166: NORTE DE SANTANDER | B166: OCAÑA | N166: CUNDINAMARCA | O166: CAJICÁ
A167: BOYACÁ | B167: PUERTO BOYACÁ | N167: CUNDINAMARCA | O167: SAN JUAN DE RÍO SECO
A168: MAGDALENA | B168: GUAMAL | N168: CUNDINAMARCA | O168: ALBÁN
A169: CUNDINAMARCA | B169: BITUIMA | N169: BOYACÁ | O169: SOGAMOSO
A170: TOLIMA | B170: LÍBANO | N170: SANTANDER | O170: SABANA DE TORRES
A171: CUNDINAMARCA | B171: VIANÍ | N171: GUAVIARE | O171: SAN JOSÉ DEL GUAVIARE
A172: META | B172: SAN CARLOS DE GUAROA | N172: CUNDINAMARCA | O172: FOMEQUE
A173: CUNDINAMARCA | B173: BOJACÁ | N173: CUNDINAMARCA | O173: GUADUAS
A174: CUNDINAMARCA | B174: SIMIJACA | N174: CUNDINAMARCA | O174: SOPÓ
A175: TOLIMA | B175: COELLO | N175: CUNDINAMARCA | O175: QUEBRADANEGRA
A176: CAQUETÁ | B176: SAN VICENTE DEL CAGUÁN | N176: CUNDINAMARCA | O176: SASAIMA
A177: SANTANDER | B177: LANDÁZURI | N177: CUNDINAMARCA | O177: GUAYABAL DE SIQUIMA
A178: CUNDINAMARCA | B178: PACHO | N178: CHOCÓ | O178: ACANDÍ
A179: CHOCÓ | B179: QUIBDÓ | N179: CUNDINAMARCA | O179: SIBATÉ
A180: CUNDINAMARCA | B180: GACHANCIPÁ | N180: CUNDINAMARCA | O180: TOCANCIPÁ
A181: CUNDINAMARCA | B181: GUACHETÁ | N181: CUNDINAMARCA | O181: SASAIMA
A182: TOLIMA | B182: ARMERO | N182: CUNDINAMARCA | O182: VILLETA
A183: TOLIMA | B183: VENADILLO | N183: BOYACÁ | O183: VILLA DE LEYVA
A184: CUNDINAMARCA | B184: PUERTO SALGAR | N184: CUNDINAMARCA | O184: EL ROSAL
A185: BOYACÁ | B185: CÓMBITA | N185: CUNDINAMARCA | O185: TENJO
A186: CHOCÓ | B186: BOJAYA | N186: GUAVIARE | O186: SAN JOSÉ DEL GUAVIARE
A187: CUNDINAMARCA | B187: CARMEN DE CARUPA | N187: ANTIOQUIA | O187: ARMENIA
A188: CUNDINAMARCA | B188: UBAQUE | N188: LA GUAJIRA | O188: MAICAO
A189: BOYACÁ | B189: RÁQUIRA | N189: CASANARE | O189: YOPAL
A190: CUNDINAMARCA | B190: MANTA | N190: CUNDINAMARCA | O190: CAPARRAPÍ
A191: PUTUMAYO | B191: SIBUNDOY | N191: VALLE DEL CAUCA | O191: CARTAGO
A192: VALLE DEL CAUCA | B192: YUMBO | N192: CUNDINAMARCA | O192: QUIPILE
A193: CUNDINAMARCA | B193: CUCUNUBÁ | N193: VALLE DEL CAUCA | O193: JAMUNDÍ
A194: CUNDINAMARCA | B194: SUTATAUSA | N194: CUNDINAMARCA | O194: LA MESA
A195: CUNDINAMARCA | B195: SUSA | N195: CUNDINAMARCA | O195: COGUA
A196: CUNDINAMARCA | B196: VILLAPINZÓN | N196: CUNDINAMARCA | O196: ANAPOIMA
A197: CUNDINAMARCA | B197: LENGUAZAQUE | N197: CUNDINAMARCA | O197: ANAPOIMA
A198: CUNDINAMARCA | B198: CHAGUANÍ | N198: CUNDINAMARCA | O198: LA MESA
A199: TOLIMA | B199: CAJAMARCA | N199: CUNDINAMARCA | O199: GIRARDOT
A200: CAUCA | B200: ARGELIA | N200: TOLIMA | O200: FRESNO
... 3255 more rows

Sheet Visor
J3: Informe Mensual de las cotizaciones
AB4: Pg. 1
J5: Fecha de corte: 17 de Feb de 2022
L7: Departamento | Q7: ANTIOQUIA
L8: Municipio | Q8: MEDELLÍN
C10: ="Resumen general mes "&Lista!R2&":" -> Resumen general mes Diciembre:
H12: Total | L12: % | M12: Dependientes | Q12: % | R12: Dep.Privados* | V12: % | W12: Independientes | AA12: %
D13: Nacional | H13: =M13+W13 -> 12938494 | M13: =R13+SUMIFS('Cotizantes Mes'!$AK$2:$AK$4995,'Cotizantes Mes'!$I$2:$I$4995,"Dep_No_priv") -> 10684503 | R13: =SUMIFS('Cotizantes Mes'!$AK$2:$AK$4995,'Cotizantes Mes'!$I$2:$I$4995,"Dep_sec_priv") -> 9166708 | W13: =SUMIFS('Cotizantes Mes'!$AK$2:$AK$4995,'Cotizantes Mes'!$I$2:$I$4995,"Independiente") -> 2253991
D14: =PROPER(Q7) -> Antioquia | H14: =M14+W14 -> 2234926 | L14: =H14/H13 -> 0.172734632 | M14: =R14+SUMIFS('Cotizantes Mes'!$CA$2:$CA$4995,'Cotizantes Mes'!$AY$2:$AY$4995,"Dep_No_priv") -> 1897072 | Q14: =M14/M13 -> 0.1775536026 | R14: =SUMIFS('Cotizantes Mes'!$CA$2:$CA$4995,'Cotizantes Mes'!$AY$2:$AY$4995,"Dep_sec_priv") -> 1665030 | V14: =R14/R13 -> 0.1816388173 | W14: =SUMIFS('Cotizantes Mes'!$CA$2:$CA$2000,'Cotizantes Mes'!$AY$2:$AY$2000,"Independiente") -> 337854 | AA14: =W14/W13 -> 0.1498914592
D15: =PROPER(Q8) -> Medellín | H15: =M15+W15 -> 1534627 | L15: =H15/H14 -> 0.6866567394 | M15: =R15+SUMIFS('Cotizantes Mes'!$CA$2:$CA$2000,'Cotizantes Mes'!$AY$2:$AY$2000,"Dep_No_priv",'Cotizantes Mes'!$AX$2:$AX$2000,Visor!$Q$8) -> 1328858 | Q15: =M15/M14 -> 0.7004784215 | R15: =SUMIFS('Cotizantes Mes'!$CA$2:$CA$2000,'Cotizantes Mes'!$AY$2:$AY$2000,"Dep_sec_priv",'Cotizantes Mes'!$AX$2:$AX$2000,Visor!$Q$8) -> 1180477 | V15: =R15/R14 -> 0.7089824207 | W15: =SUMIFS('Cotizantes Mes'!$CA$2:$CA$2000,'Cotizantes Mes'!$AY$2:$AY$2000,"Independiente",'Cotizantes Mes'!$AX$2:$AX$2000,Visor!$Q$8) -> 205769 | AA15: =W15/W14 -> 0.6090471032
C16: *Ubicación basada en la ubicación de los cotizantes
C18: Variaciones mensuales del número de cotizantes
C30: ="Variaciones anuales y mensuales de "&Lista!R2 -> Variaciones anuales y mensuales de Diciembre
L32: Dependientes | P32: Dep. Privados | T32: Independientes
L33: ='Cotizantes Mes'!DL5 -> ∆ Anual Dic | N33: ='Cotizantes Mes'!DM5 -> ∆ Mensual Dic | P33: ='Cotizantes Mes'!DN5 -> ∆ Anual Dic | R33: ='Cotizantes Mes'!DO5 -> ∆ Mensual Dic | T33: =L33 -> ∆ Anual Dic | V33: =N33 -> ∆ Mensual Dic
H34: Nacional | L34: =IFERROR('Cotizantes Mes'!DL6,"") -> 0.03643643677 | N34: =IFERROR('Cotizantes Mes'!DM6,"") -> -0.06024707724 | P34: =IFERROR('Cotizantes Mes'!DN6,"") -> 0.04092686435 | R34: =IFERROR('Cotizantes Mes'!DO6,"") -> -0.02955232745 | T34: =IFERROR('Cotizantes Mes'!DP6,"") -> -0.006941305327 | V34: =IFERROR('Cotizantes Mes'!DQ6,"") -> -0.04771539505
H35: =PROPER(Q7) -> Antioquia | L35: =IFERROR('Cotizantes Mes'!DL7,"") -> 0.02795531355 | N35: =IFERROR('Cotizantes Mes'!DM7,"") -> -0.0546959944 | P35: =IFERROR('Cotizantes Mes'!DN7,"") -> 0.0323641892 | R35: =IFERROR('Cotizantes Mes'!DO7,"") -> -0.03189570012 | T35: =IFERROR('Cotizantes Mes'!DP7,"") -> 0.0307717654 | V35: =IFERROR('Cotizantes Mes'!DQ7,"") -> -0.03308119618
H36: =PROPER(Q8) -> Medellín | L36: =IFERROR('Cotizantes Mes'!DL8,"") -> 0.02787708711 | N36: =IFERROR('Cotizantes Mes'!DM8,"") -> -0.0566496623 | P36: =IFERROR('Cotizantes Mes'!DN8,"") -> 0.03078892472 | R36: =IFERROR('Cotizantes Mes'!DO8,"") -> -0.03172525233 | T36: =IFERROR('Cotizantes Mes'!DP8,"") -> 0.01531591543 | V36: =IFERROR('Cotizantes Mes'!DQ8,"") -> -0.03044338689
C38: *Ubicación basada en la ubicación de los cotizantes
C39: ="Número de aportantes privados por tamaño mes de "&Lista!R2 -> Número de aportantes privados por tamaño mes de Diciembre
I41: Nacional | L41: % | M41: Cotizantes | O41: =PROPER(Q7) -> Antioquia | R41: % | S41: Cotizantes | U41: =PROPER(Q8) -> Medellín | X41: % | Y41: Cotizantes
E42: Micro | I42: =COUNTIFS(Tamaño!$G$2:$G$600000,"<=10") -> 431294 | L42: =I42/$I$47 -> 0.8126184653 | M42: =SUMIFS(Tamaño!$G$2:$G$600000,Tamaño!$G$2:$G$600000,"<="&10) -> 1281894 | O42: =COUNTIFS(Tamaño!$S$2:$S$300000,"<=10") -> 89707 | R42: =O42/$O$47 -> 0.8193317989 | S42: =SUMIFS(Tamaño!$S$2:$S$300000,Tamaño!$S$2:$S$300000,"<="&10) -> 265509 | U42: =COUNTIFS(Tamaño!$S$2:$S$300000,"<=10",Tamaño!$R$2:$R$300000,Visor!$Q$8) -> 56481 | X42: =U42/$U$47 -> 0.8227025767 | Y42: =SUMIFS(Tamaño!$S$2:$S$300000,Tamaño!$S$2:$S$300000,"<="&10,Tamaño!$R$2:$R$300000,Visor!$Q$8) -> 162980
E43: Pequeñas | I43: =COUNTIFS(Tamaño!$G$2:$G$600000,">=11",Tamaño!$G$2:$G$600000,"<=50") -> 75349 | L43: =I43/$I$47 -> 0.1419680977 | M43: =SUMIFS(Tamaño!$G$2:$G$600000,Tamaño!$G$2:$G$600000,">"&10,Tamaño!$G$2:$G$600000,"<="&50) -> 1626651 | O43: =COUNTIFS(Tamaño!$S$2:$S$300000,">=11",Tamaño!$S$2:$S$300000,"<=50") -> 15318 | R43: =O43/$O$47 -> 0.1399057431 | S43: =SUMIFS(Tamaño!$S$2:$S$300000,Tamaño!$S$2:$S$300000,">"&10,Tamaño!$S$2:$S$300000,"<="&50) -> 330315 | U43: =COUNTIFS(Tamaño!$S$2:$S$300000,">=11",Tamaño!$S$2:$S$300000,"<=50",Tamaño!$R$2:$R$300000,Visor!$Q$8) -> 9276 | X43: =U43/$U$47 -> 0.1351142703 | Y43: =SUMIFS(Tamaño!$S$2:$S$300000,Tamaño!$S$2:$S$300000,">"&10,Tamaño!$S$2:$S$300000,"<="&50,Tamaño!$R$2:$R$300000,Visor!$Q$8) -> 200375
E44: Medianas | I44: =COUNTIFS(Tamaño!$G$2:$G$600000,">=51",Tamaño!$G$2:$G$600000,"<=200") -> 18272 | L44: =I44/$I$47 -> 0.03442701405 | M44: =SUMIFS(Tamaño!$G$2:$G$600000,Tamaño!$G$2:$G$600000,">"&50,Tamaño!$G$2:$G$600000,"<="&200) -> 1715165 | O44: =COUNTIFS(Tamaño!$S$2:$S$300000,">=51",Tamaño!$S$2:$S$300000,"<=200") -> 3447 | R44: =O44/$O$47 -> 0.03148290224 | S44: =SUMIFS(Tamaño!$S$2:$S$300000,Tamaño!$S$2:$S$300000,">"&50,Tamaño!$S$2:$S$300000,"<="&200) -> 318138 | U44: =COUNTIFS(Tamaño!$S$2:$S$300000,">=51",Tamaño!$S$2:$S$300000,"<=200",Tamaño!$R$2:$R$300000,Visor!$Q$8) -> 2196 | X44: =U44/$U$47 -> 0.03198694886 | Y44: =SUMIFS(Tamaño!$S$2:$S$300000,Tamaño!$S$2:$S$300000,">"&50,Tamaño!$S$2:$S$300000,"<="&200,Tamaño!$R$2:$R$300000,Visor!$Q$8) -> 204975
E45: Grandes | I45: =COUNTIFS(Tamaño!$G$2:$G$600000,">=201",Tamaño!$G$2:$G$600000,"<=500") -> 3694 | L45: =I45/$I$47 -> 0.006960014772 | M45: =SUMIFS(Tamaño!$G$2:$G$600000,Tamaño!$G$2:$G$600000,">"&200,Tamaño!$G$2:$G$600000,"<="&500) -> 1123959 | O45: =COUNTIFS(Tamaño!$S$2:$S$300000,">=201",Tamaño!$S$2:$S$300000,"<=500") -> 633 | R45: =O45/$O$47 -> 0.005781455502 | S45: =SUMIFS(Tamaño!$S$2:$S$300000,Tamaño!$S$2:$S$300000,">"&200,Tamaño!$S$2:$S$300000,"<="&500) -> 192196 | U45: =COUNTIFS(Tamaño!$S$2:$S$300000,">=201",Tamaño!$S$2:$S$300000,"<=500",Tamaño!$R$2:$R$300000,Visor!$Q$8) -> 415 | X45: =U45/$U$47 -> 0.00604489243 | Y45: =SUMIFS(Tamaño!$S$2:$S$300000,Tamaño!$S$2:$S$300000,">"&200,Tamaño!$S$2:$S$300000,"<="&500,Tamaño!$R$2:$R$300000,Visor!$Q$8) -> 126191
E46: Muy Grandes | I46: =COUNTIFS(Tamaño!$G$2:$G$600000,">=501") -> 2137 | L46: =I46/$I$47 -> 0.004026408112 | M46: =SUMIFS(Tamaño!$G$2:$G$600000,Tamaño!$G$2:$G$600000,">"&500) -> 3423179 | O46: =COUNTIFS(Tamaño!$S$2:$S$300000,">=501") -> 383 | R46: =O46/$O$47 -> 0.003498100248 | S46: =SUMIFS(Tamaño!$S$2:$S$300000,Tamaño!$S$2:$S$300000,">"&500) -> 639037 | U46: =COUNTIFS(Tamaño!$S$2:$S$300000,">=501",Tamaño!$R$2:$R$300000,Visor!$Q$8) -> 285 | X46: =U46/$U$47 -> 0.004151311669 | Y46: =SUMIFS(Tamaño!$S$2:$S$300000,Tamaño!$S$2:$S$300000,">"&500,Tamaño!$R$2:$R$300000,Visor!$Q$8) -> 483806
E47: Total | I47: =SUM(I42:K46) -> 530746 | L47: =SUM(L42:L46) -> 1 | M47: =SUM(M42:N46) -> 9170848 | O47: =SUM(O42:Q46) -> 109488 | R47: =SUM(R42:R46) -> 1 | S47: =SUM(S42:T46) -> 1745195 | U47: =SUM(U42:W46) -> 68653 | X47: =SUM(X42:X46) -> 1 | Y47: =SUM(Y42:Z46) -> 1178327
C49: *Ubicación basada en la ubicación de los aportantes
K51: =J3 -> Informe Mensual de las cotizaciones | AB51: Pg. 2
K53: =J5 -> Fecha de corte: 17 de Feb de 2022
L55: Departamento | Q55: =Q7 -> ANTIOQUIA
L56: Municipio | Q56: =Q8 -> MEDELLÍN
C58: ="Resumen por rangos de IBC privados e Independientes mes "&Lista!R2&":" -> Resumen por rangos de IBC privados e Independientes mes Diciembre:
F60: Nacional | L60: =PROPER($Q$7) -> Antioquia | R60: =PROPER($Q$8) -> Medellín
Z61: <= 1 SMMLV
Z62: 1-2 SMMLV
B63: Privados | Z63: 2-5 SMMLV
Z64: > 5 SMMLV
Z68: <= 1 SMMLV
B69: Independientes | Z69: 1-2 SMMLV
Z70: 2-5 SMMLV
Z71: > 5 SMMLV
C73: *Ubicación basada en la ubicación de los cotizantes
C74: Resumen por actividades económicas aportantes del sector privado
C76: Actividades económicas | K76: =PROPER(Q7) -> Antioquia | S76: =PROPER(Q56) -> Medellín
K77: Apt.Privados | N77: % | O77: Empleados | R77: % | S77: Apt.Privados | V77: % | W77: Empleados | Z77: %
B78: =IF(C78="Total",1,0) -> 0 | C78: =IF(Tamaño!$AP2="",Total,Tamaño!$AP2) -> Otras actividades de servicios | K78: =Tamaño!AQ2 -> 16749 | N78: =K78/Tamaño!$AQ$24 -> 0.1529756686 | O78: =Tamaño!AR2 -> 153308 | R78: =O78/Tamaño!$AR$24 -> 0.08784577082 | S78: =Tamaño!AS2 -> 11115 | V78: =S78/Tamaño!$AS$24 -> 0.1619011551 | W78: =Tamaño!AT2 -> 99043 | Z78: =W78/Tamaño!$AT$24 -> 0.08405391712
B79: =IF(C79="Total",1,0) -> 0 | C79: =IF(C78="Total","",IF(Tamaño!$AQ3=0,"Total",Tamaño!$AP3)) -> Comercio y reparación de vehículos | K79: =IF(C79="","",IF(C79="Total",K78,Tamaño!$AQ3)) -> 16118 | N79: =IF(C79="Total","",K79/Tamaño!$AQ$24) -> 0.1472124799 | O79: =IF(C79="","",IF(C79="Total",O78,Tamaño!$AR3)) -> 164896 | R79: =IF(C79="Total","",O79/Tamaño!$AR$24) -> 0.0944857165 | S79: =IF(C79="","",IF(C79="Total",SUM($S$78:$U78),Tamaño!$AS3)) -> 9128 | V79: =IF(OR(C78="",C78="Total"),"",IF(C79="Total","",S79/Tamaño!$AS$24)) -> 0.1329585014 | W79: =IF(C79="","",IF(C79="Total",SUM($W$78:$W78),Tamaño!$AT3)) -> 100582 | Z79: =IF(OR(C78="Total",C78=""),"",IF(C79="Total","",W79/Tamaño!$AT$24)) -> 0.08536000618
B80: 0 | C80: =IF(C79="Total","",IF(Tamaño!$AQ4=0,"Total",Tamaño!$AP4)) -> Act. profesionales científicas y técnicas | K80: =IF(C80="","",IF(C80="Total",SUM(K78:M79),Tamaño!$AQ4)) -> 13322 | N80: =IF(N79="","",IF(C80="Total","",K80/Tamaño!$AQ$24)) -> 0.1216754348 | O80: =IF(C80="","",IF(C80="Total",SUM($O$78:$Q79),Tamaño!$AR4)) -> 220644 | R80: =IF(N79="","",IF(C80="Total","",O80/Tamaño!$AR$24)) -> 0.1264294248 | S80: =IF(C80="","",IF(C80="Total",SUM($S$78:$U79),Tamaño!$AS4)) -> 9303 | V80: =IF(OR(C79="",C79="Total"),"",IF(C80="Total","",S80/Tamaño!$AS$24)) -> 0.1355075525 | W80: =IF(C80="","",IF(C80="Total",SUM($W$78:$W79),Tamaño!$AT4)) -> 158841 | Z80: =IF(OR(C79="Total",C79=""),"",IF(C80="Total","",W80/Tamaño!$AT$24)) -> 0.134802139
B81: 0 | C81: =IF(OR(C80="Total",C80=""),"",IF(Tamaño!$AQ5=0,"Total",Tamaño!$AP5)) -> Actividades de servicios administrativos | K81: =IF(C81="","",IF(C81="Total",SUM(K78:M80),Tamaño!$AQ5)) -> 10265 | N81: =IF(N80="","",IF(C81="Total","",K81/Tamaño!$AQ$24)) -> 0.09375456671 | O81: =IF(C81="","",IF(C81="Total",SUM($O$78:$Q80),Tamaño!$AR5)) -> 270021 | R81: =IF(N80="","",IF(C81="Total","",O81/Tamaño!$AR$24)) -> 0.1547225382 | S81: =IF(C81="","",IF(C81="Total",SUM($S$78:$U80),Tamaño!$AS5)) -> 6907 | V81: =IF(OR(C80="",C80="Total"),"",IF(C81="Total","",S81/Tamaño!$AS$24)) -> 0.1006074024 | W81: =IF(C81="","",IF(C81="Total",SUM($W$78:$W80),Tamaño!$AT5)) -> 220660 | Z81: =IF(OR(C80="Total",C80=""),"",IF(C81="Total","",W81/Tamaño!$AT$24)) -> 0.1872655044
B82: 0 | C82: =IF(OR(C81="Total",C81=""),"",IF(Tamaño!$AQ6=0,"Total",Tamaño!$AP6)) -> Industrias manufactureras | K82: =IF(C82="","",IF(C82="Total",SUM(K78:M81),Tamaño!$AQ6)) -> 9370 | N82: =IF(N81="","",IF(C82="Total","",K82/Tamaño!$AQ$24)) -> 0.0855801549 | O82: =IF(C82="","",IF(C82="Total",SUM($O$78:$Q81),Tamaño!$AR6)) -> 217388 | R82: =IF(N81="","",IF(C82="Total","",O82/Tamaño!$AR$24)) -> 0.1245637307 | S82: =IF(C82="","",IF(C82="Total",SUM($S$78:$U81),Tamaño!$AS6)) -> 5447 | V82: =IF(OR(C81="",C81="Total"),"",IF(C82="Total","",S82/Tamaño!$AS$24)) -> 0.0793410339 | W82: =IF(C82="","",IF(C82="Total",SUM($W$78:$W81),Tamaño!$AT6)) -> 119337 | Z82: =IF(OR(C81="Total",C81=""),"",IF(C82="Total","",W82/Tamaño!$AT$24)) -> 0.1012766405
B83: 0 | C83: =IF(OR(C82="Total",C82=""),"",IF(Tamaño!$AQ7=0,"Total",Tamaño!$AP7)) -> Admin. pública y defensa; planes seg. social | K83: =IF(C83="","",IF(C83="Total",SUM(K78:M82),Tamaño!$AQ7)) -> 8108 | N83: =IF(N82="","",IF(C83="Total","",K83/Tamaño!$AQ$24)) -> 0.07405377758 | O83: =IF(C83="","",IF(C83="Total",SUM($O$78:$Q82),Tamaño!$AR7)) -> 79546 | R83: =IF(N82="","",IF(C83="Total","",O83/Tamaño!$AR$24)) -> 0.04558000682 | S83: =IF(C83="","",IF(C83="Total",SUM($S$78:$U82),Tamaño!$AS7)) -> 5044 | V83: =IF(OR(C82="",C82="Total"),"",IF(C83="Total","",S83/Tamaño!$AS$24)) -> 0.07347093354 | W83: =IF(C83="","",IF(C83="Total",SUM($W$78:$W82),Tamaño!$AT7)) -> 59213 | Z83: =IF(OR(C82="Total",C82=""),"",IF(C83="Total","",W83/Tamaño!$AT$24)) -> 0.05025175524
B84: 0 | C84: =IF(OR(C83="Total",C83=""),"",IF(Tamaño!$AQ8=0,"Total",Tamaño!$AP8)) -> Construcción | K84: =IF(C84="","",IF(C84="Total",SUM($K$78:$M83),Tamaño!$AQ8)) -> 6529 | N84: =IF(N83="","",IF(C84="Total","",K84/Tamaño!$AQ$24)) -> 0.0596321058 | O84: =IF(C84="","",IF(C84="Total",SUM($O$78:$Q83),Tamaño!$AR8)) -> 149284 | R84: =IF(N83="","",IF(C84="Total","",O84/Tamaño!$AR$24)) -> 0.08554001129 | S84: =IF(C84="","",IF(C84="Total",SUM($S$78:$U83),Tamaño!$AS8)) -> 3995 | V84: =IF(OR(C83="",C83="Total"),"",IF(C84="Total","",S84/Tamaño!$AS$24)) -> 0.05819119339 | W84: =IF(C84="","",IF(C84="Total",SUM($W$78:$W83),Tamaño!$AT8)) -> 101135 | Z84: =IF(OR(C83="Total",C83=""),"",IF(C84="Total","",W84/Tamaño!$AT$24)) -> 0.08582931563
B85: 0 | C85: =IF(OR(C84="Total",C84=""),"",IF(Tamaño!$AQ9=0,"Total",Tamaño!$AP9)) -> Alojamiento y servicios de comida | K85: =IF(C85="","",IF(C85="Total",SUM($K$78:$M84),Tamaño!$AQ9)) -> 4247 | N85: =IF(N84="","",IF(C85="Total","",K85/Tamaño!$AQ$24)) -> 0.03878963905 | O85: =IF(C85="","",IF(C85="Total",SUM($O$78:$Q84),Tamaño!$AR9)) -> 41929 | R85: =IF(N84="","",IF(C85="Total","",O85/Tamaño!$AR$24)) -> 0.02402539544 | S85: =IF(C85="","",IF(C85="Total",SUM($S$78:$U84),Tamaño!$AS9)) -> 2481 | V85: =IF(OR(C84="",C84="Total"),"",IF(C85="Total","",S85/Tamaño!$AS$24)) -> 0.03613826053 | W85: =IF(C85="","",IF(C85="Total",SUM($W$78:$W84),Tamaño!$AT9)) -> 27525 | Z85: =IF(OR(C84="Total",C84=""),"",IF(C85="Total","",W85/Tamaño!$AT$24)) -> 0.02335939005
B86: 0 | C86: =IF(OR(C85="Total",C85=""),"",IF(Tamaño!$AQ10=0,"Total",Tamaño!$AP10)) -> Agricultura, ganadería, caza | K86: =IF(C86="","",IF(C86="Total",SUM($K$78:$M85),Tamaño!$AQ10)) -> 4215 | N86: =IF(N85="","",IF(C86="Total","",K86/Tamaño!$AQ$24)) -> 0.03849736957 | O86: =IF(C86="","",IF(C86="Total",SUM($O$78:$Q85),Tamaño!$AR10)) -> 78868 | R86: =IF(N85="","",IF(C86="Total","",O86/Tamaño!$AR$24)) -> 0.04519151155 | S86: =IF(C86="","",IF(C86="Total",SUM($S$78:$U85),Tamaño!$AS10)) -> 1772 | V86: =IF(OR(C85="",C85="Total"),"",IF(C86="Total","",S86/Tamaño!$AS$24)) -> 0.02581096238 | W86: =IF(C86="","",IF(C86="Total",SUM($W$78:$W85),Tamaño!$AT10)) -> 43622 | Z86: =IF(OR(C85="Total",C85=""),"",IF(C86="Total","",W86/Tamaño!$AT$24)) -> 0.03702028384
B87: 0 | C87: =IF(OR(C86="Total",C86=""),"",IF(Tamaño!$AQ11=0,"Total",Tamaño!$AP11)) -> Transporte y almacenamiento | K87: =IF(C87="","",IF(C87="Total",SUM($K$78:$M86),Tamaño!$AQ11)) -> 3910 | N87: =IF(N86="","",IF(C87="Total","",K87/Tamaño!$AQ$24)) -> 0.03571167617 | O87: =IF(C87="","",IF(C87="Total",SUM($O$78:$Q86),Tamaño!$AR11)) -> 125277 | R87: =IF(N86="","",IF(C87="Total","",O87/Tamaño!$AR$24)) -> 0.07178395537 | S87: =IF(C87="","",IF(C87="Total",SUM($S$78:$U86),Tamaño!$AS11)) -> 1944 | V87: =IF(OR(C86="",C86="Total"),"",IF(C87="Total","",S87/Tamaño!$AS$24)) -> 0.02831631538 | W87: =IF(C87="","",IF(C87="Total",SUM($W$78:$W86),Tamaño!$AT11)) -> 58233 | Z87: =IF(OR(C86="Total",C86=""),"",IF(C87="Total","",W87/Tamaño!$AT$24)) -> 0.0494200676
B88: 0 | C88: =IF(OR(C87="Total",C87=""),"",IF(Tamaño!$AQ12=0,"Total",Tamaño!$AP12)) -> Actividades de los hogares individuales | K88: =IF(C88="","",IF(C88="Total",SUM($K$78:$M87),Tamaño!$AQ12)) -> 3261 | N88: =IF(N87="","",IF(C88="Total","",K88/Tamaño!$AQ$24)) -> 0.02978408593 | O88: =IF(C88="","",IF(C88="Total",SUM($O$78:$Q87),Tamaño!$AR12)) -> 5834 | R88: =IF(N87="","",IF(C88="Total","",O88/Tamaño!$AR$24)) -> 0.003342892915 | S88: =IF(C88="","",IF(C88="Total",SUM($S$78:$U87),Tamaño!$AS12)) -> 2364 | V88: =IF(OR(C87="",C87="Total"),"",IF(C88="Total","",S88/Tamaño!$AS$24)) -> 0.03443403784 | W88: =IF(C88="","",IF(C88="Total",SUM($W$78:$W87),Tamaño!$AT12)) -> 4597 | Z88: =IF(OR(C87="Total",C87=""),"",IF(C88="Total","",W88/Tamaño!$AT$24)) -> 0.003901293953
B89: 0 | C89: =IF(OR(C88="Total",C88=""),"",IF(Tamaño!$AQ13=0,"Total",Tamaño!$AP13)) -> Actividades inmobiliarias | K89: =IF(C89="","",IF(C89="Total",SUM($K$78:$M88),Tamaño!$AQ13)) -> 3095 | N89: =IF(N88="","",IF(C89="Total","",K89/Tamaño!$AQ$24)) -> 0.02826793804 | O89: =IF(C89="","",IF(C89="Total",SUM($O$78:$Q88),Tamaño!$AR13)) -> 15977 | R89: =IF(N88="","",IF(C89="Total","",O89/Tamaño!$AR$24)) -> 0.009154850891 | S89: =IF(C89="","",IF(C89="Total",SUM($S$78:$U88),Tamaño!$AS13)) -> 2257 | V89: =IF(OR(C88="",C88="Total"),"",IF(C89="Total","",S89/Tamaño!$AS$24)) -> 0.03287547522 | W89: =IF(C89="","",IF(C89="Total",SUM($W$78:$W88),Tamaño!$AT13)) -> 12244 | Z89: =IF(OR(C88="Total",C88=""),"",IF(C89="Total","",W89/Tamaño!$AT$24)) -> 0.01039100352
B90: 0 | C90: =IF(OR(C89="Total",C89=""),"",IF(Tamaño!$AQ14=0,"Total",Tamaño!$AP14)) -> Información y comunicaciones | K90: =IF(C90="","",IF(C90="Total",SUM($K$78:$M89),Tamaño!$AQ14)) -> 3040 | N90: =IF(N89="","",IF(C90="Total","",K90/Tamaño!$AQ$24)) -> 0.02776559988 | O90: =IF(C90="","",IF(C90="Total",SUM($O$78:$Q89),Tamaño!$AR14)) -> 34472 | R90: =IF(N89="","",IF(C90="Total","",O90/Tamaño!$AR$24)) -> 0.01975252049 | S90: =IF(C90="","",IF(C90="Total",SUM($S$78:$U89),Tamaño!$AS14)) -> 2067 | V90: =IF(OR(C89="",C89="Total"),"",IF(C90="Total","",S90/Tamaño!$AS$24)) -> 0.0301079341 | W90: =IF(C90="","",IF(C90="Total",SUM($W$78:$W89),Tamaño!$AT14)) -> 27375 | Z90: =IF(OR(C89="Total",C89=""),"",IF(C90="Total","",W90/Tamaño!$AT$24)) -> 0.02323209092
B91: 0 | C91: =IF(OR(C90="Total",C90=""),"",IF(Tamaño!$AQ15=0,"Total",Tamaño!$AP15)) -> Act. de atención de la salud humana | K91: =IF(C91="","",IF(C91="Total",SUM($K$78:$M90),Tamaño!$AQ15)) -> 2811 | N91: =IF(N90="","",IF(C91="Total","",K91/Tamaño!$AQ$24)) -> 0.02567404647 | O91: =IF(C91="","",IF(C91="Total",SUM($O$78:$Q90),Tamaño!$AR15)) -> 57505 | R91: =IF(N90="","",IF(C91="Total","",O91/Tamaño!$AR$24)) -> 0.03295047258 | S91: =IF(C91="","",IF(C91="Total",SUM($S$78:$U90),Tamaño!$AS15)) -> 2027 | V91: =IF(OR(C90="",C90="Total"),"",IF(C91="Total","",S91/Tamaño!$AS$24)) -> 0.02952529387 | W91: =IF(C91="","",IF(C91="Total",SUM($W$78:$W90),Tamaño!$AT15)) -> 48050 | Z91: =IF(OR(C90="Total",C90=""),"",IF(C91="Total","",W91/Tamaño!$AT$24)) -> 0.04077815411
B92: 0 | C92: =IF(OR(C91="Total",C91=""),"",IF(Tamaño!$AQ16=0,"Total",Tamaño!$AP16)) -> Actividades financieras y de seguros | K92: =IF(C92="","",IF(C92="Total",SUM($K$78:$M91),Tamaño!$AQ16)) -> 1318 | N92: =IF(N91="","",IF(C92="Total","",K92/Tamaño!$AQ$24)) -> 0.0120378489 | O92: =IF(C92="","",IF(C92="Total",SUM($O$78:$Q91),Tamaño!$AR16)) -> 37715 | R92: =IF(N91="","",IF(C92="Total","",O92/Tamaño!$AR$24)) -> 0.02161076556 | S92: =IF(C92="","",IF(C92="Total",SUM($S$78:$U91),Tamaño!$AS16)) -> 979 | V92: =IF(OR(C91="",C91="Total"),"",IF(C92="Total","",S92/Tamaño!$AS$24)) -> 0.01426011973 | W92: =IF(C92="","",IF(C92="Total",SUM($W$78:$W91),Tamaño!$AT16)) -> 32401 | Z92: =IF(OR(C91="Total",C91=""),"",IF(C92="Total","",W92/Tamaño!$AT$24)) -> 0.02749746038
B93: 0 | C93: =IF(OR(C92="Total",C92=""),"",IF(Tamaño!$AQ17=0,"Total",Tamaño!$AP17)) -> Educación | K93: =IF(C93="","",IF(C93="Total",SUM($K$78:$M92),Tamaño!$AQ17)) -> 1141 | N93: =IF(N92="","",IF(C93="Total","",K93/Tamaño!$AQ$24)) -> 0.01042123338 | O93: =IF(C93="","",IF(C93="Total",SUM($O$78:$Q92),Tamaño!$AR17)) -> 38626 | R93: =IF(N92="","",IF(C93="Total","",O93/Tamaño!$AR$24)) -> 0.02213277026 | S93: =IF(C93="","",IF(C93="Total",SUM($S$78:$U92),Tamaño!$AS17)) -> 714 | V93: =IF(OR(C92="",C92="Total"),"",IF(C93="Total","",S93/Tamaño!$AS$24)) -> 0.01040012818 | W93: =IF(C93="","",IF(C93="Total",SUM($W$78:$W92),Tamaño!$AT17)) -> 29314 | Z93: =IF(OR(C92="Total",C92=""),"",IF(C93="Total","",W93/Tamaño!$AT$24)) -> 0.02487764432
B94: 0 | C94: =IF(OR(C93="Total",C93=""),"",IF(Tamaño!$AQ18=0,"Total",Tamaño!$AP18)) -> Act artísticas y de entretenimiento | K94: =IF(C94="","",IF(C94="Total",SUM($K$78:$M93),Tamaño!$AQ18)) -> 1040 | N94: =IF(N93="","",IF(C94="Total","",K94/Tamaño!$AQ$24)) -> 0.009498757855 | O94: =IF(C94="","",IF(C94="Total",SUM($O$78:$Q93),Tamaño!$AR18)) -> 16654 | R94: =IF(N93="","",IF(C94="Total","",O94/Tamaño!$AR$24)) -> 0.009542773157 | S94: =IF(C94="","",IF(C94="Total",SUM($S$78:$U93),Tamaño!$AS18)) -> 723 | V94: =IF(OR(C93="",C93="Total"),"",IF(C94="Total","",S94/Tamaño!$AS$24)) -> 0.01053122223 | W94: =IF(C94="","",IF(C94="Total",SUM($W$78:$W93),Tamaño!$AT18)) -> 13481 | Z94: =IF(OR(C93="Total",C93=""),"",IF(C94="Total","",W94/Tamaño!$AT$24)) -> 0.01144079699
B95: 0 | C95: =IF(OR(C94="Total",C94=""),"",IF(Tamaño!$AQ19=0,"Total",Tamaño!$AP19)) -> Distribución de agua; gestión de desechos | K95: =IF(C95="","",IF(C95="Total",SUM($K$78:$M94),Tamaño!$AQ19)) -> 392 | N95: =IF(N94="","",IF(C95="Total","",K95/Tamaño!$AQ$24)) -> 0.003580301038 | O95: =IF(C95="","",IF(C95="Total",SUM($O$78:$Q94),Tamaño!$AR19)) -> 15976 | R95: =IF(N94="","",IF(C95="Total","",O95/Tamaño!$AR$24)) -> 0.009154277889 | S95: =IF(C95="","",IF(C95="Total",SUM($S$78:$U94),Tamaño!$AS19)) -> 151 | V95: =IF(OR(C94="",C94="Total"),"",IF(C95="Total","",S95/Tamaño!$AS$24)) -> 0.002199466884 | W95: =IF(C95="","",IF(C95="Total",SUM($W$78:$W94),Tamaño!$AT19)) -> 8612 | Z95: =IF(OR(C94="Total",C94=""),"",IF(C95="Total","",W95/Tamaño!$AT$24)) -> 0.007308667288
B96: 0 | C96: =IF(OR(C95="Total",C95=""),"",IF(Tamaño!$AQ20=0,"Total",Tamaño!$AP20)) -> Explotación de minas y canteras | K96: =IF(C96="","",IF(C96="Total",SUM($K$78:$M95),Tamaño!$AQ20)) -> 376 | N96: =IF(N95="","",IF(C96="Total","",K96/Tamaño!$AQ$24)) -> 0.003434166301 | O96: =IF(C96="","",IF(C96="Total",SUM($O$78:$Q95),Tamaño!$AR20)) -> 14994 | R96: =IF(N95="","",IF(C96="Total","",O96/Tamaño!$AR$24)) -> 0.008591590052 | S96: =IF(C96="","",IF(C96="Total",SUM($S$78:$U95),Tamaño!$AS20)) -> 114 | V96: =IF(OR(C95="",C95="Total"),"",IF(C96="Total","",S96/Tamaño!$AS$24)) -> 0.001660524668 | W96: =IF(C96="","",IF(C96="Total",SUM($W$78:$W95),Tamaño!$AT20)) -> 8703 | Z96: =IF(OR(C95="Total",C95=""),"",IF(C96="Total","",W96/Tamaño!$AT$24)) -> 0.007385895426
B97: 0 | C97: =IF(OR(C96="Total",C96=""),"",IF(Tamaño!$AQ21=0,"Total",Tamaño!$AP21)) -> Suministro de electricidad, gas y vapor | K97: =IF(C97="","",IF(C97="Total",SUM($K$78:$M96),Tamaño!$AQ21)) -> 104 | N97: =IF(N96="","",IF(C97="Total","",K97/Tamaño!$AQ$24)) -> 0.0009498757855 | O97: =IF(C97="","",IF(C97="Total",SUM($O$78:$Q96),Tamaño!$AR21)) -> 1191 | R97: =IF(N96="","",IF(C97="Total","",O97/Tamaño!$AR$24)) -> 0.0006824452282 | S97: =IF(C97="","",IF(C97="Total",SUM($S$78:$U96),Tamaño!$AS21)) -> 69 | V97: =IF(OR(C96="",C96="Total"),"",IF(C97="Total","",S97/Tamaño!$AS$24)) -> 0.001005054404 | W97: =IF(C97="","",IF(C97="Total",SUM($W$78:$W96),Tamaño!$AT21)) -> 855 | Z97: =IF(OR(C96="Total",C96=""),"",IF(C97="Total","",W97/Tamaño!$AT$24)) -> 0.0007256050315
B98: 0 | C98: =IF(OR(C97="Total",C97=""),"",IF(Tamaño!$AQ22=0,"Total",Tamaño!$AP22)) -> Organizaciones y entidades extraterritoriales | K98: =IF(C98="","",IF(C98="Total",SUM($K$78:$M97),Tamaño!$AQ22)) -> 77 | N98: =IF(N97="","",IF(C98="Total","",K98/Tamaño!$AQ$24)) -> 0.0007032734181 | O98: =IF(C98="","",IF(C98="Total",SUM($O$78:$Q97),Tamaño!$AR22)) -> 5090 | R98: =IF(N97="","",IF(C98="Total","",O98/Tamaño!$AR$24)) -> 0.002916579523 | S98: =IF(C98="","",IF(C98="Total",SUM($S$78:$U97),Tamaño!$AS22)) -> 52 | V98: =IF(OR(C97="",C97="Total"),"",IF(C98="Total","",S98/Tamaño!$AS$24)) -> 0.0007574323045 | W98: =IF(C98="","",IF(C98="Total",SUM($W$78:$W97),Tamaño!$AT22)) -> 4504 | Z98: =IF(OR(C97="Total",C97=""),"",IF(C98="Total","",W98/Tamaño!$AT$24)) -> 0.003822368494
B99: 1 | C99: =IF(OR(C98="Total",C98=""),"",IF(Tamaño!$AQ23=0,"Total",Tamaño!$AP23)) -> Total | K99: =IF(C99="","",IF(C99="Total",SUM($K$78:$M98),Tamaño!$AQ23)) -> 109488 | N99: =IF(N98="","",IF(C99="Total","",K99/Tamaño!$AQ$24)) ->  | O99: =IF(C99="","",IF(C99="Total",SUM($O$78:$Q98),Tamaño!$AR23)) -> 1745195 | R99: =IF(N98="","",IF(C99="Total","",O99/Tamaño!$AR$24)) ->  | S99: =IF(C99="","",IF(C99="Total",SUM($S$78:$U98),Tamaño!$AS23)) -> 68653 | V99: =IF(OR(C98="",C98="Total"),"",IF(C99="Total","",S99/Tamaño!$AS$24)) ->  | W99: =IF(C99="","",IF(C99="Total",SUM($W$78:$W98),Tamaño!$AT23)) -> 1178327 | Z99: =IF(OR(C98="Total",C98=""),"",IF(C99="Total","",W99/Tamaño!$AT$24)) -> 
C100: =IF(OR(C99="",C99="Total"),"","Total") ->  | K100: =IF(C100="","",IF(C100="","",SUM(K78:M99))) ->  | O100: =IF(C100="","",SUM(O78:Q99)) ->  | S100: =IF(C100="","",IF(C100="Total",SUM($S$78:$U99),Tamaño!$AS24)) ->  | W100: =IF(C100="","",IF(C100="Total",SUM($W$78:$W99),Tamaño!$AT24)) ->  | Z100: =IF(OR(C99="Total",C99=""),"",IF(C100="Total","",W100/Tamaño!$AT$24)) -> 
C101: *Ubicación basada en la ubicación de los aportantes
L105: =J3 -> Informe Mensual de las cotizaciones
L107: =J5 -> Fecha de corte: 17 de Feb de 2022 | AB107: Pg. 3
L109: Departamento | Q109: =Q7 -> ANTIOQUIA
L110: Municipio | Q110: =Q8 -> MEDELLÍN
D112: Resumen por actividades económicas de los independientes
F114: Actividades económicas | N114: =PROPER(Q55) -> Antioquia | R114: % | T114: =PROPER(Q8) -> Medellín | X114: %
F116: =IF(Tamaño!$BT2="",Total,Tamaño!$BT2) -> Act. profesionales científicas y técnicas | N116: =Tamaño!BU2 -> 62077 | R116: =N116/Tamaño!$BU$25 -> 0.1837391299 | T116: =Tamaño!BV2 -> 40727 | X116: =T116/Tamaño!$BV$25 -> 0.1979258294
F117: =IF(F116="Total","",IF(Tamaño!$BU3=0,"Total",Tamaño!$BT3)) -> Actividades de servicios administrativos | N117: =IF(F117="","",IF(F117="Total",N116,Tamaño!$BU3)) -> 50762 | R117: =IF(F117="Total","",N117/Tamaño!$BU$25) -> 0.1502483321 | T117: =IF(F117="","",IF(F117="Total",SUM($T$116:$T116),Tamaño!$BV3)) -> 30124 | X117: =IF(F117="Total","",T117/Tamaño!$BV$25) -> 0.1463971735
F118: =IF(F117="Total","",IF(Tamaño!$BU4=0,"Total",Tamaño!$BT4)) -> Otras actividades de servicios | N118: =IF(F118="","",IF(F118="Total",SUM($N$116:$N117),Tamaño!$BU4)) -> 46702 | R118: =IF(R117="","",IF(F118="Total","",N118/Tamaño!$BU$25)) -> 0.138231307 | T118: =IF(F118="","",IF(F118="Total",SUM($T$116:$T117),Tamaño!$BV4)) -> 30556 | X118: =IF(X117="","",IF(F118="Total","",T118/Tamaño!$BV$25)) -> 0.1484966151
F119: =IF(OR(F118="Total",F118=""),"",IF(Tamaño!$BU5=0,"Total",Tamaño!$BT5)) -> Comercio y reparación de vehículos | N119: =IF(F119="","",IF(F119="Total",SUM($N$116:$N118),Tamaño!$BU5)) -> 36463 | R119: =IF(R118="","",IF(F119="Total","",N119/Tamaño!$BU$25)) -> 0.1079253169 | T119: =IF(F119="","",IF(F119="Total",SUM($T$116:$T118),Tamaño!$BV5)) -> 20438 | X119: =IF(X118="","",IF(F119="Total","",T119/Tamaño!$BV$25)) -> 0.09932497121
F120: =IF(OR(F119="Total",F119=""),"",IF(Tamaño!$BU6=0,"Total",Tamaño!$BT6)) -> Act. de atención de la salud humana | N120: =IF(F120="","",IF(F120="Total",SUM($N$116:$N119),Tamaño!$BU6)) -> 18411 | R120: =IF(R119="","",IF(F120="Total","",N120/Tamaño!$BU$25)) -> 0.05449395301 | T120: =IF(F120="","",IF(F120="Total",SUM($T$116:$T119),Tamaño!$BV6)) -> 12135 | X120: =IF(X119="","",IF(F120="Total","",T120/Tamaño!$BV$25)) -> 0.05897389791
F121: =IF(OR(F120="Total",F120=""),"",IF(Tamaño!$BU7=0,"Total",Tamaño!$BT7)) -> Educación | N121: =IF(F121="","",IF(F121="Total",SUM($N$116:$N120),Tamaño!$BU7)) -> 17843 | R121: =IF(R120="","",IF(F121="Total","",N121/Tamaño!$BU$25)) -> 0.05281275344 | T121: =IF(F121="","",IF(F121="Total",SUM($T$116:$T120),Tamaño!$BV7)) -> 10575 | X121: =IF(X120="","",IF(F121="Total","",T121/Tamaño!$BV$25)) -> 0.051392581
F122: =IF(OR(F121="Total",F121=""),"",IF(Tamaño!$BU8=0,"Total",Tamaño!$BT8)) -> Transporte y almacenamiento | N122: =IF(F122="","",IF(F122="Total",SUM($N$116:$N121),Tamaño!$BU8)) -> 16120 | R122: =IF(R121="","",IF(F122="Total","",N122/Tamaño!$BU$25)) -> 0.04771291741 | T122: =IF(F122="","",IF(F122="Total",SUM($T$116:$T121),Tamaño!$BV8)) -> 9830 | X122: =IF(X121="","",IF(F122="Total","",T122/Tamaño!$BV$25)) -> 0.04777201619
F123: =IF(OR(F122="Total",F122=""),"",IF(Tamaño!$BU9=0,"Total",Tamaño!$BT9)) -> Admin. pública y defensa; planes seg. social | N123: =IF(F123="","",IF(F123="Total",SUM($N$116:$N122),Tamaño!$BU9)) -> 14279 | R123: =IF(R122="","",IF(F123="Total","",N123/Tamaño!$BU$25)) -> 0.0422638181 | T123: =IF(F123="","",IF(F123="Total",SUM($T$116:$T122),Tamaño!$BV9)) -> 7530 | X123: =IF(X122="","",IF(F123="Total","",T123/Tamaño!$BV$25)) -> 0.03659443356
F124: =IF(OR(F123="Total",F123=""),"",IF(Tamaño!$BU10=0,"Total",Tamaño!$BT10)) -> Industrias manufactureras | N124: =IF(F124="","",IF(F124="Total",SUM($N$116:$N123),Tamaño!$BU10)) -> 13362 | R124: =IF(R123="","",IF(F124="Total","",N124/Tamaño!$BU$25)) -> 0.03954962795 | T124: =IF(F124="","",IF(F124="Total",SUM($T$116:$T123),Tamaño!$BV10)) -> 8209 | X124: =IF(X123="","",IF(F124="Total","",T124/Tamaño!$BV$25)) -> 0.03989425035
F125: =IF(OR(F124="Total",F124=""),"",IF(Tamaño!$BU11=0,"Total",Tamaño!$BT11)) -> Agricultura, ganadería, caza | N125: =IF(F125="","",IF(F125="Total",SUM($N$116:$N124),Tamaño!$BU11)) -> 11087 | R125: =IF(R124="","",IF(F125="Total","",N125/Tamaño!$BU$25)) -> 0.03281595008 | T125: =IF(F125="","",IF(F125="Total",SUM($T$116:$T124),Tamaño!$BV11)) -> 3724 | X125: =IF(X124="","",IF(F125="Total","",T125/Tamaño!$BV$25)) -> 0.01809796422
F126: =IF(OR(F125="Total",F125=""),"",IF(Tamaño!$BU12=0,"Total",Tamaño!$BT12)) -> Construcción | N126: =IF(F126="","",IF(F126="Total",SUM($N$116:$N125),Tamaño!$BU12)) -> 9438 | R126: =IF(R125="","",IF(F126="Total","",N126/Tamaño!$BU$25)) -> 0.02793514358 | T126: =IF(F126="","",IF(F126="Total",SUM($T$116:$T125),Tamaño!$BV12)) -> 5791 | X126: =IF(X125="","",IF(F126="Total","",T126/Tamaño!$BV$25)) -> 0.02814320913
F127: =IF(OR(F126="Total",F126=""),"",IF(Tamaño!$BU13=0,"Total",Tamaño!$BT13)) -> Actividades inmobiliarias | N127: =IF(F127="","",IF(F127="Total",SUM($N$116:$N126),Tamaño!$BU13)) -> 8253 | R127: =IF(R126="","",IF(F127="Total","",N127/Tamaño!$BU$25)) -> 0.02442771138 | T127: =IF(F127="","",IF(F127="Total",SUM($T$116:$T126),Tamaño!$BV13)) -> 5800 | X127: =IF(X126="","",IF(F127="Total","",T127/Tamaño!$BV$25)) -> 0.0281869475
F128: =IF(OR(F127="Total",F127=""),"",IF(Tamaño!$BU14=0,"Total",Tamaño!$BT14)) -> Act artísticas y de entretenimiento | N128: =IF(F128="","",IF(F128="Total",SUM($N$116:$N127),Tamaño!$BU14)) -> 7985 | R128: =IF(R127="","",IF(F128="Total","",N128/Tamaño!$BU$25)) -> 0.02363446933 | T128: =IF(F128="","",IF(F128="Total",SUM($T$116:$T127),Tamaño!$BV14)) -> 4759 | X128: =IF(X127="","",IF(F128="Total","",T128/Tamaño!$BV$25)) -> 0.02312787641
F129: =IF(OR(F128="Total",F128=""),"",IF(Tamaño!$BU15=0,"Total",Tamaño!$BT15)) -> Información y comunicaciones | N129: =IF(F129="","",IF(F129="Total",SUM($N$116:$N128),Tamaño!$BU15)) -> 7830 | R129: =IF(R128="","",IF(F129="Total","",N129/Tamaño!$BU$25)) -> 0.02317569127 | T129: =IF(F129="","",IF(F129="Total",SUM($T$116:$T128),Tamaño!$BV15)) -> 4791 | X129: =IF(X128="","",IF(F129="Total","",T129/Tamaño!$BV$25)) -> 0.0232833906
F130: =IF(OR(F129="Total",F129=""),"",IF(Tamaño!$BU16=0,"Total",Tamaño!$BT16)) -> Alojamiento y servicios de comida | N130: =IF(F130="","",IF(F130="Total",SUM($N$116:$N129),Tamaño!$BU16)) -> 7374 | R130: =IF(R129="","",IF(F130="Total","",N130/Tamaño!$BU$25)) -> 0.02182599584 | T130: =IF(F130="","",IF(F130="Total",SUM($T$116:$T129),Tamaño!$BV16)) -> 4126 | X130: =IF(X129="","",IF(F130="Total","",T130/Tamaño!$BV$25)) -> 0.02005161127
F131: =IF(OR(F130="Total",F130=""),"",IF(Tamaño!$BU17=0,"Total",Tamaño!$BT17)) -> Otras | N131: =IF(F131="","",IF(F131="Total",SUM($N$116:$N130),Tamaño!$BU17)) -> 3117 | R131: =IF(R130="","",IF(F131="Total","",N131/Tamaño!$BU$25)) -> 0.009225878634 | T131: =IF(F131="","",IF(F131="Total",SUM($T$116:$T130),Tamaño!$BV17)) -> 2224 | X131: =IF(X130="","",IF(F131="Total","",T131/Tamaño!$BV$25)) -> 0.01080823642
F132: =IF(OR(F131="Total",F131=""),"",IF(Tamaño!$BU18=0,"Total",Tamaño!$BT18)) -> Actividades financieras y de seguros | N132: =IF(F132="","",IF(F132="Total",SUM($N$116:$N131),Tamaño!$BU18)) -> 3041 | R132: =IF(R131="","",IF(F132="Total","",N132/Tamaño!$BU$25)) -> 0.009000929396 | T132: =IF(F132="","",IF(F132="Total",SUM($T$116:$T131),Tamaño!$BV18)) -> 2244 | X132: =IF(X131="","",IF(F132="Total","",T132/Tamaño!$BV$25)) -> 0.01090543279
F133: =IF(OR(F132="Total",F132=""),"",IF(Tamaño!$BU19=0,"Total",Tamaño!$BT19)) -> Actividades de los hogares individuales | N133: =IF(F133="","",IF(F133="Total",SUM($N$116:$N132),Tamaño!$BU19)) -> 1666 | R133: =IF(R132="","",IF(F133="Total","",N133/Tamaño!$BU$25)) -> 0.004931124095 | T133: =IF(F133="","",IF(F133="Total",SUM($T$116:$T132),Tamaño!$BV19)) -> 1168 | X133: =IF(X132="","",IF(F133="Total","",T133/Tamaño!$BV$25)) -> 0.005676268048
F134: =IF(OR(F133="Total",F133=""),"",IF(Tamaño!$BU20=0,"Total",Tamaño!$BT20)) -> Explotación de minas y canteras | N134: =IF(F134="","",IF(F134="Total",SUM($N$116:$N133),Tamaño!$BU20)) -> 1380 | R134: =IF(R133="","",IF(F134="Total","",N134/Tamaño!$BU$25)) -> 0.004084604593 | T134: =IF(F134="","",IF(F134="Total",SUM($T$116:$T133),Tamaño!$BV20)) -> 718 | X134: =IF(X133="","",IF(F134="Total","",T134/Tamaño!$BV$25)) -> 0.003489349708
F135: =IF(OR(F134="Total",F134=""),"",IF(Tamaño!$BU21=0,"Total",Tamaño!$BT21)) -> Distribución de agua; gestión de desechos | N135: =IF(F135="","",IF(F135="Total",SUM($N$116:$N134),Tamaño!$BU21)) -> 537 | R135: =IF(R134="","",IF(F135="Total","",N135/Tamaño!$BU$25)) -> 0.001589443961 | T135: =IF(F135="","",IF(F135="Total",SUM($T$116:$T134),Tamaño!$BV21)) -> 219 | X135: =IF(X134="","",IF(F135="Total","",T135/Tamaño!$BV$25)) -> 0.001064300259
F136: =IF(OR(F135="Total",F135=""),"",IF(Tamaño!$BU22=0,"Total",Tamaño!$BT22)) -> Suministro de electricidad, gas y vapor | N136: =IF(F136="","",IF(F136="Total",SUM($N$116:$N135),Tamaño!$BU22)) -> 88 | R136: =IF(R135="","",IF(F136="Total","",N136/Tamaño!$BU$25)) -> 0.0002604675392 | T136: =IF(F136="","",IF(F136="Total",SUM($T$116:$T135),Tamaño!$BV22)) -> 58 | X136: =IF(X135="","",IF(F136="Total","",T136/Tamaño!$BV$25)) -> 0.000281869475
F137: =IF(OR(F136="Total",F136=""),"",IF(Tamaño!$BU23=0,"Total",Tamaño!$BT23)) -> Organizaciones y entidades extraterritoriales | N137: =IF(F137="","",IF(F137="Total",SUM($N$116:$N136),Tamaño!$BU23)) -> 39 | R137: =IF(R136="","",IF(F137="Total","",N137/Tamaño!$BU$25)) -> 0.0001154344776 | T137: =IF(F137="","",IF(F137="Total",SUM($T$116:$T136),Tamaño!$BV23)) -> 23 | X137: =IF(X136="","",IF(F137="Total","",T137/Tamaño!$BV$25)) -> 0.0001117758263
F138: =IF(OR(F137="Total",F137=""),"",IF(Tamaño!$BU24=0,"Total",Tamaño!$BT24)) -> Total | N138: =IF(F138="","",IF(F138="Total",SUM($N$116:$N137),Tamaño!$BU24)) -> 337854 | R138: =IF(R137="","",IF(F138="Total","",N138/Tamaño!$BU$25)) ->  | T138: =IF(F138="","",IF(F138="Total",SUM($T$116:$T137),Tamaño!$BV24)) -> 205769 | X138: =IF(X137="","",IF(F138="Total","",T138/Tamaño!$BV$25)) -> 
C139: *Ubicación basada en la ubicación de los cotizantes
D140: ="Resumen por edad y sexo para "&PROPER(Q7) -> Resumen por edad y sexo para Antioquia
F142: =PROPER(Q7) -> Antioquia | X142: Piramided dependientes privados
B143: Edad | F143: Dependiente Privados | O143: Independientes
F144: Hombres | I144: Mujeres | L144: No Identificado | O144: Hombres | R144: Mujeres | U144: No Identificado
B145: 15-20 | F145: =SUMIFS('Edad y sexo'!$F$2:$F$5000,'Edad y sexo'!$B$2:$B$5000,Visor!$Q$7,'Edad y sexo'!$C$2:$C$5000,"M",'Edad y sexo'!$D$2:$D$5000,Visor!$B145,'Edad y sexo'!$E$2:$E$5000,"Dep_sec_priv") -> 12276 | I145: =SUMIFS('Edad y sexo'!$F$2:$F$5000,'Edad y sexo'!$B$2:$B$5000,Visor!$Q$7,'Edad y sexo'!$C$2:$C$5000,"F",'Edad y sexo'!$D$2:$D$5000,Visor!$B145,'Edad y sexo'!$E$2:$E$5000,"Dep_sec_priv") -> 7979 | L145: =SUMIFS('Edad y sexo'!$F$2:$F$5000,'Edad y sexo'!$B$2:$B$5000,Visor!$Q$7,'Edad y sexo'!$C$2:$C$5000,"NI",'Edad y sexo'!$D$2:$D$5000,Visor!$B145,'Edad y sexo'!$E$2:$E$5000,"Dep_sec_priv") -> 0 | O145: =SUMIFS('Edad y sexo'!$F$2:$F$5000,'Edad y sexo'!$B$2:$B$5000,Visor!$Q$7,'Edad y sexo'!$C$2:$C$5000,"M",'Edad y sexo'!$D$2:$D$5000,Visor!$B145,'Edad y sexo'!$E$2:$E$5000,"Independiente") -> 388 | R145: =SUMIFS('Edad y sexo'!$F$2:$F$5000,'Edad y sexo'!$B$2:$B$5000,Visor!$Q$7,'Edad y sexo'!$C$2:$C$5000,"F",'Edad y sexo'!$D$2:$D$5000,Visor!$B145,'Edad y sexo'!$E$2:$E$5000,"Independiente") -> 269 | U145: =SUMIFS('Edad y sexo'!$F$2:$F$5000,'Edad y sexo'!$B$2:$B$5000,Visor!$Q$7,'Edad y sexo'!$C$2:$C$5000,"NI",'Edad y sexo'!$D$2:$D$5000,Visor!$B145,'Edad y sexo'!$E$2:$E$5000,"Independiente") -> 0
B146: 20-25 | F146: =SUMIFS('Edad y sexo'!$F$2:$F$5000,'Edad y sexo'!$B$2:$B$5000,Visor!$Q$7,'Edad y sexo'!$C$2:$C$5000,"M",'Edad y sexo'!$D$2:$D$5000,Visor!$B146,'Edad y sexo'!$E$2:$E$5000,"Dep_sec_priv") -> 112096 | I146: =SUMIFS('Edad y sexo'!$F$2:$F$5000,'Edad y sexo'!$B$2:$B$5000,Visor!$Q$7,'Edad y sexo'!$C$2:$C$5000,"F",'Edad y sexo'!$D$2:$D$5000,Visor!$B146,'Edad y sexo'!$E$2:$E$5000,"Dep_sec_priv") -> 85005 | L146: =SUMIFS('Edad y sexo'!$F$2:$F$5000,'Edad y sexo'!$B$2:$B$5000,Visor!$Q$7,'Edad y sexo'!$C$2:$C$5000,"NI",'Edad y sexo'!$D$2:$D$5000,Visor!$B146,'Edad y sexo'!$E$2:$E$5000,"Dep_sec_priv") -> 0 | O146: =SUMIFS('Edad y sexo'!$F$2:$F$5000,'Edad y sexo'!$B$2:$B$5000,Visor!$Q$7,'Edad y sexo'!$C$2:$C$5000,"M",'Edad y sexo'!$D$2:$D$5000,Visor!$B146,'Edad y sexo'!$E$2:$E$5000,"Independiente") -> 5095 | R146: =SUMIFS('Edad y sexo'!$F$2:$F$5000,'Edad y sexo'!$B$2:$B$5000,Visor!$Q$7,'Edad y sexo'!$C$2:$C$5000,"F",'Edad y sexo'!$D$2:$D$5000,Visor!$B146,'Edad y sexo'!$E$2:$E$5000,"Independiente") -> 5283 | U146: =SUMIFS('Edad y sexo'!$F$2:$F$5000,'Edad y sexo'!$B$2:$B$5000,Visor!$Q$7,'Edad y sexo'!$C$2:$C$5000,"NI",'Edad y sexo'!$D$2:$D$5000,Visor!$B146,'Edad y sexo'!$E$2:$E$5000,"Independiente") -> 0
B147: 25-30 | F147: =SUMIFS('Edad y sexo'!$F$2:$F$5000,'Edad y sexo'!$B$2:$B$5000,Visor!$Q$7,'Edad y sexo'!$C$2:$C$5000,"M",'Edad y sexo'!$D$2:$D$5000,Visor!$B147,'Edad y sexo'!$E$2:$E$5000,"Dep_sec_priv") -> 156617 | I147: =SUMIFS('Edad y sexo'!$F$2:$F$5000,'Edad y sexo'!$B$2:$B$5000,Visor!$Q$7,'Edad y sexo'!$C$2:$C$5000,"F",'Edad y sexo'!$D$2:$D$5000,Visor!$B147,'Edad y sexo'!$E$2:$E$5000,"Dep_sec_priv") -> 129172 | L147: =SUMIFS('Edad y sexo'!$F$2:$F$5000,'Edad y sexo'!$B$2:$B$5000,Visor!$Q$7,'Edad y sexo'!$C$2:$C$5000,"NI",'Edad y sexo'!$D$2:$D$5000,Visor!$B147,'Edad y sexo'!$E$2:$E$5000,"Dep_sec_priv") -> 0 | O147: =SUMIFS('Edad y sexo'!$F$2:$F$5000,'Edad y sexo'!$B$2:$B$5000,Visor!$Q$7,'Edad y sexo'!$C$2:$C$5000,"M",'Edad y sexo'!$D$2:$D$5000,Visor!$B147,'Edad y sexo'!$E$2:$E$5000,"Independiente") -> 14035 | R147: =SUMIFS('Edad y sexo'!$F$2:$F$5000,'Edad y sexo'!$B$2:$B$5000,Visor!$Q$7,'Edad y sexo'!$C$2:$C$5000,"F",'Edad y sexo'!$D$2:$D$5000,Visor!$B147,'Edad y sexo'!$E$2:$E$5000,"Independiente") -> 15667 | U147: =SUMIFS('Edad y sexo'!$F$2:$F$5000,'Edad y sexo'!$B$2:$B$5000,Visor!$Q$7,'Edad y sexo'!$C$2:$C$5000,"NI",'Edad y sexo'!$D$2:$D$5000,Visor!$B147,'Edad y sexo'!$E$2:$E$5000,"Independiente") -> 0
B148: 30-35 | F148: =SUMIFS('Edad y sexo'!$F$2:$F$5000,'Edad y sexo'!$B$2:$B$5000,Visor!$Q$7,'Edad y sexo'!$C$2:$C$5000,"M",'Edad y sexo'!$D$2:$D$5000,Visor!$B148,'Edad y sexo'!$E$2:$E$5000,"Dep_sec_priv") -> 152974 | I148: =SUMIFS('Edad y sexo'!$F$2:$F$5000,'Edad y sexo'!$B$2:$B$5000,Visor!$Q$7,'Edad y sexo'!$C$2:$C$5000,"F",'Edad y sexo'!$D$2:$D$5000,Visor!$B148,'Edad y sexo'!$E$2:$E$5000,"Dep_sec_priv") -> 124450 | L148: =SUMIFS('Edad y sexo'!$F$2:$F$5000,'Edad y sexo'!$B$2:$B$5000,Visor!$Q$7,'Edad y sexo'!$C$2:$C$5000,"NI",'Edad y sexo'!$D$2:$D$5000,Visor!$B148,'Edad y sexo'!$E$2:$E$5000,"Dep_sec_priv") -> 0 | O148: =SUMIFS('Edad y sexo'!$F$2:$F$5000,'Edad y sexo'!$B$2:$B$5000,Visor!$Q$7,'Edad y sexo'!$C$2:$C$5000,"M",'Edad y sexo'!$D$2:$D$5000,Visor!$B148,'Edad y sexo'!$E$2:$E$5000,"Independiente") -> 18548 | R148: =SUMIFS('Edad y sexo'!$F$2:$F$5000,'Edad y sexo'!$B$2:$B$5000,Visor!$Q$7,'Edad y sexo'!$C$2:$C$5000,"F",'Edad y sexo'!$D$2:$D$5000,Visor!$B148,'Edad y sexo'!$E$2:$E$5000,"Independiente") -> 17768 | U148: =SUMIFS('Edad y sexo'!$F$2:$F$5000,'Edad y sexo'!$B$2:$B$5000,Visor!$Q$7,'Edad y sexo'!$C$2:$C$5000,"NI",'Edad y sexo'!$D$2:$D$5000,Visor!$B148,'Edad y sexo'!$E$2:$E$5000,"Independiente") -> 0
B149: 35-40 | F149: =SUMIFS('Edad y sexo'!$F$2:$F$5000,'Edad y sexo'!$B$2:$B$5000,Visor!$Q$7,'Edad y sexo'!$C$2:$C$5000,"M",'Edad y sexo'!$D$2:$D$5000,Visor!$B149,'Edad y sexo'!$E$2:$E$5000,"Dep_sec_priv") -> 126969 | I149: =SUMIFS('Edad y sexo'!$F$2:$F$5000,'Edad y sexo'!$B$2:$B$5000,Visor!$Q$7,'Edad y sexo'!$C$2:$C$5000,"F",'Edad y sexo'!$D$2:$D$5000,Visor!$B149,'Edad y sexo'!$E$2:$E$5000,"Dep_sec_priv") -> 103497 | L149: =SUMIFS('Edad y sexo'!$F$2:$F$5000,'Edad y sexo'!$B$2:$B$5000,Visor!$Q$7,'Edad y sexo'!$C$2:$C$5000,"NI",'Edad y sexo'!$D$2:$D$5000,Visor!$B149,'Edad y sexo'!$E$2:$E$5000,"Dep_sec_priv") -> 0 | O149: =SUMIFS('Edad y sexo'!$F$2:$F$5000,'Edad y sexo'!$B$2:$B$5000,Visor!$Q$7,'Edad y sexo'!$C$2:$C$5000,"M",'Edad y sexo'!$D$2:$D$5000,Visor!$B149,'Edad y sexo'!$E$2:$E$5000,"Independiente") -> 19549 | R149: =SUMIFS('Edad y sexo'!$F$2:$F$5000,'Edad y sexo'!$B$2:$B$5000,Visor!$Q$7,'Edad y sexo'!$C$2:$C$5000,"F",'Edad y sexo'!$D$2:$D$5000,Visor!$B149,'Edad y sexo'!$E$2:$E$5000,"Independiente") -> 17564 | U149: =SUMIFS('Edad y sexo'!$F$2:$F$5000,'Edad y sexo'!$B$2:$B$5000,Visor!$Q$7,'Edad y sexo'!$C$2:$C$5000,"NI",'Edad y sexo'!$D$2:$D$5000,Visor!$B149,'Edad y sexo'!$E$2:$E$5000,"Independiente") -> 0
B150: 40-45 | F150: =SUMIFS('Edad y sexo'!$F$2:$F$5000,'Edad y sexo'!$B$2:$B$5000,Visor!$Q$7,'Edad y sexo'!$C$2:$C$5000,"M",'Edad y sexo'!$D$2:$D$5000,Visor!$B150,'Edad y sexo'!$E$2:$E$5000,"Dep_sec_priv") -> 112504 | I150: =SUMIFS('Edad y sexo'!$F$2:$F$5000,'Edad y sexo'!$B$2:$B$5000,Visor!$Q$7,'Edad y sexo'!$C$2:$C$5000,"F",'Edad y sexo'!$D$2:$D$5000,Visor!$B150,'Edad y sexo'!$E$2:$E$5000,"Dep_sec_priv") -> 89361 | L150: =SUMIFS('Edad y sexo'!$F$2:$F$5000,'Edad y sexo'!$B$2:$B$5000,Visor!$Q$7,'Edad y sexo'!$C$2:$C$5000,"NI",'Edad y sexo'!$D$2:$D$5000,Visor!$B150,'Edad y sexo'!$E$2:$E$5000,"Dep_sec_priv") -> 0 | O150: =SUMIFS('Edad y sexo'!$F$2:$F$5000,'Edad y sexo'!$B$2:$B$5000,Visor!$Q$7,'Edad y sexo'!$C$2:$C$5000,"M",'Edad y sexo'!$D$2:$D$5000,Visor!$B150,'Edad y sexo'!$E$2:$E$5000,"Independiente") -> 20398 | R150: =SUMIFS('Edad y sexo'!$F$2:$F$5000,'Edad y sexo'!$B$2:$B$5000,Visor!$Q$7,'Edad y sexo'!$C$2:$C$5000,"F",'Edad y sexo'!$D$2:$D$5000,Visor!$B150,'Edad y sexo'!$E$2:$E$5000,"Independiente") -> 17511 | U150: =SUMIFS('Edad y sexo'!$F$2:$F$5000,'Edad y sexo'!$B$2:$B$5000,Visor!$Q$7,'Edad y sexo'!$C$2:$C$5000,"NI",'Edad y sexo'!$D$2:$D$5000,Visor!$B150,'Edad y sexo'!$E$2:$E$5000,"Independiente") -> 0
B151: 45-50 | F151: =SUMIFS('Edad y sexo'!$F$2:$F$5000,'Edad y sexo'!$B$2:$B$5000,Visor!$Q$7,'Edad y sexo'!$C$2:$C$5000,"M",'Edad y sexo'!$D$2:$D$5000,Visor!$B151,'Edad y sexo'!$E$2:$E$5000,"Dep_sec_priv") -> 83961 | I151: =SUMIFS('Edad y sexo'!$F$2:$F$5000,'Edad y sexo'!$B$2:$B$5000,Visor!$Q$7,'Edad y sexo'!$C$2:$C$5000,"F",'Edad y sexo'!$D$2:$D$5000,Visor!$B151,'Edad y sexo'!$E$2:$E$5000,"Dep_sec_priv") -> 62743 | L151: =SUMIFS('Edad y sexo'!$F$2:$F$5000,'Edad y sexo'!$B$2:$B$5000,Visor!$Q$7,'Edad y sexo'!$C$2:$C$5000,"NI",'Edad y sexo'!$D$2:$D$5000,Visor!$B151,'Edad y sexo'!$E$2:$E$5000,"Dep_sec_priv") -> 0 | O151: =SUMIFS('Edad y sexo'!$F$2:$F$5000,'Edad y sexo'!$B$2:$B$5000,Visor!$Q$7,'Edad y sexo'!$C$2:$C$5000,"M",'Edad y sexo'!$D$2:$D$5000,Visor!$B151,'Edad y sexo'!$E$2:$E$5000,"Independiente") -> 17468 | R151: =SUMIFS('Edad y sexo'!$F$2:$F$5000,'Edad y sexo'!$B$2:$B$5000,Visor!$Q$7,'Edad y sexo'!$C$2:$C$5000,"F",'Edad y sexo'!$D$2:$D$5000,Visor!$B151,'Edad y sexo'!$E$2:$E$5000,"Independiente") -> 14113 | U151: =SUMIFS('Edad y sexo'!$F$2:$F$5000,'Edad y sexo'!$B$2:$B$5000,Visor!$Q$7,'Edad y sexo'!$C$2:$C$5000,"NI",'Edad y sexo'!$D$2:$D$5000,Visor!$B151,'Edad y sexo'!$E$2:$E$5000,"Independiente") -> 0
B152: 50-55 | F152: =SUMIFS('Edad y sexo'!$F$2:$F$5000,'Edad y sexo'!$B$2:$B$5000,Visor!$Q$7,'Edad y sexo'!$C$2:$C$5000,"M",'Edad y sexo'!$D$2:$D$5000,Visor!$B152,'Edad y sexo'!$E$2:$E$5000,"Dep_sec_priv") -> 74375 | I152: =SUMIFS('Edad y sexo'!$F$2:$F$5000,'Edad y sexo'!$B$2:$B$5000,Visor!$Q$7,'Edad y sexo'!$C$2:$C$5000,"F",'Edad y sexo'!$D$2:$D$5000,Visor!$B152,'Edad y sexo'!$E$2:$E$5000,"Dep_sec_priv") -> 48436 | L152: =SUMIFS('Edad y sexo'!$F$2:$F$5000,'Edad y sexo'!$B$2:$B$5000,Visor!$Q$7,'Edad y sexo'!$C$2:$C$5000,"NI",'Edad y sexo'!$D$2:$D$5000,Visor!$B152,'Edad y sexo'!$E$2:$E$5000,"Dep_sec_priv") -> 0 | O152: =SUMIFS('Edad y sexo'!$F$2:$F$5000,'Edad y sexo'!$B$2:$B$5000,Visor!$Q$7,'Edad y sexo'!$C$2:$C$5000,"M",'Edad y sexo'!$D$2:$D$5000,Visor!$B152,'Edad y sexo'!$E$2:$E$5000,"Independiente") -> 17708 | R152: =SUMIFS('Edad y sexo'!$F$2:$F$5000,'Edad y sexo'!$B$2:$B$5000,Visor!$Q$7,'Edad y sexo'!$C$2:$C$5000,"F",'Edad y sexo'!$D$2:$D$5000,Visor!$B152,'Edad y sexo'!$E$2:$E$5000,"Independiente") -> 14282 | U152: =SUMIFS('Edad y sexo'!$F$2:$F$5000,'Edad y sexo'!$B$2:$B$5000,Visor!$Q$7,'Edad y sexo'!$C$2:$C$5000,"NI",'Edad y sexo'!$D$2:$D$5000,Visor!$B152,'Edad y sexo'!$E$2:$E$5000,"Independiente") -> 0
B153: 55-60 | F153: =SUMIFS('Edad y sexo'!$F$2:$F$5000,'Edad y sexo'!$B$2:$B$5000,Visor!$Q$7,'Edad y sexo'!$C$2:$C$5000,"M",'Edad y sexo'!$D$2:$D$5000,Visor!$B153,'Edad y sexo'!$E$2:$E$5000,"Dep_sec_priv") -> 66396 | I153: =SUMIFS('Edad y sexo'!$F$2:$F$5000,'Edad y sexo'!$B$2:$B$5000,Visor!$Q$7,'Edad y sexo'!$C$2:$C$5000,"F",'Edad y sexo'!$D$2:$D$5000,Visor!$B153,'Edad y sexo'!$E$2:$E$5000,"Dep_sec_priv") -> 32972 | L153: =SUMIFS('Edad y sexo'!$F$2:$F$5000,'Edad y sexo'!$B$2:$B$5000,Visor!$Q$7,'Edad y sexo'!$C$2:$C$5000,"NI",'Edad y sexo'!$D$2:$D$5000,Visor!$B153,'Edad y sexo'!$E$2:$E$5000,"Dep_sec_priv") -> 0 | O153: =SUMIFS('Edad y sexo'!$F$2:$F$5000,'Edad y sexo'!$B$2:$B$5000,Visor!$Q$7,'Edad y sexo'!$C$2:$C$5000,"M",'Edad y sexo'!$D$2:$D$5000,Visor!$B153,'Edad y sexo'!$E$2:$E$5000,"Independiente") -> 20287 | R153: =SUMIFS('Edad y sexo'!$F$2:$F$5000,'Edad y sexo'!$B$2:$B$5000,Visor!$Q$7,'Edad y sexo'!$C$2:$C$5000,"F",'Edad y sexo'!$D$2:$D$5000,Visor!$B153,'Edad y sexo'!$E$2:$E$5000,"Independiente") -> 16063 | U153: =SUMIFS('Edad y sexo'!$F$2:$F$5000,'Edad y sexo'!$B$2:$B$5000,Visor!$Q$7,'Edad y sexo'!$C$2:$C$5000,"NI",'Edad y sexo'!$D$2:$D$5000,Visor!$B153,'Edad y sexo'!$E$2:$E$5000,"Independiente") -> 0 | X153: Piramided independientes
B154: 60-65 | F154: =SUMIFS('Edad y sexo'!$F$2:$F$5000,'Edad y sexo'!$B$2:$B$5000,Visor!$Q$7,'Edad y sexo'!$C$2:$C$5000,"M",'Edad y sexo'!$D$2:$D$5000,Visor!$B154,'Edad y sexo'!$E$2:$E$5000,"Dep_sec_priv") -> 39253 | I154: =SUMIFS('Edad y sexo'!$F$2:$F$5000,'Edad y sexo'!$B$2:$B$5000,Visor!$Q$7,'Edad y sexo'!$C$2:$C$5000,"F",'Edad y sexo'!$D$2:$D$5000,Visor!$B154,'Edad y sexo'!$E$2:$E$5000,"Dep_sec_priv") -> 12652 | L154: =SUMIFS('Edad y sexo'!$F$2:$F$5000,'Edad y sexo'!$B$2:$B$5000,Visor!$Q$7,'Edad y sexo'!$C$2:$C$5000,"NI",'Edad y sexo'!$D$2:$D$5000,Visor!$B154,'Edad y sexo'!$E$2:$E$5000,"Dep_sec_priv") -> 0 | O154: =SUMIFS('Edad y sexo'!$F$2:$F$5000,'Edad y sexo'!$B$2:$B$5000,Visor!$Q$7,'Edad y sexo'!$C$2:$C$5000,"M",'Edad y sexo'!$D$2:$D$5000,Visor!$B154,'Edad y sexo'!$E$2:$E$5000,"Independiente") -> 17452 | R154: =SUMIFS('Edad y sexo'!$F$2:$F$5000,'Edad y sexo'!$B$2:$B$5000,Visor!$Q$7,'Edad y sexo'!$C$2:$C$5000,"F",'Edad y sexo'!$D$2:$D$5000,Visor!$B154,'Edad y sexo'!$E$2:$E$5000,"Independiente") -> 12719 | U154: =SUMIFS('Edad y sexo'!$F$2:$F$5000,'Edad y sexo'!$B$2:$B$5000,Visor!$Q$7,'Edad y sexo'!$C$2:$C$5000,"NI",'Edad y sexo'!$D$2:$D$5000,Visor!$B154,'Edad y sexo'!$E$2:$E$5000,"Independiente") -> 0
B155: 65-70 | F155: =SUMIFS('Edad y sexo'!$F$2:$F$5000,'Edad y sexo'!$B$2:$B$5000,Visor!$Q$7,'Edad y sexo'!$C$2:$C$5000,"M",'Edad y sexo'!$D$2:$D$5000,Visor!$B155,'Edad y sexo'!$E$2:$E$5000,"Dep_sec_priv") -> 11465 | I155: =SUMIFS('Edad y sexo'!$F$2:$F$5000,'Edad y sexo'!$B$2:$B$5000,Visor!$Q$7,'Edad y sexo'!$C$2:$C$5000,"F",'Edad y sexo'!$D$2:$D$5000,Visor!$B155,'Edad y sexo'!$E$2:$E$5000,"Dep_sec_priv") -> 4962 | L155: =SUMIFS('Edad y sexo'!$F$2:$F$5000,'Edad y sexo'!$B$2:$B$5000,Visor!$Q$7,'Edad y sexo'!$C$2:$C$5000,"NI",'Edad y sexo'!$D$2:$D$5000,Visor!$B155,'Edad y sexo'!$E$2:$E$5000,"Dep_sec_priv") -> 0 | O155: =SUMIFS('Edad y sexo'!$F$2:$F$5000,'Edad y sexo'!$B$2:$B$5000,Visor!$Q$7,'Edad y sexo'!$C$2:$C$5000,"M",'Edad y sexo'!$D$2:$D$5000,Visor!$B155,'Edad y sexo'!$E$2:$E$5000,"Independiente") -> 10695 | R155: =SUMIFS('Edad y sexo'!$F$2:$F$5000,'Edad y sexo'!$B$2:$B$5000,Visor!$Q$7,'Edad y sexo'!$C$2:$C$5000,"F",'Edad y sexo'!$D$2:$D$5000,Visor!$B155,'Edad y sexo'!$E$2:$E$5000,"Independiente") -> 10185 | U155: =SUMIFS('Edad y sexo'!$F$2:$F$5000,'Edad y sexo'!$B$2:$B$5000,Visor!$Q$7,'Edad y sexo'!$C$2:$C$5000,"NI",'Edad y sexo'!$D$2:$D$5000,Visor!$B155,'Edad y sexo'!$E$2:$E$5000,"Independiente") -> 0
B156: 70-75 | F156: =SUMIFS('Edad y sexo'!$F$2:$F$5000,'Edad y sexo'!$B$2:$B$5000,Visor!$Q$7,'Edad y sexo'!$C$2:$C$5000,"M",'Edad y sexo'!$D$2:$D$5000,Visor!$B156,'Edad y sexo'!$E$2:$E$5000,"Dep_sec_priv") -> 3721 | I156: =SUMIFS('Edad y sexo'!$F$2:$F$5000,'Edad y sexo'!$B$2:$B$5000,Visor!$Q$7,'Edad y sexo'!$C$2:$C$5000,"F",'Edad y sexo'!$D$2:$D$5000,Visor!$B156,'Edad y sexo'!$E$2:$E$5000,"Dep_sec_priv") -> 1846 | L156: =SUMIFS('Edad y sexo'!$F$2:$F$5000,'Edad y sexo'!$B$2:$B$5000,Visor!$Q$7,'Edad y sexo'!$C$2:$C$5000,"NI",'Edad y sexo'!$D$2:$D$5000,Visor!$B156,'Edad y sexo'!$E$2:$E$5000,"Dep_sec_priv") -> 0 | O156: =SUMIFS('Edad y sexo'!$F$2:$F$5000,'Edad y sexo'!$B$2:$B$5000,Visor!$Q$7,'Edad y sexo'!$C$2:$C$5000,"M",'Edad y sexo'!$D$2:$D$5000,Visor!$B156,'Edad y sexo'!$E$2:$E$5000,"Independiente") -> 6725 | R156: =SUMIFS('Edad y sexo'!$F$2:$F$5000,'Edad y sexo'!$B$2:$B$5000,Visor!$Q$7,'Edad y sexo'!$C$2:$C$5000,"F",'Edad y sexo'!$D$2:$D$5000,Visor!$B156,'Edad y sexo'!$E$2:$E$5000,"Independiente") -> 7253 | U156: =SUMIFS('Edad y sexo'!$F$2:$F$5000,'Edad y sexo'!$B$2:$B$5000,Visor!$Q$7,'Edad y sexo'!$C$2:$C$5000,"NI",'Edad y sexo'!$D$2:$D$5000,Visor!$B156,'Edad y sexo'!$E$2:$E$5000,"Independiente") -> 0
B157: 75-80 | F157: =SUMIFS('Edad y sexo'!$F$2:$F$5000,'Edad y sexo'!$B$2:$B$5000,Visor!$Q$7,'Edad y sexo'!$C$2:$C$5000,"M",'Edad y sexo'!$D$2:$D$5000,Visor!$B157,'Edad y sexo'!$E$2:$E$5000,"Dep_sec_priv") -> 1158 | I157: =SUMIFS('Edad y sexo'!$F$2:$F$5000,'Edad y sexo'!$B$2:$B$5000,Visor!$Q$7,'Edad y sexo'!$C$2:$C$5000,"F",'Edad y sexo'!$D$2:$D$5000,Visor!$B157,'Edad y sexo'!$E$2:$E$5000,"Dep_sec_priv") -> 738 | L157: =SUMIFS('Edad y sexo'!$F$2:$F$5000,'Edad y sexo'!$B$2:$B$5000,Visor!$Q$7,'Edad y sexo'!$C$2:$C$5000,"NI",'Edad y sexo'!$D$2:$D$5000,Visor!$B157,'Edad y sexo'!$E$2:$E$5000,"Dep_sec_priv") -> 0 | O157: =SUMIFS('Edad y sexo'!$F$2:$F$5000,'Edad y sexo'!$B$2:$B$5000,Visor!$Q$7,'Edad y sexo'!$C$2:$C$5000,"M",'Edad y sexo'!$D$2:$D$5000,Visor!$B157,'Edad y sexo'!$E$2:$E$5000,"Independiente") -> 3752 | R157: =SUMIFS('Edad y sexo'!$F$2:$F$5000,'Edad y sexo'!$B$2:$B$5000,Visor!$Q$7,'Edad y sexo'!$C$2:$C$5000,"F",'Edad y sexo'!$D$2:$D$5000,Visor!$B157,'Edad y sexo'!$E$2:$E$5000,"Independiente") -> 5256 | U157: =SUMIFS('Edad y sexo'!$F$2:$F$5000,'Edad y sexo'!$B$2:$B$5000,Visor!$Q$7,'Edad y sexo'!$C$2:$C$5000,"NI",'Edad y sexo'!$D$2:$D$5000,Visor!$B157,'Edad y sexo'!$E$2:$E$5000,"Independiente") -> 0
B158: Más de 80 años | F158: =SUMIFS('Edad y sexo'!$F$2:$F$5000,'Edad y sexo'!$B$2:$B$5000,Visor!$Q$7,'Edad y sexo'!$C$2:$C$5000,"M",'Edad y sexo'!$D$2:$D$5000,Visor!$B158,'Edad y sexo'!$E$2:$E$5000,"Dep_sec_priv") -> 0 | I158: =SUMIFS('Edad y sexo'!$F$2:$F$5000,'Edad y sexo'!$B$2:$B$5000,Visor!$Q$7,'Edad y sexo'!$C$2:$C$5000,"F",'Edad y sexo'!$D$2:$D$5000,Visor!$B158,'Edad y sexo'!$E$2:$E$5000,"Dep_sec_priv") -> 0 | L158: =SUMIFS('Edad y sexo'!$F$2:$F$5000,'Edad y sexo'!$B$2:$B$5000,Visor!$Q$7,'Edad y sexo'!$C$2:$C$5000,"NI",'Edad y sexo'!$D$2:$D$5000,Visor!$B158,'Edad y sexo'!$E$2:$E$5000,"Dep_sec_priv") -> 0 | O158: =SUMIFS('Edad y sexo'!$F$2:$F$5000,'Edad y sexo'!$B$2:$B$5000,Visor!$Q$7,'Edad y sexo'!$C$2:$C$5000,"M",'Edad y sexo'!$D$2:$D$5000,Visor!$B158,'Edad y sexo'!$E$2:$E$5000,"Independiente") -> 0 | R158: =SUMIFS('Edad y sexo'!$F$2:$F$5000,'Edad y sexo'!$B$2:$B$5000,Visor!$Q$7,'Edad y sexo'!$C$2:$C$5000,"F",'Edad y sexo'!$D$2:$D$5000,Visor!$B158,'Edad y sexo'!$E$2:$E$5000,"Independiente") -> 0 | U158: =SUMIFS('Edad y sexo'!$F$2:$F$5000,'Edad y sexo'!$B$2:$B$5000,Visor!$Q$7,'Edad y sexo'!$C$2:$C$5000,"NI",'Edad y sexo'!$D$2:$D$5000,Visor!$B158,'Edad y sexo'!$E$2:$E$5000,"Independiente") -> 0
B159: No identificado | F159: =SUMIFS('Edad y sexo'!$F$2:$F$5000,'Edad y sexo'!$B$2:$B$5000,Visor!$Q$7,'Edad y sexo'!$C$2:$C$5000,"M",'Edad y sexo'!$D$2:$D$5000,"NI",'Edad y sexo'!$E$2:$E$5000,"Dep_sec_priv") -> 150 | I159: =SUMIFS('Edad y sexo'!$F$2:$F$5000,'Edad y sexo'!$B$2:$B$5000,Visor!$Q$7,'Edad y sexo'!$C$2:$C$5000,"F",'Edad y sexo'!$D$2:$D$5000,"NI",'Edad y sexo'!$E$2:$E$5000,"Dep_sec_priv") -> 45 | L159: =SUMIFS('Edad y sexo'!$F$2:$F$5000,'Edad y sexo'!$B$2:$B$5000,Visor!$Q$7,'Edad y sexo'!$C$2:$C$5000,"NI",'Edad y sexo'!$D$2:$D$5000,"NI",'Edad y sexo'!$E$2:$E$5000,"Dep_sec_priv") -> 5740 | O159: =SUMIFS('Edad y sexo'!$F$2:$F$5000,'Edad y sexo'!$B$2:$B$5000,Visor!$Q$7,'Edad y sexo'!$C$2:$C$5000,"M",'Edad y sexo'!$D$2:$D$5000,"NI",'Edad y sexo'!$E$2:$E$5000,"Independiente") -> 8 | R159: =SUMIFS('Edad y sexo'!$F$2:$F$5000,'Edad y sexo'!$B$2:$B$5000,Visor!$Q$7,'Edad y sexo'!$C$2:$C$5000,"F",'Edad y sexo'!$D$2:$D$5000,"NI",'Edad y sexo'!$E$2:$E$5000,"Independiente") -> 6 | U159: =SUMIFS('Edad y sexo'!$F$2:$F$5000,'Edad y sexo'!$B$2:$B$5000,Visor!$Q$7,'Edad y sexo'!$C$2:$C$5000,"NI",'Edad y sexo'!$D$2:$D$5000,"NI",'Edad y sexo'!$E$2:$E$5000,"Independiente") -> 576
B160: Total | F160: =SUM(F145:H159) -> 953915 | I160: =SUM(I145:K159) -> 703858 | L160: =SUM(L145:N159) -> 5740 | O160: =SUM(O145:Q159) -> 172108 | R160: =SUM(R145:T159) -> 153939 | U160: =SUM(U145:W159) -> 576
C162: *Ubicación basada en la ubicación de los cotizantes
L164: =J3 -> Informe Mensual de las cotizaciones
L166: =K53 -> Fecha de corte: 17 de Feb de 2022 | AB166: Pg. 4
L168: Departamento | Q168: =Q55 -> ANTIOQUIA
L169: Municipio | Q169: =Q56 -> MEDELLÍN
C171: ="Resumen municipal "&Q168&":" -> Resumen municipal ANTIOQUIA:
B174: =Q168 -> ANTIOQUIA
B175: Municipio | H175: Apt.Privados | L175: % | M175: Dep.Privados (Ubicación del aportante) | Q175: % | R175: Dep.Privados (Ubicación del cotizante) | V175: % | W175: Independientes | AA175: %
A176: =IF(AND(B177="",B175<>"",B176<>""),1,0) -> 0 | B176: =IF(Tamaño!BF2=0,"",PROPER(Tamaño!BF2)) -> Medellín | H176: =IF(B176="","",Tamaño!BG2) -> 68653 | L176: =H176/SUM($H$176:$K$201) -> 0.6270367529 | M176: =IF(B176="","",Tamaño!BJ2) -> 1178327 | Q176: =M176/SUM($M$176:$P$201) -> 0.6751835755 | R176: =IF(B176="","",Tamaño!BH2) -> 1180477 | V176: =R176/SUM($R$176:$U$201) -> 0.7089824207 | W176: =IF(B176="","",Tamaño!BI2) -> 205769 | AA176: =W176/SUM($W$176:$Z$201) -> 0.6090471032
A177: 0 | B177: =IF(OR(B176="",Tamaño!BF3=0),"",PROPER(Tamaño!BF3)) -> Envigado | H177: =IF(B177="","",Tamaño!BG3) -> 6969 | L177: =IF(H177="","",H177/SUM($H$176:$K$201)) -> 0.06365081105 | M177: =IF(B177="","",Tamaño!BJ3) -> 118524 | Q177: =IF(H177="","",M177/SUM($M$176:$P$201)) -> 0.06791447374 | R177: =IF(B177="","",Tamaño!BH3) -> 41931 | V177: =IF(R177="","",R177/SUM($R$176:$U$201)) -> 0.02518333003 | W177: =IF(B177="","",Tamaño!BI3) -> 18467 | AA177: =IF(W177="","",W177/SUM($W$176:$Z$201)) -> 0.05465970508
A178: 0 | B178: =IF(OR(B177="",Tamaño!BF4=0),"",PROPER(Tamaño!BF4)) -> Itagui | H178: =IF(B178="","",Tamaño!BG4) -> 4378 | L178: =IF(H178="","",H178/SUM($H$176:$K$201)) -> 0.0399861172 | M178: =IF(B178="","",Tamaño!BJ4) -> 94386 | Q178: =IF(H178="","",M178/SUM($M$176:$P$201)) -> 0.05408335458 | R178: =IF(B178="","",Tamaño!BH4) -> 52369 | V178: 0.03145228614 | W178: =IF(B178="","",Tamaño!BI4) -> 10812 | AA178: 0.03200198902
A179: 0 | B179: =IF(OR(B178="",Tamaño!BF5=0),"",PROPER(Tamaño!BF5)) -> Rionegro | H179: =IF(B179="","",Tamaño!BG5) -> 3446 | L179: 0.03147376881 | M179: =IF(B179="","",Tamaño!BJ5) -> 48396 | Q179: 0.02773099854 | R179: =IF(B179="","",Tamaño!BH5) -> 55394 | V179: 0.03326907023 | W179: =IF(B179="","",Tamaño!BI5) -> 10608 | AA179: 0.03139817791
A180: 0 | B180: =IF(OR(B179="",Tamaño!BF6=0),"",PROPER(Tamaño!BF6)) -> Bello | H180: =IF(B180="","",Tamaño!BG6) -> 3132 | L180: 0.02860587462 | M180: =IF(B180="","",Tamaño!BJ6) -> 47795 | Q180: 0.02738662442 | R180: =IF(B180="","",Tamaño!BH6) -> 38346 | V180: 0.02303021567 | W180: =IF(B180="","",Tamaño!BI6) -> 13859 | AA180: 0.04102067757
A181: 0 | B181: =IF(OR(B180="",Tamaño!BF7=0),"",PROPER(Tamaño!BF7)) -> Sabaneta | H181: =IF(B181="","",Tamaño!BG7) -> 2301 | L181: 0.02101600175 | M181: =IF(B181="","",Tamaño!BJ7) -> 39621 | Q181: 0.02270290712 | R181: =IF(B181="","",Tamaño!BH7) -> 24223 | V181: 0.01454808622 | W181: =IF(B181="","",Tamaño!BI7) -> 7992 | AA181: 0.02365518834
A182: =IF(AND(B183="",B181<>"",B182<>""),1,0) -> 0 | B182: =IF(OR(B181="",Tamaño!BF8=0),"",PROPER(Tamaño!BF8)) -> Apartadó | H182: =IF(B182="","",Tamaño!BG8) -> 1517 | L182: 0.01385539968 | M182: =IF(B182="","",Tamaño!BJ8) -> 21238 | Q182: 0.01216941373 | R182: =IF(B182="","",Tamaño!BH8) -> 34166 | V182: 0.02051975039 | W182: =IF(B182="","",Tamaño!BI8) -> 3718 | AA182: 0.01100475353
A183: 0 | B183: =IF(OR(B182="",Tamaño!BF9=0),"",PROPER(Tamaño!BF9)) -> La Ceja | H183: =IF(B183="","",Tamaño!BG9) -> 1291 | L183: 0.01179124653 | M183: =IF(B183="","",Tamaño!BJ9) -> 14318 | Q183: 0.008204240787 | R183: =IF(B183="","",Tamaño!BH9) -> 13405 | V183: 0.00805090599 | W183: =IF(B183="","",Tamaño!BI9) -> 4104 | AA183: 0.01214725888
A184: 0 | B184: =IF(OR(B183="",Tamaño!BF10=0),"",PROPER(Tamaño!BF10)) -> La Estrella | H184: =IF(B184="","",Tamaño!BG10) -> 1167 | L184: 0.01065870232 | M184: =IF(B184="","",Tamaño!BJ10) -> 25486 | Q184: 0.01460352568 | R184: =IF(B184="","",Tamaño!BH10) -> 15050 | V184: 0.009038876176 | W184: =IF(B184="","",Tamaño!BI10) -> 2953 | AA184: 0.008740461856
A185: 0 | B185: =IF(OR(B184="",Tamaño!BF11=0),"",PROPER(Tamaño!BF11)) -> Ciudad Bolívar | H185: =IF(B185="","",Tamaño!BG11) -> 946 | L185: 0.008640216279 | M185: =IF(B185="","",Tamaño!BJ11) -> 5555 | Q185: 0.003183025393 | R185: =IF(B185="","",Tamaño!BH11) -> 1961 | V185: 0.001177756557 | W185: =IF(B185="","",Tamaño!BI11) -> 897 | AA185: 0.002654992985
A186: 0 | B186: =IF(OR(B185="",Tamaño!BF12=0),"",PROPER(Tamaño!BF12)) -> Caldas | H186: =IF(B186="","",Tamaño!BG12) -> 844 | L186: 0.007708607336 | M186: =IF(B186="","",Tamaño!BJ12) -> 9022 | Q186: 0.005169622879 | R186: =IF(B186="","",Tamaño!BH12) -> 8350 | V186: 0.005014924656 | W186: =IF(B186="","",Tamaño!BI12) -> 2750 | AA186: 0.008139610601
A187: 0 | B187: =IF(OR(B186="",Tamaño!BF13=0),"",PROPER(Tamaño!BF13)) -> Marinilla | H187: =IF(B187="","",Tamaño!BG13) -> 798 | L187: 0.007288469969 | M187: =IF(B187="","",Tamaño!BJ13) -> 10462 | Q187: 0.005994745573 | R187: =IF(B187="","",Tamaño!BH13) -> 10718 | V187: 0.006437121253 | W187: =IF(B187="","",Tamaño!BI13) -> 2725 | AA187: 0.008065614141
A188: 0 | B188: =IF(OR(B187="",Tamaño!BF14=0),"",PROPER(Tamaño!BF14)) -> El Carmen De Viboral | H188: =IF(B188="","",Tamaño!BG14) -> 749 | L188: 0.00684093234 | M188: =IF(B188="","",Tamaño!BJ14) -> 7417 | Q188: 0.004249954876 | R188: =IF(B188="","",Tamaño!BH14) -> 8823 | V188: 0.005299003622 | W188: =IF(B188="","",Tamaño!BI14) -> 2507 | AA188: 0.00742036501
A189: 0 | B189: =IF(OR(B188="",Tamaño!BF15=0),"",PROPER(Tamaño!BF15)) -> Copacabana | H189: =IF(B189="","",Tamaño!BG15) -> 719 | L189: 0.006566929709 | M189: =IF(B189="","",Tamaño!BJ15) -> 11682 | Q189: 0.006693807855 | R189: =IF(B189="","",Tamaño!BH15) -> 8353 | V189: 0.005016726425 | W189: =IF(B189="","",Tamaño!BI15) -> 2577 | AA189: 0.007627555098
A190: 0 | B190: =IF(OR(B189="",Tamaño!BF16=0),"",PROPER(Tamaño!BF16)) -> Retiro | H190: =IF(B190="","",Tamaño!BG16) -> 703 | L190: 0.006420794973 | M190: =IF(B190="","",Tamaño!BJ16) -> 4178 | Q190: 0.002394001816 | R190: =IF(B190="","",Tamaño!BH16) -> 4202 | V190: 0.002523678252 | W190: =IF(B190="","",Tamaño!BI16) -> 1625 | AA190: 0.004809769901
A191: 0 | B191: =IF(OR(B190="",Tamaño!BF17=0),"",PROPER(Tamaño!BF17)) -> Caucasia | H191: =IF(B191="","",Tamaño!BG17) -> 667 | L191: 0.006091991816 | M191: =IF(B191="","",Tamaño!BJ17) -> 5764 | Q191: 0.003302782784 | R191: =IF(B191="","",Tamaño!BH17) -> 8302 | V191: 0.004986096347 | W191: =IF(B191="","",Tamaño!BI17) -> 1630 | AA191: 0.004824569193
A192: 0 | B192: =IF(OR(B191="",Tamaño!BF18=0),"",PROPER(Tamaño!BF18)) -> Guarne | H192: =IF(B192="","",Tamaño!BG18) -> 638 | L192: 0.005827122607 | M192: =IF(B192="","",Tamaño!BJ18) -> 9339 | Q192: 0.005351264472 | R192: =IF(B192="","",Tamaño!BH18) -> 10316 | V192: 0.006195684162 | W192: =IF(B192="","",Tamaño!BI18) -> 2001 | AA192: 0.005922676659
A193: 0 | B193: =IF(OR(B192="",Tamaño!BF19=0),"",PROPER(Tamaño!BF19)) -> Santa Rosa De Osos | H193: =IF(B193="","",Tamaño!BG19) -> 550 | L193: 0.005023381558 | M193: =IF(B193="","",Tamaño!BJ19) -> 4933 | Q193: 0.002826618229 | R193: =IF(B193="","",Tamaño!BH19) -> 6325 | V193: 0.003798730353 | W193: =IF(B193="","",Tamaño!BI19) -> 1964 | AA193: 0.005813161898
A194: 0 | B194: =IF(OR(B193="",Tamaño!BF20=0),"",PROPER(Tamaño!BF20)) -> Turbo | H194: =IF(B194="","",Tamaño!BG20) -> 517 | L194: 0.004721978664 | M194: =IF(B194="","",Tamaño!BJ20) -> 4551 | Q194: 0.002607731514 | R194: =IF(B194="","",Tamaño!BH20) -> 7675 | V194: 0.004609526555 | W194: =IF(B194="","",Tamaño!BI20) -> 1363 | AA194: 0.004034287
A195: 0 | B195: =IF(OR(B194="",Tamaño!BF21=0),"",PROPER(Tamaño!BF21)) -> Don Matías | H195: =IF(B195="","",Tamaño!BG21) -> 492 | L195: 0.004493643139 | M195: =IF(B195="","",Tamaño!BJ21) -> 3620 | Q195: 0.002074266772 | R195: =IF(B195="","",Tamaño!BH21) -> 3753 | V195: 0.002254013441 | W195: =IF(B195="","",Tamaño!BI21) -> 2010 | AA195: 0.005949315385
A196: 0 | B196: =IF(OR(B195="",Tamaño!BF22=0),"",PROPER(Tamaño!BF22)) -> Girardota | H196: =IF(B196="","",Tamaño!BG22) -> 457 | L196: 0.004173973403 | M196: =IF(B196="","",Tamaño!BJ22) -> 9041 | Q196: 0.005180509914 | R196: =IF(B196="","",Tamaño!BH22) -> 10995 | V196: 0.006603484622 | W196: =IF(B196="","",Tamaño!BI22) -> 1614 | AA196: 0.004777211458
A197: 0 | B197: =IF(OR(B196="",Tamaño!BF23=0),"",PROPER(Tamaño!BF23)) -> San Pedro De Los Milagros | H197: =IF(B197="","",Tamaño!BG23) -> 399 | L197: 0.003644234985 | M197: =IF(B197="","",Tamaño!BJ23) -> 2566 | Q197: 0.001470322801 | R197: =IF(B197="","",Tamaño!BH23) -> 3828 | V197: 0.002299057675 | W197: =IF(B197="","",Tamaño!BI23) -> 1228 | AA197: 0.003634706116
A198: 0 | B198: =IF(OR(B197="",Tamaño!BF24=0),"",PROPER(Tamaño!BF24)) -> Puerto Berrío | H198: =IF(B198="","",Tamaño!BG24) -> 392 | L198: 0.003580301038 | M198: =IF(B198="","",Tamaño!BJ24) -> 3688 | Q198: 0.0021132309 | R198: =IF(B198="","",Tamaño!BH24) -> 5853 | V198: 0.003515251977 | W198: =IF(B198="","",Tamaño!BI24) -> 1103 | AA198: 0.003264723816
A199: 0 | B199: =IF(OR(B198="",Tamaño!BF25=0),"",PROPER(Tamaño!BF25)) -> El Santuario | H199: =IF(B199="","",Tamaño!BG25) -> 390 | L199: 0.003562034196 | M199: =IF(B199="","",Tamaño!BJ25) -> 3563 | Q199: 0.002041605666 | R199: =IF(B199="","",Tamaño!BH25) -> 3910 | V199: 0.002348306037 | W199: =IF(B199="","",Tamaño!BI25) -> 1559 | AA199: 0.004614419246
A200: 0 | B200: =IF(OR(B199="",Tamaño!BF26=0),"",PROPER(Tamaño!BF26)) -> Yarumal | H200: =IF(B200="","",Tamaño!BG26) -> 367 | L200: 0.003351965512 | M200: =IF(B200="","",Tamaño!BJ26) -> 2478 | Q200: 0.001419898636 | R200: =IF(B200="","",Tamaño!BH26) -> 3213 | V200: 0.00192969496 | W200: =IF(B200="","",Tamaño!BI26) -> 1467 | AA200: 0.004342112273
B201: =IF(Lista!J3>25,"Otros","") -> Otros | H201: =IF(B201="Otros",SUM(Tamaño!$BG$27:$BG$150),"") -> 7006 | L201: 0.06398874763 | M201: =IF(B201="","",SUM(Tamaño!BJ27:BJ150)) -> 59245 | Q201: 0.03394749584 | R201: =IF(B201="Otros",R14-SUM(R176:U200),"") -> 103092 | V201: 0.06191600151 | W201: =IF(B201="Otros",W14-SUM(W176:Z200),"") -> 30552 | AA201: 0.09042959385
C202: *Para la columna de Apt.Privados y Dep.Privados/Apt se usa la ubicación del aportante, para las demas columnas la ubicación del cotizante
C204: ="Resumen de las novedades Dep.Privados e Independientes mes "&Lista!R2 -> Resumen de las novedades Dep.Privados e Independientes mes Diciembre
C219: *Ubicación basada en la ubicación de los cotizantes
C220: * Nota: Corresponden a los asociados a aportantes del sector privado, es decir los tipos de cotizantes 1, 2 o 22

Sheet Cotizantes Mes (hidden)
A1: Divipola | B1: Llave | C1: Tipologia | D1: Depto | E1: Mpio | F1: Mpio_0 | G1: Depto_Nom | H1: Mpio_Nom | I1: Tipologia_MES | J1: Ingresos_MES | K1: Retiros_MES | L1: Total_relaciones_laborales_11_20 | M1: Total_relaciones_laborales_12_20 | N1: Total_relaciones_laborales_01_21 | O1: Total_relaciones_laborales_02_21 | P1: Total_relaciones_laborales_03_21 | Q1: Total_relaciones_laborales_04_21 | R1: Total_relaciones_laborales_5_21 | S1: Total_relaciones_laborales_6_21 | T1: Total_relaciones_laborales_7_21 | U1: Total_relaciones_laborales_8_21 | V1: Total_relaciones_laborales_9_21 | W1: Total_relaciones_laborales_10_21 | X1: Total_relaciones_laborales_11_21 | Y1: Total_relaciones_laborales_12_21 | Z1: Total_relaciones_laborales_1_22 | AA1: Total_relaciones_laborales_2_22 | AB1: Total_relaciones_laborales_3_22 | AC1: Total_relaciones_laborales_4_22 | AD1: Total_relaciones_laborales_5_22 | AE1: Total_relaciones_laborales_6_22 | AF1: Total_relaciones_laborales_7_22 | AG1: Total_relaciones_laborales_8_22 | AH1: Total_relaciones_laborales_9_22 | AI1: Total_relaciones_laborales_10_22 | AJ1: Total_relaciones_laborales_11_22 | AK1: Total_relaciones_laborales_12_22 | AQ1: =A1 -> Divipola | AR1: Llave | AS1: Tipologia | AT1: Depto | AU1: Mpio | AV1: Mpio_0 | AW1: Depto_Nom | AX1: Mpio_Nom | AY1: Tipologia_MES | AZ1: Ingresos_MES | BA1: Retiros_MES | BB1: Total_relaciones_laborales_11_20 | BC1: Total_relaciones_laborales_12_20 | BD1: Total_relaciones_laborales_01_21 | BE1: Total_relaciones_laborales_02_21 | BF1: Total_relaciones_laborales_03_21 | BG1: Total_relaciones_laborales_04_21 | BH1: Total_relaciones_laborales_5_21 | BI1: Total_relaciones_laborales_6_21 | BJ1: Total_relaciones_laborales_7_21 | BK1: Total_relaciones_laborales_8_21 | BL1: Total_relaciones_laborales_9_21 | BM1: Total_relaciones_laborales_10_21 | BN1: Total_relaciones_laborales_11_21 | BO1: Total_relaciones_laborales_12_21 | BP1: Total_relaciones_laborales_1_22 | BQ1: Total_relaciones_laborales_2_22 | BR1: Total_relaciones_laborales_3_22 | BS1: Total_relaciones_laborales_4_22 | BT1: Total_relaciones_laborales_5_22 | BU1: Total_relaciones_laborales_6_22 | BV1: Total_relaciones_laborales_7_22 | BW1: Total_relaciones_laborales_8_22 | BX1: Total_relaciones_laborales_9_22 | BY1: Total_relaciones_laborales_10_22 | BZ1: Total_relaciones_laborales_11_22 | CA1: Total_relaciones_laborales_12_22
A2: Sin Info | B2: Sin Info1 | C2: 1 | D2: Sin Info | E2: Sin Info | F2: Sin Info | G2: Sin Info | H2: Sin Info | I2: Dep_No_priv | J2: 1 | K2: 1 | L2: 7 | M2: 1 | N2: 9 | O2: 8 | P2: 10 | Q2: 8 | R2: 8 | S2: 8 | T2: 9 | U2: 8 | V2: 7 | W2: 9 | X2: 9 | Y2: 16 | Z2: 2 | AA2: 1 | AB2: 26 | AC2: 83 | AD2: 3 | AE2: 1 | AF2: 0 | AG2: 1 | AH2: 1 | AI2: 1 | AJ2: 5 | AK2: 3 | AL2: =IF(SUM(L2:AK2)=0,"VERDADERO","FALSO") -> FALSO | AQ2: =_xlfn._xlws.FILTER($A$2:$AK$4989,$G$2:$G$4989=Visor!$Q$7,"") -> 5001 | AR2: 50011 | AS2: 1 | AT2: 5 | AU2: 1 | AV2: 001 | AW2: ANTIOQUIA | AX2: MEDELLÍN | AY2: Dep_No_priv | AZ2: 5669 | BA2: 16792 | BB2: 152185 | BC2: 121627 | BD2: 135841 | BE2: 151291 | BF2: 159711 | BG2: 158948 | BH2: 162455 | BI2: 162283 | BJ2: 158706 | BK2: 170597 | BL2: 177886 | BM2: 180246 | BN2: 174670 | BO2: 147601 | BP2: 143874 | BQ2: 160751 | BR2: 174961 | BS2: 169612 | BT2: 175986 | BU2: 173487 | BV2: 167740 | BW2: 185077 | BX2: 189573 | BY2: 190919 | BZ2: 189503 | CA2: 148381 | CB2: =SUMIFS(CA2:CA379,AS2:AS379,3) -> 337854
A3: Sin Info | B3: Sin Info2 | C3: 2 | D3: Sin Info | E3: Sin Info | F3: Sin Info | G3: Sin Info | H3: Sin Info | I3: Dep_sec_priv | J3: 103 | K3: 74 | L3: 365 | M3: 198 | N3: 457 | O3: 431 | P3: 486 | Q3: 447 | R3: 359 | S3: 397 | T3: 412 | U3: 419 | V3: 514 | W3: 525 | X3: 541 | Y3: 530 | Z3: 578 | AA3: 575 | AB3: 720 | AC3: 628 | AD3: 646 | AE3: 575 | AF3: 580 | AG3: 453 | AH3: 427 | AI3: 446 | AJ3: 563 | AK3: 356 | AL3: FALSO | AQ3: 5318 | AR3: 53182 | AS3: 2 | AT3: 5 | AU3: 318 | AV3: 318 | AW3: ANTIOQUIA | AX3: GUARNE | AY3: Dep_sec_priv | AZ3: 431 | BA3: 939 | BB3: 7753 | BC3: 7032 | BD3: 7967 | BE3: 8134 | BF3: 8353 | BG3: 8560 | BH3: 8665 | BI3: 8687 | BJ3: 8825 | BK3: 8945 | BL3: 8797 | BM3: 8969 | BN3: 9046 | BO3: 9041 | BP3: 9069 | BQ3: 9242 | BR3: 9488 | BS3: 9563 | BT3: 9695 | BU3: 9757 | BV3: 9959 | BW3: 10166 | BX3: 10288 | BY3: 10463 | BZ3: 10422 | CA3: 10316 | CH3: ="Variaciones de "&PROPER(Visor!$Q$7) -> Variaciones de Antioquia
A4: Sin Info | B4: Sin Info3 | C4: 3 | D4: Sin Info | E4: Sin Info | F4: Sin Info | G4: Sin Info | H4: Sin Info | I4: Independiente | J4: 299 | K4: 143 | L4: 21519 | M4: 20814 | N4: 21747 | O4: 22013 | P4: 22222 | Q4: 22244 | R4: 22366 | S4: 22560 | T4: 22793 | U4: 23013 | V4: 23534 | W4: 23723 | X4: 23602 | Y4: 23771 | Z4: 24365 | AA4: 24515 | AB4: 24971 | AC4: 25252 | AD4: 25730 | AE4: 25759 | AF4: 26119 | AG4: 26381 | AH4: 26778 | AI4: 26954 | AJ4: 26341 | AK4: 25664 | AL4: FALSO | AQ4: 5001 | AR4: 50012 | AS4: 2 | AT4: 5 | AU4: 1 | AV4: 001 | AW4: ANTIOQUIA | AX4: MEDELLÍN | AY4: Dep_sec_priv | AZ4: 45861 | BA4: 99918 | BB4: 1073647 | BC4: 793263 | BD4: 1055879 | BE4: 1078004 | BF4: 1092322 | BG4: 1091227 | BH4: 1093979 | BI4: 1101166 | BJ4: 1113952 | BK4: 1129031 | BL4: 1142692 | BM4: 1150199 | BN4: 1161003 | BO4: 1145217 | BP4: 1138381 | BQ4: 1159426 | BR4: 1171685 | BS4: 1170824 | BT4: 1178874 | BU4: 1183469 | BV4: 1193298 | BW4: 1207172 | BX4: 1212510 | BY4: 1216027 | BZ4: 1219155 | CA4: 1180477 | CH4: 2020-12-01 | CI4: 2021-01-01 | CJ4: 2021-02-01 | CK4: 2021-03-01 | CL4: 2021-04-01 | CM4: 2021-05-01 | CN4: 2021-06-01 | CO4: 2021-07-01 | CP4: 2021-08-01 | CQ4: 2021-09-01 | CR4: 2021-10-01 | CS4: 2021-11-01 | CT4: 2021-12-01 | CU4: 2022-01-01 | CV4: 2022-02-01 | CW4: 2022-03-01 | CX4: 2022-04-01 | CY4: 2022-05-01 | CZ4: 2022-06-01 | DA4: 2022-07-01 | DB4: 2022-08-01 | DC4: 2022-09-01 | DD4: 2022-10-01 | DE4: 2022-11-01 | DF4: 2022-12-01 | DL4: Dependientes | DN4: Dep. Privados | DP4: Independientes
A5: 5001 | B5: 50011 | C5: 1 | D5: 5 | E5: 1 | F5: 001 | G5: ANTIOQUIA | H5: MEDELLÍN | I5: Dep_No_priv | J5: 5669 | K5: 16792 | L5: 152185 | M5: 121627 | N5: 135841 | O5: 151291 | P5: 159711 | Q5: 158948 | R5: 162455 | S5: 162283 | T5: 158706 | U5: 170597 | V5: 177886 | W5: 180246 | X5: 174670 | Y5: 147601 | Z5: 143874 | AA5: 160751 | AB5: 174961 | AC5: 169612 | AD5: 175986 | AE5: 173487 | AF5: 167740 | AG5: 185077 | AH5: 189573 | AI5: 190919 | AJ5: 189503 | AK5: 148381 | AL5: FALSO | AQ5: 5400 | AR5: 54002 | AS5: 2 | AT5: 5 | AU5: 400 | AV5: 400 | AW5: ANTIOQUIA | AX5: LA UNIÓN | AY5: Dep_sec_priv | AZ5: 72 | BA5: 132 | BB5: 1866 | BC5: 1479 | BD5: 1824 | BE5: 1891 | BF5: 1923 | BG5: 1944 | BH5: 1863 | BI5: 1884 | BJ5: 1911 | BK5: 1933 | BL5: 1951 | BM5: 2025 | BN5: 2079 | BO5: 2105 | BP5: 2199 | BQ5: 2199 | BR5: 2217 | BS5: 2210 | BT5: 2222 | BU5: 2217 | BV5: 2341 | BW5: 2377 | BX5: 2404 | BY5: 2451 | BZ5: 2416 | CA5: 2335 | CG5: Independientes | CH5: =IFERROR(SUMIFS(BC$2:BC$600,$AS$2:$AS$600,3)/SUMIFS(BB$2:BB$600,$AS$2:$AS$600,3)-1,"") -> -0.1643489054 | CI5: =IFERROR(SUMIFS(BD$2:BD$600,$AS$2:$AS$600,3)/SUMIFS(BC$2:BC$600,$AS$2:$AS$600,3)-1,"") -> 0.1395173483 | CJ5: 0.01953860171 | CK5: 0.01757258312 | CL5: 0.008980711662 | CM5: 0.007325192818 | CN5: 0.007079562297 | CO5: 0.003754442548 | CP5: 0.01300872864 | CQ5: 0.009669750311 | CR5: 0.007204206622 | CS5: 0.008324601939 | CT5: -0.01563781065 | CU5: -0.01784188816 | CV5: 0.03316351889 | CW5: 0.008220183045 | CX5: -9.542838398e-05 | CY5: 0.00766482353 | CZ5: 0.002995252584 | DA5: 0.004910292729 | DB5: 0.01321708795 | DC5: 0.01017258618 | DD5: 0.004025189712 | DE5: -0.001557329737 | DF5: -0.03308119618 | DL5: ="∆ Anual "&MID(Lista!$R$2,1,3) -> ∆ Anual Dic | DM5: ="∆ Mensual "&MID(Lista!$R$2,1,3) -> ∆ Mensual Dic | DN5: ="∆ Anual "&MID(Lista!$R$2,1,3) -> ∆ Anual Dic | DO5: ="∆ Mensual "&MID(Lista!$R$2,1,3) -> ∆ Mensual Dic | DP5: ="∆ Anual "&MID(Lista!$R$2,1,3) -> ∆ Anual Dic | DQ5: ="∆ Mensual "&MID(Lista!$R$2,1,3) -> ∆ Mensual Dic
A6: 11001 | B6: 110011 | C6: 1 | D6: 11 | E6: 1 | F6: 001 | G6: BOGOTÁ, D.C. | H6: BOGOTÁ, D.C. | I6: Dep_No_priv | J6: 14881 | K6: 39208 | L6: 397816 | M6: 298017 | N6: 328156 | O6: 369530 | P6: 378017 | Q6: 399311 | R6: 409058 | S6: 402699 | T6: 402846 | U6: 418668 | V6: 429943 | W6: 434742 | X6: 434309 | Y6: 353482 | Z6: 342820 | AA6: 386519 | AB6: 421714 | AC6: 434395 | AD6: 442935 | AE6: 424143 | AF6: 410458 | AG6: 440025 | AH6: 450113 | AI6: 450250 | AJ6: 445795 | AK6: 360496 | AL6: FALSO | AQ6: 5631 | AR6: 56312 | AS6: 2 | AT6: 5 | AU6: 631 | AV6: 631 | AW6: ANTIOQUIA | AX6: SABANETA | AY6: Dep_sec_priv | AZ6: 805 | BA6: 2279 | BB6: 22132 | BC6: 17524 | BD6: 21782 | BE6: 22128 | BF6: 22488 | BG6: 22450 | BH6: 22381 | BI6: 22265 | BJ6: 22667 | BK6: 23060 | BL6: 23675 | BM6: 24134 | BN6: 24237 | BO6: 23853 | BP6: 23825 | BQ6: 24500 | BR6: 24591 | BS6: 24598 | BT6: 24852 | BU6: 24756 | BV6: 24721 | BW6: 24990 | BX6: 24979 | BY6: 24933 | BZ6: 24808 | CA6: 24223 | CG6: Dependientes | CH6: =IFERROR((SUMIFS(BC$2:BC$600,$AS$2:$AS$600,2)+SUMIFS(BC$2:BC$600,$AS$2:$AS$600,1))/(SUMIFS(BB$2:BB$600,$AS$2:$AS$600,2)+SUMIFS(BB$2:BB$600,$AS$2:$AS$600,1))-1,"") -> -0.2635225817 | CI6: =IFERROR((SUMIFS(BD$2:BD$600,$AS$2:$AS$600,2)+SUMIFS(BD$2:BD$600,$AS$2:$AS$600,1))/(SUMIFS(BC$2:BC$600,$AS$2:$AS$600,2)+SUMIFS(BC$2:BC$600,$AS$2:$AS$600,1))-1,"") -> 0.322668281 | CJ6: 0.03188970928 | CK6: 0.01986432504 | CL6: 0.001118864367 | CM6: 0.005707154965 | CN6: 0.005190011341 | CO6: 0.007362115192 | CP6: 0.01869515473 | CQ6: 0.01510395082 | CR6: 0.007158226917 | CS6: 0.003904483277 | CT6: -0.0309673571 | CU6: -0.007518906995 | CV6: 0.0279656367 | CW6: 0.02007194501 | CX6: -0.002439838406 | CY6: 0.01143724754 | CZ6: 0.001997578755 | DA6: 0.002857264988 | DB6: 0.02076450817 | DC6: 0.007298891834 | DD6: 0.001409444678 | DE6: 0.0009022313393 | DF6: -0.0546959944 | DK6: Nacional | DL6: =(SUMIFS($AK$2:$AK$4995,$C$2:$C$4995,2)+SUMIFS($AK$2:$AK$4995,$C$2:$C$4995,1))/(SUMIFS($Y$2:$Y$4995,$C$2:$C$4995,2)+SUMIFS($Y$2:$Y$4995,$C$2:$C$4995,1))-1 -> 0.03643643677 | DM6: =(SUMIFS($AK$2:$AK$4995,$C$2:$C$4995,2)+SUMIFS($AK$2:$AK$4995,$C$2:$C$4995,1))/(SUMIFS($AJ$2:$AJ$4995,$C$2:$C$4995,2)+SUMIFS($AJ$2:$AJ$4995,$C$2:$C$4995,1))-1 -> -0.06024707724 | DN6: =SUMIFS($AK$2:$AK$4995,$C$2:$C$4995,2)/SUMIFS($Y$2:$Y$4995,$C$2:$C$4995,2)-1 -> 0.04092686435 | DO6: =SUMIFS($AK$2:$AK$4995,$C$2:$C$4995,2)/SUMIFS($AJ$2:$AJ$4995,$C$2:$C$4995,2)-1 -> -0.02955232745 | DP6: =SUMIFS($AK$2:$AK$4995,$C$2:$C$4995,3)/SUMIFS($Y$2:$Y$4995,$C$2:$C$4995,3)-1 -> -0.006941305327 | DQ6: =SUMIFS($AK$2:$AK$4995,$C$2:$C$4995,3)/SUMIFS($AJ$2:$AJ$4995,$C$2:$C$4995,3)-1 -> -0.04771539505
A7: 11001 | B7: 110012 | C7: 2 | D7: 11 | E7: 1 | F7: 001 | G7: BOGOTÁ, D.C. | H7: BOGOTÁ, D.C. | I7: Dep_sec_priv | J7: 116757 | K7: 200598 | L7: 2516465 | M7: 1871772 | N7: 2484982 | O7: 2529632 | P7: 2558838 | Q7: 2570654 | R7: 2569003 | S7: 2584466 | T7: 2606465 | U7: 2644715 | V7: 2680523 | W7: 2711482 | X7: 2738522 | Y7: 2711672 | Z7: 2705235 | AA7: 2759431 | AB7: 2787257 | AC7: 2790649 | AD7: 2818949 | AE7: 2819451 | AF7: 2827642 | AG7: 2864175 | AH7: 2878411 | AI7: 2884728 | AJ7: 2876101 | AK7: 2797895 | AL7: FALSO | AQ7: 5001 | AR7: 50013 | AS7: 3 | AT7: 5 | AU7: 1 | AV7: 001 | AW7: ANTIOQUIA | AX7: MEDELLÍN | AY7: Independiente | AZ7: 7356 | BA7: 12505 | BB7: 200237 | BC7: 159561 | BD7: 193740 | BE7: 195332 | BF7: 197226 | BG7: 197879 | BH7: 198506 | BI7: 199136 | BJ7: 199265 | BK7: 201436 | BL7: 203063 | BM7: 203788 | BN7: 205035 | BO7: 202665 | BP7: 198899 | BQ7: 203018 | BR7: 204731 | BS7: 204167 | BT7: 206008 | BU7: 206394 | BV7: 207432 | BW7: 210002 | BX7: 212132 | BY7: 212711 | BZ7: 212230 | CA7: 205769 | CG7: Dep.Privados | CH7: =IFERROR(SUMIFS(BC$2:BC$600,$AS$2:$AS$600,2)/SUMIFS(BB$2:BB$600,$AS$2:$AS$600,2)-1,"") -> -0.2648305843 | CI7: =IFERROR(SUMIFS(BD$2:BD$600,$AS$2:$AS$600,2)/SUMIFS(BC$2:BC$600,$AS$2:$AS$600,2)-1,"") -> 0.3379425227 | CJ7: 0.02321051766 | CK7: 0.01488673139 | CL7: 0.001444842942 | CM7: 0.002860898527 | CN7: 0.006514266593 | CO7: 0.01035061945 | CP7: 0.01233517004 | CQ7: 0.01264796538 | CR7: 0.006594487945 | CS7: 0.007477157917 | CT7: -0.0144987046 | CU7: -0.004351352156 | CV7: 0.01952094078 | CW7: 0.01200614967 | CX7: -0.0008262831683 | CY7: 0.007683116594 | CZ7: 0.004394044481 | DA7: 0.006063872391 | DB7: 0.01258441071 | DC7: 0.004824034636 | DD7: 0.0007393137676 | DE7: 0.002047924343 | DF7: -0.03189570012 | DK7: =PROPER(Visor!Q7) -> Antioquia | DL7: =(SUMIFS($CA$2:$CA$700,$AS$2:$AS$700,2)+SUMIFS($CA$2:$CA$700,$AS$2:$AS$700,1))/(SUMIFS($BO$2:$BO$700,$AS$2:$AS$700,2)+SUMIFS($BO$2:$BO$700,$AS$2:$AS$700,1))-1 -> 0.02795531355 | DM7: =(SUMIFS($CA$2:$CA$700,$AS$2:$AS$700,2)+SUMIFS($CA$2:$CA$700,$AS$2:$AS$700,1))/(SUMIFS($BZ$2:$BZ$700,$AS$2:$AS$700,2)+SUMIFS($BZ$2:$BZ$700,$AS$2:$AS$700,1))-1 -> -0.0546959944 | DN7: =SUMIFS($CA$2:$CA$700,$AS$2:$AS$700,2)/SUMIFS($BO$2:$BO$700,$AS$2:$AS$700,2)-1 -> 0.0323641892 | DO7: =SUMIFS($CA$2:$CA$700,$AS$2:$AS$700,2)/SUMIFS($BZ$2:$BZ$700,$AS$2:$AS$700,2)-1 -> -0.03189570012 | DP7: =SUMIFS($CA$2:$CA$700,$AS$2:$AS$700,3)/SUMIFS($BO$2:$BO$700,$AS$2:$AS$700,3)-1 -> 0.0307717654 | DQ7: =SUMIFS($CA$2:$CA$700,$AS$2:$AS$700,3)/SUMIFS($BZ$2:$BZ$700,$AS$2:$AS$700,3)-1 -> -0.03308119618
A8: 76001 | B8: 760013 | C8: 3 | D8: 76 | E8: 1 | F8: 001 | G8: VALLE DEL CAUCA | H8: CALI | I8: Independiente | J8: 5006 | K8: 11153 | L8: 138720 | M8: 109717 | N8: 129240 | O8: 132053 | P8: 134274 | Q8: 134917 | R8: 133711 | S8: 134118 | T8: 135391 | U8: 138000 | V8: 139083 | W8: 139930 | X8: 142661 | Y8: 141614 | Z8: 136348 | AA8: 140074 | AB8: 141153 | AC8: 141149 | AD8: 141804 | AE8: 140949 | AF8: 141519 | AG8: 143654 | AH8: 144335 | AI8: 144327 | AJ8: 145823 | AK8: 141045 | AL8: FALSO | AQ8: 5364 | AR8: 53642 | AS8: 2 | AT8: 5 | AU8: 364 | AV8: 364 | AW8: ANTIOQUIA | AX8: JARDÍN | AY8: Dep_sec_priv | AZ8: 78 | BA8: 84 | BB8: 967 | BC8: 868 | BD8: 1051 | BE8: 1022 | BF8: 971 | BG8: 1048 | BH8: 1093 | BI8: 1111 | BJ8: 1098 | BK8: 1148 | BL8: 1099 | BM8: 1199 | BN8: 1217 | BO8: 1177 | BP8: 1188 | BQ8: 1193 | BR8: 1160 | BS8: 1160 | BT8: 1294 | BU8: 1381 | BV8: 1328 | BW8: 1267 | BX8: 1251 | BY8: 1232 | BZ8: 1228 | CA8: 1227 | DK8: =PROPER(Visor!Q8) -> Medellín | DL8: =(SUMIFS($CA$2:$CA$700,$AX$2:$AX$700,Visor!$Q$8,'Cotizantes Mes'!$AS$2:$AS$700,2)+SUMIFS($CA$2:$CA$700,$AX$2:$AX$700,Visor!$Q$8,'Cotizantes Mes'!$AS$2:$AS$700,1))/(SUMIFS($BO$2:$BO$700,$AX$2:$AX$700,Visor!$Q$8,'Cotizantes Mes'!$AS$2:$AS$700,2)+SUMIFS($BO$2:$BO$700,$AX$2:$AX$700,Visor!$Q$8,'Cotizantes Mes'!$AS$2:$AS$700,1))-1 -> 0.02787708711 | DM8: =(SUMIFS($CA$2:$CA$700,$AS$2:$AS$700,2,$AX$2:$AX$700,Visor!$Q$8)+SUMIFS($CA$2:$CA$700,$AS$2:$AS$700,1,$AX$2:$AX$700,Visor!$Q$8))/(SUMIFS($BZ$2:$BZ$700,$AS$2:$AS$700,2,$AX$2:$AX$700,Visor!$Q$8)+SUMIFS($BZ$2:$BZ$700,$AS$2:$AS$700,1,$AX$2:$AX$700,Visor!$Q$8))-1 -> -0.0566496623 | DN8: =SUMIFS($CA$2:$CA$700,$AX$2:$AX$700,Visor!$Q$8,'Cotizantes Mes'!$AS$2:$AS$700,2)/SUMIFS($BO$2:$BO$700,$AX$2:$AX$700,Visor!$Q$8,'Cotizantes Mes'!$AS$2:$AS$700,2)-1 -> 0.03078892472 | DO8: =SUMIFS($CA$2:$CA$700,$AS$2:$AS$700,2,$AX$2:$AX$700,Visor!$Q$8)/SUMIFS($BZ$2:$BZ$700,$AS$2:$AS$700,2,$AX$2:$AX$700,Visor!$Q$8)-1 -> -0.03172525233 | DP8: =SUMIFS($CA$2:$CA$700,$AX$2:$AX$700,Visor!$Q$8,'Cotizantes Mes'!$AS$2:$AS$700,3)/SUMIFS($BO$2:$BO$700,$AX$2:$AX$700,Visor!$Q$8,'Cotizantes Mes'!$AS$2:$AS$700,3)-1 -> 0.01531591543 | DQ8: =SUMIFS($CA$2:$CA$700,$AS$2:$AS$700,3,$AX$2:$AX$700,Visor!$Q$8)/SUMIFS($BZ$2:$BZ$700,$AS$2:$AS$700,3,$AX$2:$AX$700,Visor!$Q$8)-1 -> -0.03044338689
A9: 11001 | B9: 110013 | C9: 3 | D9: 11 | E9: 1 | F9: 001 | G9: BOGOTÁ, D.C. | H9: BOGOTÁ, D.C. | I9: Independiente | J9: 38929 | K9: 52659 | L9: 709270 | M9: 499551 | N9: 681685 | O9: 685943 | P9: 693856 | Q9: 694694 | R9: 694743 | S9: 698276 | T9: 700778 | U9: 703815 | V9: 709654 | W9: 712471 | X9: 713982 | Y9: 706926 | Z9: 697375 | AA9: 706092 | AB9: 710147 | AC9: 706768 | AD9: 711288 | AE9: 708933 | AF9: 715861 | AG9: 718594 | AH9: 720504 | AI9: 716979 | AJ9: 715574 | AK9: 687950 | AL9: FALSO | AQ9: 5631 | AR9: 56313 | AS9: 3 | AT9: 5 | AU9: 631 | AV9: 631 | AW9: ANTIOQUIA | AX9: SABANETA | AY9: Independiente | AZ9: 372 | BA9: 687 | BB9: 6414 | BC9: 6084 | BD9: 6067 | BE9: 6338 | BF9: 6470 | BG9: 6480 | BH9: 6571 | BI9: 6648 | BJ9: 6698 | BK9: 6806 | BL9: 6910 | BM9: 6922 | BN9: 7031 | BO9: 7051 | BP9: 7192 | BQ9: 7546 | BR9: 7593 | BS9: 7526 | BT9: 7631 | BU9: 7639 | BV9: 7865 | BW9: 8080 | BX9: 8139 | BY9: 8319 | BZ9: 8230 | CA9: 7992
A10: 76001 | B10: 760011 | C10: 1 | D10: 76 | E10: 1 | F10: 001 | G10: VALLE DEL CAUCA | H10: CALI | I10: Dep_No_priv | J10: 2981 | K10: 16220 | L10: 92563 | M10: 77235 | N10: 71416 | O10: 84439 | P10: 85852 | Q10: 87988 | R10: 86759 | S10: 81854 | T10: 76823 | U10: 96131 | V10: 98910 | W10: 101445 | X10: 103064 | Y10: 86152 | Z10: 79117 | AA10: 89918 | AB10: 97011 | AC10: 98047 | AD10: 107599 | AE10: 101108 | AF10: 94637 | AG10: 107294 | AH10: 110356 | AI10: 112403 | AJ10: 113165 | AK10: 88083 | AL10: FALSO | AQ10: 5318 | AR10: 53183 | AS10: 3 | AT10: 5 | AU10: 318 | AV10: 318 | AW10: ANTIOQUIA | AX10: GUARNE | AY10: Independiente | AZ10: 45 | BA10: 219 | BB10: 1641 | BC10: 1572 | BD10: 1465 | BE10: 1537 | BF10: 1610 | BG10: 1641 | BH10: 1676 | BI10: 1711 | BJ10: 1752 | BK10: 1798 | BL10: 1851 | BM10: 1872 | BN10: 1899 | BO10: 1851 | BP10: 1793 | BQ10: 1938 | BR10: 1951 | BS10: 1941 | BT10: 1952 | BU10: 1953 | BV10: 1994 | BW10: 2025 | BX10: 2058 | BY10: 2057 | BZ10: 2082 | CA10: 2001
A11: 73449 | B11: 734493 | C11: 3 | D11: 73 | E11: 449 | F11: 449 | G11: TOLIMA | H11: MELGAR | I11: Independiente | J11: 92 | K11: 245 | L11: 1295 | M11: 1122 | N11: 1100 | O11: 1317 | P11: 1347 | Q11: 1352 | R11: 1370 | S11: 1339 | T11: 1375 | U11: 1394 | V11: 1364 | W11: 1370 | X11: 1419 | Y11: 1397 | Z11: 1368 | AA11: 1502 | AB11: 1430 | AC11: 1406 | AD11: 1422 | AE11: 1411 | AF11: 1368 | AG11: 1401 | AH11: 1399 | AI11: 1400 | AJ11: 1404 | AK11: 1369 | AL11: FALSO | AQ11: 5266 | AR11: 52663 | AS11: 3 | AT11: 5 | AU11: 266 | AV11: 266 | AW11: ANTIOQUIA | AX11: ENVIGADO | AY11: Independiente | AZ11: 562 | BA11: 896 | BB11: 15145 | BC11: 14489 | BD11: 15057 | BE11: 15505 | BF11: 15791 | BG11: 15872 | BH11: 15934 | BI11: 16158 | BJ11: 16228 | BK11: 16404 | BL11: 16604 | BM11: 16799 | BN11: 16979 | BO11: 16890 | BP11: 16853 | BQ11: 17248 | BR11: 17419 | BS11: 17506 | BT11: 17688 | BU11: 17949 | BV11: 18150 | BW11: 18668 | BX11: 18850 | BY11: 18829 | BZ11: 18881 | CA11: 18467
A12: 5318 | B12: 53182 | C12: 2 | D12: 5 | E12: 318 | F12: 318 | G12: ANTIOQUIA | H12: GUARNE | I12: Dep_sec_priv | J12: 431 | K12: 939 | L12: 7753 | M12: 7032 | N12: 7967 | O12: 8134 | P12: 8353 | Q12: 8560 | R12: 8665 | S12: 8687 | T12: 8825 | U12: 8945 | V12: 8797 | W12: 8969 | X12: 9046 | Y12: 9041 | Z12: 9069 | AA12: 9242 | AB12: 9488 | AC12: 9563 | AD12: 9695 | AE12: 9757 | AF12: 9959 | AG12: 10166 | AH12: 10288 | AI12: 10463 | AJ12: 10422 | AK12: 10316 | AL12: FALSO | AQ12: 5607 | AR12: 56073 | AS12: 3 | AT12: 5 | AU12: 607 | AV12: 607 | AW12: ANTIOQUIA | AX12: RETIRO | AY12: Independiente | AZ12: 32 | BA12: 90 | BB12: 1286 | BC12: 1362 | BD12: 1263 | BE12: 1314 | BF12: 1340 | BG12: 1365 | BH12: 1397 | BI12: 1420 | BJ12: 1452 | BK12: 1468 | BL12: 1451 | BM12: 1470 | BN12: 1496 | BO12: 1509 | BP12: 1514 | BQ12: 1570 | BR12: 1584 | BS12: 1572 | BT12: 1580 | BU12: 1586 | BV12: 1614 | BW12: 1628 | BX12: 1649 | BY12: 1642 | BZ12: 1632 | CA12: 1625 | CH12: ="Variaciones de "&PROPER(Visor!Q8) -> Variaciones de Medellín
A13: 5001 | B13: 50012 | C13: 2 | D13: 5 | E13: 1 | F13: 001 | G13: ANTIOQUIA | H13: MEDELLÍN | I13: Dep_sec_priv | J13: 45861 | K13: 99918 | L13: 1073647 | M13: 793263 | N13: 1055879 | O13: 1078004 | P13: 1092322 | Q13: 1091227 | R13: 1093979 | S13: 1101166 | T13: 1113952 | U13: 1129031 | V13: 1142692 | W13: 1150199 | X13: 1161003 | Y13: 1145217 | Z13: 1138381 | AA13: 1159426 | AB13: 1171685 | AC13: 1170824 | AD13: 1178874 | AE13: 1183469 | AF13: 1193298 | AG13: 1207172 | AH13: 1212510 | AI13: 1216027 | AJ13: 1219155 | AK13: 1180477 | AL13: FALSO | AQ13: 5579 | AR13: 55793 | AS13: 3 | AT13: 5 | AU13: 579 | AV13: 579 | AW13: ANTIOQUIA | AX13: PUERTO BERRÍO | AY13: Independiente | AZ13: 54 | BA13: 322 | BB13: 1057 | BC13: 905 | BD13: 764 | BE13: 794 | BF13: 861 | BG13: 936 | BH13: 982 | BI13: 973 | BJ13: 1017 | BK13: 1034 | BL13: 1051 | BM13: 986 | BN13: 1119 | BO13: 1078 | BP13: 1006 | BQ13: 1055 | BR13: 1043 | BS13: 1030 | BT13: 982 | BU13: 987 | BV13: 1047 | BW13: 1038 | BX13: 1016 | BY13: 1036 | BZ13: 1200 | CA13: 1103 | CH13: =CH4 -> 2020-12-01 | CI13: =CI4 -> 2021-01-01 | CJ13: 2021-02-01 | CK13: 2021-03-01 | CL13: 2021-04-01 | CM13: 2021-05-01 | CN13: 2021-06-01 | CO13: 2021-07-01 | CP13: 2021-08-01 | CQ13: 2021-09-01 | CR13: 2021-10-01 | CS13: 2021-11-01 | CT13: 2021-12-01 | CU13: 2022-01-01 | CV13: 2022-02-01 | CW13: 2022-03-01 | CX13: 2022-04-01 | CY13: 2022-05-01 | CZ13: 2022-06-01 | DA13: 2022-07-01 | DB13: 2022-08-01 | DC13: 2022-09-01 | DD13: 2022-10-01 | DE13: 2022-11-01 | DF13: 2022-12-01
A14: 5400 | B14: 54002 | C14: 2 | D14: 5 | E14: 400 | F14: 400 | G14: ANTIOQUIA | H14: LA UNIÓN | I14: Dep_sec_priv | J14: 72 | K14: 132 | L14: 1866 | M14: 1479 | N14: 1824 | O14: 1891 | P14: 1923 | Q14: 1944 | R14: 1863 | S14: 1884 | T14: 1911 | U14: 1933 | V14: 1951 | W14: 2025 | X14: 2079 | Y14: 2105 | Z14: 2199 | AA14: 2199 | AB14: 2217 | AC14: 2210 | AD14: 2222 | AE14: 2217 | AF14: 2341 | AG14: 2377 | AH14: 2404 | AI14: 2451 | AJ14: 2416 | AK14: 2335 | AL14: FALSO | AQ14: 5615 | AR14: 56153 | AS14: 3 | AT14: 5 | AU14: 615 | AV14: 615 | AW14: ANTIOQUIA | AX14: RIONEGRO | AY14: Independiente | AZ14: 280 | BA14: 611 | BB14: 9736 | BC14: 8472 | BD14: 9462 | BE14: 9542 | BF14: 9803 | BG14: 9980 | BH14: 10018 | BI14: 10095 | BJ14: 10183 | BK14: 10322 | BL14: 10369 | BM14: 10469 | BN14: 10536 | BO14: 10370 | BP14: 10323 | BQ14: 10481 | BR14: 10547 | BS14: 10642 | BT14: 10636 | BU14: 10655 | BV14: 10645 | BW14: 10909 | BX14: 10973 | BY14: 10967 | BZ14: 10973 | CA14: 10608 | CG14: Independientes | CH14: =IFERROR(SUMIFS(BC$2:BC$500,$AS$2:$AS$500,3,$AX$2:$AX$500,Visor!$Q$8)/SUMIFS(BB$2:BB$500,$AS$2:$AS$500,3,$AX$2:$AX$500,Visor!$Q$8)-1,"") -> -0.20313928 | CI14: =IFERROR(SUMIFS(BD$2:BD$500,$AS$2:$AS$500,3,$AX$2:$AX$500,Visor!$Q$8)/SUMIFS(BC$2:BC$500,$AS$2:$AS$500,3,$AX$2:$AX$500,Visor!$Q$8)-1,"") -> 0.214206479 | CJ14: =IFERROR(SUMIFS(BE$2:BE$500,$AS$2:$AS$500,3,$AX$2:$AX$500,Visor!$Q$8)/SUMIFS(BD$2:BD$500,$AS$2:$AS$500,3,$AX$2:$AX$500,Visor!$Q$8)-1,"") -> 0.008217198307 | CK14: =IFERROR(SUMIFS(BF$2:BF$500,$AS$2:$AS$500,3,$AX$2:$AX$500,Visor!$Q$8)/SUMIFS(BE$2:BE$500,$AS$2:$AS$500,3,$AX$2:$AX$500,Visor!$Q$8)-1,"") -> 0.00969631192 | CL14: =IFERROR(SUMIFS(BG$2:BG$500,$AS$2:$AS$500,3,$AX$2:$AX$500,Visor!$Q$8)/SUMIFS(BF$2:BF$500,$AS$2:$AS$500,3,$AX$2:$AX$500,Visor!$Q$8)-1,"") -> 0.003310922495 | CM14: =IFERROR(SUMIFS(BH$2:BH$500,$AS$2:$AS$500,3,$AX$2:$AX$500,Visor!$Q$8)/SUMIFS(BG$2:BG$500,$AS$2:$AS$500,3,$AX$2:$AX$500,Visor!$Q$8)-1,"") -> 0.003168603035 | CN14: =IFERROR(SUMIFS(BI$2:BI$500,$AS$2:$AS$500,3,$AX$2:$AX$500,Visor!$Q$8)/SUMIFS(BH$2:BH$500,$AS$2:$AS$500,3,$AX$2:$AX$500,Visor!$Q$8)-1,"") -> 0.003173707596 | CO14: =IFERROR(SUMIFS(BJ$2:BJ$500,$AS$2:$AS$500,3,$AX$2:$AX$500,Visor!$Q$8)/SUMIFS(BI$2:BI$500,$AS$2:$AS$500,3,$AX$2:$AX$500,Visor!$Q$8)-1,"") -> 0.0006477984895 | CP14: =IFERROR(SUMIFS(BK$2:BK$500,$AS$2:$AS$500,3,$AX$2:$AX$500,Visor!$Q$8)/SUMIFS(BJ$2:BJ$500,$AS$2:$AS$500,3,$AX$2:$AX$500,Visor!$Q$8)-1,"") -> 0.01089503927 | CQ14: =IFERROR(SUMIFS(BL$2:BL$500,$AS$2:$AS$500,3,$AX$2:$AX$500,Visor!$Q$8)/SUMIFS(BK$2:BK$500,$AS$2:$AS$500,3,$AX$2:$AX$500,Visor!$Q$8)-1,"") -> 0.008077007089 | CR14: =IFERROR(SUMIFS(BM$2:BM$500,$AS$2:$AS$500,3,$AX$2:$AX$500,Visor!$Q$8)/SUMIFS(BL$2:BL$500,$AS$2:$AS$500,3,$AX$2:$AX$500,Visor!$Q$8)-1,"") -> 0.003570320541 | CS14: =IFERROR(SUMIFS(BN$2:BN$500,$AS$2:$AS$500,3,$AX$2:$AX$500,Visor!$Q$8)/SUMIFS(BM$2:BM$500,$AS$2:$AS$500,3,$AX$2:$AX$500,Visor!$Q$8)-1,"") -> 0.006119104167 | CT14: =IFERROR(SUMIFS(BO$2:BO$500,$AS$2:$AS$500,3,$AX$2:$AX$500,Visor!$Q$8)/SUMIFS(BN$2:BN$500,$AS$2:$AS$500,3,$AX$2:$AX$500,Visor!$Q$8)-1,"") -> -0.01155900212 | CU14: =IFERROR(SUMIFS(BP$2:BP$500,$AS$2:$AS$500,3,$AX$2:$AX$500,Visor!$Q$8)/SUMIFS(BO$2:BO$500,$AS$2:$AS$500,3,$AX$2:$AX$500,Visor!$Q$8)-1,"") -> -0.01858238966 | CV14: =IFERROR(SUMIFS(BQ$2:BQ$500,$AS$2:$AS$500,3,$AX$2:$AX$500,Visor!$Q$8)/SUMIFS(BP$2:BP$500,$AS$2:$AS$500,3,$AX$2:$AX$500,Visor!$Q$8)-1,"") -> 0.02070900306 | CW14: =IFERROR(SUMIFS(BR$2:BR$500,$AS$2:$AS$500,3,$AX$2:$AX$500,Visor!$Q$8)/SUMIFS(BQ$2:BQ$500,$AS$2:$AS$500,3,$AX$2:$AX$500,Visor!$Q$8)-1,"") -> 0.008437675477 | CX14: =IFERROR(SUMIFS(BS$2:BS$500,$AS$2:$AS$500,3,$AX$2:$AX$500,Visor!$Q$8)/SUMIFS(BR$2:BR$500,$AS$2:$AS$500,3,$AX$2:$AX$500,Visor!$Q$8)-1,"") -> -0.002754834392 | CY14: =IFERROR(SUMIFS(BT$2:BT$500,$AS$2:$AS$500,3,$AX$2:$AX$500,Visor!$Q$8)/SUMIFS(BS$2:BS$500,$AS$2:$AS$500,3,$AX$2:$AX$500,Visor!$Q$8)-1,"") -> 0.009017128135 | CZ14: =IFERROR(SUMIFS(BU$2:BU$500,$AS$2:$AS$500,3,$AX$2:$AX$500,Visor!$Q$8)/SUMIFS(BT$2:BT$500,$AS$2:$AS$500,3,$AX$2:$AX$500,Visor!$Q$8)-1,"") -> 0.001873713642 | DA14: =IFERROR(SUMIFS(BV$2:BV$500,$AS$2:$AS$500,3,$AX$2:$AX$500,Visor!$Q$8)/SUMIFS(BU$2:BU$500,$AS$2:$AS$500,3,$AX$2:$AX$500,Visor!$Q$8)-1,"") -> 0.005029215966 | DB14: =IFERROR(SUMIFS(BW$2:BW$500,$AS$2:$AS$500,3,$AX$2:$AX$500,Visor!$Q$8)/SUMIFS(BV$2:BV$500,$AS$2:$AS$500,3,$AX$2:$AX$500,Visor!$Q$8)-1,"") -> 0.01238960238 | DC14: =IFERROR(SUMIFS(BX$2:BX$500,$AS$2:$AS$500,3,$AX$2:$AX$500,Visor!$Q$8)/SUMIFS(BW$2:BW$500,$AS$2:$AS$500,3,$AX$2:$AX$500,Visor!$Q$8)-1,"") -> 0.01014276055 | DD14: =IFERROR(SUMIFS(BY$2:BY$500,$AS$2:$AS$500,3,$AX$2:$AX$500,Visor!$Q$8)/SUMIFS(BX$2:BX$500,$AS$2:$AS$500,3,$AX$2:$AX$500,Visor!$Q$8)-1,"") -> 0.002729432617 | DE14: =IFERROR(SUMIFS(BZ$2:BZ$500,$AS$2:$AS$500,3,$AX$2:$AX$500,Visor!$Q$8)/SUMIFS(BY$2:BY$500,$AS$2:$AS$500,3,$AX$2:$AX$500,Visor!$Q$8)-1,"") -> -0.00226128409 | DF14: =IFERROR(SUMIFS(CA$2:CA$500,$AS$2:$AS$500,3,$AX$2:$AX$500,Visor!$Q$8)/SUMIFS(BZ$2:BZ$500,$AS$2:$AS$500,3,$AX$2:$AX$500,Visor!$Q$8)-1,"") -> -0.03044338689
A15: 68001 | B15: 680013 | C15: 3 | D15: 68 | E15: 1 | F15: 001 | G15: SANTANDER | H15: BUCARAMANGA | I15: Independiente | J15: 2235 | K15: 5940 | L15: 61989 | M15: 47332 | N15: 58963 | O15: 59807 | P15: 60683 | Q15: 60893 | R15: 61069 | S15: 61439 | T15: 61606 | U15: 61587 | V15: 62195 | W15: 62639 | X15: 63158 | Y15: 62598 | Z15: 61709 | AA15: 63011 | AB15: 63156 | AC15: 62690 | AD15: 63036 | AE15: 62805 | AF15: 62379 | AG15: 62392 | AH15: 63026 | AI15: 63482 | AJ15: 63361 | AK15: 60860 | AL15: FALSO | AQ15: 5079 | AR15: 50792 | AS15: 2 | AT15: 5 | AU15: 79 | AV15: 079 | AW15: ANTIOQUIA | AX15: BARBOSA | AY15: Dep_sec_priv | AZ15: 114 | BA15: 420 | BB15: 4377 | BC15: 2809 | BD15: 4204 | BE15: 4263 | BF15: 4120 | BG15: 4002 | BH15: 3931 | BI15: 3932 | BJ15: 4031 | BK15: 4022 | BL15: 3864 | BM15: 3939 | BN15: 4148 | BO15: 3990 | BP15: 3847 | BQ15: 3864 | BR15: 3907 | BS15: 3953 | BT15: 4063 | BU15: 3999 | BV15: 4093 | BW15: 4136 | BX15: 4144 | BY15: 4168 | BZ15: 4039 | CA15: 4002 | CG15: Dependientes | CH15: =IFERROR((SUMIFS(BC$2:BC$500,$AS$2:$AS$500,2,$AX$2:$AX$500,Visor!$Q$8)+SUMIFS(BC$2:BC$500,$AS$2:$AS$500,1,$AX$2:$AX$500,Visor!$Q$8))/(SUMIFS(BB$2:BB$500,$AS$2:$AS$500,2,$AX$2:$AX$500,Visor!$Q$8)+SUMIFS(BB$2:BB$500,$AS$2:$AS$500,1,$AX$2:$AX$500,Visor!$Q$8))-1,"") -> -0.2536579238 | CI15: =IFERROR((SUMIFS(BD$2:BD$500,$AS$2:$AS$500,2,$AX$2:$AX$500,Visor!$Q$8)+SUMIFS(BD$2:BD$500,$AS$2:$AS$500,1,$AX$2:$AX$500,Visor!$Q$8))/(SUMIFS(BC$2:BC$500,$AS$2:$AS$500,2,$AX$2:$AX$500,Visor!$Q$8)+SUMIFS(BC$2:BC$500,$AS$2:$AS$500,1,$AX$2:$AX$500,Visor!$Q$8))-1,"") -> 0.3025828242 | CJ15: =IFERROR((SUMIFS(BE$2:BE$500,$AS$2:$AS$500,2,$AX$2:$AX$500,Visor!$Q$8)+SUMIFS(BE$2:BE$500,$AS$2:$AS$500,1,$AX$2:$AX$500,Visor!$Q$8))/(SUMIFS(BD$2:BD$500,$AS$2:$AS$500,2,$AX$2:$AX$500,Visor!$Q$8)+SUMIFS(BD$2:BD$500,$AS$2:$AS$500,1,$AX$2:$AX$500,Visor!$Q$8))-1,"") -> 0.0315300574 | CK15: =IFERROR((SUMIFS(BF$2:BF$500,$AS$2:$AS$500,2,$AX$2:$AX$500,Visor!$Q$8)+SUMIFS(BF$2:BF$500,$AS$2:$AS$500,1,$AX$2:$AX$500,Visor!$Q$8))/(SUMIFS(BE$2:BE$500,$AS$2:$AS$500,2,$AX$2:$AX$500,Visor!$Q$8)+SUMIFS(BE$2:BE$500,$AS$2:$AS$500,1,$AX$2:$AX$500,Visor!$Q$8))-1,"") -> 0.01849678068 | CL15: =IFERROR((SUMIFS(BG$2:BG$500,$AS$2:$AS$500,2,$AX$2:$AX$500,Visor!$Q$8)+SUMIFS(BG$2:BG$500,$AS$2:$AS$500,1,$AX$2:$AX$500,Visor!$Q$8))/(SUMIFS(BF$2:BF$500,$AS$2:$AS$500,2,$AX$2:$AX$500,Visor!$Q$8)+SUMIFS(BF$2:BF$500,$AS$2:$AS$500,1,$AX$2:$AX$500,Visor!$Q$8))-1,"") -> -0.001483986444 | CM15: =IFERROR((SUMIFS(BH$2:BH$500,$AS$2:$AS$500,2,$AX$2:$AX$500,Visor!$Q$8)+SUMIFS(BH$2:BH$500,$AS$2:$AS$500,1,$AX$2:$AX$500,Visor!$Q$8))/(SUMIFS(BG$2:BG$500,$AS$2:$AS$500,2,$AX$2:$AX$500,Visor!$Q$8)+SUMIFS(BG$2:BG$500,$AS$2:$AS$500,1,$AX$2:$AX$500,Visor!$Q$8))-1,"") -> 0.00500649909 | CN15: =IFERROR((SUMIFS(BI$2:BI$500,$AS$2:$AS$500,2,$AX$2:$AX$500,Visor!$Q$8)+SUMIFS(BI$2:BI$500,$AS$2:$AS$500,1,$AX$2:$AX$500,Visor!$Q$8))/(SUMIFS(BH$2:BH$500,$AS$2:$AS$500,2,$AX$2:$AX$500,Visor!$Q$8)+SUMIFS(BH$2:BH$500,$AS$2:$AS$500,1,$AX$2:$AX$500,Visor!$Q$8))-1,"") -> 0.005583261835 | CO15: =IFERROR((SUMIFS(BJ$2:BJ$500,$AS$2:$AS$500,2,$AX$2:$AX$500,Visor!$Q$8)+SUMIFS(BJ$2:BJ$500,$AS$2:$AS$500,1,$AX$2:$AX$500,Visor!$Q$8))/(SUMIFS(BI$2:BI$500,$AS$2:$AS$500,2,$AX$2:$AX$500,Visor!$Q$8)+SUMIFS(BI$2:BI$500,$AS$2:$AS$500,1,$AX$2:$AX$500,Visor!$Q$8))-1,"") -> 0.007288778574 | CP15: =IFERROR((SUMIFS(BK$2:BK$500,$AS$2:$AS$500,2,$AX$2:$AX$500,Visor!$Q$8)+SUMIFS(BK$2:BK$500,$AS$2:$AS$500,1,$AX$2:$AX$500,Visor!$Q$8))/(SUMIFS(BJ$2:BJ$500,$AS$2:$AS$500,2,$AX$2:$AX$500,Visor!$Q$8)+SUMIFS(BJ$2:BJ$500,$AS$2:$AS$500,1,$AX$2:$AX$500,Visor!$Q$8))-1,"") -> 0.02119186773 | CQ15: =IFERROR((SUMIFS(BL$2:BL$500,$AS$2:$AS$500,2,$AX$2:$AX$500,Visor!$Q$8)+SUMIFS(BL$2:BL$500,$AS$2:$AS$500,1,$AX$2:$AX$500,Visor!$Q$8))/(SUMIFS(BK$2:BK$500,$AS$2:$AS$500,2,$AX$2:$AX$500,Visor!$Q$8)+SUMIFS(BK$2:BK$500,$AS$2:$AS$500,1,$AX$2:$AX$500,Visor!$Q$8))-1,"") -> 0.01611999741 | CR15: =IFERROR((SUMIFS(BM$2:BM$500,$AS$2:$AS$500,2,$AX$2:$AX$500,Visor!$Q$8)+SUMIFS(BM$2:BM$500,$AS$2:$AS$500,1,$AX$2:$AX$500,Visor!$Q$8))/(SUMIFS(BL$2:BL$500,$AS$2:$AS$500,2,$AX$2:$AX$500,Visor!$Q$8)+SUMIFS(BL$2:BL$500,$AS$2:$AS$500,1,$AX$2:$AX$500,Visor!$Q$8))-1,"") -> 0.007471728289 | CS15: =IFERROR((SUMIFS(BN$2:BN$500,$AS$2:$AS$500,2,$AX$2:$AX$500,Visor!$Q$8)+SUMIFS(BN$2:BN$500,$AS$2:$AS$500,1,$AX$2:$AX$500,Visor!$Q$8))/(SUMIFS(BM$2:BM$500,$AS$2:$AS$500,2,$AX$2:$AX$500,Visor!$Q$8)+SUMIFS(BM$2:BM$500,$AS$2:$AS$500,1,$AX$2:$AX$500,Visor!$Q$8))-1,"") -> 0.003929512306 | CT15: =IFERROR((SUMIFS(BO$2:BO$500,$AS$2:$AS$500,2,$AX$2:$AX$500,Visor!$Q$8)+SUMIFS(BO$2:BO$500,$AS$2:$AS$500,1,$AX$2:$AX$500,Visor!$Q$8))/(SUMIFS(BN$2:BN$500,$AS$2:$AS$500,2,$AX$2:$AX$500,Visor!$Q$8)+SUMIFS(BN$2:BN$500,$AS$2:$AS$500,1,$AX$2:$AX$500,Visor!$Q$8))-1,"") -> -0.03208494894 | CU15: =IFERROR((SUMIFS(BP$2:BP$500,$AS$2:$AS$500,2,$AX$2:$AX$500,Visor!$Q$8)+SUMIFS(BP$2:BP$500,$AS$2:$AS$500,1,$AX$2:$AX$500,Visor!$Q$8))/(SUMIFS(BO$2:BO$500,$AS$2:$AS$500,2,$AX$2:$AX$500,Visor!$Q$8)+SUMIFS(BO$2:BO$500,$AS$2:$AS$500,1,$AX$2:$AX$500,Visor!$Q$8))-1,"") -> -0.008170523616 | CV15: =IFERROR((SUMIFS(BQ$2:BQ$500,$AS$2:$AS$500,2,$AX$2:$AX$500,Visor!$Q$8)+SUMIFS(BQ$2:BQ$500,$AS$2:$AS$500,1,$AX$2:$AX$500,Visor!$Q$8))/(SUMIFS(BP$2:BP$500,$AS$2:$AS$500,2,$AX$2:$AX$500,Visor!$Q$8)+SUMIFS(BP$2:BP$500,$AS$2:$AS$500,1,$AX$2:$AX$500,Visor!$Q$8))-1,"") -> 0.02957446062 | CW15: =IFERROR((SUMIFS(BR$2:BR$500,$AS$2:$AS$500,2,$AX$2:$AX$500,Visor!$Q$8)+SUMIFS(BR$2:BR$500,$AS$2:$AS$500,1,$AX$2:$AX$500,Visor!$Q$8))/(SUMIFS(BQ$2:BQ$500,$AS$2:$AS$500,2,$AX$2:$AX$500,Visor!$Q$8)+SUMIFS(BQ$2:BQ$500,$AS$2:$AS$500,1,$AX$2:$AX$500,Visor!$Q$8))-1,"") -> 0.02004958426 | CX15: =IFERROR((SUMIFS(BS$2:BS$500,$AS$2:$AS$500,2,$AX$2:$AX$500,Visor!$Q$8)+SUMIFS(BS$2:BS$500,$AS$2:$AS$500,1,$AX$2:$AX$500,Visor!$Q$8))/(SUMIFS(BR$2:BR$500,$AS$2:$AS$500,2,$AX$2:$AX$500,Visor!$Q$8)+SUMIFS(BR$2:BR$500,$AS$2:$AS$500,1,$AX$2:$AX$500,Visor!$Q$8))-1,"") -> -0.004611456908 | CY15: =IFERROR((SUMIFS(BT$2:BT$500,$AS$2:$AS$500,2,$AX$2:$AX$500,Visor!$Q$8)+SUMIFS(BT$2:BT$500,$AS$2:$AS$500,1,$AX$2:$AX$500,Visor!$Q$8))/(SUMIFS(BS$2:BS$500,$AS$2:$AS$500,2,$AX$2:$AX$500,Visor!$Q$8)+SUMIFS(BS$2:BS$500,$AS$2:$AS$500,1,$AX$2:$AX$500,Visor!$Q$8))-1,"") -> 0.01076067787 | CZ15: =IFERROR((SUMIFS(BU$2:BU$500,$AS$2:$AS$500,2,$AX$2:$AX$500,Visor!$Q$8)+SUMIFS(BU$2:BU$500,$AS$2:$AS$500,1,$AX$2:$AX$500,Visor!$Q$8))/(SUMIFS(BT$2:BT$500,$AS$2:$AS$500,2,$AX$2:$AX$500,Visor!$Q$8)+SUMIFS(BT$2:BT$500,$AS$2:$AS$500,1,$AX$2:$AX$500,Visor!$Q$8))-1,"") -> 0.001547023309 | DA15: =IFERROR((SUMIFS(BV$2:BV$500,$AS$2:$AS$500,2,$AX$2:$AX$500,Visor!$Q$8)+SUMIFS(BV$2:BV$500,$AS$2:$AS$500,1,$AX$2:$AX$500,Visor!$Q$8))/(SUMIFS(BU$2:BU$500,$AS$2:$AS$500,2,$AX$2:$AX$500,Visor!$Q$8)+SUMIFS(BU$2:BU$500,$AS$2:$AS$500,1,$AX$2:$AX$500,Visor!$Q$8))-1,"") -> 0.003008203656 | DB15: =IFERROR((SUMIFS(BW$2:BW$500,$AS$2:$AS$500,2,$AX$2:$AX$500,Visor!$Q$8)+SUMIFS(BW$2:BW$500,$AS$2:$AS$500,1,$AX$2:$AX$500,Visor!$Q$8))/(SUMIFS(BV$2:BV$500,$AS$2:$AS$500,2,$AX$2:$AX$500,Visor!$Q$8)+SUMIFS(BV$2:BV$500,$AS$2:$AS$500,1,$AX$2:$AX$500,Visor!$Q$8))-1,"") -> 0.02293176238 | DC15: =IFERROR((SUMIFS(BX$2:BX$500,$AS$2:$AS$500,2,$AX$2:$AX$500,Visor!$Q$8)+SUMIFS(BX$2:BX$500,$AS$2:$AS$500,1,$AX$2:$AX$500,Visor!$Q$8))/(SUMIFS(BW$2:BW$500,$AS$2:$AS$500,2,$AX$2:$AX$500,Visor!$Q$8)+SUMIFS(BW$2:BW$500,$AS$2:$AS$500,1,$AX$2:$AX$500,Visor!$Q$8))-1,"") -> 0.007063391678 | DD15: =IFERROR((SUMIFS(BY$2:BY$500,$AS$2:$AS$500,2,$AX$2:$AX$500,Visor!$Q$8)+SUMIFS(BY$2:BY$500,$AS$2:$AS$500,1,$AX$2:$AX$500,Visor!$Q$8))/(SUMIFS(BX$2:BX$500,$AS$2:$AS$500,2,$AX$2:$AX$500,Visor!$Q$8)+SUMIFS(BX$2:BX$500,$AS$2:$AS$500,1,$AX$2:$AX$500,Visor!$Q$8))-1,"") -> 0.003468410929 | DE15: =IFERROR((SUMIFS(BZ$2:BZ$500,$AS$2:$AS$500,2,$AX$2:$AX$500,Visor!$Q$8)+SUMIFS(BZ$2:BZ$500,$AS$2:$AS$500,1,$AX$2:$AX$500,Visor!$Q$8))/(SUMIFS(BY$2:BY$500,$AS$2:$AS$500,2,$AX$2:$AX$500,Visor!$Q$8)+SUMIFS(BY$2:BY$500,$AS$2:$AS$500,1,$AX$2:$AX$500,Visor!$Q$8))-1,"") -> 0.001216819977 | DF15: =IFERROR((SUMIFS(CA$2:CA$500,$AS$2:$AS$500,2,$AX$2:$AX$500,Visor!$Q$8)+SUMIFS(CA$2:CA$500,$AS$2:$AS$500,1,$AX$2:$AX$500,Visor!$Q$8))/(SUMIFS(BZ$2:BZ$500,$AS$2:$AS$500,2,$AX$2:$AX$500,Visor!$Q$8)+SUMIFS(BZ$2:BZ$500,$AS$2:$AS$500,1,$AX$2:$AX$500,Visor!$Q$8))-1,"") -> -0.0566496623
A16: 5631 | B16: 56312 | C16: 2 | D16: 5 | E16: 631 | F16: 631 | G16: ANTIOQUIA | H16: SABANETA | I16: Dep_sec_priv | J16: 805 | K16: 2279 | L16: 22132 | M16: 17524 | N16: 21782 | O16: 22128 | P16: 22488 | Q16: 22450 | R16: 22381 | S16: 22265 | T16: 22667 | U16: 23060 | V16: 23675 | W16: 24134 | X16: 24237 | Y16: 23853 | Z16: 23825 | AA16: 24500 | AB16: 24591 | AC16: 24598 | AD16: 24852 | AE16: 24756 | AF16: 24721 | AG16: 24990 | AH16: 24979 | AI16: 24933 | AJ16: 24808 | AK16: 24223 | AL16: FALSO | AQ16: 5088 | AR16: 50883 | AS16: 3 | AT16: 5 | AU16: 88 | AV16: 088 | AW16: ANTIOQUIA | AX16: BELLO | AY16: Independiente | AZ16: 512 | BA16: 1386 | BB16: 11717 | BC16: 10760 | BD16: 10714 | BE16: 11192 | BF16: 11622 | BG16: 11794 | BH16: 12056 | BI16: 12209 | BJ16: 12315 | BK16: 12482 | BL16: 12630 | BM16: 12790 | BN16: 13077 | BO16: 12789 | BP16: 12783 | BQ16: 13294 | BR16: 13395 | BS16: 13490 | BT16: 13609 | BU16: 13660 | BV16: 13826 | BW16: 14035 | BX16: 14197 | BY16: 14272 | BZ16: 14317 | CA16: 13859 | CG16: Dep.Privados | CH16: =IFERROR(SUMIFS(BC$2:BC$500,$AS$2:$AS$500,2,$AX$2:$AX$500,Visor!$Q$8)/SUMIFS(BB$2:BB$500,$AS$2:$AS$500,2,$AX$2:$AX$500,Visor!$Q$8)-1,"") -> -0.2611510115 | CI16: =IFERROR(SUMIFS(BD$2:BD$500,$AS$2:$AS$500,2,$AX$2:$AX$500,Visor!$Q$8)/SUMIFS(BC$2:BC$500,$AS$2:$AS$500,2,$AX$2:$AX$500,Visor!$Q$8)-1,"") -> 0.3310579215 | CJ16: =IFERROR(SUMIFS(BE$2:BE$500,$AS$2:$AS$500,2,$AX$2:$AX$500,Visor!$Q$8)/SUMIFS(BD$2:BD$500,$AS$2:$AS$500,2,$AX$2:$AX$500,Visor!$Q$8)-1,"") -> 0.02095410554 | CK16: =IFERROR(SUMIFS(BF$2:BF$500,$AS$2:$AS$500,2,$AX$2:$AX$500,Visor!$Q$8)/SUMIFS(BE$2:BE$500,$AS$2:$AS$500,2,$AX$2:$AX$500,Visor!$Q$8)-1,"") -> 0.01328195443 | CL16: =IFERROR(SUMIFS(BG$2:BG$500,$AS$2:$AS$500,2,$AX$2:$AX$500,Visor!$Q$8)/SUMIFS(BF$2:BF$500,$AS$2:$AS$500,2,$AX$2:$AX$500,Visor!$Q$8)-1,"") -> -0.001002451658 | CM16: =IFERROR(SUMIFS(BH$2:BH$500,$AS$2:$AS$500,2,$AX$2:$AX$500,Visor!$Q$8)/SUMIFS(BG$2:BG$500,$AS$2:$AS$500,2,$AX$2:$AX$500,Visor!$Q$8)-1,"") -> 0.002521931734 | CN16: =IFERROR(SUMIFS(BI$2:BI$500,$AS$2:$AS$500,2,$AX$2:$AX$500,Visor!$Q$8)/SUMIFS(BH$2:BH$500,$AS$2:$AS$500,2,$AX$2:$AX$500,Visor!$Q$8)-1,"") -> 0.006569595943 | CO16: =IFERROR(SUMIFS(BJ$2:BJ$500,$AS$2:$AS$500,2,$AX$2:$AX$500,Visor!$Q$8)/SUMIFS(BI$2:BI$500,$AS$2:$AS$500,2,$AX$2:$AX$500,Visor!$Q$8)-1,"") -> 0.01161132836 | CP16: =IFERROR(SUMIFS(BK$2:BK$500,$AS$2:$AS$500,2,$AX$2:$AX$500,Visor!$Q$8)/SUMIFS(BJ$2:BJ$500,$AS$2:$AS$500,2,$AX$2:$AX$500,Visor!$Q$8)-1,"") -> 0.0135364899 | CQ16: =IFERROR(SUMIFS(BL$2:BL$500,$AS$2:$AS$500,2,$AX$2:$AX$500,Visor!$Q$8)/SUMIFS(BK$2:BK$500,$AS$2:$AS$500,2,$AX$2:$AX$500,Visor!$Q$8)-1,"") -> 0.01209975634 | CR16: =IFERROR(SUMIFS(BM$2:BM$500,$AS$2:$AS$500,2,$AX$2:$AX$500,Visor!$Q$8)/SUMIFS(BL$2:BL$500,$AS$2:$AS$500,2,$AX$2:$AX$500,Visor!$Q$8)-1,"") -> 0.006569574303 | CS16: =IFERROR(SUMIFS(BN$2:BN$500,$AS$2:$AS$500,2,$AX$2:$AX$500,Visor!$Q$8)/SUMIFS(BM$2:BM$500,$AS$2:$AS$500,2,$AX$2:$AX$500,Visor!$Q$8)-1,"") -> 0.009393157184 | CT16: =IFERROR(SUMIFS(BO$2:BO$500,$AS$2:$AS$500,2,$AX$2:$AX$500,Visor!$Q$8)/SUMIFS(BN$2:BN$500,$AS$2:$AS$500,2,$AX$2:$AX$500,Visor!$Q$8)-1,"") -> -0.01359686409 | CU16: =IFERROR(SUMIFS(BP$2:BP$500,$AS$2:$AS$500,2,$AX$2:$AX$500,Visor!$Q$8)/SUMIFS(BO$2:BO$500,$AS$2:$AS$500,2,$AX$2:$AX$500,Visor!$Q$8)-1,"") -> -0.005969174401 | CV16: =IFERROR(SUMIFS(BQ$2:BQ$500,$AS$2:$AS$500,2,$AX$2:$AX$500,Visor!$Q$8)/SUMIFS(BP$2:BP$500,$AS$2:$AS$500,2,$AX$2:$AX$500,Visor!$Q$8)-1,"") -> 0.01848678079 | CW16: =IFERROR(SUMIFS(BR$2:BR$500,$AS$2:$AS$500,2,$AX$2:$AX$500,Visor!$Q$8)/SUMIFS(BQ$2:BQ$500,$AS$2:$AS$500,2,$AX$2:$AX$500,Visor!$Q$8)-1,"") -> 0.01057333543 | CX16: =IFERROR(SUMIFS(BS$2:BS$500,$AS$2:$AS$500,2,$AX$2:$AX$500,Visor!$Q$8)/SUMIFS(BR$2:BR$500,$AS$2:$AS$500,2,$AX$2:$AX$500,Visor!$Q$8)-1,"") -> -0.0007348391419 | CY16: =IFERROR(SUMIFS(BT$2:BT$500,$AS$2:$AS$500,2,$AX$2:$AX$500,Visor!$Q$8)/SUMIFS(BS$2:BS$500,$AS$2:$AS$500,2,$AX$2:$AX$500,Visor!$Q$8)-1,"") -> 0.006875499648 | CZ16: =IFERROR(SUMIFS(BU$2:BU$500,$AS$2:$AS$500,2,$AX$2:$AX$500,Visor!$Q$8)/SUMIFS(BT$2:BT$500,$AS$2:$AS$500,2,$AX$2:$AX$500,Visor!$Q$8)-1,"") -> 0.003897787211 | DA16: =IFERROR(SUMIFS(BV$2:BV$500,$AS$2:$AS$500,2,$AX$2:$AX$500,Visor!$Q$8)/SUMIFS(BU$2:BU$500,$AS$2:$AS$500,2,$AX$2:$AX$500,Visor!$Q$8)-1,"") -> 0.008305245004 | DB16: =IFERROR(SUMIFS(BW$2:BW$500,$AS$2:$AS$500,2,$AX$2:$AX$500,Visor!$Q$8)/SUMIFS(BV$2:BV$500,$AS$2:$AS$500,2,$AX$2:$AX$500,Visor!$Q$8)-1,"") -> 0.01162660123 | DC16: =IFERROR(SUMIFS(BX$2:BX$500,$AS$2:$AS$500,2,$AX$2:$AX$500,Visor!$Q$8)/SUMIFS(BW$2:BW$500,$AS$2:$AS$500,2,$AX$2:$AX$500,Visor!$Q$8)-1,"") -> 0.004421905081 | DD16: =IFERROR(SUMIFS(BY$2:BY$500,$AS$2:$AS$500,2,$AX$2:$AX$500,Visor!$Q$8)/SUMIFS(BX$2:BX$500,$AS$2:$AS$500,2,$AX$2:$AX$500,Visor!$Q$8)-1,"") -> 0.002900594634 | DE16: =IFERROR(SUMIFS(BZ$2:BZ$500,$AS$2:$AS$500,2,$AX$2:$AX$500,Visor!$Q$8)/SUMIFS(BY$2:BY$500,$AS$2:$AS$500,2,$AX$2:$AX$500,Visor!$Q$8)-1,"") -> 0.002572311306 | DF16: =IFERROR(SUMIFS(CA$2:CA$500,$AS$2:$AS$500,2,$AX$2:$AX$500,Visor!$Q$8)/SUMIFS(BZ$2:BZ$500,$AS$2:$AS$500,2,$AX$2:$AX$500,Visor!$Q$8)-1,"") -> -0.03172525233
A17: 13001 | B17: 130012 | C17: 2 | D17: 13 | E17: 1 | F17: 001 | G17: BOLÍVAR | H17: CARTAGENA | I17: Dep_sec_priv | J17: 11324 | K17: 19300 | L17: 196716 | M17: 153089 | N17: 194033 | O17: 200245 | P17: 206157 | Q17: 205111 | R17: 203456 | S17: 204999 | T17: 207741 | U17: 211672 | V17: 216091 | W17: 220059 | X17: 222831 | Y17: 222897 | Z17: 221398 | AA17: 227334 | AB17: 232669 | AC17: 232674 | AD17: 234692 | AE17: 235688 | AF17: 237519 | AG17: 241516 | AH17: 244701 | AI17: 246579 | AJ17: 247546 | AK17: 243186 | AL17: FALSO | AQ17: 5059 | AR17: 50592 | AS17: 2 | AT17: 5 | AU17: 59 | AV17: 059 | AW17: ANTIOQUIA | AX17: ARMENIA | AY17: Dep_sec_priv | AZ17: 13 | BA17: 8 | BB17: 166 | BC17: 120 | BD17: 160 | BE17: 164 | BF17: 189 | BG17: 174 | BH17: 201 | BI17: 186 | BJ17: 228 | BK17: 307 | BL17: 263 | BM17: 285 | BN17: 310 | BO17: 298 | BP17: 187 | BQ17: 169 | BR17: 183 | BS17: 188 | BT17: 185 | BU17: 175 | BV17: 183 | BW17: 188 | BX17: 179 | BY17: 174 | BZ17: 203 | CA17: 171
A18: 68013 | B18: 680132 | C18: 2 | D18: 68 | E18: 13 | F18: 013 | G18: SANTANDER | H18: AGUADA | I18: Dep_sec_priv | J18: 5 | K18: 10 | L18: 842 | M18: 99 | N18: 981 | O18: 982 | P18: 1883 | Q18: 757 | R18: 779 | S18: 1646 | T18: 709 | U18: 743 | V18: 965 | W18: 1387 | X18: 376 | Y18: 473 | Z18: 403 | AA18: 411 | AB18: 371 | AC18: 275 | AD18: 209 | AE18: 222 | AF18: 244 | AG18: 567 | AH18: 255 | AI18: 214 | AJ18: 209 | AK18: 178 | AL18: FALSO | AQ18: 5088 | AR18: 50882 | AS18: 2 | AT18: 5 | AU18: 88 | AV18: 088 | AW18: ANTIOQUIA | AX18: BELLO | AY18: Dep_sec_priv | AZ18: 1384 | BA18: 4955 | BB18: 36330 | BC18: 25857 | BD18: 35470 | BE18: 36973 | BF18: 37598 | BG18: 37328 | BH18: 37468 | BI18: 36683 | BJ18: 37198 | BK18: 37669 | BL18: 38248 | BM18: 38590 | BN18: 39339 | BO18: 37576 | BP18: 37913 | BQ18: 38642 | BR18: 38630 | BS18: 38755 | BT18: 38797 | BU18: 39199 | BV18: 39467 | BW18: 40261 | BX18: 40648 | BY18: 40222 | BZ18: 39693 | CA18: 38346
A19: 25126 | B19: 251263 | C19: 3 | D19: 25 | E19: 126 | F19: 126 | G19: CUNDINAMARCA | H19: CAJICÁ | I19: Independiente | J19: 184 | K19: 394 | L19: 5072 | M19: 4453 | N19: 4994 | O19: 5172 | P19: 5271 | Q19: 5359 | R19: 5408 | S19: 5446 | T19: 5470 | U19: 5552 | V19: 5642 | W19: 5678 | X19: 5715 | Y19: 5688 | Z19: 5731 | AA19: 5947 | AB19: 6076 | AC19: 6115 | AD19: 6163 | AE19: 6106 | AF19: 6149 | AG19: 6297 | AH19: 6406 | AI19: 6369 | AJ19: 6334 | AK19: 6115 | AL19: FALSO | AQ19: 5212 | AR19: 52122 | AS19: 2 | AT19: 5 | AU19: 212 | AV19: 212 | AW19: ANTIOQUIA | AX19: COPACABANA | AY19: Dep_sec_priv | AZ19: 232 | BA19: 587 | BB19: 7840 | BC19: 4890 | BD19: 7718 | BE19: 7785 | BF19: 7825 | BG19: 7660 | BH19: 7511 | BI19: 7429 | BJ19: 7391 | BK19: 7449 | BL19: 7493 | BM19: 7509 | BN19: 7390 | BO19: 7358 | BP19: 7490 | BQ19: 7669 | BR19: 7827 | BS19: 7929 | BT19: 8004 | BU19: 8076 | BV19: 8162 | BW19: 8383 | BX19: 8458 | BY19: 8457 | BZ19: 8331 | CA19: 8353
A20: 41001 | B20: 410013 | C20: 3 | D20: 41 | E20: 1 | F20: 001 | G20: HUILA | H20: NEIVA | I20: Independiente | J20: 983 | K20: 2591 | L20: 22663 | M20: 17448 | N20: 20721 | O20: 21746 | P20: 22194 | Q20: 22506 | R20: 22447 | S20: 22627 | T20: 22863 | U20: 23050 | V20: 23238 | W20: 23480 | X20: 23632 | Y20: 23287 | Z20: 23086 | AA20: 23794 | AB20: 23876 | AC20: 23906 | AD20: 24041 | AE20: 23892 | AF20: 23818 | AG20: 23182 | AH20: 23159 | AI20: 23173 | AJ20: 23122 | AK20: 22156 | AL20: FALSO | AQ20: 5091 | AR20: 50913 | AS20: 3 | AT20: 5 | AU20: 91 | AV20: 091 | AW20: ANTIOQUIA | AX20: BETANIA | AY20: Independiente | AZ20: 4 | BA20: 29 | BB20: 327 | BC20: 246 | BD20: 289 | BE20: 286 | BF20: 277 | BG20: 273 | BH20: 266 | BI20: 266 | BJ20: 264 | BK20: 270 | BL20: 270 | BM20: 268 | BN20: 266 | BO20: 258 | BP20: 243 | BQ20: 262 | BR20: 256 | BS20: 253 | BT20: 255 | BU20: 251 | BV20: 257 | BW20: 261 | BX20: 266 | BY20: 268 | BZ20: 273 | CA20: 266
A21: 5001 | B21: 50013 | C21: 3 | D21: 5 | E21: 1 | F21: 001 | G21: ANTIOQUIA | H21: MEDELLÍN | I21: Independiente | J21: 7356 | K21: 12505 | L21: 200237 | M21: 159561 | N21: 193740 | O21: 195332 | P21: 197226 | Q21: 197879 | R21: 198506 | S21: 199136 | T21: 199265 | U21: 201436 | V21: 203063 | W21: 203788 | X21: 205035 | Y21: 202665 | Z21: 198899 | AA21: 203018 | AB21: 204731 | AC21: 204167 | AD21: 206008 | AE21: 206394 | AF21: 207432 | AG21: 210002 | AH21: 212132 | AI21: 212711 | AJ21: 212230 | AK21: 205769 | AL21: FALSO | AQ21: 5736 | AR21: 57361 | AS21: 1 | AT21: 5 | AU21: 736 | AV21: 736 | AW21: ANTIOQUIA | AX21: SEGOVIA | AY21: Dep_No_priv | AZ21: 7 | BA21: 24 | BB21: 534 | BC21: 116 | BD21: 534 | BE21: 543 | BF21: 537 | BG21: 522 | BH21: 517 | BI21: 523 | BJ21: 526 | BK21: 528 | BL21: 523 | BM21: 524 | BN21: 538 | BO21: 540 | BP21: 514 | BQ21: 514 | BR21: 564 | BS21: 550 | BT21: 569 | BU21: 584 | BV21: 573 | BW21: 576 | BX21: 583 | BY21: 569 | BZ21: 563 | CA21: 568
A22: 63001 | B22: 630013 | C22: 3 | D22: 63 | E22: 1 | F22: 001 | G22: QUINDÍO | H22: ARMENIA | I22: Independiente | J22: 706 | K22: 2479 | L22: 23608 | M22: 19010 | N22: 22103 | O22: 23111 | P22: 23409 | Q22: 23486 | R22: 23410 | S22: 23565 | T22: 23649 | U22: 23736 | V22: 24036 | W22: 24218 | X22: 24322 | Y22: 23885 | Z22: 24841 | AA22: 25264 | AB22: 25242 | AC22: 25158 | AD22: 25078 | AE22: 24844 | AF22: 24615 | AG22: 24678 | AH22: 25003 | AI22: 25104 | AJ22: 25249 | AK22: 24044 | AL22: FALSO | AQ22: 5091 | AR22: 50911 | AS22: 1 | AT22: 5 | AU22: 91 | AV22: 091 | AW22: ANTIOQUIA | AX22: BETANIA | AY22: Dep_No_priv | AZ22: 5 | BA22: 10 | BB22: 159 | BC22: 68 | BD22: 157 | BE22: 158 | BF22: 160 | BG22: 161 | BH22: 164 | BI22: 163 | BJ22: 168 | BK22: 172 | BL22: 169 | BM22: 175 | BN22: 174 | BO22: 177 | BP22: 163 | BQ22: 158 | BR22: 169 | BS22: 163 | BT22: 166 | BU22: 170 | BV22: 169 | BW22: 160 | BX22: 170 | BY22: 161 | BZ22: 171 | CA22: 168
A23: 23001 | B23: 230012 | C23: 2 | D23: 23 | E23: 1 | F23: 001 | G23: CÓRDOBA | H23: MONTERÍA | I23: Dep_sec_priv | J23: 5011 | K23: 9145 | L23: 74735 | M23: 54161 | N23: 68967 | O23: 70557 | P23: 72210 | Q23: 72754 | R23: 73728 | S23: 74735 | T23: 75215 | U23: 76323 | V23: 78618 | W23: 79315 | X23: 81616 | Y23: 81074 | Z23: 76606 | AA23: 79698 | AB23: 82656 | AC23: 85355 | AD23: 83922 | AE23: 83920 | AF23: 85779 | AG23: 86168 | AH23: 88279 | AI23: 88415 | AJ23: 89135 | AK23: 85683 | AL23: FALSO | AQ23: 5873 | AR23: 58731 | AS23: 1 | AT23: 5 | AU23: 873 | AV23: 873 | AW23: ANTIOQUIA | AX23: VIGÍA DEL FUERTE | AY23: Dep_No_priv | AZ23: 14 | BA23: 4 | BB23: 190 | BC23: 82 | BD23: 180 | BE23: 194 | BF23: 196 | BG23: 188 | BH23: 182 | BI23: 181 | BJ23: 181 | BK23: 180 | BL23: 182 | BM23: 185 | BN23: 188 | BO23: 188 | BP23: 186 | BQ23: 180 | BR23: 188 | BS23: 180 | BT23: 189 | BU23: 187 | BV23: 181 | BW23: 187 | BX23: 189 | BY23: 188 | BZ23: 191 | CA23: 203
A24: 23001 | B24: 230013 | C24: 3 | D24: 23 | E24: 1 | F24: 001 | G24: CÓRDOBA | H24: MONTERÍA | I24: Independiente | J24: 864 | K24: 2272 | L24: 17104 | M24: 12647 | N24: 15488 | O24: 16157 | P24: 16808 | Q24: 17066 | R24: 17289 | S24: 17484 | T24: 17639 | U24: 17839 | V24: 18001 | W24: 18207 | X24: 18291 | Y24: 17696 | Z24: 17021 | AA24: 18060 | AB24: 18027 | AC24: 18111 | AD24: 18126 | AE24: 18019 | AF24: 18041 | AG24: 18214 | AH24: 18507 | AI24: 18731 | AJ24: 18650 | AK24: 17127 | AL24: FALSO | AQ24: 5004 | AR24: 50043 | AS24: 3 | AT24: 5 | AU24: 4 | AV24: 004 | AW24: ANTIOQUIA | AX24: ABRIAQUÍ | AY24: Independiente | AZ24: 2 | BA24: 26 | BB24: 137 | BC24: 57 | BD24: 113 | BE24: 118 | BF24: 118 | BG24: 110 | BH24: 66 | BI24: 70 | BJ24: 72 | BK24: 71 | BL24: 76 | BM24: 72 | BN24: 71 | BO24: 69 | BP24: 45 | BQ24: 69 | BR24: 71 | BS24: 70 | BT24: 70 | BU24: 67 | BV24: 64 | BW24: 69 | BX24: 77 | BY24: 76 | BZ24: 77 | CA24: 65
A25: 68001 | B25: 680012 | C25: 2 | D25: 68 | E25: 1 | F25: 001 | G25: SANTANDER | H25: BUCARAMANGA | I25: Dep_sec_priv | J25: 11751 | K25: 25771 | L25: 238446 | M25: 177582 | N25: 231609 | O25: 238561 | P25: 241734 | Q25: 242400 | R25: 241691 | S25: 245242 | T25: 248278 | U25: 251811 | V25: 253022 | W25: 254416 | X25: 258450 | Y25: 254924 | Z25: 251955 | AA25: 256376 | AB25: 259523 | AC25: 257501 | AD25: 259788 | AE25: 261102 | AF25: 262768 | AG25: 267749 | AH25: 270253 | AI25: 273272 | AJ25: 279394 | AK25: 272633 | AL25: FALSO | AQ25: 5483 | AR25: 54831 | AS25: 1 | AT25: 5 | AU25: 483 | AV25: 483 | AW25: ANTIOQUIA | AX25: NARIÑO | AY25: Dep_No_priv | AZ25: 0 | BA25: 4 | BB25: 189 | BC25: 52 | BD25: 189 | BE25: 194 | BF25: 195 | BG25: 203 | BH25: 208 | BI25: 203 | BJ25: 200 | BK25: 192 | BL25: 195 | BM25: 194 | BN25: 197 | BO25: 197 | BP25: 191 | BQ25: 189 | BR25: 198 | BS25: 188 | BT25: 203 | BU25: 211 | BV25: 197 | BW25: 193 | BX25: 192 | BY25: 193 | BZ25: 192 | CA25: 192
A26: 8001 | B26: 80013 | C26: 3 | D26: 8 | E26: 1 | F26: 001 | G26: ATLÁNTICO | H26: BARRANQUILLA | I26: Independiente | J26: 3257 | K26: 6190 | L26: 66448 | M26: 44045 | N26: 61076 | O26: 62085 | P26: 64041 | Q26: 65641 | R26: 66708 | S26: 67167 | T26: 67158 | U26: 67803 | V26: 68490 | W26: 68879 | X26: 69099 | Y26: 66078 | Z26: 65019 | AA26: 69186 | AB26: 70191 | AC26: 70033 | AD26: 70230 | AE26: 70272 | AF26: 70765 | AG26: 71342 | AH26: 71953 | AI26: 71686 | AJ26: 70851 | AK26: 64352 | AL26: FALSO | AQ26: 5282 | AR26: 52821 | AS26: 1 | AT26: 5 | AU26: 282 | AV26: 282 | AW26: ANTIOQUIA | AX26: FREDONIA | AY26: Dep_No_priv | AZ26: 0 | BA26: 6 | BB26: 383 | BC26: 181 | BD26: 361 | BE26: 353 | BF26: 374 | BG26: 390 | BH26: 399 | BI26: 393 | BJ26: 398 | BK26: 394 | BL26: 397 | BM26: 407 | BN26: 422 | BO26: 404 | BP26: 398 | BQ26: 376 | BR26: 384 | BS26: 377 | BT26: 393 | BU26: 389 | BV26: 385 | BW26: 371 | BX26: 372 | BY26: 375 | BZ26: 384 | CA26: 365
A27: 25175 | B27: 251753 | C27: 3 | D27: 25 | E27: 175 | F27: 175 | G27: CUNDINAMARCA | H27: CHÍA | I27: Independiente | J27: 322 | K27: 632 | L27: 10546 | M27: 8179 | N27: 10348 | O27: 10533 | P27: 10747 | Q27: 10829 | R27: 10920 | S27: 10928 | T27: 11007 | U27: 11020 | V27: 11110 | W27: 11139 | X27: 11105 | Y27: 11176 | Z27: 11171 | AA27: 11286 | AB27: 11252 | AC27: 11224 | AD27: 11319 | AE27: 11361 | AF27: 11452 | AG27: 11535 | AH27: 11583 | AI27: 11564 | AJ27: 11604 | AK27: 11160 | AL27: FALSO | AQ27: 5129 | AR27: 51292 | AS27: 2 | AT27: 5 | AU27: 129 | AV27: 129 | AW27: ANTIOQUIA | AX27: CALDAS | AY27: Dep_sec_priv | AZ27: 316 | BA27: 891 | BB27: 8241 | BC27: 4969 | BD27: 8462 | BE27: 8552 | BF27: 8699 | BG27: 8689 | BH27: 8644 | BI27: 8694 | BJ27: 8726 | BK27: 8753 | BL27: 8932 | BM27: 9134 | BN27: 9108 | BO27: 8937 | BP27: 8704 | BQ27: 8805 | BR27: 8901 | BS27: 8970 | BT27: 8970 | BU27: 9019 | BV27: 8914 | BW27: 9001 | BX27: 8958 | BY27: 8850 | BZ27: 8812 | CA27: 8350
A28: 50006 | B28: 500063 | C28: 3 | D28: 50 | E28: 6 | F28: 006 | G28: META | H28: ACACÍAS | I28: Independiente | J28: 149 | K28: 454 | L28: 2555 | M28: 2327 | N28: 2404 | O28: 2479 | P28: 2544 | Q28: 2587 | R28: 2643 | S28: 2657 | T28: 2745 | U28: 2719 | V28: 2740 | W28: 2727 | X28: 2717 | Y28: 2727 | Z28: 2706 | AA28: 2741 | AB28: 2786 | AC28: 2795 | AD28: 2766 | AE28: 2846 | AF28: 2870 | AG28: 2913 | AH28: 2985 | AI28: 3021 | AJ28: 2994 | AK28: 2904 | AL28: FALSO | AQ28: 5579 | AR28: 55792 | AS28: 2 | AT28: 5 | AU28: 579 | AV28: 579 | AW28: ANTIOQUIA | AX28: PUERTO BERRÍO | AY28: Dep_sec_priv | AZ28: 308 | BA28: 1283 | BB28: 5472 | BC28: 3726 | BD28: 5688 | BE28: 5941 | BF28: 6224 | BG28: 6406 | BH28: 6480 | BI28: 6671 | BJ28: 6514 | BK28: 6427 | BL28: 6562 | BM28: 5978 | BN28: 5975 | BO28: 5597 | BP28: 5688 | BQ28: 6019 | BR28: 5975 | BS28: 6005 | BT28: 6143 | BU28: 6219 | BV28: 6261 | BW28: 6175 | BX28: 6242 | BY28: 6177 | BZ28: 6218 | CA28: 5853 | CG28: Novedades | CH28: Privados | CJ28: Independientes | CN28: Privados | CP28: Independientes
A29: 68001 | B29: 680011 | C29: 1 | D29: 68 | E29: 1 | F29: 001 | G29: SANTANDER | H29: BUCARAMANGA | I29: Dep_No_priv | J29: 1627 | K29: 6679 | L29: 41299 | M29: 31913 | N29: 30926 | O29: 38517 | P29: 41394 | Q29: 42688 | R29: 44032 | S29: 43982 | T29: 49397 | U29: 54124 | V29: 54644 | W29: 55359 | X29: 64890 | Y29: 37684 | Z29: 34131 | AA29: 41455 | AB29: 44627 | AC29: 44986 | AD29: 46250 | AE29: 45067 | AF29: 41575 | AG29: 45399 | AH29: 55774 | AI29: 56729 | AJ29: 57404 | AK29: 36734 | AL29: FALSO | AQ29: 5360 | AR29: 53602 | AS29: 2 | AT29: 5 | AU29: 360 | AV29: 360 | AW29: ANTIOQUIA | AX29: ITAGUI | AY29: Dep_sec_priv | AZ29: 1420 | BA29: 4562 | BB29: 47892 | BC29: 33140 | BD29: 46865 | BE29: 48000 | BF29: 48770 | BG29: 48999 | BH29: 49000 | BI29: 50508 | BJ29: 50703 | BK29: 50786 | BL29: 51278 | BM29: 52202 | BN29: 52471 | BO29: 51642 | BP29: 51194 | BQ29: 51797 | BR29: 52341 | BS29: 51568 | BT29: 52601 | BU29: 53397 | BV29: 53736 | BW29: 54533 | BX29: 55119 | BY29: 54882 | BZ29: 54406 | CA29: 52369 | CH29: Ingresos | CI29: Retiros | CJ29: Ingresos | CK29: Retiros | CN29: Ingresos | CO29: Retiros | CP29: Ingresos | CQ29: Retiros
A30: 73001 | B30: 730013 | C30: 3 | D30: 73 | E30: 1 | F30: 001 | G30: TOLIMA | H30: IBAGUÉ | I30: Independiente | J30: 1487 | K30: 4598 | L30: 31784 | M30: 25394 | N30: 29175 | O30: 30227 | P30: 30957 | Q30: 31249 | R30: 31577 | S30: 31929 | T30: 32426 | U30: 32785 | V30: 33202 | W30: 33551 | X30: 33652 | Y30: 32968 | Z30: 32656 | AA30: 33716 | AB30: 33872 | AC30: 33667 | AD30: 33629 | AE30: 33545 | AF30: 33431 | AG30: 32414 | AH30: 32679 | AI30: 33470 | AJ30: 33988 | AK30: 32742 | AL30: FALSO | AQ30: 5615 | AR30: 56152 | AS30: 2 | AT30: 5 | AU30: 615 | AV30: 615 | AW30: ANTIOQUIA | AX30: RIONEGRO | AY30: Dep_sec_priv | AZ30: 1953 | BA30: 4765 | BB30: 45783 | BC30: 35666 | BD30: 46193 | BE30: 47108 | BF30: 47878 | BG30: 47073 | BH30: 46756 | BI30: 47814 | BJ30: 48854 | BK30: 49215 | BL30: 50715 | BM30: 51271 | BN30: 51335 | BO30: 50467 | BP30: 52607 | BQ30: 53151 | BR30: 53682 | BS30: 54096 | BT30: 55065 | BU30: 55084 | BV30: 54362 | BW30: 56267 | BX30: 56672 | BY30: 55409 | BZ30: 54792 | CA30: 55394 | CG30: =Visor!$Q$7 -> ANTIOQUIA | CH30: =SUMIFS($AZ$2:$AZ$500,$AY$2:$AY$500,"Dep_sec_priv") -> 62467 | CI30: =SUMIFS($BA$2:$BA$500,$AY$2:$AY$500,"Dep_sec_priv") -> 147356 | CJ30: =SUMIFS($AZ$2:$AZ$500,$AY$2:$AY$500,"Independiente") -> 11977 | CK30: =SUMIFS($BA$2:$BA$500,$AY$2:$AY$500,"Independiente") -> 25988 | CM30: =Visor!$Q$7 -> ANTIOQUIA | CN30: =CH30/CH$30 -> 1 | CO30: 1 | CP30: 1 | CQ30: 1
A31: 8001 | B31: 80012 | C31: 2 | D31: 8 | E31: 1 | F31: 001 | G31: ATLÁNTICO | H31: BARRANQUILLA | I31: Dep_sec_priv | J31: 19366 | K31: 40871 | L31: 382084 | M31: 279461 | N31: 374106 | O31: 381775 | P31: 389741 | Q31: 390642 | R31: 392930 | S31: 398075 | T31: 403044 | U31: 408815 | V31: 413636 | W31: 418374 | X31: 422545 | Y31: 420107 | Z31: 412745 | AA31: 421616 | AB31: 427117 | AC31: 428824 | AD31: 434988 | AE31: 436870 | AF31: 437861 | AG31: 441938 | AH31: 445058 | AI31: 445684 | AJ31: 447589 | AK31: 436783 | AL31: FALSO | AQ31: 5284 | AR31: 52841 | AS31: 1 | AT31: 5 | AU31: 284 | AV31: 284 | AW31: ANTIOQUIA | AX31: FRONTINO | AY31: Dep_No_priv | AZ31: 10 | BA31: 12 | BB31: 369 | BC31: 169 | BD31: 361 | BE31: 433 | BF31: 443 | BG31: 442 | BH31: 445 | BI31: 450 | BJ31: 433 | BK31: 438 | BL31: 436 | BM31: 440 | BN31: 437 | BO31: 445 | BP31: 400 | BQ31: 414 | BR31: 431 | BS31: 422 | BT31: 448 | BU31: 433 | BV31: 408 | BW31: 406 | BX31: 416 | BY31: 415 | BZ31: 407 | CA31: 405 | CG31: =Visor!$Q$8 -> MEDELLÍN | CH31: =SUMIFS($AZ$2:$AZ$500,$AY$2:$AY$500,"Dep_sec_priv",$AX$2:$AX$500,Visor!$Q$8) -> 45861 | CI31: =SUMIFS($BA$2:$BA$500,$AY$2:$AY$500,"Dep_sec_priv",$AX$2:$AX$500,Visor!$Q$8) -> 99918 | CJ31: =SUMIFS($AZ$2:$AZ$500,$AY$2:$AY$500,"Independiente",$AX$2:$AX$500,Visor!$Q$8) -> 7356 | CK31: =SUMIFS($BA$2:$BA$500,$AY$2:$AY$500,"Independiente",$AX$2:$AX$500,Visor!$Q$8) -> 12505 | CM31: =Visor!$Q$8 -> MEDELLÍN | CN31: 0.7341636384 | CO31: 0.6780721518 | CP31: 0.6141771729 | CQ31: 0.4811836232
A32: 19698 | B32: 196982 | C32: 2 | D32: 19 | E32: 698 | F32: 698 | G32: CAUCA | H32: SANTANDER DE QUILICHAO | I32: Dep_sec_priv | J32: 492 | K32: 1745 | L32: 7698 | M32: 6623 | N32: 6761 | O32: 7642 | P32: 7780 | Q32: 7878 | R32: 7654 | S32: 7834 | T32: 8153 | U32: 8102 | V32: 8193 | W32: 8203 | X32: 8282 | Y32: 8071 | Z32: 7157 | AA32: 7849 | AB32: 7633 | AC32: 8208 | AD32: 8576 | AE32: 8779 | AF32: 8687 | AG32: 8664 | AH32: 8790 | AI32: 8932 | AJ32: 9046 | AK32: 8741 | AL32: FALSO | AQ32: 5690 | AR32: 56902 | AS32: 2 | AT32: 5 | AU32: 690 | AV32: 690 | AW32: ANTIOQUIA | AX32: SANTO DOMINGO | AY32: Dep_sec_priv | AZ32: 10 | BA32: 24 | BB32: 278 | BC32: 184 | BD32: 249 | BE32: 251 | BF32: 255 | BG32: 248 | BH32: 250 | BI32: 245 | BJ32: 274 | BK32: 262 | BL32: 289 | BM32: 282 | BN32: 259 | BO32: 254 | BP32: 206 | BQ32: 211 | BR32: 233 | BS32: 237 | BT32: 218 | BU32: 233 | BV32: 260 | BW32: 234 | BX32: 255 | BY32: 246 | BZ32: 294 | CA32: 254
A33: 41001 | B33: 410012 | C33: 2 | D33: 41 | E33: 1 | F33: 001 | G33: HUILA | H33: NEIVA | I33: Dep_sec_priv | J33: 4461 | K33: 7598 | L33: 73766 | M33: 51847 | N33: 69881 | O33: 72352 | P33: 73371 | Q33: 73912 | R33: 72400 | S33: 73780 | T33: 75436 | U33: 77690 | V33: 78636 | W33: 79483 | X33: 80538 | Y33: 79614 | Z33: 78141 | AA33: 81045 | AB33: 81780 | AC33: 80984 | AD33: 82154 | AE33: 82586 | AF33: 82842 | AG33: 85559 | AH33: 84839 | AI33: 84818 | AJ33: 85875 | AK33: 83759 | AL33: FALSO | AQ33: 5045 | AR33: 50452 | AS33: 2 | AT33: 5 | AU33: 45 | AV33: 045 | AW33: ANTIOQUIA | AX33: APARTADÓ | AY33: Dep_sec_priv | AZ33: 1000 | BA33: 2262 | BB33: 36470 | BC33: 19335 | BD33: 35616 | BE33: 36118 | BF33: 36909 | BG33: 37166 | BH33: 37715 | BI33: 37207 | BJ33: 36818 | BK33: 36930 | BL33: 37492 | BM33: 37496 | BN33: 37212 | BO33: 36177 | BP33: 35983 | BQ33: 36713 | BR33: 36861 | BS33: 36417 | BT33: 36645 | BU33: 36467 | BV33: 36167 | BW33: 36115 | BX33: 36186 | BY33: 36279 | BZ33: 35560 | CA33: 34166
A34: 66400 | B34: 664002 | C34: 2 | D34: 66 | E34: 400 | F34: 400 | G34: RISARALDA | H34: LA VIRGINIA | I34: Dep_sec_priv | J34: 133 | K34: 219 | L34: 2962 | M34: 1872 | N34: 2701 | O34: 2703 | P34: 2867 | Q34: 2881 | R34: 2876 | S34: 2923 | T34: 2824 | U34: 2814 | V34: 2909 | W34: 3034 | X34: 3199 | Y34: 3090 | Z34: 2984 | AA34: 3075 | AB34: 3145 | AC34: 3153 | AD34: 3256 | AE34: 3106 | AF34: 2998 | AG34: 2980 | AH34: 2984 | AI34: 3010 | AJ34: 3039 | AK34: 2866 | AL34: FALSO | AQ34: 5761 | AR34: 57612 | AS34: 2 | AT34: 5 | AU34: 761 | AV34: 761 | AW34: ANTIOQUIA | AX34: SOPETRÁN | AY34: Dep_sec_priv | AZ34: 26 | BA34: 119 | BB34: 697 | BC34: 527 | BD34: 638 | BE34: 704 | BF34: 696 | BG34: 686 | BH34: 670 | BI34: 680 | BJ34: 659 | BK34: 658 | BL34: 684 | BM34: 708 | BN34: 620 | BO34: 627 | BP34: 654 | BQ34: 718 | BR34: 712 | BS34: 727 | BT34: 778 | BU34: 811 | BV34: 804 | BW34: 885 | BX34: 880 | BY34: 890 | BZ34: 909 | CA34: 862
A35: 73349 | B35: 733493 | C35: 3 | D35: 73 | E35: 349 | F35: 349 | G35: TOLIMA | H35: HONDA | I35: Independiente | J35: 27 | K35: 93 | L35: 1040 | M35: 825 | N35: 966 | O35: 993 | P35: 995 | Q35: 999 | R35: 995 | S35: 1009 | T35: 1039 | U35: 1028 | V35: 1060 | W35: 1071 | X35: 1066 | Y35: 1046 | Z35: 1015 | AA35: 1059 | AB35: 1107 | AC35: 1080 | AD35: 1089 | AE35: 1086 | AF35: 1065 | AG35: 1076 | AH35: 1081 | AI35: 1108 | AJ35: 1118 | AK35: 1084 | AL35: FALSO | AQ35: 5440 | AR35: 54403 | AS35: 3 | AT35: 5 | AU35: 440 | AV35: 440 | AW35: ANTIOQUIA | AX35: MARINILLA | AY35: Independiente | AZ35: 57 | BA35: 191 | BB35: 2292 | BC35: 2087 | BD35: 2197 | BE35: 2254 | BF35: 2291 | BG35: 2328 | BH35: 2365 | BI35: 2391 | BJ35: 2387 | BK35: 2418 | BL35: 2449 | BM35: 2530 | BN35: 2566 | BO35: 2491 | BP35: 2493 | BQ35: 2644 | BR35: 2653 | BS35: 2684 | BT35: 2715 | BU35: 2724 | BV35: 2751 | BW35: 2747 | BX35: 2800 | BY35: 2820 | BZ35: 2814 | CA35: 2725
A36: 50001 | B36: 500013 | C36: 3 | D36: 50 | E36: 1 | F36: 001 | G36: META | H36: VILLAVICENCIO | I36: Independiente | J36: 1845 | K36: 5035 | L36: 27763 | M36: 22731 | N36: 25230 | O36: 26437 | P36: 27289 | Q36: 27741 | R36: 27635 | S36: 27810 | T36: 28190 | U36: 28692 | V36: 28996 | W36: 29202 | X36: 29461 | Y36: 29011 | Z36: 28358 | AA36: 29264 | AB36: 29567 | AC36: 29298 | AD36: 29773 | AE36: 29816 | AF36: 30132 | AG36: 30240 | AH36: 30617 | AI36: 30906 | AJ36: 31147 | AK36: 30055 | AL36: FALSO | AQ36: 5819 | AR36: 58192 | AS36: 2 | AT36: 5 | AU36: 819 | AV36: 819 | AW36: ANTIOQUIA | AX36: TOLEDO | AY36: Dep_sec_priv | AZ36: 4 | BA36: 25 | BB36: 472 | BC36: 87 | BD36: 421 | BE36: 438 | BF36: 462 | BG36: 469 | BH36: 476 | BI36: 483 | BJ36: 486 | BK36: 476 | BL36: 503 | BM36: 512 | BN36: 489 | BO36: 491 | BP36: 503 | BQ36: 504 | BR36: 525 | BS36: 536 | BT36: 494 | BU36: 483 | BV36: 477 | BW36: 467 | BX36: 485 | BY36: 476 | BZ36: 468 | CA36: 500
A37: 54405 | B37: 544052 | C37: 2 | D37: 54 | E37: 405 | F37: 405 | G37: NORTE DE SANTANDER | H37: LOS PATIOS | I37: Dep_sec_priv | J37: 132 | K37: 453 | L37: 2374 | M37: 2004 | N37: 2363 | O37: 2477 | P37: 2532 | Q37: 2579 | R37: 2713 | S37: 2719 | T37: 2821 | U37: 2859 | V37: 2869 | W37: 2832 | X37: 2905 | Y37: 2784 | Z37: 2781 | AA37: 2906 | AB37: 3076 | AC37: 3114 | AD37: 3271 | AE37: 3244 | AF37: 3138 | AG37: 3168 | AH37: 3229 | AI37: 3293 | AJ37: 3338 | AK37: 3250 | AL37: FALSO | AQ37: 5376 | AR37: 53763 | AS37: 3 | AT37: 5 | AU37: 376 | AV37: 376 | AW37: ANTIOQUIA | AX37: LA CEJA | AY37: Independiente | AZ37: 95 | BA37: 296 | BB37: 3323 | BC37: 3264 | BD37: 3226 | BE37: 3311 | BF37: 3411 | BG37: 3508 | BH37: 3588 | BI37: 3625 | BJ37: 3723 | BK37: 3809 | BL37: 3836 | BM37: 3910 | BN37: 3918 | BO37: 3883 | BP37: 3820 | BQ37: 3945 | BR37: 3966 | BS37: 3983 | BT37: 4015 | BU37: 4075 | BV37: 4123 | BW37: 4148 | BX37: 4202 | BY37: 4189 | BZ37: 4143 | CA37: 4104
A38: 50226 | B38: 502263 | C38: 3 | D38: 50 | E38: 226 | F38: 226 | G38: META | H38: CUMARAL | I38: Independiente | J38: 29 | K38: 237 | L38: 601 | M38: 587 | N38: 508 | O38: 575 | P38: 593 | Q38: 594 | R38: 632 | S38: 647 | T38: 640 | U38: 638 | V38: 641 | W38: 650 | X38: 660 | Y38: 641 | Z38: 643 | AA38: 697 | AB38: 726 | AC38: 715 | AD38: 696 | AE38: 677 | AF38: 678 | AG38: 612 | AH38: 684 | AI38: 728 | AJ38: 743 | AK38: 712 | AL38: FALSO | AQ38: 5380 | AR38: 53803 | AS38: 3 | AT38: 5 | AU38: 380 | AV38: 380 | AW38: ANTIOQUIA | AX38: LA ESTRELLA | AY38: Independiente | AZ38: 103 | BA38: 171 | BB38: 2446 | BC38: 2258 | BD38: 2338 | BE38: 2451 | BF38: 2467 | BG38: 2502 | BH38: 2529 | BI38: 2565 | BJ38: 2602 | BK38: 2647 | BL38: 2715 | BM38: 2735 | BN38: 2769 | BO38: 2712 | BP38: 2718 | BQ38: 2847 | BR38: 2888 | BS38: 2891 | BT38: 2916 | BU38: 2940 | BV38: 2973 | BW38: 3001 | BX38: 3064 | BY38: 3069 | BZ38: 3070 | CA38: 2953
A39: 68895 | B39: 688953 | C39: 3 | D39: 68 | E39: 895 | F39: 895 | G39: SANTANDER | H39: ZAPATOCA | I39: Independiente | J39: 4 | K39: 31 | L39: 238 | M39: 232 | N39: 227 | O39: 228 | P39: 231 | Q39: 237 | R39: 241 | S39: 249 | T39: 244 | U39: 241 | V39: 242 | W39: 248 | X39: 252 | Y39: 249 | Z39: 255 | AA39: 256 | AB39: 256 | AC39: 255 | AD39: 256 | AE39: 272 | AF39: 253 | AG39: 253 | AH39: 279 | AI39: 264 | AJ39: 273 | AK39: 260 | AL39: FALSO | AQ39: 5360 | AR39: 53601 | AS39: 1 | AT39: 5 | AU39: 360 | AV39: 360 | AW39: ANTIOQUIA | AX39: ITAGUI | AY39: Dep_No_priv | AZ39: 300 | BA39: 341 | BB39: 5019 | BC39: 4280 | BD39: 5140 | BE39: 5252 | BF39: 5482 | BG39: 6418 | BH39: 7930 | BI39: 7857 | BJ39: 7827 | BK39: 7875 | BL39: 7806 | BM39: 7849 | BN39: 7820 | BO39: 5124 | BP39: 5378 | BQ39: 5442 | BR39: 5659 | BS39: 6585 | BT39: 6701 | BU39: 6498 | BV39: 7612 | BW39: 7589 | BX39: 7632 | BY39: 7527 | BZ39: 7514 | CA39: 4890
A40: 25799 | B40: 257993 | C40: 3 | D40: 25 | E40: 799 | F40: 799 | G40: CUNDINAMARCA | H40: TENJO | I40: Independiente | J40: 27 | K40: 52 | L40: 1209 | M40: 928 | N40: 1178 | O40: 1204 | P40: 1270 | Q40: 1296 | R40: 1284 | S40: 1293 | T40: 1307 | U40: 1336 | V40: 1337 | W40: 1349 | X40: 1298 | Y40: 1289 | Z40: 1336 | AA40: 1358 | AB40: 1360 | AC40: 1358 | AD40: 1358 | AE40: 1340 | AF40: 1351 | AG40: 1370 | AH40: 1403 | AI40: 1382 | AJ40: 1354 | AK40: 1323 | AL40: FALSO | AQ40: 5380 | AR40: 53802 | AS40: 2 | AT40: 5 | AU40: 380 | AV40: 380 | AW40: ANTIOQUIA | AX40: LA ESTRELLA | AY40: Dep_sec_priv | AZ40: 486 | BA40: 1300 | BB40: 13787 | BC40: 9977 | BD40: 14154 | BE40: 14333 | BF40: 14615 | BG40: 14835 | BH40: 15013 | BI40: 15001 | BJ40: 15316 | BK40: 15587 | BL40: 15856 | BM40: 16001 | BN40: 16299 | BO40: 16094 | BP40: 16067 | BQ40: 16410 | BR40: 16418 | BS40: 16228 | BT40: 16268 | BU40: 16105 | BV40: 14963 | BW40: 15395 | BX40: 15491 | BY40: 15427 | BZ40: 16743 | CA40: 15050
A41: 47001 | B41: 470013 | C41: 3 | D41: 47 | E41: 1 | F41: 001 | G41: MAGDALENA | H41: SANTA MARTA | I41: Independiente | J41: 787 | K41: 2114 | L41: 20577 | M41: 13597 | N41: 18297 | O41: 19143 | P41: 20314 | Q41: 20961 | R41: 21082 | S41: 21212 | T41: 21077 | U41: 21345 | V41: 21781 | W41: 22004 | X41: 22154 | Y41: 21286 | Z41: 19900 | AA41: 21815 | AB41: 22152 | AC41: 22275 | AD41: 22323 | AE41: 22122 | AF41: 22123 | AG41: 22456 | AH41: 22901 | AI41: 23141 | AJ41: 22830 | AK41: 20310 | AL41: FALSO | AQ41: 5856 | AR41: 58563 | AS41: 3 | AT41: 5 | AU41: 856 | AV41: 856 | AW41: ANTIOQUIA | AX41: VALPARAÍSO | AY41: Independiente | AZ41: 7 | BA41: 29 | BB41: 85 | BC41: 113 | BD41: 67 | BE41: 76 | BF41: 82 | BG41: 87 | BH41: 90 | BI41: 94 | BJ41: 95 | BK41: 100 | BL41: 101 | BM41: 105 | BN41: 107 | BO41: 107 | BP41: 103 | BQ41: 109 | BR41: 138 | BS41: 163 | BT41: 169 | BU41: 174 | BV41: 142 | BW41: 134 | BX41: 136 | BY41: 147 | BZ41: 139 | CA41: 130 | CH41: Privs Dic 21 | CI41: Privs Nov 22 | CJ41: Privs Dic 22 | CK41: Ind Dic 21 | CL41: Ind Nov 22 | CM41: Ind Dic 22
A42: 68276 | B42: 682763 | C42: 3 | D42: 68 | E42: 276 | F42: 276 | G42: SANTANDER | H42: FLORIDABLANCA | I42: Independiente | J42: 548 | K42: 1491 | L42: 9687 | M42: 8455 | N42: 8913 | O42: 9213 | P42: 9546 | Q42: 9745 | R42: 9792 | S42: 9926 | T42: 10037 | U42: 10127 | V42: 10280 | W42: 10301 | X42: 10482 | Y42: 10415 | Z42: 10367 | AA42: 11057 | AB42: 11074 | AC42: 11039 | AD42: 11113 | AE42: 10954 | AF42: 10785 | AG42: 10995 | AH42: 11191 | AI42: 11335 | AJ42: 11355 | AK42: 10992 | AL42: FALSO | AQ42: 5264 | AR42: 52643 | AS42: 3 | AT42: 5 | AU42: 264 | AV42: 264 | AW42: ANTIOQUIA | AX42: ENTRERRIOS | AY42: Independiente | AZ42: 48 | BA42: 39 | BB42: 1110 | BC42: 985 | BD42: 1108 | BE42: 1112 | BF42: 1112 | BG42: 1106 | BH42: 1116 | BI42: 1115 | BJ42: 1116 | BK42: 1111 | BL42: 1115 | BM42: 1120 | BN42: 1125 | BO42: 1128 | BP42: 1135 | BQ42: 1141 | BR42: 1142 | BS42: 1149 | BT42: 1156 | BU42: 1174 | BV42: 1191 | BW42: 1196 | BX42: 1186 | BY42: 1173 | BZ42: 1175 | CA42: 1139 | CG42: AMAZONAS | CH42: =SUMIFS($Y$2:$Y$4998,$G$2:$G$4998,$CG42,$I$2:$I$4998,"Dep_sec_priv") -> 18783 | CI42: =SUMIFS($AJ$2:$AJ$4998,$G$2:$G$4998,$CG42,$I$2:$I$4998,"Dep_sec_priv") -> 13287 | CJ42: =SUMIFS($AK$2:$AK$4998,$G$2:$G$4998,$CG42,$I$2:$I$4998,"Dep_sec_priv") -> 11540 | CK42: =SUMIFS($Y$2:$Y$4998,$G$2:$G$4998,$CG42,$I$2:$I$4998,"Independiente") -> 3630 | CL42: =SUMIFS($AJ$2:$AJ$4998,$G$2:$G$4998,$CG42,$I$2:$I$4998,"Independiente") -> 3704 | CM42: =SUMIFS($AK$2:$AK$4998,$G$2:$G$4998,$CG42,$I$2:$I$4998,"Independiente") -> 3448
A43: 19001 | B43: 190013 | C43: 3 | D43: 19 | E43: 1 | F43: 001 | G43: CAUCA | H43: POPAYÁN | I43: Independiente | J43: 875 | K43: 3463 | L43: 20385 | M43: 15940 | N43: 17650 | O43: 18768 | P43: 19385 | Q43: 19615 | R43: 19396 | S43: 19685 | T43: 20036 | U43: 20300 | V43: 20736 | W43: 21099 | X43: 21080 | Y43: 20795 | Z43: 19658 | AA43: 20749 | AB43: 21011 | AC43: 20910 | AD43: 21022 | AE43: 20684 | AF43: 20560 | AG43: 20674 | AH43: 21110 | AI43: 21505 | AJ43: 21573 | AK43: 20357 | AL43: FALSO | AQ43: 5282 | AR43: 52823 | AS43: 3 | AT43: 5 | AU43: 282 | AV43: 282 | AW43: ANTIOQUIA | AX43: FREDONIA | AY43: Independiente | AZ43: 3 | BA43: 74 | BB43: 380 | BC43: 380 | BD43: 324 | BE43: 354 | BF43: 348 | BG43: 358 | BH43: 361 | BI43: 368 | BJ43: 403 | BK43: 432 | BL43: 428 | BM43: 434 | BN43: 435 | BO43: 431 | BP43: 463 | BQ43: 478 | BR43: 455 | BS43: 443 | BT43: 440 | BU43: 441 | BV43: 448 | BW43: 449 | BX43: 455 | BY43: 451 | BZ43: 444 | CA43: 434 | CG43: ANTIOQUIA | CH43: =SUMIFS($Y$2:$Y$4998,$G$2:$G$4998,$CG43,$I$2:$I$4998,"Dep_sec_priv") -> 1612832 | CI43: 1719887 | CJ43: =SUMIFS($AK$2:$AK$4998,$G$2:$G$4998,$CG43,$I$2:$I$4998,"Dep_sec_priv") -> 1665030 | CK43: 327768 | CL43: 349413 | CM43: 337854
A44: 13001 | B44: 130013 | C44: 3 | D44: 13 | E44: 1 | F44: 001 | G44: BOLÍVAR | H44: CARTAGENA | I44: Independiente | J44: 2303 | K44: 4049 | L44: 40992 | M44: 27434 | N44: 37023 | O44: 38755 | P44: 40006 | Q44: 40676 | R44: 40872 | S44: 40978 | T44: 41045 | U44: 41196 | V44: 41937 | W44: 42587 | X44: 43025 | Y44: 40258 | Z44: 41000 | AA44: 43115 | AB44: 43926 | AC44: 43517 | AD44: 43724 | AE44: 43244 | AF44: 42820 | AG44: 43313 | AH44: 44607 | AI44: 44726 | AJ44: 44198 | AK44: 39337 | AL44: FALSO | AQ44: 5585 | AR44: 55852 | AS44: 2 | AT44: 5 | AU44: 585 | AV44: 585 | AW44: ANTIOQUIA | AX44: PUERTO NARE | AY44: Dep_sec_priv | AZ44: 52 | BA44: 128 | BB44: 950 | BC44: 525 | BD44: 848 | BE44: 890 | BF44: 904 | BG44: 877 | BH44: 889 | BI44: 888 | BJ44: 854 | BK44: 945 | BL44: 992 | BM44: 1010 | BN44: 982 | BO44: 924 | BP44: 803 | BQ44: 847 | BR44: 947 | BS44: 877 | BT44: 914 | BU44: 877 | BV44: 958 | BW44: 930 | BX44: 921 | BY44: 976 | BZ44: 902 | CA44: 849 | CG44: ARAUCA | CH44: =SUMIFS($Y$2:$Y$4998,$G$2:$G$4998,$CG44,$I$2:$I$4998,"Dep_sec_priv") -> 50459 | CI44: 41373 | CJ44: =SUMIFS($AK$2:$AK$4998,$G$2:$G$4998,$CG44,$I$2:$I$4998,"Dep_sec_priv") -> 43780 | CK44: 9450 | CL44: 9573 | CM44: 9009
A45: 25307 | B45: 253073 | C45: 3 | D45: 25 | E45: 307 | F45: 307 | G45: CUNDINAMARCA | H45: GIRARDOT | I45: Independiente | J45: 241 | K45: 812 | L45: 5834 | M45: 4445 | N45: 5237 | O45: 5460 | P45: 5589 | Q45: 5680 | R45: 5812 | S45: 5900 | T45: 5987 | U45: 6030 | V45: 6177 | W45: 6121 | X45: 6084 | Y45: 6017 | Z45: 6029 | AA45: 6251 | AB45: 6299 | AC45: 6288 | AD45: 6327 | AE45: 6291 | AF45: 6279 | AG45: 6016 | AH45: 6125 | AI45: 6054 | AJ45: 6007 | AK45: 5750 | AL45: FALSO | AQ45: 5591 | AR45: 55912 | AS45: 2 | AT45: 5 | AU45: 591 | AV45: 591 | AW45: ANTIOQUIA | AX45: PUERTO TRIUNFO | AY45: Dep_sec_priv | AZ45: 193 | BA45: 359 | BB45: 1741 | BC45: 1659 | BD45: 1673 | BE45: 1812 | BF45: 1732 | BG45: 1719 | BH45: 1728 | BI45: 1696 | BJ45: 1768 | BK45: 1780 | BL45: 1847 | BM45: 1845 | BN45: 1895 | BO45: 1890 | BP45: 1758 | BQ45: 1811 | BR45: 1805 | BS45: 1819 | BT45: 1855 | BU45: 1903 | BV45: 1929 | BW45: 1991 | BX45: 2119 | BY45: 2125 | BZ45: 2330 | CA45: 2333 | CG45: ARCHIPIÉLAGO DE SAN ANDRÉS, PROVIDENCIA Y SANTA CATALINA | CH45: =SUMIFS($Y$2:$Y$4998,$G$2:$G$4998,$CG45,$I$2:$I$4998,"Dep_sec_priv") -> 43249 | CI45: 44194 | CJ45: 41449 | CK45: 6967 | CL45: 7699 | CM45: 6235
A46: 66001 | B46: 660013 | C46: 3 | D46: 66 | E46: 1 | F46: 001 | G46: RISARALDA | H46: PEREIRA | I46: Independiente | J46: 1254 | K46: 3167 | L46: 40559 | M46: 31976 | N46: 38287 | O46: 39006 | P46: 39604 | Q46: 39507 | R46: 39304 | S46: 39585 | T46: 39862 | U46: 40091 | V46: 40523 | W46: 40870 | X46: 40984 | Y46: 40341 | Z46: 39998 | AA46: 40306 | AB46: 40581 | AC46: 40369 | AD46: 40435 | AE46: 40447 | AF46: 40546 | AG46: 40580 | AH46: 40762 | AI46: 41128 | AJ46: 41080 | AK46: 39765 | AL46: FALSO | AQ46: 5376 | AR46: 53762 | AS46: 2 | AT46: 5 | AU46: 376 | AV46: 376 | AW46: ANTIOQUIA | AX46: LA CEJA | AY46: Dep_sec_priv | AZ46: 493 | BA46: 1037 | BB46: 12181 | BC46: 9271 | BD46: 12093 | BE46: 12214 | BF46: 12522 | BG46: 12738 | BH46: 12800 | BI46: 12983 | BJ46: 13061 | BK46: 13292 | BL46: 13453 | BM46: 13872 | BN46: 13879 | BO46: 13446 | BP46: 13657 | BQ46: 13877 | BR46: 14091 | BS46: 14044 | BT46: 14091 | BU46: 14265 | BV46: 14106 | BW46: 14172 | BX46: 14088 | BY46: 13935 | BZ46: 14028 | CA46: 13405 | CG46: ATLÁNTICO | CH46: =SUMIFS($Y$2:$Y$4998,$G$2:$G$4998,$CG46,$I$2:$I$4998,"Dep_sec_priv") -> 455167 | CI46: 486547 | CJ46: 474945 | CK46: 78993 | CL46: 85783 | CM46: 77058
A47: 81300 | B47: 813002 | C47: 2 | D47: 81 | E47: 300 | F47: 300 | G47: ARAUCA | H47: FORTUL | I47: Dep_sec_priv | J47: 615 | K47: 288 | L47: 24816 | M47: 8284 | N47: 24781 | O47: 22305 | P47: 22315 | Q47: 22096 | R47: 21703 | S47: 23335 | T47: 23699 | U47: 24033 | V47: 24122 | W47: 24800 | X47: 24841 | Y47: 24822 | Z47: 24686 | AA47: 25186 | AB47: 27968 | AC47: 27742 | AD47: 26856 | AE47: 26683 | AF47: 26651 | AG47: 26193 | AH47: 26645 | AI47: 26930 | AJ47: 14872 | AK47: 18091 | AL47: FALSO | AQ47: 5266 | AR47: 52662 | AS47: 2 | AT47: 5 | AU47: 266 | AV47: 266 | AW47: ANTIOQUIA | AX47: ENVIGADO | AY47: Dep_sec_priv | AZ47: 1121 | BA47: 2993 | BB47: 37400 | BC47: 28497 | BD47: 36516 | BE47: 37292 | BF47: 37716 | BG47: 37350 | BH47: 37603 | BI47: 37910 | BJ47: 38070 | BK47: 38439 | BL47: 39441 | BM47: 39485 | BN47: 39517 | BO47: 39177 | BP47: 39149 | BQ47: 39913 | BR47: 41005 | BS47: 41062 | BT47: 41404 | BU47: 41861 | BV47: 41976 | BW47: 42912 | BX47: 43116 | BY47: 42894 | BZ47: 43154 | CA47: 41931 | CG47: BOGOTÁ, D.C. | CH47: =SUMIFS($Y$2:$Y$4998,$G$2:$G$4998,$CG47,$I$2:$I$4998,"Dep_sec_priv") -> 2711672 | CI47: 2876101 | CJ47: 2797895 | CK47: 706926 | CL47: 715574 | CM47: 687950
A48: 76001 | B48: 760012 | C48: 2 | D48: 76 | E48: 1 | F48: 001 | G48: VALLE DEL CAUCA | H48: CALI | I48: Dep_sec_priv | J48: 28307 | K48: 58480 | L48: 642371 | M48: 474530 | N48: 625036 | O48: 638371 | P48: 645876 | Q48: 647138 | R48: 627858 | S48: 631984 | T48: 643769 | U48: 656347 | V48: 667965 | W48: 670588 | X48: 678320 | Y48: 672129 | Z48: 659582 | AA48: 671445 | AB48: 678259 | AC48: 675447 | AD48: 683724 | AE48: 683657 | AF48: 684534 | AG48: 693832 | AH48: 698576 | AI48: 703922 | AJ48: 733312 | AK48: 709653 | AL48: FALSO | AQ48: 5360 | AR48: 53603 | AS48: 3 | AT48: 5 | AU48: 360 | AV48: 360 | AW48: ANTIOQUIA | AX48: ITAGUI | AY48: Independiente | AZ48: 469 | BA48: 699 | BB48: 8983 | BC48: 8193 | BD48: 8772 | BE48: 9000 | BF48: 9228 | BG48: 9414 | BH48: 9476 | BI48: 9568 | BJ48: 9630 | BK48: 9839 | BL48: 9945 | BM48: 10107 | BN48: 10168 | BO48: 9962 | BP48: 9952 | BQ48: 10331 | BR48: 10782 | BS48: 10881 | BT48: 10922 | BU48: 10972 | BV48: 11190 | BW48: 10931 | BX48: 11028 | BY48: 11137 | BZ48: 11070 | CA48: 10812 | CG48: BOLÍVAR | CH48: 242890 | CI48: 269518 | CJ48: 264071 | CK48: 48767 | CL48: 53997 | CM48: 47631
A49: 25290 | B49: 252903 | C49: 3 | D49: 25 | E49: 290 | F49: 290 | G49: CUNDINAMARCA | H49: FUSAGASUGÁ | I49: Independiente | J49: 235 | K49: 703 | L49: 8653 | M49: 6854 | N49: 8209 | O49: 8403 | P49: 8565 | Q49: 8598 | R49: 8593 | S49: 8693 | T49: 8726 | U49: 8774 | V49: 8818 | W49: 8878 | X49: 8874 | Y49: 8796 | Z49: 8698 | AA49: 8873 | AB49: 8869 | AC49: 8836 | AD49: 8801 | AE49: 8889 | AF49: 8976 | AG49: 9036 | AH49: 9081 | AI49: 9119 | AJ49: 9146 | AK49: 8774 | AL49: FALSO | AQ49: 5045 | AR49: 50453 | AS49: 3 | AT49: 5 | AU49: 45 | AV49: 045 | AW49: ANTIOQUIA | AX49: APARTADÓ | AY49: Independiente | AZ49: 134 | BA49: 549 | BB49: 4081 | BC49: 2919 | BD49: 3622 | BE49: 3764 | BF49: 3919 | BG49: 3940 | BH49: 4008 | BI49: 4036 | BJ49: 4085 | BK49: 4130 | BL49: 4196 | BM49: 4208 | BN49: 4224 | BO49: 4032 | BP49: 3721 | BQ49: 4149 | BR49: 4149 | BS49: 4138 | BT49: 4096 | BU49: 4090 | BV49: 3983 | BW49: 4036 | BX49: 4073 | BY49: 4051 | BZ49: 3999 | CA49: 3718 | CG49: BOYACÁ | CH49: 138591 | CI49: 152606 | CJ49: 148474 | CK49: 52425 | CL49: 53955 | CM49: 51579
A50: 25402 | B50: 254023 | C50: 3 | D50: 25 | E50: 402 | F50: 402 | G50: CUNDINAMARCA | H50: LA VEGA | I50: Independiente | J50: 16 | K50: 61 | L50: 689 | M50: 591 | N50: 684 | O50: 725 | P50: 730 | Q50: 732 | R50: 729 | S50: 716 | T50: 707 | U50: 713 | V50: 708 | W50: 701 | X50: 707 | Y50: 714 | Z50: 702 | AA50: 719 | AB50: 726 | AC50: 734 | AD50: 734 | AE50: 786 | AF50: 776 | AG50: 805 | AH50: 808 | AI50: 804 | AJ50: 804 | AK50: 760 | AL50: FALSO | AQ50: 5308 | AR50: 53083 | AS50: 3 | AT50: 5 | AU50: 308 | AV50: 308 | AW50: ANTIOQUIA | AX50: GIRARDOTA | AY50: Independiente | AZ50: 43 | BA50: 230 | BB50: 1385 | BC50: 1323 | BD50: 1289 | BE50: 1398 | BF50: 1443 | BG50: 1475 | BH50: 1508 | BI50: 1522 | BJ50: 1531 | BK50: 1564 | BL50: 1581 | BM50: 1617 | BN50: 1641 | BO50: 1608 | BP50: 1570 | BQ50: 1600 | BR50: 1598 | BS50: 1602 | BT50: 1613 | BU50: 1620 | BV50: 1604 | BW50: 1675 | BX50: 1678 | BY50: 1687 | BZ50: 1690 | CA50: 1614 | CG50: CALDAS | CH50: 154130 | CI50: 159738 | CJ50: 157080 | CK50: 45518 | CL50: 47188 | CM50: 45280
A51: 73001 | B51: 730012 | C51: 2 | D51: 73 | E51: 1 | F51: 001 | G51: TOLIMA | H51: IBAGUÉ | I51: Dep_sec_priv | J51: 5435 | K51: 10568 | L51: 113186 | M51: 76109 | N51: 109073 | O51: 112148 | P51: 113542 | Q51: 114176 | R51: 113964 | S51: 116033 | T51: 116966 | U51: 119193 | V51: 120317 | W51: 121007 | X51: 121837 | Y51: 120116 | Z51: 117483 | AA51: 118765 | AB51: 119307 | AC51: 118774 | AD51: 120097 | AE51: 120420 | AF51: 121445 | AG51: 122817 | AH51: 124071 | AI51: 123915 | AJ51: 124322 | AK51: 120602 | AL51: FALSO | AQ51: 5656 | AR51: 56563 | AS51: 3 | AT51: 5 | AU51: 656 | AV51: 656 | AW51: ANTIOQUIA | AX51: SAN JERÓNIMO | AY51: Independiente | AZ51: 6 | BA51: 78 | BB51: 314 | BC51: 276 | BD51: 269 | BE51: 293 | BF51: 296 | BG51: 298 | BH51: 300 | BI51: 312 | BJ51: 311 | BK51: 302 | BL51: 303 | BM51: 313 | BN51: 316 | BO51: 318 | BP51: 301 | BQ51: 336 | BR51: 353 | BS51: 358 | BT51: 374 | BU51: 372 | BV51: 366 | BW51: 362 | BX51: 371 | BY51: 365 | BZ51: 353 | CA51: 335 | CG51: CAQUETÁ | CH51: 24195 | CI51: 25782 | CJ51: 25924 | CK51: 12445 | CL51: 12814 | CM51: 12315
A52: 25758 | B52: 257583 | C52: 3 | D52: 25 | E52: 758 | F52: 758 | G52: CUNDINAMARCA | H52: SOPÓ | I52: Independiente | J52: 103 | K52: 222 | L52: 1862 | M52: 1464 | N52: 1690 | O52: 1832 | P52: 1878 | Q52: 1876 | R52: 1882 | S52: 1862 | T52: 1880 | U52: 1911 | V52: 1896 | W52: 1901 | X52: 1899 | Y52: 1838 | Z52: 1855 | AA52: 1962 | AB52: 1976 | AC52: 1970 | AD52: 1999 | AE52: 1982 | AF52: 2063 | AG52: 2067 | AH52: 2067 | AI52: 2059 | AJ52: 2030 | AK52: 1892 | AL52: FALSO | AQ52: 5042 | AR52: 50423 | AS52: 3 | AT52: 5 | AU52: 42 | AV52: 042 | AW52: ANTIOQUIA | AX52: SANTAFÉ DE ANTIOQUIA | AY52: Independiente | AZ52: 15 | BA52: 72 | BB52: 741 | BC52: 608 | BD52: 683 | BE52: 693 | BF52: 693 | BG52: 705 | BH52: 692 | BI52: 691 | BJ52: 716 | BK52: 738 | BL52: 740 | BM52: 741 | BN52: 740 | BO52: 724 | BP52: 709 | BQ52: 729 | BR52: 740 | BS52: 752 | BT52: 755 | BU52: 747 | BV52: 735 | BW52: 751 | BX52: 772 | BY52: 775 | BZ52: 838 | CA52: 804 | CG52: CASANARE | CH52: 65229 | CI52: 75268 | CJ52: 72108 | CK52: 19356 | CL52: 20433 | CM52: 19533
A53: 5364 | B53: 53642 | C53: 2 | D53: 5 | E53: 364 | F53: 364 | G53: ANTIOQUIA | H53: JARDÍN | I53: Dep_sec_priv | J53: 78 | K53: 84 | L53: 967 | M53: 868 | N53: 1051 | O53: 1022 | P53: 971 | Q53: 1048 | R53: 1093 | S53: 1111 | T53: 1098 | U53: 1148 | V53: 1099 | W53: 1199 | X53: 1217 | Y53: 1177 | Z53: 1188 | AA53: 1193 | AB53: 1160 | AC53: 1160 | AD53: 1294 | AE53: 1381 | AF53: 1328 | AG53: 1267 | AH53: 1251 | AI53: 1232 | AJ53: 1228 | AK53: 1227 | AL53: FALSO | AQ53: 5209 | AR53: 52092 | AS53: 2 | AT53: 5 | AU53: 209 | AV53: 209 | AW53: ANTIOQUIA | AX53: CONCORDIA | AY53: Dep_sec_priv | AZ53: 11 | BA53: 62 | BB53: 800 | BC53: 590 | BD53: 771 | BE53: 849 | BF53: 834 | BG53: 814 | BH53: 840 | BI53: 837 | BJ53: 864 | BK53: 850 | BL53: 873 | BM53: 842 | BN53: 855 | BO53: 859 | BP53: 936 | BQ53: 987 | BR53: 978 | BS53: 907 | BT53: 922 | BU53: 912 | BV53: 907 | BW53: 934 | BX53: 935 | BY53: 934 | BZ53: 919 | CA53: 908 | CG53: CAUCA | CH53: 99963 | CI53: 102341 | CJ53: 99718 | CK53: 33194 | CL53: 34490 | CM53: 32366
A54: 15759 | B54: 157593 | C54: 3 | D54: 15 | E54: 759 | F54: 759 | G54: BOYACÁ | H54: SOGAMOSO | I54: Independiente | J54: 201 | K54: 979 | L54: 8221 | M54: 6121 | N54: 7664 | O54: 7929 | P54: 8100 | Q54: 8136 | R54: 8237 | S54: 8303 | T54: 8261 | U54: 8250 | V54: 8387 | W54: 8460 | X54: 8498 | Y54: 8410 | Z54: 8088 | AA54: 8234 | AB54: 8259 | AC54: 8237 | AD54: 8260 | AE54: 8320 | AF54: 8308 | AG54: 8417 | AH54: 8497 | AI54: 8464 | AJ54: 8378 | AK54: 7907 | AL54: FALSO | AQ54: 5212 | AR54: 52123 | AS54: 3 | AT54: 5 | AU54: 212 | AV54: 212 | AW54: ANTIOQUIA | AX54: COPACABANA | AY54: Independiente | AZ54: 83 | BA54: 277 | BB54: 2005 | BC54: 2014 | BD54: 1923 | BE54: 2055 | BF54: 2172 | BG54: 2186 | BH54: 2234 | BI54: 2267 | BJ54: 2283 | BK54: 2311 | BL54: 2345 | BM54: 2380 | BN54: 2405 | BO54: 2387 | BP54: 2353 | BQ54: 2447 | BR54: 2463 | BS54: 2477 | BT54: 2538 | BU54: 2554 | BV54: 2529 | BW54: 2597 | BX54: 2642 | BY54: 2634 | BZ54: 2674 | CA54: 2577 | CG54: CESAR | CH54: 106852 | CI54: 117318 | CJ54: 110870 | CK54: 29128 | CL54: 31985 | CM54: 29758
A55: 15238 | B55: 152383 | C55: 3 | D55: 15 | E55: 238 | F55: 238 | G55: BOYACÁ | H55: DUITAMA | I55: Independiente | J55: 217 | K55: 720 | L55: 8364 | M55: 6175 | N55: 7962 | O55: 8037 | P55: 8162 | Q55: 8219 | R55: 8219 | S55: 8247 | T55: 8351 | U55: 8305 | V55: 8399 | W55: 8541 | X55: 8592 | Y55: 8413 | Z55: 8245 | AA55: 8366 | AB55: 8393 | AC55: 8445 | AD55: 8392 | AE55: 8396 | AF55: 8507 | AG55: 8557 | AH55: 8639 | AI55: 8663 | AJ55: 8547 | AK55: 8235 | AL55: FALSO | AQ55: 5664 | AR55: 56643 | AS55: 3 | AT55: 5 | AU55: 664 | AV55: 664 | AW55: ANTIOQUIA | AX55: SAN PEDRO DE LOS MILAGROS | AY55: Independiente | AZ55: 39 | BA55: 77 | BB55: 1121 | BC55: 1009 | BD55: 1094 | BE55: 1116 | BF55: 1143 | BG55: 1147 | BH55: 1161 | BI55: 1167 | BJ55: 1177 | BK55: 1190 | BL55: 1184 | BM55: 1205 | BN55: 1205 | BO55: 1193 | BP55: 1185 | BQ55: 1198 | BR55: 1200 | BS55: 1195 | BT55: 1179 | BU55: 1191 | BV55: 1214 | BW55: 1214 | BX55: 1216 | BY55: 1227 | BZ55: 1244 | CA55: 1228 | CG55: CHOCÓ | CH55: 73294 | CI55: 31481 | CJ55: 27930 | CK55: 10609 | CL55: 11729 | CM55: 10119
A56: 15778 | B56: 157783 | C56: 3 | D56: 15 | E56: 778 | F56: 778 | G56: BOYACÁ | H56: SUTATENZA | I56: Independiente | J56: 1 | K56: 9 | L56: 52 | M56: 48 | N56: 37 | O56: 48 | P56: 52 | Q56: 52 | R56: 49 | S56: 52 | T56: 50 | U56: 50 | V56: 52 | W56: 52 | X56: 49 | Y56: 49 | Z56: 45 | AA56: 52 | AB56: 54 | AC56: 54 | AD56: 55 | AE56: 56 | AF56: 56 | AG56: 58 | AH56: 58 | AI56: 55 | AJ56: 54 | AK56: 55 | AL56: FALSO | AQ56: 5607 | AR56: 56072 | AS56: 2 | AT56: 5 | AU56: 607 | AV56: 607 | AW56: ANTIOQUIA | AX56: RETIRO | AY56: Dep_sec_priv | AZ56: 136 | BA56: 533 | BB56: 3496 | BC56: 2738 | BD56: 3432 | BE56: 3728 | BF56: 3720 | BG56: 3766 | BH56: 3807 | BI56: 3815 | BJ56: 3910 | BK56: 3846 | BL56: 3895 | BM56: 4005 | BN56: 3952 | BO56: 3919 | BP56: 4054 | BQ56: 4186 | BR56: 4163 | BS56: 4176 | BT56: 4280 | BU56: 4293 | BV56: 4327 | BW56: 4417 | BX56: 4393 | BY56: 4414 | BZ56: 4289 | CA56: 4202 | CG56: CÓRDOBA | CH56: 111033 | CI56: 122946 | CJ56: 118799 | CK56: 30074 | CL56: 32126 | CM56: 29027
A57: 23686 | B57: 236863 | C57: 3 | D57: 23 | E57: 686 | F57: 686 | G57: CÓRDOBA | H57: SAN PELAYO | I57: Independiente | J57: 23 | K57: 77 | L57: 255 | M57: 253 | N57: 232 | O57: 257 | P57: 253 | Q57: 271 | R57: 278 | S57: 282 | T57: 296 | U57: 311 | V57: 305 | W57: 323 | X57: 314 | Y57: 272 | Z57: 329 | AA57: 370 | AB57: 358 | AC57: 364 | AD57: 341 | AE57: 330 | AF57: 360 | AG57: 416 | AH57: 427 | AI57: 439 | AJ57: 408 | AK57: 357 | AL57: FALSO | AQ57: 5697 | AR57: 56973 | AS57: 3 | AT57: 5 | AU57: 697 | AV57: 697 | AW57: ANTIOQUIA | AX57: EL SANTUARIO | AY57: Independiente | AZ57: 59 | BA57: 64 | BB57: 1398 | BC57: 1354 | BD57: 1381 | BE57: 1403 | BF57: 1411 | BG57: 1425 | BH57: 1412 | BI57: 1425 | BJ57: 1442 | BK57: 1456 | BL57: 1466 | BM57: 1490 | BN57: 1492 | BO57: 1489 | BP57: 1502 | BQ57: 1529 | BR57: 1537 | BS57: 1544 | BT57: 1551 | BU57: 1551 | BV57: 1566 | BW57: 1575 | BX57: 1572 | BY57: 1589 | BZ57: 1605 | CA57: 1559 | CG57: CUNDINAMARCA | CH57: 354704 | CI57: 399201 | CJ57: 382485 | CK57: 111637 | CL57: 118844 | CM57: 113411
A58: 76834 | B58: 768343 | C58: 3 | D58: 76 | E58: 834 | F58: 834 | G58: VALLE DEL CAUCA | H58: TULUÁ | I58: Independiente | J58: 270 | K58: 1100 | L58: 8833 | M58: 7241 | N58: 8043 | O58: 8525 | P58: 8695 | Q58: 8704 | R58: 8646 | S58: 8867 | T58: 8658 | U58: 8913 | V58: 9069 | W58: 9133 | X58: 9257 | Y58: 9169 | Z58: 8902 | AA58: 9316 | AB58: 9318 | AC58: 9373 | AD58: 9445 | AE58: 9385 | AF58: 9293 | AG58: 9019 | AH58: 9314 | AI58: 9383 | AJ58: 9418 | AK58: 9043 | AL58: FALSO | AQ58: 5129 | AR58: 51293 | AS58: 3 | AT58: 5 | AU58: 129 | AV58: 129 | AW58: ANTIOQUIA | AX58: CALDAS | AY58: Independiente | AZ58: 83 | BA58: 137 | BB58: 2516 | BC58: 2126 | BD58: 2439 | BE58: 2501 | BF58: 2554 | BG58: 2603 | BH58: 2616 | BI58: 2668 | BJ58: 2697 | BK58: 2710 | BL58: 2721 | BM58: 2757 | BN58: 2797 | BO58: 2725 | BP58: 2710 | BQ58: 2765 | BR58: 2800 | BS58: 2797 | BT58: 2804 | BU58: 2802 | BV58: 2834 | BW58: 2874 | BX58: 2869 | BY58: 2905 | BZ58: 2873 | CA58: 2750 | CG58: GUAINÍA | CH58: 14399 | CI58: 9770 | CJ58: 9993 | CK58: 1664 | CL58: 1851 | CM58: 1659
A59: 50001 | B59: 500012 | C59: 2 | D59: 50 | E59: 1 | F59: 001 | G59: META | H59: VILLAVICENCIO | I59: Dep_sec_priv | J59: 6093 | K59: 11880 | L59: 112829 | M59: 79762 | N59: 109037 | O59: 112723 | P59: 115013 | Q59: 116531 | R59: 115639 | S59: 117304 | T59: 118869 | U59: 121305 | V59: 123702 | W59: 124713 | X59: 125544 | Y59: 122887 | Z59: 120176 | AA59: 124868 | AB59: 128208 | AC59: 127329 | AD59: 127788 | AE59: 127789 | AF59: 128072 | AG59: 129562 | AH59: 131457 | AI59: 132155 | AJ59: 132180 | AK59: 124386 | AL59: FALSO | AQ59: 5761 | AR59: 57613 | AS59: 3 | AT59: 5 | AU59: 761 | AV59: 761 | AW59: ANTIOQUIA | AX59: SOPETRÁN | AY59: Independiente | AZ59: 9 | BA59: 103 | BB59: 270 | BC59: 291 | BD59: 234 | BE59: 258 | BF59: 270 | BG59: 263 | BH59: 261 | BI59: 267 | BJ59: 280 | BK59: 296 | BL59: 304 | BM59: 308 | BN59: 303 | BO59: 277 | BP59: 320 | BQ59: 345 | BR59: 359 | BS59: 358 | BT59: 355 | BU59: 354 | BV59: 360 | BW59: 350 | BX59: 366 | BY59: 364 | BZ59: 381 | CA59: 369 | CG59: GUAVIARE | CH59: 11674 | CI59: 11246 | CJ59: 11682 | CK59: 4071 | CL59: 4089 | CM59: 3903
A60: 17001 | B60: 170013 | C60: 3 | D60: 17 | E60: 1 | F60: 001 | G60: CALDAS | H60: MANIZALES | I60: Independiente | J60: 1168 | K60: 2173 | L60: 29016 | M60: 23649 | N60: 27925 | O60: 28388 | P60: 28786 | Q60: 29224 | R60: 29421 | S60: 29629 | T60: 29754 | U60: 30235 | V60: 30500 | W60: 30733 | X60: 30824 | Y60: 29972 | Z60: 29968 | AA60: 30233 | AB60: 30413 | AC60: 30557 | AD60: 30601 | AE60: 30498 | AF60: 30480 | AG60: 30569 | AH60: 30804 | AI60: 30901 | AJ60: 30913 | AK60: 29758 | AL60: FALSO | AQ60: 5055 | AR60: 50553 | AS60: 3 | AT60: 5 | AU60: 55 | AV60: 055 | AW60: ANTIOQUIA | AX60: ARGELIA | AY60: Independiente | AZ60: 6 | BA60: 60 | BB60: 104 | BC60: 107 | BD60: 69 | BE60: 78 | BF60: 81 | BG60: 83 | BH60: 98 | BI60: 99 | BJ60: 102 | BK60: 100 | BL60: 99 | BM60: 105 | BN60: 103 | BO60: 99 | BP60: 99 | BQ60: 113 | BR60: 119 | BS60: 119 | BT60: 126 | BU60: 120 | BV60: 99 | BW60: 103 | BX60: 112 | BY60: 115 | BZ60: 103 | CA60: 112 | CG60: HUILA | CH60: 104073 | CI60: 113881 | CJ60: 110113 | CK60: 42361 | CL60: 42430 | CM60: 40594
A61: 73268 | B61: 732683 | C61: 3 | D61: 73 | E61: 268 | F61: 268 | G61: TOLIMA | H61: ESPINAL | I61: Independiente | J61: 101 | K61: 813 | L61: 2861 | M61: 2483 | N61: 2430 | O61: 2728 | P61: 2859 | Q61: 2892 | R61: 2890 | S61: 2872 | T61: 2849 | U61: 2839 | V61: 3115 | W61: 3139 | X61: 3107 | Y61: 3009 | Z61: 2910 | AA61: 3237 | AB61: 3270 | AC61: 3263 | AD61: 3278 | AE61: 3174 | AF61: 2959 | AG61: 2921 | AH61: 3168 | AI61: 3208 | AJ61: 3177 | AK61: 3090 | AL61: FALSO | AQ61: 5154 | AR61: 51543 | AS61: 3 | AT61: 5 | AU61: 154 | AV61: 154 | AW61: ANTIOQUIA | AX61: CAUCASIA | AY61: Independiente | AZ61: 45 | BA61: 149 | BB61: 1719 | BC61: 1060 | BD61: 1512 | BE61: 1609 | BF61: 1622 | BG61: 1659 | BH61: 1707 | BI61: 1787 | BJ61: 1765 | BK61: 1806 | BL61: 1866 | BM61: 1908 | BN61: 1876 | BO61: 1688 | BP61: 1790 | BQ61: 1905 | BR61: 1902 | BS61: 1910 | BT61: 1905 | BU61: 1888 | BV61: 1865 | BW61: 1895 | BX61: 1916 | BY61: 1935 | BZ61: 1903 | CA61: 1630 | CG61: LA GUAJIRA | CH61: 56158 | CI61: 61523 | CJ61: 56442 | CK61: 21370 | CL61: 23748 | CM61: 20996
A62: 20001 | B62: 200013 | C62: 3 | D62: 20 | E62: 1 | F62: 001 | G62: CESAR | H62: VALLEDUPAR | I62: Independiente | J62: 709 | K62: 2877 | L62: 18475 | M62: 13825 | N62: 15839 | O62: 16527 | P62: 17377 | Q62: 17663 | R62: 17752 | S62: 17759 | T62: 17878 | U62: 18011 | V62: 18159 | W62: 18534 | X62: 18673 | Y62: 18019 | Z62: 17925 | AA62: 18326 | AB62: 18822 | AC62: 18987 | AD62: 19197 | AE62: 19435 | AF62: 19531 | AG62: 19639 | AH62: 19895 | AI62: 19732 | AJ62: 19611 | AK62: 18196 | AL62: FALSO | AQ62: 5148 | AR62: 51483 | AS62: 3 | AT62: 5 | AU62: 148 | AV62: 148 | AW62: ANTIOQUIA | AX62: EL CARMEN DE VIBORAL | AY62: Independiente | AZ62: 103 | BA62: 251 | BB62: 2066 | BC62: 2078 | BD62: 1978 | BE62: 2023 | BF62: 2035 | BG62: 2065 | BH62: 2082 | BI62: 2120 | BJ62: 2128 | BK62: 2183 | BL62: 2227 | BM62: 2304 | BN62: 2314 | BO62: 2250 | BP62: 2269 | BQ62: 2487 | BR62: 2507 | BS62: 2565 | BT62: 2592 | BU62: 2589 | BV62: 2600 | BW62: 2659 | BX62: 2735 | BY62: 2736 | BZ62: 2709 | CA62: 2507 | CG62: MAGDALENA | CH62: 114001 | CI62: 122415 | CJ62: 121866 | CK62: 30449 | CL62: 32547 | CM62: 28806
A63: 25843 | B63: 258433 | C63: 3 | D63: 25 | E63: 843 | F63: 843 | G63: CUNDINAMARCA | H63: VILLA DE SAN DIEGO DE UBATE | I63: Independiente | J63: 46 | K63: 122 | L63: 2170 | M63: 1733 | N63: 2024 | O63: 2081 | P63: 2134 | Q63: 2185 | R63: 2184 | S63: 2195 | T63: 2220 | U63: 2231 | V63: 2304 | W63: 2315 | X63: 2336 | Y63: 2313 | Z63: 2325 | AA63: 2356 | AB63: 2399 | AC63: 2389 | AD63: 2425 | AE63: 2447 | AF63: 2445 | AG63: 2435 | AH63: 2452 | AI63: 2445 | AJ63: 2453 | AK63: 2340 | AL63: FALSO | AQ63: 5002 | AR63: 50023 | AS63: 3 | AT63: 5 | AU63: 2 | AV63: 002 | AW63: ANTIOQUIA | AX63: ABEJORRAL | AY63: Independiente | AZ63: 29 | BA63: 52 | BB63: 481 | BC63: 365 | BD63: 431 | BE63: 463 | BF63: 444 | BG63: 437 | BH63: 439 | BI63: 445 | BJ63: 443 | BK63: 455 | BL63: 463 | BM63: 461 | BN63: 455 | BO63: 442 | BP63: 457 | BQ63: 458 | BR63: 491 | BS63: 489 | BT63: 489 | BU63: 497 | BV63: 482 | BW63: 465 | BX63: 464 | BY63: 442 | BZ63: 436 | CA63: 440 | CG63: META | CH63: 166805 | CI63: 184907 | CJ63: 174843 | CK63: 41558 | CL63: 44892 | CM63: 43204
A64: 25899 | B64: 258993 | C64: 3 | D64: 25 | E64: 899 | F64: 899 | G64: CUNDINAMARCA | H64: ZIPAQUIRÁ | I64: Independiente | J64: 223 | K64: 478 | L64: 7073 | M64: 5587 | N64: 6812 | O64: 7028 | P64: 7215 | Q64: 7290 | R64: 7377 | S64: 7525 | T64: 7580 | U64: 7598 | V64: 7650 | W64: 7686 | X64: 7679 | Y64: 7696 | Z64: 7694 | AA64: 7938 | AB64: 8011 | AC64: 7983 | AD64: 8018 | AE64: 7997 | AF64: 8064 | AG64: 8074 | AH64: 8136 | AI64: 8107 | AJ64: 7934 | AK64: 7574 | AL64: FALSO | AQ64: 5400 | AR64: 54003 | AS64: 3 | AT64: 5 | AU64: 400 | AV64: 400 | AW64: ANTIOQUIA | AX64: LA UNIÓN | AY64: Independiente | AZ64: 22 | BA64: 67 | BB64: 1254 | BC64: 1038 | BD64: 1212 | BE64: 1207 | BF64: 1202 | BG64: 1213 | BH64: 1221 | BI64: 1215 | BJ64: 1222 | BK64: 1236 | BL64: 1240 | BM64: 1265 | BN64: 1284 | BO64: 1266 | BP64: 1262 | BQ64: 1290 | BR64: 1299 | BS64: 1306 | BT64: 1311 | BU64: 1324 | BV64: 1325 | BW64: 1377 | BX64: 1363 | BY64: 1362 | BZ64: 1368 | CA64: 1320 | CG64: NARIÑO | CH64: 100915 | CI64: 104732 | CJ64: 100935 | CK64: 45253 | CL64: 45822 | CM64: 43724
A65: 88001 | B65: 880013 | C65: 3 | D65: 88 | E65: 1 | F65: 001 | G65: ARCHIPIÉLAGO DE SAN ANDRÉS, PROVIDENCIA Y SANTA CATALINA | H65: SAN ANDRÉS | I65: Independiente | J65: 223 | K65: 408 | L65: 5962 | M65: 3704 | N65: 4950 | O65: 5133 | P65: 5416 | Q65: 5676 | R65: 5589 | S65: 5600 | T65: 5511 | U65: 5571 | V65: 5666 | W65: 5971 | X65: 6171 | Y65: 5713 | Z65: 5640 | AA65: 6312 | AB65: 7201 | AC65: 6956 | AD65: 7102 | AE65: 6492 | AF65: 6004 | AG65: 5916 | AH65: 5934 | AI65: 6125 | AJ65: 6285 | AK65: 5253 | AL65: FALSO | AQ65: 5847 | AR65: 58473 | AS65: 3 | AT65: 5 | AU65: 847 | AV65: 847 | AW65: ANTIOQUIA | AX65: URRAO | AY65: Independiente | AZ65: 25 | BA65: 93 | BB65: 460 | BC65: 441 | BD65: 405 | BE65: 399 | BF65: 416 | BG65: 452 | BH65: 467 | BI65: 470 | BJ65: 494 | BK65: 505 | BL65: 513 | BM65: 519 | BN65: 533 | BO65: 507 | BP65: 480 | BQ65: 527 | BR65: 515 | BS65: 512 | BT65: 508 | BU65: 516 | BV65: 531 | BW65: 518 | BX65: 539 | BY65: 549 | BZ65: 546 | CA65: 550 | CG65: SANTANDER | CH65: 371768 | CI65: 409439 | CJ65: 397554 | CK65: 111564 | CL65: 117743 | CM65: 113074
A66: 54001 | B66: 540011 | C66: 1 | D66: 54 | E66: 1 | F66: 001 | G66: NORTE DE SANTANDER | H66: CÚCUTA | I66: Dep_No_priv | J66: 773 | K66: 5004 | L66: 24407 | M66: 21956 | N66: 18586 | O66: 20994 | P66: 23095 | Q66: 24294 | R66: 22945 | S66: 23095 | T66: 22751 | U66: 27882 | V66: 29643 | W66: 29521 | X66: 28742 | Y66: 24123 | Z66: 21127 | AA66: 23867 | AB66: 26081 | AC66: 29906 | AD66: 33811 | AE66: 33553 | AF66: 35943 | AG66: 37575 | AH66: 41815 | AI66: 40941 | AJ66: 40747 | AK66: 24615 | AL66: =IF(SUM(L66:AK66)=0,"VERDADERO","FALSO") -> FALSO | AQ66: 5021 | AR66: 50213 | AS66: 3 | AT66: 5 | AU66: 21 | AV66: 021 | AW66: ANTIOQUIA | AX66: ALEJANDRÍA | AY66: Independiente | AZ66: 4 | BA66: 46 | BB66: 118 | BC66: 118 | BD66: 78 | BE66: 103 | BF66: 116 | BG66: 127 | BH66: 132 | BI66: 136 | BJ66: 138 | BK66: 138 | BL66: 131 | BM66: 131 | BN66: 137 | BO66: 124 | BP66: 134 | BQ66: 146 | BR66: 146 | BS66: 154 | BT66: 154 | BU66: 152 | BV66: 145 | BW66: 153 | BX66: 154 | BY66: 160 | BZ66: 149 | CA66: 138 | CG66: PUTUMAYO | CH66: 22619 | CI66: 24142 | CJ66: 23120 | CK66: 10804 | CL66: 11360 | CM66: 10602
A67: 54001 | B67: 540013 | C67: 3 | D67: 54 | E67: 1 | F67: 001 | G67: NORTE DE SANTANDER | H67: CÚCUTA | I67: Independiente | J67: 1672 | K67: 5234 | L67: 32485 | M67: 25551 | N67: 29864 | O67: 30336 | P67: 31505 | Q67: 31084 | R67: 32002 | S67: 32279 | T67: 32641 | U67: 33133 | V67: 33660 | W67: 33831 | X67: 34192 | Y67: 33654 | Z67: 32842 | AA67: 33871 | AB67: 34141 | AC67: 34027 | AD67: 34379 | AE67: 33921 | AF67: 33572 | AG67: 33425 | AH67: 34265 | AI67: 34647 | AJ67: 34426 | AK67: 32558 | AL67: FALSO | AQ67: 5615 | AR67: 56151 | AS67: 1 | AT67: 5 | AU67: 615 | AV67: 615 | AW67: ANTIOQUIA | AX67: RIONEGRO | AY67: Dep_No_priv | AZ67: 229 | BA67: 293 | BB67: 4984 | BC67: 3346 | BD67: 4248 | BE67: 4806 | BF67: 4907 | BG67: 5046 | BH67: 5205 | BI67: 4917 | BJ67: 4705 | BK67: 4880 | BL67: 5085 | BM67: 5364 | BN67: 5402 | BO67: 4518 | BP67: 4281 | BQ67: 4807 | BR67: 5085 | BS67: 5316 | BT67: 5298 | BU67: 5147 | BV67: 4337 | BW67: 4848 | BX67: 5214 | BY67: 5272 | BZ67: 5147 | CA67: 4296 | CG67: QUINDÍO | CH67: 83418 | CI67: 91256 | CJ67: 89298 | CK67: 29782 | CL67: 31768 | CM67: 30339
A68: 25815 | B68: 258152 | C68: 2 | D68: 25 | E68: 815 | F68: 815 | G68: CUNDINAMARCA | H68: TOCAIMA | I68: Dep_sec_priv | J68: 44 | K68: 36 | L68: 603 | M68: 552 | N68: 669 | O68: 671 | P68: 666 | Q68: 687 | R68: 679 | S68: 680 | T68: 701 | U68: 712 | V68: 718 | W68: 743 | X68: 760 | Y68: 761 | Z68: 776 | AA68: 800 | AB68: 818 | AC68: 813 | AD68: 809 | AE68: 792 | AF68: 814 | AG68: 811 | AH68: 826 | AI68: 835 | AJ68: 780 | AK68: 798 | AL68: FALSO | AQ68: 5030 | AR68: 50303 | AS68: 3 | AT68: 5 | AU68: 30 | AV68: 030 | AW68: ANTIOQUIA | AX68: AMAGÁ | AY68: Independiente | AZ68: 37 | BA68: 107 | BB68: 625 | BC68: 676 | BD68: 586 | BE68: 630 | BF68: 662 | BG68: 658 | BH68: 673 | BI68: 683 | BJ68: 681 | BK68: 696 | BL68: 704 | BM68: 709 | BN68: 731 | BO68: 728 | BP68: 716 | BQ68: 794 | BR68: 798 | BS68: 804 | BT68: 802 | BU68: 869 | BV68: 831 | BW68: 860 | BX68: 887 | BY68: 903 | BZ68: 909 | CA68: 869 | CG68: RISARALDA | CH68: 181465 | CI68: 198104 | CJ68: 194440 | CK68: 53046 | CL68: 54677 | CM68: 52838
A69: 25386 | B69: 253863 | C69: 3 | D69: 25 | E69: 386 | F69: 386 | G69: CUNDINAMARCA | H69: LA MESA | I69: Independiente | J69: 37 | K69: 155 | L69: 1737 | M69: 1377 | N69: 1689 | O69: 1729 | P69: 1754 | Q69: 1829 | R69: 1842 | S69: 1844 | T69: 1863 | U69: 1858 | V69: 1873 | W69: 1852 | X69: 1878 | Y69: 1856 | Z69: 1788 | AA69: 1861 | AB69: 1859 | AC69: 1856 | AD69: 1960 | AE69: 1900 | AF69: 1949 | AG69: 1977 | AH69: 1976 | AI69: 2019 | AJ69: 1956 | AK69: 1890 | AL69: FALSO | AQ69: 5031 | AR69: 50313 | AS69: 3 | AT69: 5 | AU69: 31 | AV69: 031 | AW69: ANTIOQUIA | AX69: AMALFI | AY69: Independiente | AZ69: 32 | BA69: 92 | BB69: 425 | BC69: 387 | BD69: 349 | BE69: 388 | BF69: 402 | BG69: 431 | BH69: 427 | BI69: 440 | BJ69: 448 | BK69: 458 | BL69: 465 | BM69: 489 | BN69: 485 | BO69: 470 | BP69: 448 | BQ69: 478 | BR69: 466 | BS69: 457 | BT69: 480 | BU69: 493 | BV69: 477 | BW69: 487 | BX69: 488 | BY69: 501 | BZ69: 500 | CA69: 469 | CG69: NORTE DE SANTANDER | CH69: 156040 | CI69: 173921 | CJ69: 166269 | CK69: 47866 | CL69: 50061 | CM69: 47192
A70: 17013 | B70: 170133 | C70: 3 | D70: 17 | E70: 13 | F70: 013 | G70: CALDAS | H70: AGUADAS | I70: Independiente | J70: 35 | K70: 84 | L70: 623 | M70: 638 | N70: 619 | O70: 644 | P70: 636 | Q70: 636 | R70: 656 | S70: 643 | T70: 657 | U70: 664 | V70: 679 | W70: 688 | X70: 713 | Y70: 710 | Z70: 693 | AA70: 725 | AB70: 739 | AC70: 743 | AD70: 722 | AE70: 743 | AF70: 750 | AG70: 730 | AH70: 761 | AI70: 777 | AJ70: 762 | AK70: 745 | AL70: FALSO | AQ70: 5034 | AR70: 50343 | AS70: 3 | AT70: 5 | AU70: 34 | AV70: 034 | AW70: ANTIOQUIA | AX70: ANDES | AY70: Independiente | AZ70: 47 | BA70: 102 | BB70: 1334 | BC70: 1122 | BD70: 1200 | BE70: 1248 | BF70: 1252 | BG70: 1254 | BH70: 1266 | BI70: 1263 | BJ70: 1294 | BK70: 1299 | BL70: 1332 | BM70: 1346 | BN70: 1356 | BO70: 1283 | BP70: 1306 | BQ70: 1354 | BR70: 1351 | BS70: 1348 | BT70: 1387 | BU70: 1399 | BV70: 1390 | BW70: 1408 | BX70: 1442 | BY70: 1431 | BZ70: 1424 | CA70: 1375 | CG70: SUCRE | CH70: 50442 | CI70: 54944 | CJ70: 53097 | CK70: 16725 | CL70: 17350 | CM70: 15874
A71: 50689 | B71: 506893 | C71: 3 | D71: 50 | E71: 689 | F71: 689 | G71: META | H71: SAN MARTÍN | I71: Independiente | J71: 41 | K71: 161 | L71: 668 | M71: 556 | N71: 543 | O71: 595 | P71: 631 | Q71: 642 | R71: 681 | S71: 688 | T71: 680 | U71: 711 | V71: 759 | W71: 746 | X71: 805 | Y71: 747 | Z71: 729 | AA71: 774 | AB71: 785 | AC71: 785 | AD71: 747 | AE71: 781 | AF71: 765 | AG71: 740 | AH71: 747 | AI71: 752 | AJ71: 729 | AK71: 705 | AL71: FALSO | AQ71: 5368 | AR71: 53683 | AS71: 3 | AT71: 5 | AU71: 368 | AV71: 368 | AW71: ANTIOQUIA | AX71: JERICÓ | AY71: Independiente | AZ71: 9 | BA71: 45 | BB71: 447 | BC71: 420 | BD71: 425 | BE71: 443 | BF71: 443 | BG71: 457 | BH71: 463 | BI71: 463 | BJ71: 467 | BK71: 476 | BL71: 487 | BM71: 495 | BN71: 496 | BO71: 490 | BP71: 492 | BQ71: 500 | BR71: 506 | BS71: 505 | BT71: 512 | BU71: 508 | BV71: 511 | BW71: 519 | BX71: 520 | BY71: 514 | BZ71: 513 | CA71: 496 | CG71: TOLIMA | CH71: 149020 | CI71: 155342 | CJ71: 150329 | CK71: 50331 | CL71: 51986 | CM71: 50201
A72: 25875 | B72: 258753 | C72: 3 | D72: 25 | E72: 875 | F72: 875 | G72: CUNDINAMARCA | H72: VILLETA | I72: Independiente | J72: 32 | K72: 83 | L72: 2136 | M72: 1503 | N72: 2117 | O72: 2117 | P72: 2147 | Q72: 2188 | R72: 2181 | S72: 2200 | T72: 2205 | U72: 2183 | V72: 2212 | W72: 2178 | X72: 2193 | Y72: 2159 | Z72: 2159 | AA72: 2180 | AB72: 2214 | AC72: 2231 | AD72: 2245 | AE72: 2292 | AF72: 2305 | AG72: 2340 | AH72: 2339 | AI72: 2315 | AJ72: 2276 | AK72: 2116 | AL72: FALSO | AQ72: 5353 | AR72: 53533 | AS72: 3 | AT72: 5 | AU72: 353 | AV72: 353 | AW72: ANTIOQUIA | AX72: HISPANIA | AY72: Independiente | AZ72: 2 | BA72: 15 | BB72: 92 | BC72: 78 | BD72: 67 | BE72: 79 | BF72: 73 | BG72: 81 | BH72: 85 | BI72: 85 | BJ72: 83 | BK72: 85 | BL72: 85 | BM72: 87 | BN72: 91 | BO72: 86 | BP72: 86 | BQ72: 87 | BR72: 89 | BS72: 91 | BT72: 90 | BU72: 85 | BV72: 79 | BW72: 88 | BX72: 99 | BY72: 90 | BZ72: 95 | CA72: 89 | CG72: VALLE DEL CAUCA | CH72: 872136 | CI72: 949738 | CJ72: 918138 | CK72: 208715 | CL72: 216958 | CM72: 209106
A73: 15176 | B73: 151763 | C73: 3 | D73: 15 | E73: 176 | F73: 176 | G73: BOYACÁ | H73: CHIQUINQUIRÁ | I73: Independiente | J73: 129 | K73: 352 | L73: 2994 | M73: 2243 | N73: 2787 | O73: 2826 | P73: 2919 | Q73: 2927 | R73: 2961 | S73: 2990 | T73: 3050 | U73: 3032 | V73: 3092 | W73: 3145 | X73: 3102 | Y73: 3043 | Z73: 2917 | AA73: 3004 | AB73: 3017 | AC73: 3024 | AD73: 3056 | AE73: 3070 | AF73: 3015 | AG73: 3055 | AH73: 3059 | AI73: 3053 | AJ73: 3054 | AK73: 2895 | AL73: FALSO | AQ73: 5038 | AR73: 50383 | AS73: 3 | AT73: 5 | AU73: 38 | AV73: 038 | AW73: ANTIOQUIA | AX73: ANGOSTURA | AY73: Independiente | AZ73: 5 | BA73: 36 | BB73: 139 | BC73: 102 | BD73: 84 | BE73: 108 | BF73: 109 | BG73: 108 | BH73: 110 | BI73: 114 | BJ73: 106 | BK73: 110 | BL73: 114 | BM73: 114 | BN73: 113 | BO73: 115 | BP73: 94 | BQ73: 108 | BR73: 112 | BS73: 111 | BT73: 110 | BU73: 109 | BV73: 107 | BW73: 118 | BX73: 120 | BY73: 121 | BZ73: 125 | CA73: 116 | CG73: VAUPÉS | CH73: 3574 | CI73: 2232 | CJ73: 2275 | CK73: 1429 | CL73: 1511 | CM73: 1343
A74: 85410 | B74: 854103 | C74: 3 | D74: 85 | E74: 410 | F74: 410 | G74: CASANARE | H74: TAURAMENA | I74: Independiente | J74: 86 | K74: 266 | L74: 715 | M74: 713 | N74: 579 | O74: 640 | P74: 676 | Q74: 694 | R74: 702 | S74: 697 | T74: 731 | U74: 728 | V74: 762 | W74: 759 | X74: 766 | Y74: 797 | Z74: 720 | AA74: 752 | AB74: 800 | AC74: 801 | AD74: 808 | AE74: 797 | AF74: 857 | AG74: 850 | AH74: 863 | AI74: 865 | AJ74: 861 | AK74: 1035 | AL74: FALSO | AQ74: 5031 | AR74: 50312 | AS74: 2 | AT74: 5 | AU74: 31 | AV74: 031 | AW74: ANTIOQUIA | AX74: AMALFI | AY74: Dep_sec_priv | AZ74: 59 | BA74: 293 | BB74: 1950 | BC74: 1206 | BD74: 1852 | BE74: 2008 | BF74: 2022 | BG74: 2070 | BH74: 2229 | BI74: 2084 | BJ74: 2159 | BK74: 2553 | BL74: 2119 | BM74: 1949 | BN74: 2107 | BO74: 1963 | BP74: 2037 | BQ74: 1922 | BR74: 2308 | BS74: 1997 | BT74: 2051 | BU74: 2095 | BV74: 2107 | BW74: 2246 | BX74: 2344 | BY74: 2249 | BZ74: 2202 | CA74: 2292 | CG74: VICHADA | CH74: 84214 | CI74: 140112 | CJ74: 143860 | CK74: 2100 | CL74: 2489 | CM74: 2299
A75: 15516 | B75: 155163 | C75: 3 | D75: 15 | E75: 516 | F75: 516 | G75: BOYACÁ | H75: PAIPA | I75: Independiente | J75: 45 | K75: 212 | L75: 1257 | M75: 1127 | N75: 1199 | O75: 1270 | P75: 1292 | Q75: 1318 | R75: 1347 | S75: 1350 | T75: 1384 | U75: 1390 | V75: 1406 | W75: 1427 | X75: 1428 | Y75: 1417 | Z75: 1389 | AA75: 1415 | AB75: 1448 | AC75: 1456 | AD75: 1474 | AE75: 1489 | AF75: 1498 | AG75: 1503 | AH75: 1527 | AI75: 1518 | AJ75: 1495 | AK75: 1439 | AL75: FALSO | AQ75: 5042 | AR75: 50422 | AS75: 2 | AT75: 5 | AU75: 42 | AV75: 042 | AW75: ANTIOQUIA | AX75: SANTAFÉ DE ANTIOQUIA | AY75: Dep_sec_priv | AZ75: 470 | BA75: 880 | BB75: 5784 | BC75: 4516 | BD75: 5585 | BE75: 5858 | BF75: 6019 | BG75: 6122 | BH75: 6168 | BI75: 6169 | BJ75: 6140 | BK75: 6195 | BL75: 6151 | BM75: 6225 | BN75: 6399 | BO75: 6294 | BP75: 6100 | BQ75: 6254 | BR75: 6626 | BS75: 6719 | BT75: 6874 | BU75: 6998 | BV75: 7149 | BW75: 7165 | BX75: 7176 | BY75: 7124 | BZ75: 6867 | CA75: 6652 | CG75: Sin Info | CH75: 530 | CI75: 563 | CJ75: 356 | CK75: 23771 | CL75: 26341 | CM75: 25664
A76: 15001 | B76: 150012 | C76: 2 | D76: 15 | E76: 1 | F76: 001 | G76: BOYACÁ | H76: TUNJA | I76: Dep_sec_priv | J76: 2164 | K76: 5737 | L76: 49362 | M76: 37148 | N76: 47142 | O76: 48708 | P76: 49281 | Q76: 49575 | R76: 49273 | S76: 49080 | T76: 50099 | U76: 51190 | V76: 51770 | W76: 51896 | X76: 54074 | Y76: 52458 | Z76: 50385 | AA76: 53004 | AB76: 53225 | AC76: 53915 | AD76: 54322 | AE76: 55127 | AF76: 55063 | AG76: 55894 | AH76: 56538 | AI76: 56832 | AJ76: 57775 | AK76: 55349 | AL76: FALSO | AQ76: 5837 | AR76: 58373 | AS76: 3 | AT76: 5 | AU76: 837 | AV76: 837 | AW76: ANTIOQUIA | AX76: TURBO | AY76: Independiente | AZ76: 37 | BA76: 254 | BB76: 1484 | BC76: 1092 | BD76: 1142 | BE76: 1220 | BF76: 1374 | BG76: 1407 | BH76: 1452 | BI76: 1491 | BJ76: 1490 | BK76: 1536 | BL76: 1510 | BM76: 1512 | BN76: 1522 | BO76: 1384 | BP76: 1324 | BQ76: 1430 | BR76: 1445 | BS76: 1475 | BT76: 1460 | BU76: 1469 | BV76: 1478 | BW76: 1479 | BX76: 1486 | BY76: 1532 | BZ76: 1485 | CA76: 1363
A77: 25035 | B77: 250353 | C77: 3 | D77: 25 | E77: 35 | F77: 035 | G77: CUNDINAMARCA | H77: ANAPOIMA | I77: Independiente | J77: 23 | K77: 36 | L77: 584 | M77: 460 | N77: 604 | O77: 622 | P77: 625 | Q77: 629 | R77: 637 | S77: 649 | T77: 634 | U77: 636 | V77: 653 | W77: 638 | X77: 631 | Y77: 605 | Z77: 641 | AA77: 674 | AB77: 748 | AC77: 658 | AD77: 641 | AE77: 638 | AF77: 658 | AG77: 658 | AH77: 654 | AI77: 656 | AJ77: 636 | AK77: 615 | AL77: FALSO | AQ77: 5079 | AR77: 50793 | AS77: 3 | AT77: 5 | AU77: 79 | AV77: 079 | AW77: ANTIOQUIA | AX77: BARBOSA | AY77: Independiente | AZ77: 27 | BA77: 101 | BB77: 941 | BC77: 837 | BD77: 863 | BE77: 930 | BF77: 976 | BG77: 998 | BH77: 1032 | BI77: 1041 | BJ77: 1063 | BK77: 1101 | BL77: 1112 | BM77: 1121 | BN77: 1136 | BO77: 1114 | BP77: 1018 | BQ77: 1101 | BR77: 1112 | BS77: 1103 | BT77: 1121 | BU77: 1123 | BV77: 1123 | BW77: 1125 | BX77: 1149 | BY77: 1134 | BZ77: 1107 | CA77: 1074
A78: 52001 | B78: 520013 | C78: 3 | D78: 52 | E78: 1 | F78: 001 | G78: NARIÑO | H78: PASTO | I78: Independiente | J78: 1503 | K78: 3292 | L78: 23493 | M78: 17692 | N78: 20950 | O78: 22240 | P78: 22869 | Q78: 22976 | R78: 23011 | S78: 22955 | T78: 23005 | U78: 23442 | V78: 23768 | W78: 24322 | X78: 24735 | Y78: 24103 | Z78: 23075 | AA78: 23989 | AB78: 24267 | AC78: 24442 | AD78: 24621 | AE78: 24443 | AF78: 24205 | AG78: 24634 | AH78: 24935 | AI78: 24980 | AJ78: 24772 | AK78: 23391 | AL78: FALSO | AQ78: 5237 | AR78: 52373 | AS78: 3 | AT78: 5 | AU78: 237 | AV78: 237 | AW78: ANTIOQUIA | AX78: DON MATÍAS | AY78: Independiente | AZ78: 41 | BA78: 113 | BB78: 1967 | BC78: 1702 | BD78: 1925 | BE78: 1952 | BF78: 1971 | BG78: 1962 | BH78: 1956 | BI78: 1963 | BJ78: 1973 | BK78: 1986 | BL78: 2007 | BM78: 2016 | BN78: 2015 | BO78: 2008 | BP78: 2035 | BQ78: 2088 | BR78: 2082 | BS78: 2075 | BT78: 2049 | BU78: 2054 | BV78: 2075 | BW78: 2083 | BX78: 2104 | BY78: 2118 | BZ78: 2103 | CA78: 2010
A79: 5631 | B79: 56313 | C79: 3 | D79: 5 | E79: 631 | F79: 631 | G79: ANTIOQUIA | H79: SABANETA | I79: Independiente | J79: 372 | K79: 687 | L79: 6414 | M79: 6084 | N79: 6067 | O79: 6338 | P79: 6470 | Q79: 6480 | R79: 6571 | S79: 6648 | T79: 6698 | U79: 6806 | V79: 6910 | W79: 6922 | X79: 7031 | Y79: 7051 | Z79: 7192 | AA79: 7546 | AB79: 7593 | AC79: 7526 | AD79: 7631 | AE79: 7639 | AF79: 7865 | AG79: 8080 | AH79: 8139 | AI79: 8319 | AJ79: 8230 | AK79: 7992 | AL79: FALSO | AQ79: 5093 | AR79: 50933 | AS79: 3 | AT79: 5 | AU79: 93 | AV79: 093 | AW79: ANTIOQUIA | AX79: BETULIA | AY79: Independiente | AZ79: 3 | BA79: 32 | BB79: 227 | BC79: 177 | BD79: 150 | BE79: 164 | BF79: 174 | BG79: 168 | BH79: 169 | BI79: 174 | BJ79: 181 | BK79: 180 | BL79: 192 | BM79: 192 | BN79: 191 | BO79: 195 | BP79: 186 | BQ79: 184 | BR79: 203 | BS79: 204 | BT79: 188 | BU79: 184 | BV79: 188 | BW79: 193 | BX79: 190 | BY79: 199 | BZ79: 208 | CA79: 202
A80: 68572 | B80: 685723 | C80: 3 | D80: 68 | E80: 572 | F80: 572 | G80: SANTANDER | H80: PUENTE NACIONAL | I80: Independiente | J80: 14 | K80: 75 | L80: 336 | M80: 341 | N80: 302 | O80: 318 | P80: 345 | Q80: 349 | R80: 344 | S80: 360 | T80: 374 | U80: 377 | V80: 368 | W80: 370 | X80: 372 | Y80: 378 | Z80: 359 | AA80: 389 | AB80: 398 | AC80: 394 | AD80: 400 | AE80: 387 | AF80: 384 | AG80: 396 | AH80: 399 | AI80: 407 | AJ80: 387 | AK80: 414 | AL80: FALSO | AQ80: 5101 | AR80: 51013 | AS80: 3 | AT80: 5 | AU80: 101 | AV80: 101 | AW80: ANTIOQUIA | AX80: CIUDAD BOLÍVAR | AY80: Independiente | AZ80: 32 | BA80: 96 | BB80: 804 | BC80: 743 | BD80: 740 | BE80: 775 | BF80: 811 | BG80: 813 | BH80: 813 | BI80: 808 | BJ80: 822 | BK80: 838 | BL80: 840 | BM80: 857 | BN80: 864 | BO80: 862 | BP80: 846 | BQ80: 876 | BR80: 882 | BS80: 889 | BT80: 893 | BU80: 909 | BV80: 907 | BW80: 913 | BX80: 929 | BY80: 923 | BZ80: 921 | CA80: 897
A81: 25175 | B81: 251752 | C81: 2 | D81: 25 | E81: 175 | F81: 175 | G81: CUNDINAMARCA | H81: CHÍA | I81: Dep_sec_priv | J81: 1127 | K81: 2121 | L81: 24531 | M81: 16259 | N81: 24370 | O81: 25734 | P81: 25282 | Q81: 26122 | R81: 26210 | S81: 25835 | T81: 25745 | U81: 26442 | V81: 26739 | W81: 26599 | X81: 27122 | Y81: 25929 | Z81: 26709 | AA81: 27639 | AB81: 27724 | AC81: 27836 | AD81: 28449 | AE81: 28222 | AF81: 29095 | AG81: 30047 | AH81: 30074 | AI81: 29798 | AJ81: 30685 | AK81: 28388 | AL81: FALSO | AQ81: 5113 | AR81: 51132 | AS81: 2 | AT81: 5 | AU81: 113 | AV81: 113 | AW81: ANTIOQUIA | AX81: BURITICÁ | AY81: Dep_sec_priv | AZ81: 30 | BA81: 80 | BB81: 539 | BC81: 489 | BD81: 674 | BE81: 769 | BF81: 789 | BG81: 814 | BH81: 862 | BI81: 811 | BJ81: 828 | BK81: 882 | BL81: 918 | BM81: 927 | BN81: 892 | BO81: 843 | BP81: 812 | BQ81: 832 | BR81: 908 | BS81: 915 | BT81: 925 | BU81: 908 | BV81: 844 | BW81: 813 | BX81: 773 | BY81: 774 | BZ81: 856 | CA81: 803
A82: 44001 | B82: 440013 | C82: 3 | D82: 44 | E82: 1 | F82: 001 | G82: LA GUAJIRA | H82: RIOHACHA | I82: Independiente | J82: 619 | K82: 4750 | L82: 10253 | M82: 8148 | N82: 5589 | O82: 5963 | P82: 7890 | Q82: 8924 | R82: 9442 | S82: 9581 | T82: 9798 | U82: 9983 | V82: 10114 | W82: 10239 | X82: 10376 | Y82: 9946 | Z82: 6145 | AA82: 7788 | AB82: 10089 | AC82: 10831 | AD82: 11099 | AE82: 11048 | AF82: 10387 | AG82: 10755 | AH82: 11101 | AI82: 11290 | AJ82: 11056 | AK82: 9950 | AL82: FALSO | AQ82: 5120 | AR82: 51201 | AS82: 1 | AT82: 5 | AU82: 120 | AV82: 120 | AW82: ANTIOQUIA | AX82: CÁCERES | AY82: Dep_No_priv | AZ82: 4 | BA82: 8 | BB82: 382 | BC82: 99 | BD82: 364 | BE82: 372 | BF82: 361 | BG82: 359 | BH82: 365 | BI82: 369 | BJ82: 371 | BK82: 367 | BL82: 373 | BM82: 378 | BN82: 391 | BO82: 400 | BP82: 383 | BQ82: 389 | BR82: 402 | BS82: 386 | BT82: 391 | BU82: 388 | BV82: 380 | BW82: 374 | BX82: 381 | BY82: 380 | BZ82: 377 | CA82: 371
A83: 25377 | B83: 253773 | C83: 3 | D83: 25 | E83: 377 | F83: 377 | G83: CUNDINAMARCA | H83: LA CALERA | I83: Independiente | J83: 49 | K83: 142 | L83: 1807 | M83: 1438 | N83: 1707 | O83: 1795 | P83: 1824 | Q83: 1835 | R83: 1845 | S83: 1851 | T83: 1867 | U83: 1877 | V83: 1913 | W83: 1924 | X83: 1906 | Y83: 1957 | Z83: 1979 | AA83: 1981 | AB83: 1978 | AC83: 2031 | AD83: 2027 | AE83: 1996 | AF83: 2020 | AG83: 2060 | AH83: 2106 | AI83: 2106 | AJ83: 2047 | AK83: 1954 | AL83: FALSO | AQ83: 5887 | AR83: 58873 | AS83: 3 | AT83: 5 | AU83: 887 | AV83: 887 | AW83: ANTIOQUIA | AX83: YARUMAL | AY83: Independiente | AZ83: 47 | BA83: 117 | BB83: 1288 | BC83: 1226 | BD83: 1206 | BE83: 1260 | BF83: 1261 | BG83: 1255 | BH83: 1265 | BI83: 1288 | BJ83: 1340 | BK83: 1374 | BL83: 1398 | BM83: 1405 | BN83: 1423 | BO83: 1396 | BP83: 1325 | BQ83: 1394 | BR83: 1409 | BS83: 1410 | BT83: 1433 | BU83: 1438 | BV83: 1420 | BW83: 1422 | BX83: 1462 | BY83: 1474 | BZ83: 1487 | CA83: 1467
A84: 25001 | B84: 250013 | C84: 3 | D84: 25 | E84: 1 | F84: 001 | G84: CUNDINAMARCA | H84: AGUA DE DIOS | I84: Independiente | J84: 26 | K84: 56 | L84: 575 | M84: 447 | N84: 524 | O84: 530 | P84: 608 | Q84: 611 | R84: 592 | S84: 601 | T84: 634 | U84: 643 | V84: 651 | W84: 655 | X84: 645 | Y84: 649 | Z84: 621 | AA84: 667 | AB84: 691 | AC84: 625 | AD84: 628 | AE84: 630 | AF84: 623 | AG84: 609 | AH84: 599 | AI84: 584 | AJ84: 571 | AK84: 543 | AL84: FALSO | AQ84: 5134 | AR84: 51342 | AS84: 2 | AT84: 5 | AU84: 134 | AV84: 134 | AW84: ANTIOQUIA | AX84: CAMPAMENTO | AY84: Dep_sec_priv | AZ84: 2 | BA84: 29 | BB84: 53 | BC84: 50 | BD84: 30 | BE84: 46 | BF84: 62 | BG84: 68 | BH84: 93 | BI84: 84 | BJ84: 72 | BK84: 82 | BL84: 91 | BM84: 100 | BN84: 111 | BO84: 125 | BP84: 128 | BQ84: 121 | BR84: 106 | BS84: 111 | BT84: 88 | BU84: 49 | BV84: 50 | BW84: 48 | BX84: 59 | BY84: 74 | BZ84: 79 | CA84: 77
A85: 25815 | B85: 258153 | C85: 3 | D85: 25 | E85: 815 | F85: 815 | G85: CUNDINAMARCA | H85: TOCAIMA | I85: Independiente | J85: 27 | K85: 57 | L85: 360 | M85: 309 | N85: 333 | O85: 368 | P85: 372 | Q85: 375 | R85: 398 | S85: 403 | T85: 388 | U85: 405 | V85: 393 | W85: 411 | X85: 418 | Y85: 410 | Z85: 368 | AA85: 428 | AB85: 439 | AC85: 437 | AD85: 433 | AE85: 426 | AF85: 428 | AG85: 433 | AH85: 439 | AI85: 430 | AJ85: 395 | AK85: 398 | AL85: FALSO | AQ85: 5134 | AR85: 51343 | AS85: 3 | AT85: 5 | AU85: 134 | AV85: 134 | AW85: ANTIOQUIA | AX85: CAMPAMENTO | AY85: Independiente | AZ85: 1 | BA85: 32 | BB85: 105 | BC85: 111 | BD85: 95 | BE85: 102 | BF85: 102 | BG85: 98 | BH85: 102 | BI85: 100 | BJ85: 101 | BK85: 109 | BL85: 107 | BM85: 108 | BN85: 111 | BO85: 105 | BP85: 103 | BQ85: 103 | BR85: 105 | BS85: 103 | BT85: 105 | BU85: 109 | BV85: 103 | BW85: 112 | BX85: 111 | BY85: 117 | BZ85: 115 | CA85: 117
A86: 25473 | B86: 254733 | C86: 3 | D86: 25 | E86: 473 | F86: 473 | G86: CUNDINAMARCA | H86: MOSQUERA | I86: Independiente | J86: 166 | K86: 429 | L86: 4379 | M86: 3855 | N86: 4224 | O86: 4382 | P86: 4519 | Q86: 4584 | R86: 4660 | S86: 4711 | T86: 4797 | U86: 4857 | V86: 4958 | W86: 5009 | X86: 5058 | Y86: 4987 | Z86: 5031 | AA86: 5230 | AB86: 5301 | AC86: 5358 | AD86: 5369 | AE86: 5355 | AF86: 5491 | AG86: 5475 | AH86: 5571 | AI86: 5516 | AJ86: 5520 | AK86: 5277 | AL86: FALSO | AQ86: 5148 | AR86: 51482 | AS86: 2 | AT86: 5 | AU86: 148 | AV86: 148 | AW86: ANTIOQUIA | AX86: EL CARMEN DE VIBORAL | AY86: Dep_sec_priv | AZ86: 288 | BA86: 745 | BB86: 7079 | BC86: 5893 | BD86: 7147 | BE86: 7432 | BF86: 7644 | BG86: 7674 | BH86: 7689 | BI86: 7623 | BJ86: 7739 | BK86: 7826 | BL86: 7917 | BM86: 8060 | BN86: 8173 | BO86: 8041 | BP86: 8143 | BQ86: 8354 | BR86: 8495 | BS86: 8654 | BT86: 8846 | BU86: 8835 | BV86: 8921 | BW86: 9058 | BX86: 9256 | BY86: 9208 | BZ86: 9143 | CA86: 8823
A87: 20011 | B87: 200113 | C87: 3 | D87: 20 | E87: 11 | F87: 011 | G87: CESAR | H87: AGUACHICA | I87: Independiente | J87: 154 | K87: 505 | L87: 3526 | M87: 2258 | N87: 3065 | O87: 2937 | P87: 3020 | Q87: 3023 | R87: 3060 | S87: 3112 | T87: 3101 | U87: 3175 | V87: 3169 | W87: 3211 | X87: 3199 | Y87: 3142 | Z87: 3051 | AA87: 3312 | AB87: 3352 | AC87: 3353 | AD87: 3374 | AE87: 3375 | AF87: 3405 | AG87: 3420 | AH87: 3483 | AI87: 3444 | AJ87: 3284 | AK87: 3036 | AL87: FALSO | AQ87: 5604 | AR87: 56043 | AS87: 3 | AT87: 5 | AU87: 604 | AV87: 604 | AW87: ANTIOQUIA | AX87: REMEDIOS | AY87: Independiente | AZ87: 4 | BA87: 53 | BB87: 402 | BC87: 290 | BD87: 349 | BE87: 330 | BF87: 345 | BG87: 364 | BH87: 381 | BI87: 379 | BJ87: 383 | BK87: 395 | BL87: 394 | BM87: 394 | BN87: 407 | BO87: 388 | BP87: 358 | BQ87: 393 | BR87: 395 | BS87: 362 | BT87: 374 | BU87: 373 | BV87: 353 | BW87: 344 | BX87: 361 | BY87: 377 | BZ87: 374 | CA87: 350
A88: 73873 | B88: 738733 | C88: 3 | D88: 73 | E88: 873 | F88: 873 | G88: TOLIMA | H88: VILLARRICA | I88: Independiente | J88: 9 | K88: 35 | L88: 67 | M88: 79 | N88: 46 | O88: 68 | P88: 77 | Q88: 80 | R88: 82 | S88: 87 | T88: 85 | U88: 85 | V88: 86 | W88: 85 | X88: 86 | Y88: 87 | Z88: 73 | AA88: 87 | AB88: 88 | AC88: 87 | AD88: 86 | AE88: 86 | AF88: 85 | AG88: 89 | AH88: 96 | AI88: 90 | AJ88: 90 | AK88: 90 | AL88: FALSO | AQ88: 5154 | AR88: 51542 | AS88: 2 | AT88: 5 | AU88: 154 | AV88: 154 | AW88: ANTIOQUIA | AX88: CAUCASIA | AY88: Dep_sec_priv | AZ88: 250 | BA88: 1064 | BB88: 7864 | BC88: 5198 | BD88: 7011 | BE88: 8004 | BF88: 8234 | BG88: 8454 | BH88: 7728 | BI88: 7813 | BJ88: 7961 | BK88: 8055 | BL88: 8184 | BM88: 8358 | BN88: 8304 | BO88: 8193 | BP88: 8025 | BQ88: 8499 | BR88: 8753 | BS88: 9311 | BT88: 9020 | BU88: 8939 | BV88: 9248 | BW88: 9040 | BX88: 9141 | BY88: 9015 | BZ88: 9020 | CA88: 8302
A89: 5318 | B89: 53183 | C89: 3 | D89: 5 | E89: 318 | F89: 318 | G89: ANTIOQUIA | H89: GUARNE | I89: Independiente | J89: 45 | K89: 219 | L89: 1641 | M89: 1572 | N89: 1465 | O89: 1537 | P89: 1610 | Q89: 1641 | R89: 1676 | S89: 1711 | T89: 1752 | U89: 1798 | V89: 1851 | W89: 1872 | X89: 1899 | Y89: 1851 | Z89: 1793 | AA89: 1938 | AB89: 1951 | AC89: 1941 | AD89: 1952 | AE89: 1953 | AF89: 1994 | AG89: 2025 | AH89: 2058 | AI89: 2057 | AJ89: 2082 | AK89: 2001 | AL89: FALSO | AQ89: 5861 | AR89: 58612 | AS89: 2 | AT89: 5 | AU89: 861 | AV89: 861 | AW89: ANTIOQUIA | AX89: VENECIA | AY89: Dep_sec_priv | AZ89: 43 | BA89: 91 | BB89: 1634 | BC89: 786 | BD89: 1573 | BE89: 1552 | BF89: 1508 | BG89: 1514 | BH89: 1482 | BI89: 1453 | BJ89: 1443 | BK89: 1410 | BL89: 1430 | BM89: 1425 | BN89: 1253 | BO89: 1190 | BP89: 1136 | BQ89: 1170 | BR89: 1185 | BS89: 1129 | BT89: 1119 | BU89: 1143 | BV89: 1190 | BW89: 1241 | BX89: 1244 | BY89: 1219 | BZ89: 1209 | CA89: 1182
A90: 25269 | B90: 252693 | C90: 3 | D90: 25 | E90: 269 | F90: 269 | G90: CUNDINAMARCA | H90: FACATATIVÁ | I90: Independiente | J90: 182 | K90: 378 | L90: 5104 | M90: 3877 | N90: 4814 | O90: 5007 | P90: 5101 | Q90: 5179 | R90: 5211 | S90: 5267 | T90: 5269 | U90: 5259 | V90: 5344 | W90: 5378 | X90: 5418 | Y90: 5220 | Z90: 5224 | AA90: 5434 | AB90: 5456 | AC90: 5469 | AD90: 5478 | AE90: 5431 | AF90: 5467 | AG90: 5439 | AH90: 5455 | AI90: 5438 | AJ90: 5440 | AK90: 5114 | AL90: FALSO | AQ90: 5172 | AR90: 51723 | AS90: 3 | AT90: 5 | AU90: 172 | AV90: 172 | AW90: ANTIOQUIA | AX90: CHIGORODÓ | AY90: Independiente | AZ90: 22 | BA90: 139 | BB90: 719 | BC90: 525 | BD90: 547 | BE90: 592 | BF90: 648 | BG90: 689 | BH90: 737 | BI90: 762 | BJ90: 767 | BK90: 774 | BL90: 797 | BM90: 822 | BN90: 873 | BO90: 793 | BP90: 641 | BQ90: 859 | BR90: 806 | BS90: 842 | BT90: 840 | BU90: 865 | BV90: 846 | BW90: 870 | BX90: 857 | BY90: 886 | BZ90: 877 | CA90: 770
A91: 25785 | B91: 257853 | C91: 3 | D91: 25 | E91: 785 | F91: 785 | G91: CUNDINAMARCA | H91: TABIO | I91: Independiente | J91: 40 | K91: 86 | L91: 1152 | M91: 865 | N91: 1113 | O91: 1134 | P91: 1153 | Q91: 1155 | R91: 1156 | S91: 1146 | T91: 1144 | U91: 1153 | V91: 1161 | W91: 1197 | X91: 1190 | Y91: 1160 | Z91: 1175 | AA91: 1244 | AB91: 1255 | AC91: 1249 | AD91: 1266 | AE91: 1260 | AF91: 1262 | AG91: 1282 | AH91: 1304 | AI91: 1294 | AJ91: 1269 | AK91: 1160 | AL91: FALSO | AQ91: 5154 | AR91: 51541 | AS91: 1 | AT91: 5 | AU91: 154 | AV91: 154 | AW91: ANTIOQUIA | AX91: CAUCASIA | AY91: Dep_No_priv | AZ91: 59 | BA91: 56 | BB91: 1823 | BC91: 762 | BD91: 1781 | BE91: 1913 | BF91: 2075 | BG91: 2130 | BH91: 2150 | BI91: 2071 | BJ91: 2026 | BK91: 2083 | BL91: 2055 | BM91: 2048 | BN91: 2049 | BO91: 1935 | BP91: 1830 | BQ91: 1836 | BR91: 1939 | BS91: 1952 | BT91: 1967 | BU91: 1954 | BV91: 1846 | BW91: 1806 | BX91: 1835 | BY91: 1816 | BZ91: 1819 | CA91: 1767
A92: 25769 | B92: 257693 | C92: 3 | D92: 25 | E92: 769 | F92: 769 | G92: CUNDINAMARCA | H92: SUBACHOQUE | I92: Independiente | J92: 17 | K92: 23 | L92: 701 | M92: 539 | N92: 700 | O92: 707 | P92: 709 | Q92: 714 | R92: 712 | S92: 727 | T92: 724 | U92: 724 | V92: 734 | W92: 726 | X92: 706 | Y92: 703 | Z92: 711 | AA92: 709 | AB92: 716 | AC92: 716 | AD92: 723 | AE92: 720 | AF92: 725 | AG92: 733 | AH92: 736 | AI92: 735 | AJ92: 726 | AK92: 687 | AL92: FALSO | AQ92: 5809 | AR92: 58092 | AS92: 2 | AT92: 5 | AU92: 809 | AV92: 809 | AW92: ANTIOQUIA | AX92: TITIRIBÍ | AY92: Dep_sec_priv | AZ92: 21 | BA92: 54 | BB92: 993 | BC92: 667 | BD92: 982 | BE92: 1027 | BF92: 998 | BG92: 1004 | BH92: 992 | BI92: 1001 | BJ92: 999 | BK92: 1015 | BL92: 1025 | BM92: 1033 | BN92: 1058 | BO92: 1038 | BP92: 1027 | BQ92: 1036 | BR92: 1044 | BS92: 1040 | BT92: 1099 | BU92: 1095 | BV92: 1095 | BW92: 1104 | BX92: 1111 | BY92: 1098 | BZ92: 1085 | CA92: 1070
A93: 25322 | B93: 253222 | C93: 2 | D93: 25 | E93: 322 | F93: 322 | G93: CUNDINAMARCA | H93: GUASCA | I93: Dep_sec_priv | J93: 57 | K93: 131 | L93: 1364 | M93: 1262 | N93: 1363 | O93: 1386 | P93: 1369 | Q93: 1396 | R93: 1403 | S93: 1659 | T93: 1672 | U93: 1678 | V93: 1751 | W93: 1909 | X93: 1932 | Y93: 1865 | Z93: 1804 | AA93: 1853 | AB93: 1853 | AC93: 1896 | AD93: 1675 | AE93: 1748 | AF93: 1748 | AG93: 1761 | AH93: 1722 | AI93: 1721 | AJ93: 1763 | AK93: 1744 | AL93: FALSO | AQ93: 5190 | AR93: 51903 | AS93: 3 | AT93: 5 | AU93: 190 | AV93: 190 | AW93: ANTIOQUIA | AX93: CISNEROS | AY93: Independiente | AZ93: 12 | BA93: 34 | BB93: 210 | BC93: 178 | BD93: 190 | BE93: 205 | BF93: 219 | BG93: 239 | BH93: 237 | BI93: 240 | BJ93: 240 | BK93: 250 | BL93: 251 | BM93: 252 | BN93: 260 | BO93: 258 | BP93: 234 | BQ93: 251 | BR93: 233 | BS93: 228 | BT93: 232 | BU93: 229 | BV93: 231 | BW93: 253 | BX93: 252 | BY93: 249 | BZ93: 246 | CA93: 240
A94: 19548 | B94: 195483 | C94: 3 | D94: 19 | E94: 548 | F94: 548 | G94: CAUCA | H94: PIENDAMÓ | I94: Independiente | J94: 27 | K94: 199 | L94: 720 | M94: 604 | N94: 495 | O94: 644 | P94: 660 | Q94: 674 | R94: 695 | S94: 715 | T94: 732 | U94: 730 | V94: 756 | W94: 760 | X94: 764 | Y94: 737 | Z94: 645 | AA94: 701 | AB94: 757 | AC94: 761 | AD94: 761 | AE94: 756 | AF94: 736 | AG94: 785 | AH94: 773 | AI94: 758 | AJ94: 760 | AK94: 732 | AL94: FALSO | AQ94: 5206 | AR94: 52063 | AS94: 3 | AT94: 5 | AU94: 206 | AV94: 206 | AW94: ANTIOQUIA | AX94: CONCEPCIÓN | AY94: Independiente | AZ94: 5 | BA94: 35 | BB94: 131 | BC94: 129 | BD94: 123 | BE94: 120 | BF94: 123 | BG94: 127 | BH94: 136 | BI94: 140 | BJ94: 142 | BK94: 143 | BL94: 153 | BM94: 150 | BN94: 154 | BO94: 143 | BP94: 147 | BQ94: 145 | BR94: 141 | BS94: 145 | BT94: 150 | BU94: 154 | BV94: 146 | BW94: 138 | BX94: 140 | BY94: 137 | BZ94: 149 | CA94: 150
A95: 73770 | B95: 737703 | C95: 3 | D95: 73 | E95: 770 | F95: 770 | G95: TOLIMA | H95: SUÁREZ | I95: Independiente | J95: 4 | K95: 24 | L95: 58 | M95: 61 | N95: 47 | O95: 59 | P95: 60 | Q95: 62 | R95: 62 | S95: 60 | T95: 64 | U95: 67 | V95: 65 | W95: 66 | X95: 68 | Y95: 65 | Z95: 58 | AA95: 73 | AB95: 73 | AC95: 72 | AD95: 72 | AE95: 72 | AF95: 67 | AG95: 72 | AH95: 77 | AI95: 81 | AJ95: 71 | AK95: 71 | AL95: FALSO | AQ95: 5197 | AR95: 51973 | AS95: 3 | AT95: 5 | AU95: 197 | AV95: 197 | AW95: ANTIOQUIA | AX95: COCORNÁ | AY95: Independiente | AZ95: 5 | BA95: 45 | BB95: 216 | BC95: 200 | BD95: 193 | BE95: 193 | BF95: 214 | BG95: 217 | BH95: 225 | BI95: 223 | BJ95: 228 | BK95: 232 | BL95: 238 | BM95: 243 | BN95: 247 | BO95: 255 | BP95: 243 | BQ95: 259 | BR95: 254 | BS95: 259 | BT95: 263 | BU95: 261 | BV95: 257 | BW95: 259 | BX95: 267 | BY95: 259 | BZ95: 256 | CA95: 233
A96: 25286 | B96: 252863 | C96: 3 | D96: 25 | E96: 286 | F96: 286 | G96: CUNDINAMARCA | H96: FUNZA | I96: Independiente | J96: 247 | K96: 528 | L96: 4335 | M96: 3475 | N96: 4087 | O96: 4310 | P96: 4302 | Q96: 4410 | R96: 4453 | S96: 4544 | T96: 4624 | U96: 4700 | V96: 4721 | W96: 4808 | X96: 4810 | Y96: 4532 | Z96: 4731 | AA96: 4981 | AB96: 5061 | AC96: 5033 | AD96: 4898 | AE96: 4926 | AF96: 4928 | AG96: 4576 | AH96: 4674 | AI96: 4619 | AJ96: 4588 | AK96: 4349 | AL96: FALSO | AQ96: 5209 | AR96: 52093 | AS96: 3 | AT96: 5 | AU96: 209 | AV96: 209 | AW96: ANTIOQUIA | AX96: CONCORDIA | AY96: Independiente | AZ96: 11 | BA96: 22 | BB96: 410 | BC96: 305 | BD96: 363 | BE96: 365 | BF96: 374 | BG96: 376 | BH96: 379 | BI96: 383 | BJ96: 378 | BK96: 379 | BL96: 383 | BM96: 383 | BN96: 381 | BO96: 378 | BP96: 366 | BQ96: 383 | BR96: 382 | BS96: 377 | BT96: 380 | BU96: 372 | BV96: 378 | BW96: 381 | BX96: 378 | BY96: 388 | BZ96: 388 | CA96: 367
A97: 15322 | B97: 153223 | C97: 3 | D97: 15 | E97: 322 | F97: 322 | G97: BOYACÁ | H97: GUATEQUE | I97: Independiente | J97: 13 | K97: 41 | L97: 432 | M97: 310 | N97: 404 | O97: 414 | P97: 423 | Q97: 411 | R97: 397 | S97: 395 | T97: 403 | U97: 398 | V97: 403 | W97: 398 | X97: 394 | Y97: 394 | Z97: 391 | AA97: 387 | AB97: 395 | AC97: 415 | AD97: 412 | AE97: 412 | AF97: 400 | AG97: 410 | AH97: 413 | AI97: 415 | AJ97: 394 | AK97: 375 | AL97: FALSO | AQ97: 5861 | AR97: 58613 | AS97: 3 | AT97: 5 | AU97: 861 | AV97: 861 | AW97: ANTIOQUIA | AX97: VENECIA | AY97: Independiente | AZ97: 9 | BA97: 36 | BB97: 189 | BC97: 194 | BD97: 160 | BE97: 174 | BF97: 179 | BG97: 177 | BH97: 193 | BI97: 193 | BJ97: 204 | BK97: 208 | BL97: 212 | BM97: 213 | BN97: 223 | BO97: 213 | BP97: 203 | BQ97: 229 | BR97: 226 | BS97: 221 | BT97: 221 | BU97: 215 | BV97: 213 | BW97: 218 | BX97: 225 | BY97: 226 | BZ97: 225 | CA97: 228
A98: 54001 | B98: 540012 | C98: 2 | D98: 54 | E98: 1 | F98: 001 | G98: NORTE DE SANTANDER | H98: CÚCUTA | I98: Dep_sec_priv | J98: 5540 | K98: 15382 | L98: 115218 | M98: 88085 | N98: 110300 | O98: 117243 | P98: 119860 | Q98: 120768 | R98: 120445 | S98: 121720 | T98: 124212 | U98: 126467 | V98: 127780 | W98: 129764 | X98: 132390 | Y98: 129958 | Z98: 126483 | AA98: 130420 | AB98: 132900 | AC98: 131776 | AD98: 134813 | AE98: 136031 | AF98: 136697 | AG98: 137971 | AH98: 139193 | AI98: 139520 | AJ98: 143389 | AK98: 137485 | AL98: FALSO | AQ98: 5051 | AR98: 50513 | AS98: 3 | AT98: 5 | AU98: 51 | AV98: 051 | AW98: ANTIOQUIA | AX98: ARBOLETES | AY98: Independiente | AZ98: 7 | BA98: 108 | BB98: 345 | BC98: 292 | BD98: 232 | BE98: 239 | BF98: 282 | BG98: 334 | BH98: 357 | BI98: 362 | BJ98: 369 | BK98: 387 | BL98: 405 | BM98: 410 | BN98: 414 | BO98: 415 | BP98: 263 | BQ98: 354 | BR98: 348 | BS98: 336 | BT98: 353 | BU98: 377 | BV98: 362 | BW98: 376 | BX98: 391 | BY98: 400 | BZ98: 409 | CA98: 348
A99: 50313 | B99: 503133 | C99: 3 | D99: 50 | E99: 313 | F99: 313 | G99: META | H99: GRANADA | I99: Independiente | J99: 105 | K99: 539 | L99: 2189 | M99: 1889 | N99: 1849 | O99: 2073 | P99: 2118 | Q99: 2118 | R99: 2150 | S99: 2194 | T99: 2194 | U99: 2254 | V99: 2288 | W99: 2286 | X99: 2329 | Y99: 2269 | Z99: 2178 | AA99: 2340 | AB99: 2523 | AC99: 2467 | AD99: 2479 | AE99: 2485 | AF99: 2417 | AG99: 2497 | AH99: 2504 | AI99: 2515 | AJ99: 2484 | AK99: 2395 | AL99: FALSO | AQ99: 5240 | AR99: 52403 | AS99: 3 | AT99: 5 | AU99: 240 | AV99: 240 | AW99: ANTIOQUIA | AX99: EBÉJICO | AY99: Independiente | AZ99: 5 | BA99: 41 | BB99: 158 | BC99: 147 | BD99: 143 | BE99: 146 | BF99: 150 | BG99: 152 | BH99: 156 | BI99: 163 | BJ99: 161 | BK99: 164 | BL99: 166 | BM99: 168 | BN99: 169 | BO99: 171 | BP99: 170 | BQ99: 193 | BR99: 176 | BS99: 221 | BT99: 190 | BU99: 179 | BV99: 184 | BW99: 199 | BX99: 214 | BY99: 186 | BZ99: 182 | CA99: 179
A100: 17380 | B100: 173803 | C100: 3 | D100: 17 | E100: 380 | F100: 380 | G100: CALDAS | H100: LA DORADA | I100: Independiente | J100: 110 | K100: 624 | L100: 3385 | M100: 2949 | N100: 3068 | O100: 3216 | P100: 3296 | Q100: 3312 | R100: 3361 | S100: 3398 | T100: 3414 | U100: 3439 | V100: 3567 | W100: 3651 | X100: 3687 | Y100: 3596 | Z100: 3551 | AA100: 3662 | AB100: 3743 | AC100: 3700 | AD100: 3712 | AE100: 3686 | AF100: 3715 | AG100: 3706 | AH100: 3642 | AI100: 3741 | AJ100: 3741 | AK100: 3568 | AL100: FALSO | AQ100: 5686 | AR100: 56863 | AS100: 3 | AT100: 5 | AU100: 686 | AV100: 686 | AW100: ANTIOQUIA | AX100: SANTA ROSA DE OSOS | AY100: Independiente | AZ100: 31 | BA100: 90 | BB100: 1808 | BC100: 1492 | BD100: 1737 | BE100: 1777 | BF100: 1814 | BG100: 1835 | BH100: 1847 | BI100: 1886 | BJ100: 1878 | BK100: 1903 | BL100: 1959 | BM100: 2004 | BN100: 2011 | BO100: 1975 | BP100: 1948 | BQ100: 2013 | BR100: 2013 | BS100: 2003 | BT100: 1992 | BU100: 2008 | BV100: 2032 | BW100: 2027 | BX100: 2034 | BY100: 2044 | BZ100: 2029 | CA100: 1964
A101: 68307 | B101: 683073 | C101: 3 | D101: 68 | E101: 307 | F101: 307 | G101: SANTANDER | H101: GIRÓN | I101: Independiente | J101: 175 | K101: 598 | L101: 3349 | M101: 2956 | N101: 3057 | O101: 3186 | P101: 3271 | Q101: 3321 | R101: 3351 | S101: 3494 | T101: 3580 | U101: 3572 | V101: 3648 | W101: 3690 | X101: 3619 | Y101: 3552 | Z101: 3612 | AA101: 3959 | AB101: 3971 | AC101: 3992 | AD101: 4032 | AE101: 4033 | AF101: 3963 | AG101: 3963 | AH101: 4000 | AI101: 4149 | AJ101: 4102 | AK101: 3887 | AL101: FALSO | AQ101: 5284 | AR101: 52843 | AS101: 3 | AT101: 5 | AU101: 284 | AV101: 284 | AW101: ANTIOQUIA | AX101: FRONTINO | AY101: Independiente | AZ101: 3 | BA101: 61 | BB101: 280 | BC101: 247 | BD101: 219 | BE101: 232 | BF101: 263 | BG101: 273 | BH101: 272 | BI101: 310 | BJ101: 324 | BK101: 337 | BL101: 325 | BM101: 340 | BN101: 329 | BO101: 328 | BP101: 295 | BQ101: 302 | BR101: 310 | BS101: 310 | BT101: 320 | BU101: 320 | BV101: 318 | BW101: 337 | BX101: 342 | BY101: 336 | BZ101: 341 | CA101: 311
A102: 68081 | B102: 680813 | C102: 3 | D102: 68 | E102: 81 | F102: 081 | G102: SANTANDER | H102: BARRANCABERMEJA | I102: Independiente | J102: 480 | K102: 2943 | L102: 7633 | M102: 7507 | N102: 5959 | O102: 6394 | P102: 6692 | Q102: 6796 | R102: 7049 | S102: 7322 | T102: 7497 | U102: 7596 | V102: 7805 | W102: 7909 | X102: 8007 | Y102: 7889 | Z102: 7287 | AA102: 8453 | AB102: 8693 | AC102: 8705 | AD102: 8636 | AE102: 8130 | AF102: 7289 | AG102: 7287 | AH102: 8434 | AI102: 9017 | AJ102: 9086 | AK102: 8696 | AL102: FALSO | AQ102: 5284 | AR102: 52842 | AS102: 2 | AT102: 5 | AU102: 284 | AV102: 284 | AW102: ANTIOQUIA | AX102: FRONTINO | AY102: Dep_sec_priv | AZ102: 12 | BA102: 85 | BB102: 411 | BC102: 370 | BD102: 355 | BE102: 387 | BF102: 400 | BG102: 418 | BH102: 418 | BI102: 401 | BJ102: 388 | BK102: 399 | BL102: 420 | BM102: 421 | BN102: 428 | BO102: 471 | BP102: 424 | BQ102: 467 | BR102: 490 | BS102: 477 | BT102: 520 | BU102: 551 | BV102: 530 | BW102: 559 | BX102: 579 | BY102: 564 | BZ102: 595 | CA102: 604
A103: 73624 | B103: 736243 | C103: 3 | D103: 73 | E103: 624 | F103: 624 | G103: TOLIMA | H103: ROVIRA | I103: Independiente | J103: 10 | K103: 54 | L103: 198 | M103: 196 | N103: 181 | O103: 191 | P103: 213 | Q103: 206 | R103: 217 | S103: 216 | T103: 217 | U103: 217 | V103: 217 | W103: 223 | X103: 224 | Y103: 213 | Z103: 218 | AA103: 239 | AB103: 231 | AC103: 237 | AD103: 283 | AE103: 240 | AF103: 228 | AG103: 224 | AH103: 228 | AI103: 237 | AJ103: 224 | AK103: 222 | AL103: FALSO | AQ103: 5679 | AR103: 56792 | AS103: 2 | AT103: 5 | AU103: 679 | AV103: 679 | AW103: ANTIOQUIA | AX103: SANTA BÁRBARA | AY103: Dep_sec_priv | AZ103: 20 | BA103: 71 | BB103: 697 | BC103: 464 | BD103: 738 | BE103: 692 | BF103: 693 | BG103: 715 | BH103: 740 | BI103: 788 | BJ103: 773 | BK103: 778 | BL103: 838 | BM103: 865 | BN103: 891 | BO103: 892 | BP103: 939 | BQ103: 969 | BR103: 1067 | BS103: 1041 | BT103: 1044 | BU103: 1006 | BV103: 993 | BW103: 962 | BX103: 952 | BY103: 927 | BZ103: 906 | CA103: 872
A104: 25599 | B104: 255993 | C104: 3 | D104: 25 | E104: 599 | F104: 599 | G104: CUNDINAMARCA | H104: APULO | I104: Independiente | J104: 8 | K104: 28 | L104: 176 | M104: 176 | N104: 182 | O104: 182 | P104: 183 | Q104: 183 | R104: 185 | S104: 185 | T104: 181 | U104: 190 | V104: 191 | W104: 196 | X104: 197 | Y104: 211 | Z104: 197 | AA104: 210 | AB104: 217 | AC104: 232 | AD104: 233 | AE104: 233 | AF104: 242 | AG104: 238 | AH104: 241 | AI104: 242 | AJ104: 238 | AK104: 253 | AL104: FALSO | AQ104: 5172 | AR104: 51722 | AS104: 2 | AT104: 5 | AU104: 172 | AV104: 172 | AW104: ANTIOQUIA | AX104: CHIGORODÓ | AY104: Dep_sec_priv | AZ104: 114 | BA104: 380 | BB104: 3871 | BC104: 2885 | BD104: 3779 | BE104: 4006 | BF104: 3975 | BG104: 4174 | BH104: 4148 | BI104: 4108 | BJ104: 4254 | BK104: 4117 | BL104: 4171 | BM104: 4209 | BN104: 4265 | BO104: 4133 | BP104: 4002 | BQ104: 4323 | BR104: 4277 | BS104: 4326 | BT104: 4356 | BU104: 4390 | BV104: 4428 | BW104: 4470 | BX104: 4440 | BY104: 4360 | BZ104: 4374 | CA104: 4503
A105: 76147 | B105: 761473 | C105: 3 | D105: 76 | E105: 147 | F105: 147 | G105: VALLE DEL CAUCA | H105: CARTAGO | I105: Independiente | J105: 155 | K105: 462 | L105: 6712 | M105: 5420 | N105: 6436 | O105: 6526 | P105: 6688 | Q105: 6682 | R105: 6650 | S105: 6632 | T105: 6617 | U105: 6708 | V105: 6763 | W105: 6759 | X105: 6817 | Y105: 6719 | Z105: 6694 | AA105: 6766 | AB105: 6790 | AC105: 6754 | AD105: 6797 | AE105: 6730 | AF105: 6720 | AG105: 6765 | AH105: 6768 | AI105: 6741 | AJ105: 6779 | AK105: 6524 | AL105: FALSO | AQ105: 5686 | AR105: 56862 | AS105: 2 | AT105: 5 | AU105: 686 | AV105: 686 | AW105: ANTIOQUIA | AX105: SANTA ROSA DE OSOS | AY105: Dep_sec_priv | AZ105: 215 | BA105: 997 | BB105: 6132 | BC105: 4496 | BD105: 5840 | BE105: 5979 | BF105: 6254 | BG105: 6337 | BH105: 6375 | BI105: 6447 | BJ105: 6538 | BK105: 6357 | BL105: 6356 | BM105: 6488 | BN105: 6448 | BO105: 6165 | BP105: 5988 | BQ105: 6333 | BR105: 6373 | BS105: 6391 | BT105: 6445 | BU105: 6530 | BV105: 6546 | BW105: 6533 | BX105: 6566 | BY105: 6591 | BZ105: 6526 | CA105: 6325
A106: 5266 | B106: 52663 | C106: 3 | D106: 5 | E106: 266 | F106: 266 | G106: ANTIOQUIA | H106: ENVIGADO | I106: Independiente | J106: 562 | K106: 896 | L106: 15145 | M106: 14489 | N106: 15057 | O106: 15505 | P106: 15791 | Q106: 15872 | R106: 15934 | S106: 16158 | T106: 16228 | U106: 16404 | V106: 16604 | W106: 16799 | X106: 16979 | Y106: 16890 | Z106: 16853 | AA106: 17248 | AB106: 17419 | AC106: 17506 | AD106: 17688 | AE106: 17949 | AF106: 18150 | AG106: 18668 | AH106: 18850 | AI106: 18829 | AJ106: 18881 | AK106: 18467 | AL106: FALSO | AQ106: 5674 | AR106: 56742 | AS106: 2 | AT106: 5 | AU106: 674 | AV106: 674 | AW106: ANTIOQUIA | AX106: SAN VICENTE | AY106: Dep_sec_priv | AZ106: 23 | BA106: 63 | BB106: 735 | BC106: 608 | BD106: 765 | BE106: 742 | BF106: 737 | BG106: 770 | BH106: 781 | BI106: 806 | BJ106: 868 | BK106: 922 | BL106: 929 | BM106: 940 | BN106: 922 | BO106: 881 | BP106: 907 | BQ106: 928 | BR106: 953 | BS106: 1005 | BT106: 1000 | BU106: 1021 | BV106: 1017 | BW106: 1032 | BX106: 1039 | BY106: 1014 | BZ106: 1014 | CA106: 976
A107: 81001 | B107: 810013 | C107: 3 | D107: 81 | E107: 1 | F107: 001 | G107: ARAUCA | H107: ARAUCA | I107: Independiente | J107: 308 | K107: 848 | L107: 4764 | M107: 3252 | N107: 4273 | O107: 4576 | P107: 4809 | Q107: 4921 | R107: 4951 | S107: 4970 | T107: 5188 | U107: 5061 | V107: 4706 | W107: 4774 | X107: 4760 | Y107: 4568 | Z107: 4490 | AA107: 4621 | AB107: 4580 | AC107: 4503 | AD107: 4501 | AE107: 4499 | AF107: 4416 | AG107: 4358 | AH107: 4438 | AI107: 4433 | AJ107: 4395 | AK107: 4123 | AL107: FALSO | AQ107: 5308 | AR107: 53082 | AS107: 2 | AT107: 5 | AU107: 308 | AV107: 308 | AW107: ANTIOQUIA | AX107: GIRARDOTA | AY107: Dep_sec_priv | AZ107: 316 | BA107: 576 | BB107: 9157 | BC107: 8175 | BD107: 9168 | BE107: 9466 | BF107: 9682 | BG107: 9808 | BH107: 9771 | BI107: 9962 | BJ107: 10031 | BK107: 10182 | BL107: 10238 | BM107: 10287 | BN107: 10367 | BO107: 10295 | BP107: 10366 | BQ107: 10423 | BR107: 10680 | BS107: 10694 | BT107: 10705 | BU107: 10837 | BV107: 10910 | BW107: 11076 | BX107: 11076 | BY107: 10975 | BZ107: 11036 | CA107: 10995
A108: 15001 | B108: 150013 | C108: 3 | D108: 15 | E108: 1 | F108: 001 | G108: BOYACÁ | H108: TUNJA | I108: Independiente | J108: 898 | K108: 2785 | L108: 17445 | M108: 13992 | N108: 15612 | O108: 16254 | P108: 16913 | Q108: 17115 | R108: 17105 | S108: 17403 | T108: 17540 | U108: 17521 | V108: 17739 | W108: 18007 | X108: 18211 | Y108: 17811 | Z108: 16824 | AA108: 17623 | AB108: 17713 | AC108: 18023 | AD108: 18071 | AE108: 18150 | AF108: 18332 | AG108: 18167 | AH108: 18624 | AI108: 18336 | AJ108: 18092 | AK108: 17386 | AL108: FALSO | AQ108: 5093 | AR108: 50932 | AS108: 2 | AT108: 5 | AU108: 93 | AV108: 093 | AW108: ANTIOQUIA | AX108: BETULIA | AY108: Dep_sec_priv | AZ108: 36 | BA108: 69 | BB108: 357 | BC108: 496 | BD108: 307 | BE108: 326 | BF108: 354 | BG108: 402 | BH108: 459 | BI108: 505 | BJ108: 493 | BK108: 513 | BL108: 447 | BM108: 405 | BN108: 419 | BO108: 471 | BP108: 437 | BQ108: 429 | BR108: 459 | BS108: 493 | BT108: 517 | BU108: 481 | BV108: 510 | BW108: 492 | BX108: 478 | BY108: 481 | BZ108: 929 | CA108: 810
A109: 76520 | B109: 765203 | C109: 3 | D109: 76 | E109: 520 | F109: 520 | G109: VALLE DEL CAUCA | H109: PALMIRA | I109: Independiente | J109: 415 | K109: 1086 | L109: 14821 | M109: 12173 | N109: 14010 | O109: 14197 | P109: 14434 | Q109: 14420 | R109: 14336 | S109: 14424 | T109: 14627 | U109: 14772 | V109: 14959 | W109: 14841 | X109: 14980 | Y109: 14898 | Z109: 14501 | AA109: 14953 | AB109: 14996 | AC109: 14923 | AD109: 15106 | AE109: 15114 | AF109: 15152 | AG109: 15318 | AH109: 15406 | AI109: 15418 | AJ109: 15672 | AK109: 15139 | AL109: FALSO | AQ109: 5264 | AR109: 52642 | AS109: 2 | AT109: 5 | AU109: 264 | AV109: 264 | AW109: ANTIOQUIA | AX109: ENTRERRIOS | AY109: Dep_sec_priv | AZ109: 100 | BA109: 153 | BB109: 2267 | BC109: 1589 | BD109: 2213 | BE109: 2252 | BF109: 2265 | BG109: 2313 | BH109: 2355 | BI109: 2359 | BJ109: 2343 | BK109: 2374 | BL109: 2391 | BM109: 2172 | BN109: 2115 | BO109: 2117 | BP109: 2131 | BQ109: 2148 | BR109: 2213 | BS109: 2243 | BT109: 2257 | BU109: 2287 | BV109: 2204 | BW109: 2209 | BX109: 2234 | BY109: 2220 | BZ109: 2217 | CA109: 2152
A110: 68679 | B110: 686793 | C110: 3 | D110: 68 | E110: 679 | F110: 679 | G110: SANTANDER | H110: SAN GIL | I110: Independiente | J110: 175 | K110: 641 | L110: 4507 | M110: 3492 | N110: 4007 | O110: 4242 | P110: 4407 | Q110: 4484 | R110: 4547 | S110: 4627 | T110: 4652 | U110: 4621 | V110: 4700 | W110: 4729 | X110: 4752 | Y110: 4652 | Z110: 4750 | AA110: 4825 | AB110: 4843 | AC110: 4838 | AD110: 4859 | AE110: 4902 | AF110: 4781 | AG110: 4696 | AH110: 4713 | AI110: 4823 | AJ110: 4785 | AK110: 4601 | AL110: FALSO | AQ110: 5306 | AR110: 53063 | AS110: 3 | AT110: 5 | AU110: 306 | AV110: 306 | AW110: ANTIOQUIA | AX110: GIRALDO | AY110: Independiente | AZ110: 5 | BA110: 24 | BB110: 86 | BC110: 80 | BD110: 71 | BE110: 81 | BF110: 83 | BG110: 80 | BH110: 86 | BI110: 96 | BJ110: 89 | BK110: 87 | BL110: 92 | BM110: 93 | BN110: 96 | BO110: 84 | BP110: 96 | BQ110: 110 | BR110: 107 | BS110: 111 | BT110: 109 | BU110: 111 | BV110: 113 | BW110: 98 | BX110: 116 | BY110: 113 | BZ110: 114 | CA110: 97
A111: 68861 | B111: 688613 | C111: 3 | D111: 68 | E111: 861 | F111: 861 | G111: SANTANDER | H111: VÉLEZ | I111: Independiente | J111: 24 | K111: 92 | L111: 898 | M111: 692 | N111: 821 | O111: 861 | P111: 883 | Q111: 899 | R111: 914 | S111: 904 | T111: 913 | U111: 912 | V111: 915 | W111: 902 | X111: 910 | Y111: 883 | Z111: 877 | AA111: 909 | AB111: 905 | AC111: 899 | AD111: 900 | AE111: 890 | AF111: 924 | AG111: 943 | AH111: 958 | AI111: 957 | AJ111: 942 | AK111: 942 | AL111: FALSO | AQ111: 5237 | AR111: 52372 | AS111: 2 | AT111: 5 | AU111: 237 | AV111: 237 | AW111: ANTIOQUIA | AX111: DON MATÍAS | AY111: Dep_sec_priv | AZ111: 90 | BA111: 1052 | BB111: 3538 | BC111: 2674 | BD111: 3468 | BE111: 3674 | BF111: 3790 | BG111: 3762 | BH111: 3764 | BI111: 3797 | BJ111: 3864 | BK111: 3877 | BL111: 3913 | BM111: 3901 | BN111: 3874 | BO111: 3829 | BP111: 3764 | BQ111: 3905 | BR111: 3909 | BS111: 3868 | BT111: 3830 | BU111: 3774 | BV111: 3854 | BW111: 3936 | BX111: 3916 | BY111: 3911 | BZ111: 3889 | CA111: 3753
A112: 5607 | B112: 56073 | C112: 3 | D112: 5 | E112: 607 | F112: 607 | G112: ANTIOQUIA | H112: RETIRO | I112: Independiente | J112: 32 | K112: 90 | L112: 1286 | M112: 1362 | N112: 1263 | O112: 1314 | P112: 1340 | Q112: 1365 | R112: 1397 | S112: 1420 | T112: 1452 | U112: 1468 | V112: 1451 | W112: 1470 | X112: 1496 | Y112: 1509 | Z112: 1514 | AA112: 1570 | AB112: 1584 | AC112: 1572 | AD112: 1580 | AE112: 1586 | AF112: 1614 | AG112: 1628 | AH112: 1649 | AI112: 1642 | AJ112: 1632 | AK112: 1625 | AL112: FALSO | AQ112: 5310 | AR112: 53102 | AS112: 2 | AT112: 5 | AU112: 310 | AV112: 310 | AW112: ANTIOQUIA | AX112: GÓMEZ PLATA | AY112: Dep_sec_priv | AZ112: 53 | BA112: 108 | BB112: 527 | BC112: 557 | BD112: 497 | BE112: 603 | BF112: 649 | BG112: 697 | BH112: 701 | BI112: 686 | BJ112: 692 | BK112: 711 | BL112: 679 | BM112: 734 | BN112: 728 | BO112: 749 | BP112: 748 | BQ112: 772 | BR112: 774 | BS112: 747 | BT112: 818 | BU112: 802 | BV112: 751 | BW112: 788 | BX112: 789 | BY112: 801 | BZ112: 774 | CA112: 720
A113: 95015 | B113: 950151 | C113: 1 | D113: 95 | E113: 15 | F113: 015 | G113: GUAVIARE | H113: CALAMAR | I113: Dep_No_priv | J113: 8 | K113: 4 | L113: 142 | M113: 163 | N113: 139 | O113: 138 | P113: 142 | Q113: 139 | R113: 145 | S113: 146 | T113: 146 | U113: 146 | V113: 150 | W113: 145 | X113: 157 | Y113: 158 | Z113: 157 | AA113: 155 | AB113: 172 | AC113: 162 | AD113: 170 | AE113: 169 | AF113: 171 | AG113: 174 | AH113: 171 | AI113: 170 | AJ113: 171 | AK113: 163 | AL113: FALSO | AQ113: 5321 | AR113: 53213 | AS113: 3 | AT113: 5 | AU113: 321 | AV113: 321 | AW113: ANTIOQUIA | AX113: GUATAPE | AY113: Independiente | AZ113: 8 | BA113: 60 | BB113: 408 | BC113: 398 | BD113: 380 | BE113: 422 | BF113: 439 | BG113: 451 | BH113: 450 | BI113: 457 | BJ113: 462 | BK113: 457 | BL113: 466 | BM113: 474 | BN113: 472 | BO113: 460 | BP113: 451 | BQ113: 477 | BR113: 498 | BS113: 511 | BT113: 522 | BU113: 542 | BV113: 525 | BW113: 525 | BX113: 513 | BY113: 511 | BZ113: 514 | CA113: 493
A114: 25754 | B114: 257543 | C114: 3 | D114: 25 | E114: 754 | F114: 754 | G114: CUNDINAMARCA | H114: SOACHA | I114: Independiente | J114: 451 | K114: 1419 | L114: 9451 | M114: 9096 | N114: 8906 | O114: 9325 | P114: 9850 | Q114: 10023 | R114: 10215 | S114: 10477 | T114: 10715 | U114: 10959 | V114: 11203 | W114: 11363 | X114: 11430 | Y114: 11189 | Z114: 11360 | AA114: 11939 | AB114: 12079 | AC114: 12129 | AD114: 12216 | AE114: 12197 | AF114: 12238 | AG114: 12255 | AH114: 12556 | AI114: 12741 | AJ114: 12671 | AK114: 12059 | AL114: FALSO | AQ114: 5736 | AR114: 57362 | AS114: 2 | AT114: 5 | AU114: 736 | AV114: 736 | AW114: ANTIOQUIA | AX114: SEGOVIA | AY114: Dep_sec_priv | AZ114: 170 | BA114: 575 | BB114: 5785 | BC114: 3961 | BD114: 5893 | BE114: 6107 | BF114: 6246 | BG114: 6186 | BH114: 6050 | BI114: 6476 | BJ114: 6553 | BK114: 6703 | BL114: 6805 | BM114: 6946 | BN114: 6976 | BO114: 7173 | BP114: 6987 | BQ114: 7132 | BR114: 7040 | BS114: 7148 | BT114: 7246 | BU114: 7224 | BV114: 7228 | BW114: 7217 | BX114: 7355 | BY114: 7387 | BZ114: 6692 | CA114: 6109
A115: 76736 | B115: 767362 | C115: 2 | D115: 76 | E115: 736 | F115: 736 | G115: VALLE DEL CAUCA | H115: SEVILLA | I115: Dep_sec_priv | J115: 40 | K115: 207 | L115: 1735 | M115: 1200 | N115: 1766 | O115: 1861 | P115: 1871 | Q115: 1854 | R115: 1952 | S115: 1970 | T115: 2022 | U115: 2083 | V115: 2150 | W115: 2226 | X115: 2266 | Y115: 2219 | Z115: 2148 | AA115: 2178 | AB115: 2220 | AC115: 2208 | AD115: 2197 | AE115: 2063 | AF115: 1987 | AG115: 2080 | AH115: 2119 | AI115: 2085 | AJ115: 2183 | AK115: 2022 | AL115: FALSO | AQ115: 5150 | AR115: 51502 | AS115: 2 | AT115: 5 | AU115: 150 | AV115: 150 | AW115: ANTIOQUIA | AX115: CAROLINA | AY115: Dep_sec_priv | AZ115: 9 | BA115: 14 | BB115: 197 | BC115: 87 | BD115: 192 | BE115: 232 | BF115: 274 | BG115: 301 | BH115: 302 | BI115: 322 | BJ115: 360 | BK115: 397 | BL115: 426 | BM115: 416 | BN115: 411 | BO115: 423 | BP115: 384 | BQ115: 336 | BR115: 290 | BS115: 279 | BT115: 278 | BU115: 260 | BV115: 288 | BW115: 256 | BX115: 278 | BY115: 247 | BZ115: 232 | CA115: 208
A116: 73275 | B116: 732753 | C116: 3 | D116: 73 | E116: 275 | F116: 275 | G116: TOLIMA | H116: FLANDES | I116: Independiente | J116: 30 | K116: 81 | L116: 532 | M116: 422 | N116: 489 | O116: 556 | P116: 570 | Q116: 575 | R116: 600 | S116: 600 | T116: 592 | U116: 581 | V116: 556 | W116: 540 | X116: 543 | Y116: 526 | Z116: 563 | AA116: 578 | AB116: 580 | AC116: 544 | AD116: 539 | AE116: 535 | AF116: 551 | AG116: 552 | AH116: 552 | AI116: 559 | AJ116: 544 | AK116: 529 | AL116: FALSO | AQ116: 5313 | AR116: 53133 | AS116: 3 | AT116: 5 | AU116: 313 | AV116: 313 | AW116: ANTIOQUIA | AX116: GRANADA | AY116: Independiente | AZ116: 6 | BA116: 49 | BB116: 211 | BC116: 203 | BD116: 188 | BE116: 192 | BF116: 197 | BG116: 197 | BH116: 207 | BI116: 211 | BJ116: 218 | BK116: 225 | BL116: 223 | BM116: 223 | BN116: 218 | BO116: 208 | BP116: 219 | BQ116: 234 | BR116: 250 | BS116: 237 | BT116: 235 | BU116: 240 | BV116: 247 | BW116: 256 | BX116: 252 | BY116: 263 | BZ116: 265 | CA116: 244
A117: 23660 | B117: 236601 | C117: 1 | D117: 23 | E117: 660 | F117: 660 | G117: CÓRDOBA | H117: SAHAGÚN | I117: Dep_No_priv | J117: 35 | K117: 73 | L117: 1355 | M117: 1247 | N117: 1352 | O117: 1328 | P117: 1342 | Q117: 1313 | R117: 1333 | S117: 1319 | T117: 1338 | U117: 1325 | V117: 1320 | W117: 1285 | X117: 1305 | Y117: 1331 | Z117: 1349 | AA117: 1366 | AB117: 1381 | AC117: 1326 | AD117: 1427 | AE117: 1453 | AF117: 1340 | AG117: 1365 | AH117: 1359 | AI117: 1335 | AJ117: 1323 | AK117: 1318 | AL117: FALSO | AQ117: 5321 | AR117: 53212 | AS117: 2 | AT117: 5 | AU117: 321 | AV117: 321 | AW117: ANTIOQUIA | AX117: GUATAPE | AY117: Dep_sec_priv | AZ117: 61 | BA117: 70 | BB117: 674 | BC117: 695 | BD117: 649 | BE117: 660 | BF117: 713 | BG117: 700 | BH117: 725 | BI117: 747 | BJ117: 785 | BK117: 814 | BL117: 830 | BM117: 832 | BN117: 827 | BO117: 841 | BP117: 816 | BQ117: 804 | BR117: 845 | BS117: 850 | BT117: 885 | BU117: 902 | BV117: 903 | BW117: 921 | BX117: 964 | BY117: 959 | BZ117: 1010 | CA117: 1015
A118: 25473 | B118: 254732 | C118: 2 | D118: 25 | E118: 473 | F118: 473 | G118: CUNDINAMARCA | H118: MOSQUERA | I118: Dep_sec_priv | J118: 1478 | K118: 2803 | L118: 16703 | M118: 15374 | N118: 17090 | O118: 17547 | P118: 17359 | Q118: 18339 | R118: 17928 | S118: 17379 | T118: 17864 | U118: 17970 | V118: 18556 | W118: 18778 | X118: 19061 | Y118: 18571 | Z118: 19611 | AA118: 19950 | AB118: 20311 | AC118: 20573 | AD118: 20612 | AE118: 20520 | AF118: 20959 | AG118: 22178 | AH118: 22481 | AI118: 22722 | AJ118: 22738 | AK118: 21483 | AL118: FALSO | AQ118: 5541 | AR118: 55413 | AS118: 3 | AT118: 5 | AU118: 541 | AV118: 541 | AW118: ANTIOQUIA | AX118: PEÑOL | AY118: Independiente | AZ118: 23 | BA118: 121 | BB118: 696 | BC118: 757 | BD118: 666 | BE118: 671 | BF118: 699 | BG118: 750 | BH118: 779 | BI118: 778 | BJ118: 794 | BK118: 802 | BL118: 791 | BM118: 800 | BN118: 795 | BO118: 790 | BP118: 788 | BQ118: 854 | BR118: 902 | BS118: 894 | BT118: 907 | BU118: 916 | BV118: 928 | BW118: 936 | BX118: 944 | BY118: 963 | BZ118: 952 | CA118: 899
A119: 5579 | B119: 55793 | C119: 3 | D119: 5 | E119: 579 | F119: 579 | G119: ANTIOQUIA | H119: PUERTO BERRÍO | I119: Independiente | J119: 54 | K119: 322 | L119: 1057 | M119: 905 | N119: 764 | O119: 794 | P119: 861 | Q119: 936 | R119: 982 | S119: 973 | T119: 1017 | U119: 1034 | V119: 1051 | W119: 986 | X119: 1119 | Y119: 1078 | Z119: 1006 | AA119: 1055 | AB119: 1043 | AC119: 1030 | AD119: 982 | AE119: 987 | AF119: 1047 | AG119: 1038 | AH119: 1016 | AI119: 1036 | AJ119: 1200 | AK119: 1103 | AL119: FALSO | AQ119: 5667 | AR119: 56673 | AS119: 3 | AT119: 5 | AU119: 667 | AV119: 667 | AW119: ANTIOQUIA | AX119: SAN RAFAEL | AY119: Independiente | AZ119: 3 | BA119: 52 | BB119: 258 | BC119: 234 | BD119: 203 | BE119: 223 | BF119: 254 | BG119: 268 | BH119: 288 | BI119: 303 | BJ119: 313 | BK119: 319 | BL119: 327 | BM119: 333 | BN119: 333 | BO119: 328 | BP119: 319 | BQ119: 336 | BR119: 330 | BS119: 337 | BT119: 343 | BU119: 327 | BV119: 310 | BW119: 303 | BX119: 309 | BY119: 297 | BZ119: 297 | CA119: 286
A120: 76275 | B120: 762752 | C120: 2 | D120: 76 | E120: 275 | F120: 275 | G120: VALLE DEL CAUCA | H120: FLORIDA | I120: Dep_sec_priv | J120: 137 | K120: 409 | L120: 2745 | M120: 1457 | N120: 2569 | O120: 2617 | P120: 2576 | Q120: 2598 | R120: 2263 | S120: 2357 | T120: 2432 | U120: 2404 | V120: 2546 | W120: 2705 | X120: 2677 | Y120: 2406 | Z120: 2528 | AA120: 2652 | AB120: 2662 | AC120: 2718 | AD120: 2994 | AE120: 2568 | AF120: 2680 | AG120: 2696 | AH120: 2834 | AI120: 2887 | AJ120: 3009 | AK120: 2752 | AL120: FALSO | AQ120: 5440 | AR120: 54402 | AS120: 2 | AT120: 5 | AU120: 440 | AV120: 440 | AW120: ANTIOQUIA | AX120: MARINILLA | AY120: Dep_sec_priv | AZ120: 369 | BA120: 1357 | BB120: 7508 | BC120: 7413 | BD120: 7595 | BE120: 7856 | BF120: 8121 | BG120: 8153 | BH120: 8089 | BI120: 8208 | BJ120: 8421 | BK120: 8573 | BL120: 8787 | BM120: 9082 | BN120: 9104 | BO120: 8939 | BP120: 9182 | BQ120: 9736 | BR120: 10169 | BS120: 10110 | BT120: 10240 | BU120: 10392 | BV120: 10432 | BW120: 10728 | BX120: 10667 | BY120: 10746 | BZ120: 11494 | CA120: 10718
A121: 25214 | B121: 252142 | C121: 2 | D121: 25 | E121: 214 | F121: 214 | G121: CUNDINAMARCA | H121: COTA | I121: Dep_sec_priv | J121: 899 | K121: 1499 | L121: 13749 | M121: 12583 | N121: 14668 | O121: 13935 | P121: 14227 | Q121: 14482 | R121: 14328 | S121: 14511 | T121: 14653 | U121: 14755 | V121: 15166 | W121: 14933 | X121: 15791 | Y121: 15579 | Z121: 15798 | AA121: 16432 | AB121: 16592 | AC121: 16612 | AD121: 16536 | AE121: 17067 | AF121: 18649 | AG121: 19020 | AH121: 18860 | AI121: 18751 | AJ121: 18887 | AK121: 18082 | AL121: FALSO | AQ121: 5475 | AR121: 54751 | AS121: 1 | AT121: 5 | AU121: 475 | AV121: 475 | AW121: ANTIOQUIA | AX121: MURINDÓ | AY121: Dep_No_priv | AZ121: 1 | BA121: 1 | BB121: 134 | BC121: 36 | BD121: 106 | BE121: 123 | BF121: 123 | BG121: 122 | BH121: 123 | BI121: 115 | BJ121: 116 | BK121: 117 | BL121: 117 | BM121: 127 | BN121: 129 | BO121: 120 | BP121: 113 | BQ121: 116 | BR121: 117 | BS121: 111 | BT121: 117 | BU121: 119 | BV121: 100 | BW121: 100 | BX121: 117 | BY121: 122 | BZ121: 126 | CA121: 105
A122: 8758 | B122: 87583 | C122: 3 | D122: 8 | E122: 758 | F122: 758 | G122: ATLÁNTICO | H122: SOLEDAD | I122: Independiente | J122: 297 | K122: 692 | L122: 4945 | M122: 3325 | N122: 4047 | O122: 4377 | P122: 4867 | Q122: 5091 | R122: 5224 | S122: 5239 | T122: 5290 | U122: 5210 | V122: 5370 | W122: 5457 | X122: 5421 | Y122: 5058 | Z122: 5156 | AA122: 5736 | AB122: 5827 | AC122: 5790 | AD122: 5722 | AE122: 5587 | AF122: 5542 | AG122: 5592 | AH122: 5738 | AI122: 5741 | AJ122: 5660 | AK122: 4896 | AL122: FALSO | AQ122: 5483 | AR122: 54833 | AS122: 3 | AT122: 5 | AU122: 483 | AV122: 483 | AW122: ANTIOQUIA | AX122: NARIÑO | AY122: Independiente | AZ122: 9 | BA122: 23 | BB122: 100 | BC122: 73 | BD122: 84 | BE122: 83 | BF122: 85 | BG122: 97 | BH122: 101 | BI122: 99 | BJ122: 100 | BK122: 106 | BL122: 108 | BM122: 110 | BN122: 113 | BO122: 114 | BP122: 92 | BQ122: 115 | BR122: 118 | BS122: 116 | BT122: 123 | BU122: 111 | BV122: 115 | BW122: 103 | BX122: 101 | BY122: 105 | BZ122: 105 | CA122: 87
A123: 25658 | B123: 256583 | C123: 3 | D123: 25 | E123: 658 | F123: 658 | G123: CUNDINAMARCA | H123: SAN FRANCISCO | I123: Independiente | J123: 12 | K123: 47 | L123: 272 | M123: 262 | N123: 274 | O123: 291 | P123: 283 | Q123: 295 | R123: 281 | S123: 288 | T123: 292 | U123: 289 | V123: 300 | W123: 295 | X123: 294 | Y123: 277 | Z123: 292 | AA123: 305 | AB123: 318 | AC123: 311 | AD123: 332 | AE123: 311 | AF123: 357 | AG123: 366 | AH123: 358 | AI123: 372 | AJ123: 372 | AK123: 346 | AL123: FALSO | AQ123: 5501 | AR123: 55013 | AS123: 3 | AT123: 5 | AU123: 501 | AV123: 501 | AW123: ANTIOQUIA | AX123: OLAYA | AY123: Independiente | AZ123: 0 | BA123: 14 | BB123: 51 | BC123: 62 | BD123: 40 | BE123: 49 | BF123: 49 | BG123: 48 | BH123: 50 | BI123: 52 | BJ123: 55 | BK123: 59 | BL123: 58 | BM123: 60 | BN123: 58 | BO123: 57 | BP123: 55 | BQ123: 60 | BR123: 56 | BS123: 56 | BT123: 58 | BU123: 59 | BV123: 60 | BW123: 63 | BX123: 67 | BY123: 67 | BZ123: 73 | CA123: 71
A124: 5615 | B124: 56153 | C124: 3 | D124: 5 | E124: 615 | F124: 615 | G124: ANTIOQUIA | H124: RIONEGRO | I124: Independiente | J124: 280 | K124: 611 | L124: 9736 | M124: 8472 | N124: 9462 | O124: 9542 | P124: 9803 | Q124: 9980 | R124: 10018 | S124: 10095 | T124: 10183 | U124: 10322 | V124: 10369 | W124: 10469 | X124: 10536 | Y124: 10370 | Z124: 10323 | AA124: 10481 | AB124: 10547 | AC124: 10642 | AD124: 10636 | AE124: 10655 | AF124: 10645 | AG124: 10909 | AH124: 10973 | AI124: 10967 | AJ124: 10973 | AK124: 10608 | AL124: FALSO | AQ124: 5658 | AR124: 56582 | AS124: 2 | AT124: 5 | AU124: 658 | AV124: 658 | AW124: ANTIOQUIA | AX124: SAN JOSÉ DE LA MONTAÑA | AY124: Dep_sec_priv | AZ124: 15 | BA124: 37 | BB124: 278 | BC124: 199 | BD124: 237 | BE124: 230 | BF124: 237 | BG124: 252 | BH124: 250 | BI124: 243 | BJ124: 239 | BK124: 228 | BL124: 226 | BM124: 232 | BN124: 231 | BO124: 267 | BP124: 257 | BQ124: 242 | BR124: 236 | BS124: 240 | BT124: 239 | BU124: 233 | BV124: 240 | BW124: 269 | BX124: 286 | BY124: 287 | BZ124: 274 | CA124: 258
A125: 25430 | B125: 254302 | C125: 2 | D125: 25 | E125: 430 | F125: 430 | G125: CUNDINAMARCA | H125: MADRID | I125: Dep_sec_priv | J125: 1224 | K125: 2006 | L125: 14350 | M125: 10668 | N125: 15160 | O125: 14896 | P125: 14806 | Q125: 15618 | R125: 14865 | S125: 14542 | T125: 15081 | U125: 15345 | V125: 15495 | W125: 16135 | X125: 16382 | Y125: 16429 | Z125: 18180 | AA125: 17846 | AB125: 18344 | AC125: 18959 | AD125: 18561 | AE125: 18222 | AF125: 17043 | AG125: 16922 | AH125: 16823 | AI125: 16926 | AJ125: 17224 | AK125: 16653 | AL125: FALSO | AQ125: 5576 | AR125: 55763 | AS125: 3 | AT125: 5 | AU125: 576 | AV125: 576 | AW125: ANTIOQUIA | AX125: PUEBLORRICO | AY125: Independiente | AZ125: 7 | BA125: 22 | BB125: 202 | BC125: 163 | BD125: 174 | BE125: 180 | BF125: 185 | BG125: 184 | BH125: 184 | BI125: 182 | BJ125: 184 | BK125: 189 | BL125: 192 | BM125: 189 | BN125: 194 | BO125: 190 | BP125: 199 | BQ125: 214 | BR125: 208 | BS125: 213 | BT125: 210 | BU125: 211 | BV125: 207 | BW125: 201 | BX125: 201 | BY125: 209 | BZ125: 208 | CA125: 208
A126: 25430 | B126: 254303 | C126: 3 | D126: 25 | E126: 430 | F126: 430 | G126: CUNDINAMARCA | H126: MADRID | I126: Independiente | J126: 130 | K126: 470 | L126: 3722 | M126: 3256 | N126: 3416 | O126: 3559 | P126: 3752 | Q126: 3848 | R126: 3875 | S126: 3942 | T126: 3987 | U126: 4053 | V126: 4119 | W126: 4193 | X126: 4207 | Y126: 4146 | Z126: 4030 | AA126: 4201 | AB126: 4200 | AC126: 4223 | AD126: 4290 | AE126: 4287 | AF126: 4351 | AG126: 4305 | AH126: 4397 | AI126: 4369 | AJ126: 4334 | AK126: 4174 | AL126: FALSO | AQ126: 5670 | AR126: 56703 | AS126: 3 | AT126: 5 | AU126: 670 | AV126: 670 | AW126: ANTIOQUIA | AX126: SAN ROQUE | AY126: Independiente | AZ126: 24 | BA126: 53 | BB126: 221 | BC126: 192 | BD126: 205 | BE126: 212 | BF126: 211 | BG126: 244 | BH126: 254 | BI126: 254 | BJ126: 264 | BK126: 268 | BL126: 270 | BM126: 276 | BN126: 276 | BO126: 270 | BP126: 233 | BQ126: 274 | BR126: 259 | BS126: 265 | BT126: 262 | BU126: 256 | BV126: 233 | BW126: 269 | BX126: 271 | BY126: 269 | BZ126: 267 | CA126: 251
A127: 70001 | B127: 700012 | C127: 2 | D127: 70 | E127: 1 | F127: 001 | G127: SUCRE | H127: SINCELEJO | I127: Dep_sec_priv | J127: 2051 | K127: 4290 | L127: 38159 | M127: 26602 | N127: 35716 | O127: 36784 | P127: 37904 | Q127: 39290 | R127: 37740 | S127: 37983 | T127: 38293 | U127: 38564 | V127: 39703 | W127: 39409 | X127: 40255 | Y127: 39843 | Z127: 37858 | AA127: 39434 | AB127: 40148 | AC127: 40601 | AD127: 43738 | AE127: 42085 | AF127: 41764 | AG127: 43042 | AH127: 43003 | AI127: 42051 | AJ127: 42297 | AK127: 41046 | AL127: FALSO | AQ127: 5893 | AR127: 58933 | AS127: 3 | AT127: 5 | AU127: 893 | AV127: 893 | AW127: ANTIOQUIA | AX127: YONDÓ | AY127: Independiente | AZ127: 23 | BA127: 154 | BB127: 281 | BC127: 263 | BD127: 146 | BE127: 153 | BF127: 160 | BG127: 220 | BH127: 221 | BI127: 222 | BJ127: 216 | BK127: 214 | BL127: 202 | BM127: 209 | BN127: 240 | BO127: 240 | BP127: 165 | BQ127: 189 | BR127: 189 | BS127: 201 | BT127: 209 | BU127: 230 | BV127: 243 | BW127: 272 | BX127: 308 | BY127: 332 | BZ127: 286 | CA127: 283
A128: 25286 | B128: 252862 | C128: 2 | D128: 25 | E128: 286 | F128: 286 | G128: CUNDINAMARCA | H128: FUNZA | I128: Dep_sec_priv | J128: 1647 | K128: 2757 | L128: 17961 | M128: 15286 | N128: 18472 | O128: 18930 | P128: 19075 | Q128: 19697 | R128: 19180 | S128: 19350 | T128: 19373 | U128: 19773 | V128: 20209 | W128: 21463 | X128: 21807 | Y128: 21534 | Z128: 21964 | AA128: 22655 | AB128: 22665 | AC128: 22565 | AD128: 22452 | AE128: 22332 | AF128: 22084 | AG128: 22847 | AH128: 23416 | AI128: 23240 | AJ128: 23403 | AK128: 22176 | AL128: FALSO | AQ128: 5591 | AR128: 55913 | AS128: 3 | AT128: 5 | AU128: 591 | AV128: 591 | AW128: ANTIOQUIA | AX128: PUERTO TRIUNFO | AY128: Independiente | AZ128: 27 | BA128: 43 | BB128: 272 | BC128: 289 | BD128: 234 | BE128: 247 | BF128: 270 | BG128: 278 | BH128: 305 | BI128: 313 | BJ128: 288 | BK128: 295 | BL128: 306 | BM128: 314 | BN128: 307 | BO128: 295 | BP128: 288 | BQ128: 311 | BR128: 317 | BS128: 334 | BT128: 355 | BU128: 350 | BV128: 342 | BW128: 342 | BX128: 348 | BY128: 367 | BZ128: 365 | CA128: 366
A129: 25899 | B129: 258992 | C129: 2 | D129: 25 | E129: 899 | F129: 899 | G129: CUNDINAMARCA | H129: ZIPAQUIRÁ | I129: Dep_sec_priv | J129: 882 | K129: 1525 | L129: 17665 | M129: 12442 | N129: 17851 | O129: 18453 | P129: 18486 | Q129: 18720 | R129: 18171 | S129: 18566 | T129: 18942 | U129: 18992 | V129: 19192 | W129: 19373 | X129: 19396 | Y129: 18654 | Z129: 19046 | AA129: 19591 | AB129: 20109 | AC129: 20408 | AD129: 20734 | AE129: 20544 | AF129: 20767 | AG129: 21063 | AH129: 21149 | AI129: 21203 | AJ129: 21085 | AK129: 20151 | AL129: FALSO | AQ129: 5142 | AR129: 51423 | AS129: 3 | AT129: 5 | AU129: 142 | AV129: 142 | AW129: ANTIOQUIA | AX129: CARACOLÍ | AY129: Independiente | AZ129: 1 | BA129: 10 | BB129: 117 | BC129: 88 | BD129: 104 | BE129: 104 | BF129: 109 | BG129: 99 | BH129: 104 | BI129: 104 | BJ129: 111 | BK129: 114 | BL129: 119 | BM129: 113 | BN129: 109 | BO129: 106 | BP129: 104 | BQ129: 115 | BR129: 102 | BS129: 102 | BT129: 108 | BU129: 106 | BV129: 108 | BW129: 109 | BX129: 110 | BY129: 113 | BZ129: 111 | CA129: 109
A130: 85250 | B130: 852503 | C130: 3 | D130: 85 | E130: 250 | F130: 250 | G130: CASANARE | H130: PAZ DE ARIPORO | I130: Independiente | J130: 43 | K130: 216 | L130: 626 | M130: 609 | N130: 487 | O130: 572 | P130: 618 | Q130: 657 | R130: 645 | S130: 660 | T130: 664 | U130: 690 | V130: 712 | W130: 727 | X130: 734 | Y130: 713 | Z130: 692 | AA130: 753 | AB130: 794 | AC130: 784 | AD130: 814 | AE130: 748 | AF130: 746 | AG130: 760 | AH130: 807 | AI130: 804 | AJ130: 820 | AK130: 759 | AL130: =IF(SUM(L130:AK130)=0,"VERDADERO","FALSO") -> FALSO | AQ130: 5604 | AR130: 56042 | AS130: 2 | AT130: 5 | AU130: 604 | AV130: 604 | AW130: ANTIOQUIA | AX130: REMEDIOS | AY130: Dep_sec_priv | AZ130: 78 | BA130: 286 | BB130: 1686 | BC130: 1275 | BD130: 1742 | BE130: 1846 | BF130: 1869 | BG130: 2050 | BH130: 2159 | BI130: 2113 | BJ130: 2105 | BK130: 2144 | BL130: 2253 | BM130: 2218 | BN130: 2316 | BO130: 2244 | BP130: 2289 | BQ130: 2392 | BR130: 2568 | BS130: 2540 | BT130: 2546 | BU130: 2543 | BV130: 2628 | BW130: 2707 | BX130: 2647 | BY130: 2667 | BZ130: 1968 | CA130: 2252
A131: 70001 | B131: 700013 | C131: 3 | D131: 70 | E131: 1 | F131: 001 | G131: SUCRE | H131: SINCELEJO | I131: Independiente | J131: 866 | K131: 2012 | L131: 12130 | M131: 8671 | N131: 10437 | O131: 11081 | P131: 11583 | Q131: 11743 | R131: 11733 | S131: 11823 | T131: 11987 | U131: 12060 | V131: 12153 | W131: 12312 | X131: 12356 | Y131: 12009 | Z131: 11892 | AA131: 12088 | AB131: 12110 | AC131: 12174 | AD131: 12335 | AE131: 12294 | AF131: 12046 | AG131: 12211 | AH131: 12385 | AI131: 12350 | AJ131: 12123 | AK131: 11244 | AL131: FALSO | AQ131: 5086 | AR131: 50863 | AS131: 3 | AT131: 5 | AU131: 86 | AV131: 086 | AW131: ANTIOQUIA | AX131: BELMIRA | AY131: Independiente | AZ131: 6 | BA131: 22 | BB131: 125 | BC131: 158 | BD131: 117 | BE131: 121 | BF131: 124 | BG131: 128 | BH131: 128 | BI131: 130 | BJ131: 133 | BK131: 142 | BL131: 145 | BM131: 145 | BN131: 147 | BO131: 147 | BP131: 153 | BQ131: 160 | BR131: 158 | BS131: 160 | BT131: 158 | BU131: 156 | BV131: 153 | BW131: 166 | BX131: 171 | BY131: 174 | BZ131: 179 | CA131: 177
A132: 63130 | B132: 631303 | C132: 3 | D132: 63 | E132: 130 | F132: 130 | G132: QUINDÍO | H132: CALARCA | I132: Independiente | J132: 49 | K132: 271 | L132: 1584 | M132: 1439 | N132: 1449 | O132: 1575 | P132: 1623 | Q132: 1628 | R132: 1634 | S132: 1663 | T132: 1650 | U132: 1686 | V132: 1748 | W132: 1799 | X132: 1814 | Y132: 1802 | Z132: 1818 | AA132: 1801 | AB132: 1803 | AC132: 1805 | AD132: 1813 | AE132: 1809 | AF132: 1790 | AG132: 1832 | AH132: 1834 | AI132: 1864 | AJ132: 1847 | AK132: 1788 | AL132: FALSO | AQ132: 5642 | AR132: 56423 | AS132: 3 | AT132: 5 | AU132: 642 | AV132: 642 | AW132: ANTIOQUIA | AX132: SALGAR | AY132: Independiente | AZ132: 5 | BA132: 24 | BB132: 297 | BC132: 241 | BD132: 231 | BE132: 250 | BF132: 268 | BG132: 264 | BH132: 273 | BI132: 263 | BJ132: 273 | BK132: 284 | BL132: 285 | BM132: 289 | BN132: 287 | BO132: 283 | BP132: 256 | BQ132: 267 | BR132: 272 | BS132: 283 | BT132: 279 | BU132: 275 | BV132: 282 | BW132: 285 | BX132: 287 | BY132: 297 | BZ132: 302 | CA132: 286
A133: 25312 | B133: 253122 | C133: 2 | D133: 25 | E133: 312 | F133: 312 | G133: CUNDINAMARCA | H133: GRANADA | I133: Dep_sec_priv | J133: 9 | K133: 33 | L133: 184 | M133: 189 | N133: 198 | O133: 191 | P133: 204 | Q133: 221 | R133: 230 | S133: 225 | T133: 210 | U133: 227 | V133: 231 | W133: 238 | X133: 233 | Y133: 241 | Z133: 261 | AA133: 316 | AB133: 340 | AC133: 344 | AD133: 446 | AE133: 336 | AF133: 324 | AG133: 343 | AH133: 335 | AI133: 313 | AJ133: 331 | AK133: 341 | AL133: FALSO | AQ133: 5585 | AR133: 55853 | AS133: 3 | AT133: 5 | AU133: 585 | AV133: 585 | AW133: ANTIOQUIA | AX133: PUERTO NARE | AY133: Independiente | AZ133: 27 | BA133: 112 | BB133: 256 | BC133: 231 | BD133: 205 | BE133: 221 | BF133: 228 | BG133: 272 | BH133: 240 | BI133: 288 | BJ133: 283 | BK133: 272 | BL133: 262 | BM133: 282 | BN133: 314 | BO133: 323 | BP133: 291 | BQ133: 309 | BR133: 292 | BS133: 302 | BT133: 276 | BU133: 274 | BV133: 275 | BW133: 279 | BX133: 281 | BY133: 346 | BZ133: 295 | CA133: 291
A134: 25290 | B134: 252902 | C134: 2 | D134: 25 | E134: 290 | F134: 290 | G134: CUNDINAMARCA | H134: FUSAGASUGÁ | I134: Dep_sec_priv | J134: 537 | K134: 905 | L134: 13896 | M134: 9068 | N134: 13667 | O134: 14379 | P134: 14562 | Q134: 14690 | R134: 14818 | S134: 14926 | T134: 15140 | U134: 15408 | V134: 15687 | W134: 15263 | X134: 15244 | Y134: 15197 | Z134: 15051 | AA134: 15573 | AB134: 15756 | AC134: 15709 | AD134: 15827 | AE134: 16136 | AF134: 16479 | AG134: 16747 | AH134: 16909 | AI134: 16804 | AJ134: 16645 | AK134: 15647 | AL134: FALSO | AQ134: 5664 | AR134: 56642 | AS134: 2 | AT134: 5 | AU134: 664 | AV134: 664 | AW134: ANTIOQUIA | AX134: SAN PEDRO DE LOS MILAGROS | AY134: Dep_sec_priv | AZ134: 139 | BA134: 300 | BB134: 3136 | BC134: 2281 | BD134: 3154 | BE134: 3140 | BF134: 3201 | BG134: 3197 | BH134: 3245 | BI134: 3312 | BJ134: 3357 | BK134: 3395 | BL134: 3420 | BM134: 3489 | BN134: 3513 | BO134: 3544 | BP134: 3437 | BQ134: 3424 | BR134: 3517 | BS134: 3531 | BT134: 3528 | BU134: 3537 | BV134: 3609 | BW134: 3657 | BX134: 3749 | BY134: 3863 | BZ134: 3899 | CA134: 3828
A135: 25754 | B135: 257542 | C135: 2 | D135: 25 | E135: 754 | F135: 754 | G135: CUNDINAMARCA | H135: SOACHA | I135: Dep_sec_priv | J135: 616 | K135: 2272 | L135: 16983 | M135: 11644 | N135: 15139 | O135: 16963 | P135: 17487 | Q135: 17805 | R135: 17394 | S135: 17554 | T135: 17775 | U135: 18172 | V135: 18515 | W135: 18717 | X135: 18965 | Y135: 17555 | Z135: 17305 | AA135: 19606 | AB135: 20192 | AC135: 19792 | AD135: 20132 | AE135: 20431 | AF135: 20581 | AG135: 20979 | AH135: 20985 | AI135: 21030 | AJ135: 20667 | AK135: 18637 | AL135: FALSO | AQ135: 5670 | AR135: 56701 | AS135: 1 | AT135: 5 | AU135: 670 | AV135: 670 | AW135: ANTIOQUIA | AX135: SAN ROQUE | AY135: Dep_No_priv | AZ135: 17 | BA135: 14 | BB135: 454 | BC135: 206 | BD135: 440 | BE135: 451 | BF135: 510 | BG135: 507 | BH135: 503 | BI135: 524 | BJ135: 507 | BK135: 503 | BL135: 489 | BM135: 464 | BN135: 471 | BO135: 453 | BP135: 444 | BQ135: 473 | BR135: 509 | BS135: 496 | BT135: 499 | BU135: 519 | BV135: 497 | BW135: 492 | BX135: 494 | BY135: 496 | BZ135: 491 | CA135: 472
A136: 85162 | B136: 851623 | C136: 3 | D136: 85 | E136: 162 | F136: 162 | G136: CASANARE | H136: MONTERREY | I136: Independiente | J136: 64 | K136: 195 | L136: 565 | M136: 489 | N136: 438 | O136: 514 | P136: 557 | Q136: 552 | R136: 559 | S136: 562 | T136: 574 | U136: 591 | V136: 583 | W136: 620 | X136: 642 | Y136: 615 | Z136: 593 | AA136: 614 | AB136: 638 | AC136: 599 | AD136: 608 | AE136: 595 | AF136: 606 | AG136: 637 | AH136: 750 | AI136: 648 | AJ136: 669 | AK136: 626 | AL136: FALSO | AQ136: 5190 | AR136: 51902 | AS136: 2 | AT136: 5 | AU136: 190 | AV136: 190 | AW136: ANTIOQUIA | AX136: CISNEROS | AY136: Dep_sec_priv | AZ136: 19 | BA136: 64 | BB136: 1558 | BC136: 430 | BD136: 1410 | BE136: 1385 | BF136: 1371 | BG136: 1299 | BH136: 1315 | BI136: 1259 | BJ136: 1129 | BK136: 1023 | BL136: 926 | BM136: 905 | BN136: 840 | BO136: 859 | BP136: 800 | BQ136: 805 | BR136: 786 | BS136: 769 | BT136: 788 | BU136: 819 | BV136: 820 | BW136: 829 | BX136: 854 | BY136: 870 | BZ136: 883 | CA136: 850
A137: 25019 | B137: 250193 | C137: 3 | D137: 25 | E137: 19 | F137: 019 | G137: CUNDINAMARCA | H137: ALBÁN | I137: Independiente | J137: 2 | K137: 19 | L137: 123 | M137: 124 | N137: 125 | O137: 132 | P137: 129 | Q137: 128 | R137: 128 | S137: 129 | T137: 143 | U137: 142 | V137: 149 | W137: 145 | X137: 147 | Y137: 148 | Z137: 154 | AA137: 157 | AB137: 161 | AC137: 164 | AD137: 168 | AE137: 195 | AF137: 187 | AG137: 179 | AH137: 173 | AI137: 176 | AJ137: 174 | AK137: 154 | AL137: FALSO | AQ137: 5670 | AR137: 56702 | AS137: 2 | AT137: 5 | AU137: 670 | AV137: 670 | AW137: ANTIOQUIA | AX137: SAN ROQUE | AY137: Dep_sec_priv | AZ137: 21 | BA137: 76 | BB137: 695 | BC137: 490 | BD137: 665 | BE137: 728 | BF137: 787 | BG137: 787 | BH137: 858 | BI137: 908 | BJ137: 879 | BK137: 887 | BL137: 902 | BM137: 933 | BN137: 930 | BO137: 909 | BP137: 886 | BQ137: 921 | BR137: 909 | BS137: 910 | BT137: 919 | BU137: 945 | BV137: 924 | BW137: 932 | BX137: 936 | BY137: 940 | BZ137: 909 | CA137: 897
A138: 76111 | B138: 761113 | C138: 3 | D138: 76 | E138: 111 | F138: 111 | G138: VALLE DEL CAUCA | H138: GUADALAJARA DE BUGA | I138: Independiente | J138: 223 | K138: 904 | L138: 5856 | M138: 4750 | N138: 5220 | O138: 5447 | P138: 5689 | Q138: 5797 | R138: 5779 | S138: 5813 | T138: 5813 | U138: 5906 | V138: 5988 | W138: 6037 | X138: 6094 | Y138: 5959 | Z138: 5839 | AA138: 5964 | AB138: 5971 | AC138: 5941 | AD138: 5937 | AE138: 5920 | AF138: 5827 | AG138: 5704 | AH138: 5857 | AI138: 5991 | AJ138: 6026 | AK138: 5864 | AL138: FALSO | AQ138: 5674 | AR138: 56743 | AS138: 3 | AT138: 5 | AU138: 674 | AV138: 674 | AW138: ANTIOQUIA | AX138: SAN VICENTE | AY138: Independiente | AZ138: 22 | BA138: 53 | BB138: 316 | BC138: 321 | BD138: 289 | BE138: 288 | BF138: 321 | BG138: 344 | BH138: 360 | BI138: 368 | BJ138: 373 | BK138: 378 | BL138: 385 | BM138: 396 | BN138: 402 | BO138: 381 | BP138: 369 | BQ138: 404 | BR138: 401 | BS138: 390 | BT138: 396 | BU138: 393 | BV138: 384 | BW138: 389 | BX138: 405 | BY138: 400 | BZ138: 391 | CA138: 402
A139: 25269 | B139: 252692 | C139: 2 | D139: 25 | E139: 269 | F139: 269 | G139: CUNDINAMARCA | H139: FACATATIVÁ | I139: Dep_sec_priv | J139: 1749 | K139: 2744 | L139: 23826 | M139: 20267 | N139: 26532 | O139: 25811 | P139: 25333 | Q139: 27376 | R139: 25946 | S139: 24831 | T139: 25238 | U139: 25462 | V139: 25409 | W139: 26030 | X139: 26704 | Y139: 26228 | Z139: 28546 | AA139: 27791 | AB139: 28206 | AC139: 29037 | AD139: 28077 | AE139: 27067 | AF139: 27504 | AG139: 28127 | AH139: 28461 | AI139: 29361 | AJ139: 30191 | AK139: 29401 | AL139: FALSO | AQ139: 5679 | AR139: 56793 | AS139: 3 | AT139: 5 | AU139: 679 | AV139: 679 | AW139: ANTIOQUIA | AX139: SANTA BÁRBARA | AY139: Independiente | AZ139: 10 | BA139: 51 | BB139: 350 | BC139: 285 | BD139: 325 | BE139: 339 | BF139: 333 | BG139: 346 | BH139: 354 | BI139: 357 | BJ139: 362 | BK139: 363 | BL139: 372 | BM139: 372 | BN139: 375 | BO139: 360 | BP139: 362 | BQ139: 417 | BR139: 416 | BS139: 407 | BT139: 402 | BU139: 393 | BV139: 398 | BW139: 405 | BX139: 405 | BY139: 412 | BZ139: 413 | CA139: 380
A140: 25817 | B140: 258173 | C140: 3 | D140: 25 | E140: 817 | F140: 817 | G140: CUNDINAMARCA | H140: TOCANCIPÁ | I140: Independiente | J140: 104 | K140: 255 | L140: 1458 | M140: 1365 | N140: 1323 | O140: 1402 | P140: 1489 | Q140: 1504 | R140: 1551 | S140: 1566 | T140: 1616 | U140: 1602 | V140: 1626 | W140: 1645 | X140: 1682 | Y140: 1670 | Z140: 1645 | AA140: 1730 | AB140: 1751 | AC140: 1740 | AD140: 1804 | AE140: 1828 | AF140: 1864 | AG140: 1855 | AH140: 1895 | AI140: 1875 | AJ140: 1871 | AK140: 1809 | AL140: FALSO | AQ140: 5789 | AR140: 57892 | AS140: 2 | AT140: 5 | AU140: 789 | AV140: 789 | AW140: ANTIOQUIA | AX140: TÁMESIS | AY140: Dep_sec_priv | AZ140: 40 | BA140: 111 | BB140: 853 | BC140: 543 | BD140: 865 | BE140: 934 | BF140: 928 | BG140: 981 | BH140: 972 | BI140: 865 | BJ140: 871 | BK140: 800 | BL140: 884 | BM140: 873 | BN140: 898 | BO140: 852 | BP140: 878 | BQ140: 952 | BR140: 1028 | BS140: 976 | BT140: 968 | BU140: 1060 | BV140: 953 | BW140: 946 | BX140: 1052 | BY140: 987 | BZ140: 1015 | CA140: 955
A141: 5079 | B141: 50792 | C141: 2 | D141: 5 | E141: 79 | F141: 079 | G141: ANTIOQUIA | H141: BARBOSA | I141: Dep_sec_priv | J141: 114 | K141: 420 | L141: 4377 | M141: 2809 | N141: 4204 | O141: 4263 | P141: 4120 | Q141: 4002 | R141: 3931 | S141: 3932 | T141: 4031 | U141: 4022 | V141: 3864 | W141: 3939 | X141: 4148 | Y141: 3990 | Z141: 3847 | AA141: 3864 | AB141: 3907 | AC141: 3953 | AD141: 4063 | AE141: 3999 | AF141: 4093 | AG141: 4136 | AH141: 4144 | AI141: 4168 | AJ141: 4039 | AK141: 4002 | AL141: FALSO | AQ141: 5390 | AR141: 53902 | AS141: 2 | AT141: 5 | AU141: 390 | AV141: 390 | AW141: ANTIOQUIA | AX141: LA PINTADA | AY141: Dep_sec_priv | AZ141: 58 | BA141: 139 | BB141: 1542 | BC141: 694 | BD141: 1435 | BE141: 1393 | BF141: 1362 | BG141: 1319 | BH141: 1392 | BI141: 1327 | BJ141: 1301 | BK141: 1249 | BL141: 1216 | BM141: 1286 | BN141: 1276 | BO141: 1156 | BP141: 1160 | BQ141: 1173 | BR141: 1185 | BS141: 1217 | BT141: 1239 | BU141: 1302 | BV141: 1314 | BW141: 1251 | BX141: 1235 | BY141: 1206 | BZ141: 1175 | CA141: 1111
A142: 50006 | B142: 500062 | C142: 2 | D142: 50 | E142: 6 | F142: 006 | G142: META | H142: ACACÍAS | I142: Dep_sec_priv | J142: 787 | K142: 1367 | L142: 10661 | M142: 8152 | N142: 10357 | O142: 10533 | P142: 11245 | Q142: 11205 | R142: 11147 | S142: 11477 | T142: 11631 | U142: 11794 | V142: 12159 | W142: 12509 | X142: 13304 | Y142: 12876 | Z142: 12800 | AA142: 13167 | AB142: 13132 | AC142: 13377 | AD142: 13281 | AE142: 13398 | AF142: 13228 | AG142: 13240 | AH142: 13699 | AI142: 13447 | AJ142: 13847 | AK142: 13242 | AL142: FALSO | AQ142: 5856 | AR142: 58562 | AS142: 2 | AT142: 5 | AU142: 856 | AV142: 856 | AW142: ANTIOQUIA | AX142: VALPARAÍSO | AY142: Dep_sec_priv | AZ142: 26 | BA142: 49 | BB142: 324 | BC142: 275 | BD142: 306 | BE142: 314 | BF142: 329 | BG142: 349 | BH142: 354 | BI142: 351 | BJ142: 341 | BK142: 345 | BL142: 345 | BM142: 359 | BN142: 361 | BO142: 363 | BP142: 346 | BQ142: 365 | BR142: 379 | BS142: 373 | BT142: 385 | BU142: 396 | BV142: 394 | BW142: 390 | BX142: 393 | BY142: 404 | BZ142: 396 | CA142: 397
A143: 73686 | B143: 736861 | C143: 1 | D143: 73 | E143: 686 | F143: 686 | G143: TOLIMA | H143: SANTA ISABEL | I143: Dep_No_priv | J143: 1 | K143: 7 | L143: 134 | M143: 124 | N143: 134 | O143: 134 | P143: 139 | Q143: 139 | R143: 152 | S143: 206 | T143: 208 | U143: 208 | V143: 210 | W143: 209 | X143: 172 | Y143: 150 | Z143: 144 | AA143: 147 | AB143: 153 | AC143: 136 | AD143: 165 | AE143: 152 | AF143: 148 | AG143: 148 | AH143: 182 | AI143: 181 | AJ143: 172 | AK143: 143 | AL143: FALSO | AQ143: 5120 | AR143: 51203 | AS143: 3 | AT143: 5 | AU143: 120 | AV143: 120 | AW143: ANTIOQUIA | AX143: CÁCERES | AY143: Independiente | AZ143: 3 | BA143: 30 | BB143: 143 | BC143: 125 | BD143: 110 | BE143: 119 | BF143: 132 | BG143: 155 | BH143: 163 | BI143: 165 | BJ143: 164 | BK143: 182 | BL143: 182 | BM143: 193 | BN143: 201 | BO143: 189 | BP143: 156 | BQ143: 176 | BR143: 175 | BS143: 177 | BT143: 178 | BU143: 182 | BV143: 179 | BW143: 179 | BX143: 182 | BY143: 176 | BZ143: 160 | CA143: 144
A144: 25019 | B144: 250192 | C144: 2 | D144: 25 | E144: 19 | F144: 019 | G144: CUNDINAMARCA | H144: ALBÁN | I144: Dep_sec_priv | J144: 26 | K144: 56 | L144: 388 | M144: 310 | N144: 366 | O144: 383 | P144: 354 | Q144: 374 | R144: 371 | S144: 388 | T144: 366 | U144: 367 | V144: 369 | W144: 377 | X144: 368 | Y144: 376 | Z144: 362 | AA144: 354 | AB144: 364 | AC144: 354 | AD144: 356 | AE144: 376 | AF144: 431 | AG144: 439 | AH144: 445 | AI144: 418 | AJ144: 407 | AK144: 390 | AL144: FALSO | AQ144: 5658 | AR144: 56583 | AS144: 3 | AT144: 5 | AU144: 658 | AV144: 658 | AW144: ANTIOQUIA | AX144: SAN JOSÉ DE LA MONTAÑA | AY144: Independiente | AZ144: 3 | BA144: 8 | BB144: 188 | BC144: 142 | BD144: 180 | BE144: 180 | BF144: 181 | BG144: 184 | BH144: 191 | BI144: 195 | BJ144: 192 | BK144: 195 | BL144: 189 | BM144: 192 | BN144: 184 | BO144: 173 | BP144: 181 | BQ144: 191 | BR144: 204 | BS144: 203 | BT144: 202 | BU144: 194 | BV144: 193 | BW144: 188 | BX144: 188 | BY144: 189 | BZ144: 186 | CA144: 178
A145: 15104 | B145: 151042 | C145: 2 | D145: 15 | E145: 104 | F145: 104 | G145: BOYACÁ | H145: BOYACÁ | I145: Dep_sec_priv | J145: 195 | K145: 387 | L145: 3827 | M145: 2896 | N145: 3793 | O145: 3653 | P145: 3643 | Q145: 3910 | R145: 3562 | S145: 3879 | T145: 3987 | U145: 4211 | V145: 3688 | W145: 3657 | X145: 4121 | Y145: 3757 | Z145: 4188 | AA145: 4164 | AB145: 4306 | AC145: 4292 | AD145: 4502 | AE145: 4602 | AF145: 4717 | AG145: 4667 | AH145: 4745 | AI145: 4547 | AJ145: 4311 | AK145: 4171 | AL145: FALSO | AQ145: 5887 | AR145: 58872 | AS145: 2 | AT145: 5 | AU145: 887 | AV145: 887 | AW145: ANTIOQUIA | AX145: YARUMAL | AY145: Dep_sec_priv | AZ145: 157 | BA145: 275 | BB145: 2786 | BC145: 2407 | BD145: 2706 | BE145: 2792 | BF145: 2837 | BG145: 2885 | BH145: 2926 | BI145: 2951 | BJ145: 2978 | BK145: 2968 | BL145: 3018 | BM145: 3066 | BN145: 3112 | BO145: 3056 | BP145: 2993 | BQ145: 3102 | BR145: 3264 | BS145: 3274 | BT145: 3309 | BU145: 3298 | BV145: 3327 | BW145: 3325 | BX145: 3287 | BY145: 3296 | BZ145: 3320 | CA145: 3213
A146: 41615 | B146: 416152 | C146: 2 | D146: 41 | E146: 615 | F146: 615 | G146: HUILA | H146: RIVERA | I146: Dep_sec_priv | J146: 40 | K146: 103 | L146: 1143 | M146: 1024 | N146: 1490 | O146: 1507 | P146: 1616 | Q146: 1611 | R146: 1577 | S146: 1664 | T146: 1654 | U146: 1129 | V146: 1652 | W146: 1683 | X146: 1678 | Y146: 1634 | Z146: 1691 | AA146: 1838 | AB146: 1813 | AC146: 1848 | AD146: 1804 | AE146: 1854 | AF146: 1826 | AG146: 1963 | AH146: 1956 | AI146: 2017 | AJ146: 1972 | AK146: 1817 | AL146: FALSO | AQ146: 5091 | AR146: 50912 | AS146: 2 | AT146: 5 | AU146: 91 | AV146: 091 | AW146: ANTIOQUIA | AX146: BETANIA | AY146: Dep_sec_priv | AZ146: 43 | BA146: 37 | BB146: 206 | BC146: 346 | BD146: 200 | BE146: 198 | BF146: 186 | BG146: 171 | BH146: 205 | BI146: 254 | BJ146: 231 | BK146: 250 | BL146: 200 | BM146: 180 | BN146: 227 | BO146: 290 | BP146: 232 | BQ146: 249 | BR146: 220 | BS146: 238 | BT146: 236 | BU146: 216 | BV146: 265 | BW146: 289 | BX146: 305 | BY146: 303 | BZ146: 683 | CA146: 797
A147: 66001 | B147: 660012 | C147: 2 | D147: 66 | E147: 1 | F147: 001 | G147: RISARALDA | H147: PEREIRA | I147: Dep_sec_priv | J147: 8245 | K147: 15607 | L147: 138073 | M147: 111868 | N147: 135494 | O147: 138446 | P147: 139833 | Q147: 141073 | R147: 138392 | S147: 139870 | T147: 141867 | U147: 144849 | V147: 147323 | W147: 149113 | X147: 150690 | Y147: 149802 | Z147: 148148 | AA147: 151468 | AB147: 153094 | AC147: 153174 | AD147: 155159 | AE147: 156046 | AF147: 157267 | AG147: 159627 | AH147: 161338 | AI147: 162214 | AJ147: 164567 | AK147: 162379 | AL147: FALSO | AQ147: 5690 | AR147: 56901 | AS147: 1 | AT147: 5 | AU147: 690 | AV147: 690 | AW147: ANTIOQUIA | AX147: SANTO DOMINGO | AY147: Dep_No_priv | AZ147: 3 | BA147: 7 | BB147: 280 | BC147: 137 | BD147: 274 | BE147: 278 | BF147: 280 | BG147: 273 | BH147: 277 | BI147: 275 | BJ147: 278 | BK147: 282 | BL147: 284 | BM147: 283 | BN147: 285 | BO147: 282 | BP147: 284 | BQ147: 282 | BR147: 293 | BS147: 281 | BT147: 291 | BU147: 292 | BV147: 284 | BW147: 278 | BX147: 275 | BY147: 284 | BZ147: 280 | CA147: 283
A148: 68500 | B148: 685002 | C148: 2 | D148: 68 | E148: 500 | F148: 500 | G148: SANTANDER | H148: OIBA | I148: Dep_sec_priv | J148: 29 | K148: 32 | L148: 632 | M148: 269 | N148: 594 | O148: 670 | P148: 687 | Q148: 670 | R148: 689 | S148: 689 | T148: 686 | U148: 644 | V148: 643 | W148: 630 | X148: 582 | Y148: 537 | Z148: 513 | AA148: 539 | AB148: 538 | AC148: 525 | AD148: 482 | AE148: 448 | AF148: 422 | AG148: 394 | AH148: 391 | AI148: 414 | AJ148: 391 | AK148: 431 | AL148: FALSO | AQ148: 5697 | AR148: 56972 | AS148: 2 | AT148: 5 | AU148: 697 | AV148: 697 | AW148: ANTIOQUIA | AX148: EL SANTUARIO | AY148: Dep_sec_priv | AZ148: 142 | BA148: 338 | BB148: 3416 | BC148: 2674 | BD148: 3362 | BE148: 3403 | BF148: 3448 | BG148: 3465 | BH148: 3555 | BI148: 3603 | BJ148: 3631 | BK148: 3612 | BL148: 3623 | BM148: 3653 | BN148: 3663 | BO148: 3619 | BP148: 3625 | BQ148: 3664 | BR148: 3781 | BS148: 3830 | BT148: 3870 | BU148: 3865 | BV148: 3901 | BW148: 4003 | BX148: 4025 | BY148: 4015 | BZ148: 4025 | CA148: 3910
A149: 25320 | B149: 253203 | C149: 3 | D149: 25 | E149: 320 | F149: 320 | G149: CUNDINAMARCA | H149: GUADUAS | I149: Independiente | J149: 16 | K149: 73 | L149: 804 | M149: 593 | N149: 754 | O149: 788 | P149: 805 | Q149: 813 | R149: 820 | S149: 830 | T149: 827 | U149: 831 | V149: 844 | W149: 853 | X149: 857 | Y149: 899 | Z149: 808 | AA149: 846 | AB149: 874 | AC149: 868 | AD149: 837 | AE149: 844 | AF149: 856 | AG149: 882 | AH149: 862 | AI149: 843 | AJ149: 847 | AK149: 808 | AL149: FALSO | AQ149: 5756 | AR149: 57563 | AS149: 3 | AT149: 5 | AU149: 756 | AV149: 756 | AW149: ANTIOQUIA | AX149: SONSON | AY149: Independiente | AZ149: 17 | BA149: 94 | BB149: 727 | BC149: 637 | BD149: 671 | BE149: 679 | BF149: 693 | BG149: 696 | BH149: 724 | BI149: 730 | BJ149: 727 | BK149: 722 | BL149: 749 | BM149: 751 | BN149: 771 | BO149: 758 | BP149: 789 | BQ149: 797 | BR149: 794 | BS149: 788 | BT149: 798 | BU149: 779 | BV149: 735 | BW149: 766 | BX149: 772 | BY149: 793 | BZ149: 787 | CA149: 773
A150: 25269 | B150: 252691 | C150: 1 | D150: 25 | E150: 269 | F150: 269 | G150: CUNDINAMARCA | H150: FACATATIVÁ | I150: Dep_No_priv | J150: 198 | K150: 816 | L150: 3545 | M150: 3909 | N150: 3488 | O150: 3494 | P150: 3493 | Q150: 3531 | R150: 3564 | S150: 3526 | T150: 3525 | U150: 3599 | V150: 3611 | W150: 3642 | X150: 3624 | Y150: 3553 | Z150: 3303 | AA150: 3638 | AB150: 3747 | AC150: 3941 | AD150: 4301 | AE150: 4416 | AF150: 3994 | AG150: 3944 | AH150: 3862 | AI150: 4141 | AJ150: 4152 | AK150: 4081 | AL150: FALSO | AQ150: 5756 | AR150: 57562 | AS150: 2 | AT150: 5 | AU150: 756 | AV150: 756 | AW150: ANTIOQUIA | AX150: SONSON | AY150: Dep_sec_priv | AZ150: 26 | BA150: 158 | BB150: 1596 | BC150: 1101 | BD150: 1547 | BE150: 1594 | BF150: 1571 | BG150: 1596 | BH150: 1605 | BI150: 1601 | BJ150: 1666 | BK150: 1645 | BL150: 1713 | BM150: 1749 | BN150: 1617 | BO150: 1639 | BP150: 1642 | BQ150: 1686 | BR150: 1815 | BS150: 1787 | BT150: 1792 | BU150: 1775 | BV150: 1827 | BW150: 1839 | BX150: 1880 | BY150: 1851 | BZ150: 1829 | CA150: 1793
A151: 25040 | B151: 250402 | C151: 2 | D151: 25 | E151: 40 | F151: 040 | G151: CUNDINAMARCA | H151: ANOLAIMA | I151: Dep_sec_priv | J151: 19 | K151: 40 | L151: 425 | M151: 337 | N151: 346 | O151: 380 | P151: 409 | Q151: 394 | R151: 380 | S151: 408 | T151: 416 | U151: 417 | V151: 410 | W151: 412 | X151: 419 | Y151: 404 | Z151: 400 | AA151: 441 | AB151: 435 | AC151: 440 | AD151: 447 | AE151: 448 | AF151: 458 | AG151: 466 | AH151: 494 | AI151: 488 | AJ151: 502 | AK151: 517 | AL151: FALSO | AQ151: 5789 | AR151: 57893 | AS151: 3 | AT151: 5 | AU151: 789 | AV151: 789 | AW151: ANTIOQUIA | AX151: TÁMESIS | AY151: Independiente | AZ151: 5 | BA151: 17 | BB151: 308 | BC151: 262 | BD151: 306 | BE151: 301 | BF151: 319 | BG151: 317 | BH151: 304 | BI151: 311 | BJ151: 308 | BK151: 318 | BL151: 327 | BM151: 352 | BN151: 348 | BO151: 318 | BP151: 328 | BQ151: 344 | BR151: 352 | BS151: 355 | BT151: 346 | BU151: 343 | BV151: 333 | BW151: 352 | BX151: 338 | BY151: 341 | BZ151: 332 | CA151: 317
A152: 25001 | B152: 250011 | C152: 1 | D152: 25 | E152: 1 | F152: 001 | G152: CUNDINAMARCA | H152: AGUA DE DIOS | I152: Dep_No_priv | J152: 60 | K152: 171 | L152: 2807 | M152: 2454 | N152: 2400 | O152: 2419 | P152: 2452 | Q152: 2660 | R152: 2774 | S152: 2707 | T152: 2929 | U152: 2855 | V152: 2882 | W152: 3413 | X152: 3650 | Y152: 2672 | Z152: 2635 | AA152: 2804 | AB152: 2749 | AC152: 2467 | AD152: 2542 | AE152: 2986 | AF152: 3044 | AG152: 3283 | AH152: 6015 | AI152: 2950 | AJ152: 2887 | AK152: 2662 | AL152: FALSO | AQ152: 5792 | AR152: 57923 | AS152: 3 | AT152: 5 | AU152: 792 | AV152: 792 | AW152: ANTIOQUIA | AX152: TARSO | AY152: Independiente | AZ152: 5 | BA152: 20 | BB152: 129 | BC152: 106 | BD152: 119 | BE152: 129 | BF152: 130 | BG152: 132 | BH152: 134 | BI152: 127 | BJ152: 132 | BK152: 136 | BL152: 128 | BM152: 125 | BN152: 125 | BO152: 117 | BP152: 126 | BQ152: 137 | BR152: 137 | BS152: 133 | BT152: 131 | BU152: 130 | BV152: 121 | BW152: 120 | BX152: 122 | BY152: 123 | BZ152: 121 | CA152: 124
A153: 25486 | B153: 254862 | C153: 2 | D153: 25 | E153: 486 | F153: 486 | G153: CUNDINAMARCA | H153: NEMOCÓN | I153: Dep_sec_priv | J153: 81 | K153: 207 | L153: 1280 | M153: 1237 | N153: 1395 | O153: 1469 | P153: 1380 | Q153: 1479 | R153: 1294 | S153: 1312 | T153: 1320 | U153: 1396 | V153: 1511 | W153: 1557 | X153: 1552 | Y153: 1467 | Z153: 1880 | AA153: 1947 | AB153: 1818 | AC153: 1843 | AD153: 1858 | AE153: 1893 | AF153: 1876 | AG153: 1900 | AH153: 1957 | AI153: 1901 | AJ153: 1990 | AK153: 1897 | AL153: FALSO | AQ153: 5809 | AR153: 58093 | AS153: 3 | AT153: 5 | AU153: 809 | AV153: 809 | AW153: ANTIOQUIA | AX153: TITIRIBÍ | AY153: Independiente | AZ153: 7 | BA153: 34 | BB153: 175 | BC153: 169 | BD153: 157 | BE153: 159 | BF153: 170 | BG153: 173 | BH153: 173 | BI153: 171 | BJ153: 169 | BK153: 174 | BL153: 178 | BM153: 179 | BN153: 186 | BO153: 186 | BP153: 189 | BQ153: 195 | BR153: 192 | BS153: 195 | BT153: 195 | BU153: 195 | BV153: 192 | BW153: 203 | BX153: 201 | BY153: 202 | BZ153: 202 | CA153: 205
A154: 25402 | B154: 254022 | C154: 2 | D154: 25 | E154: 402 | F154: 402 | G154: CUNDINAMARCA | H154: LA VEGA | I154: Dep_sec_priv | J154: 27 | K154: 35 | L154: 777 | M154: 495 | N154: 732 | O154: 731 | P154: 735 | Q154: 739 | R154: 761 | S154: 732 | T154: 748 | U154: 769 | V154: 778 | W154: 851 | X154: 854 | Y154: 843 | Z154: 889 | AA154: 876 | AB154: 899 | AC154: 898 | AD154: 913 | AE154: 888 | AF154: 922 | AG154: 910 | AH154: 895 | AI154: 854 | AJ154: 830 | AK154: 807 | AL154: FALSO | AQ154: 5030 | AR154: 50302 | AS154: 2 | AT154: 5 | AU154: 30 | AV154: 030 | AW154: ANTIOQUIA | AX154: AMAGÁ | AY154: Dep_sec_priv | AZ154: 240 | BA154: 624 | BB154: 5158 | BC154: 3266 | BD154: 5291 | BE154: 5362 | BF154: 5266 | BG154: 5333 | BH154: 5253 | BI154: 5236 | BJ154: 5350 | BK154: 5290 | BL154: 5171 | BM154: 5253 | BN154: 5116 | BO154: 5110 | BP154: 5089 | BQ154: 4877 | BR154: 5047 | BS154: 4978 | BT154: 4961 | BU154: 4994 | BV154: 5106 | BW154: 5033 | BX154: 5050 | BY154: 4856 | BZ154: 4937 | CA154: 4736
A155: 50689 | B155: 506891 | C155: 1 | D155: 50 | E155: 689 | F155: 689 | G155: META | H155: SAN MARTÍN | I155: Dep_No_priv | J155: 19 | K155: 25 | L155: 480 | M155: 423 | N155: 412 | O155: 413 | P155: 433 | Q155: 439 | R155: 435 | S155: 436 | T155: 440 | U155: 440 | V155: 461 | W155: 439 | X155: 472 | Y155: 463 | Z155: 445 | AA155: 437 | AB155: 453 | AC155: 438 | AD155: 453 | AE155: 446 | AF155: 447 | AG155: 444 | AH155: 448 | AI155: 442 | AJ155: 444 | AK155: 437 | AL155: FALSO | AQ155: 5088 | AR155: 50881 | AS155: 1 | AT155: 5 | AU155: 88 | AV155: 088 | AW155: ANTIOQUIA | AX155: BELLO | AY155: Dep_No_priv | AZ155: 431 | BA155: 697 | BB155: 5798 | BC155: 5433 | BD155: 5483 | BE155: 5840 | BF155: 6690 | BG155: 6462 | BH155: 6576 | BI155: 6337 | BJ155: 6248 | BK155: 6971 | BL155: 6923 | BM155: 7036 | BN155: 7167 | BO155: 6462 | BP155: 5545 | BQ155: 5873 | BR155: 6256 | BS155: 6246 | BT155: 6592 | BU155: 6295 | BV155: 9528 | BW155: 9614 | BX155: 9828 | BY155: 9835 | BZ155: 9936 | CA155: 6110
A156: 25718 | B156: 257182 | C156: 2 | D156: 25 | E156: 718 | F156: 718 | G156: CUNDINAMARCA | H156: SASAIMA | I156: Dep_sec_priv | J156: 38 | K156: 32 | L156: 493 | M156: 424 | N156: 446 | O156: 445 | P156: 449 | Q156: 448 | R156: 433 | S156: 440 | T156: 457 | U156: 471 | V156: 481 | W156: 468 | X156: 464 | Y156: 474 | Z156: 465 | AA156: 484 | AB156: 494 | AC156: 495 | AD156: 493 | AE156: 502 | AF156: 496 | AG156: 506 | AH156: 514 | AI156: 546 | AJ156: 517 | AK156: 533 | AL156: FALSO | AQ156: 5854 | AR156: 58543 | AS156: 3 | AT156: 5 | AU156: 854 | AV156: 854 | AW156: ANTIOQUIA | AX156: VALDIVIA | AY156: Independiente | AZ156: 3 | BA156: 44 | BB156: 214 | BC156: 130 | BD156: 158 | BE156: 159 | BF156: 169 | BG156: 166 | BH156: 180 | BI156: 179 | BJ156: 174 | BK156: 183 | BL156: 190 | BM156: 189 | BN156: 192 | BO156: 182 | BP156: 137 | BQ156: 179 | BR156: 179 | BS156: 174 | BT156: 180 | BU156: 186 | BV156: 178 | BW156: 162 | BX156: 162 | BY156: 162 | BZ156: 159 | CA156: 150
A157: 25843 | B157: 258432 | C157: 2 | D157: 25 | E157: 843 | F157: 843 | G157: CUNDINAMARCA | H157: VILLA DE SAN DIEGO DE UBATE | I157: Dep_sec_priv | J157: 161 | K157: 639 | L157: 5743 | M157: 4652 | N157: 5915 | O157: 6119 | P157: 6347 | Q157: 6502 | R157: 6541 | S157: 6606 | T157: 6638 | U157: 6787 | V157: 6910 | W157: 6788 | X157: 6793 | Y157: 6538 | Z157: 6605 | AA157: 6743 | AB157: 6820 | AC157: 6919 | AD157: 7053 | AE157: 7181 | AF157: 7154 | AG157: 7452 | AH157: 7448 | AI157: 7355 | AJ157: 7461 | AK157: 6952 | AL157: FALSO | AQ157: 5647 | AR157: 56473 | AS157: 3 | AT157: 5 | AU157: 647 | AV157: 647 | AW157: ANTIOQUIA | AX157: SAN ANDRÉS DE CUERQUÍA | AY157: Independiente | AZ157: 2 | BA157: 15 | BB157: 111 | BC157: 100 | BD157: 100 | BE157: 104 | BF157: 108 | BG157: 106 | BH157: 107 | BI157: 111 | BJ157: 108 | BK157: 106 | BL157: 118 | BM157: 118 | BN157: 121 | BO157: 115 | BP157: 106 | BQ157: 109 | BR157: 113 | BS157: 119 | BT157: 121 | BU157: 116 | BV157: 118 | BW157: 126 | BX157: 122 | BY157: 125 | BZ157: 123 | CA157: 121
A158: 68081 | B158: 680812 | C158: 2 | D158: 68 | E158: 81 | F158: 081 | G158: SANTANDER | H158: BARRANCABERMEJA | I158: Dep_sec_priv | J158: 2390 | K158: 5248 | L158: 35478 | M158: 23905 | N158: 33825 | O158: 35456 | P158: 34436 | Q158: 33944 | R158: 34274 | S158: 34395 | T158: 35148 | U158: 37173 | V158: 37966 | W158: 37882 | X158: 38046 | Y158: 36659 | Z158: 35148 | AA158: 36403 | AB158: 37630 | AC158: 37227 | AD158: 37382 | AE158: 37547 | AF158: 37447 | AG158: 37792 | AH158: 38545 | AI158: 39687 | AJ158: 40242 | AK158: 38220 | AL158: FALSO | AQ158: 5034 | AR158: 50342 | AS158: 2 | AT158: 5 | AU158: 34 | AV158: 034 | AW158: ANTIOQUIA | AX158: ANDES | AY158: Dep_sec_priv | AZ158: 79 | BA158: 218 | BB158: 1799 | BC158: 1615 | BD158: 1794 | BE158: 1779 | BF158: 1826 | BG158: 1819 | BH158: 1854 | BI158: 1847 | BJ158: 1885 | BK158: 1915 | BL158: 1982 | BM158: 1981 | BN158: 1940 | BO158: 1923 | BP158: 1831 | BQ158: 1867 | BR158: 1903 | BS158: 1887 | BT158: 1891 | BU158: 1968 | BV158: 2024 | BW158: 2099 | BX158: 2170 | BY158: 2156 | BZ158: 2098 | CA158: 2048
A159: 15238 | B159: 152382 | C159: 2 | D159: 15 | E159: 238 | F159: 238 | G159: BOYACÁ | H159: DUITAMA | I159: Dep_sec_priv | J159: 825 | K159: 1891 | L159: 18436 | M159: 13518 | N159: 18146 | O159: 18661 | P159: 18827 | Q159: 18937 | R159: 18617 | S159: 19143 | T159: 18510 | U159: 18942 | V159: 19146 | W159: 19301 | X159: 19655 | Y159: 19418 | Z159: 19278 | AA159: 19379 | AB159: 19833 | AC159: 19789 | AD159: 20091 | AE159: 20002 | AF159: 19917 | AG159: 20154 | AH159: 20392 | AI159: 20402 | AJ159: 20403 | AK159: 20129 | AL159: FALSO | AQ159: 5736 | AR159: 57363 | AS159: 3 | AT159: 5 | AU159: 736 | AV159: 736 | AW159: ANTIOQUIA | AX159: SEGOVIA | AY159: Independiente | AZ159: 31 | BA159: 107 | BB159: 560 | BC159: 580 | BD159: 537 | BE159: 550 | BF159: 585 | BG159: 600 | BH159: 632 | BI159: 650 | BJ159: 606 | BK159: 617 | BL159: 642 | BM159: 667 | BN159: 636 | BO159: 636 | BP159: 580 | BQ159: 617 | BR159: 612 | BS159: 584 | BT159: 593 | BU159: 592 | BV159: 627 | BW159: 651 | BX159: 652 | BY159: 669 | BZ159: 678 | CA159: 678
A160: 5088 | B160: 50883 | C160: 3 | D160: 5 | E160: 88 | F160: 088 | G160: ANTIOQUIA | H160: BELLO | I160: Independiente | J160: 512 | K160: 1386 | L160: 11717 | M160: 10760 | N160: 10714 | O160: 11192 | P160: 11622 | Q160: 11794 | R160: 12056 | S160: 12209 | T160: 12315 | U160: 12482 | V160: 12630 | W160: 12790 | X160: 13077 | Y160: 12789 | Z160: 12783 | AA160: 13294 | AB160: 13395 | AC160: 13490 | AD160: 13609 | AE160: 13660 | AF160: 13826 | AG160: 14035 | AH160: 14197 | AI160: 14272 | AJ160: 14317 | AK160: 13859 | AL160: FALSO | AQ160: 5250 | AR160: 52503 | AS160: 3 | AT160: 5 | AU160: 250 | AV160: 250 | AW160: ANTIOQUIA | AX160: EL BAGRE | AY160: Independiente | AZ160: 31 | BA160: 105 | BB160: 460 | BC160: 387 | BD160: 414 | BE160: 432 | BF160: 467 | BG160: 515 | BH160: 488 | BI160: 485 | BJ160: 504 | BK160: 519 | BL160: 525 | BM160: 545 | BN160: 545 | BO160: 531 | BP160: 530 | BQ160: 524 | BR160: 499 | BS160: 493 | BT160: 525 | BU160: 510 | BV160: 526 | BW160: 557 | BX160: 559 | BY160: 543 | BZ160: 532 | CA160: 498
A161: 25001 | B161: 250012 | C161: 2 | D161: 25 | E161: 1 | F161: 001 | G161: CUNDINAMARCA | H161: AGUA DE DIOS | I161: Dep_sec_priv | J161: 2752 | K161: 4115 | L161: 52323 | M161: 38510 | N161: 51083 | O161: 53232 | P161: 56667 | Q161: 62111 | R161: 62945 | S161: 57334 | T161: 59330 | U161: 60231 | V161: 63475 | W161: 58201 | X161: 57829 | Y161: 53981 | Z161: 55051 | AA161: 56983 | AB161: 61242 | AC161: 56241 | AD161: 56890 | AE161: 56643 | AF161: 56223 | AG161: 57559 | AH161: 56788 | AI161: 58600 | AJ161: 59057 | AK161: 58680 | AL161: FALSO | AQ161: 5895 | AR161: 58953 | AS161: 3 | AT161: 5 | AU161: 895 | AV161: 895 | AW161: ANTIOQUIA | AX161: ZARAGOZA | AY161: Independiente | AZ161: 15 | BA161: 67 | BB161: 347 | BC161: 179 | BD161: 250 | BE161: 322 | BF161: 350 | BG161: 383 | BH161: 392 | BI161: 409 | BJ161: 369 | BK161: 364 | BL161: 396 | BM161: 396 | BN161: 446 | BO161: 317 | BP161: 321 | BQ161: 345 | BR161: 370 | BS161: 409 | BT161: 377 | BU161: 372 | BV161: 343 | BW161: 356 | BX161: 359 | BY161: 378 | BZ161: 406 | CA161: 354
A162: 99773 | B162: 997732 | C162: 2 | D162: 99 | E162: 773 | F162: 773 | G162: VICHADA | H162: CUMARIBO | I162: Dep_sec_priv | J162: 4096 | K162: 2537 | L162: 20820 | M162: 22737 | N162: 20448 | O162: 20895 | P162: 21987 | Q162: 22514 | R162: 21550 | S162: 22658 | T162: 22606 | U162: 22976 | V162: 23390 | W162: 23685 | X162: 23912 | Y162: 23164 | Z162: 22607 | AA162: 22629 | AB162: 22001 | AC162: 21751 | AD162: 22083 | AE162: 22349 | AF162: 23559 | AG162: 24413 | AH162: 26382 | AI162: 27728 | AJ162: 58088 | AK162: 62392 | AL162: FALSO | AQ162: 5895 | AR162: 58951 | AS162: 1 | AT162: 5 | AU162: 895 | AV162: 895 | AW162: ANTIOQUIA | AX162: ZARAGOZA | AY162: Dep_No_priv | AZ162: 6 | BA162: 3 | BB162: 361 | BC162: 74 | BD162: 346 | BE162: 397 | BF162: 372 | BG162: 362 | BH162: 355 | BI162: 365 | BJ162: 367 | BK162: 368 | BL162: 370 | BM162: 366 | BN162: 377 | BO162: 385 | BP162: 372 | BQ162: 364 | BR162: 374 | BS162: 363 | BT162: 376 | BU162: 376 | BV162: 370 | BW162: 367 | BX162: 370 | BY162: 445 | BZ162: 446 | CA162: 406
A163: 15759 | B163: 157592 | C163: 2 | D163: 15 | E163: 759 | F163: 759 | G163: BOYACÁ | H163: SOGAMOSO | I163: Dep_sec_priv | J163: 1015 | K163: 2249 | L163: 16617 | M163: 11755 | N163: 16451 | O163: 17039 | P163: 17090 | Q163: 17165 | R163: 16920 | S163: 17369 | T163: 17374 | U163: 17427 | V163: 17871 | W163: 17799 | X163: 18214 | Y163: 17592 | Z163: 17357 | AA163: 17807 | AB163: 18270 | AC163: 18270 | AD163: 18420 | AE163: 18560 | AF163: 18711 | AG163: 18964 | AH163: 19064 | AI163: 18972 | AJ163: 19189 | AK163: 18596 | AL163: FALSO | AQ163: 5585 | AR163: 55851 | AS163: 1 | AT163: 5 | AU163: 585 | AV163: 585 | AW163: ANTIOQUIA | AX163: PUERTO NARE | AY163: Dep_No_priv | AZ163: 3 | BA163: 8 | BB163: 291 | BC163: 127 | BD163: 284 | BE163: 288 | BF163: 279 | BG163: 277 | BH163: 284 | BI163: 286 | BJ163: 279 | BK163: 280 | BL163: 272 | BM163: 270 | BN163: 269 | BO163: 275 | BP163: 264 | BQ163: 258 | BR163: 266 | BS163: 269 | BT163: 278 | BU163: 292 | BV163: 278 | BW163: 283 | BX163: 293 | BY163: 287 | BZ163: 299 | CA163: 291
A164: 25797 | B164: 257973 | C164: 3 | D164: 25 | E164: 797 | F164: 797 | G164: CUNDINAMARCA | H164: TENA | I164: Independiente | J164: 2 | K164: 17 | L164: 195 | M164: 145 | N164: 166 | O164: 179 | P164: 189 | Q164: 201 | R164: 207 | S164: 206 | T164: 210 | U164: 207 | V164: 206 | W164: 214 | X164: 222 | Y164: 232 | Z164: 228 | AA164: 240 | AB164: 233 | AC164: 236 | AD164: 249 | AE164: 248 | AF164: 254 | AG164: 244 | AH164: 245 | AI164: 234 | AJ164: 233 | AK164: 197 | AL164: FALSO | AQ164: 5237 | AR164: 52371 | AS164: 1 | AT164: 5 | AU164: 237 | AV164: 237 | AW164: ANTIOQUIA | AX164: DON MATÍAS | AY164: Dep_No_priv | AZ164: 9 | BA164: 10 | BB164: 328 | BC164: 116 | BD164: 315 | BE164: 325 | BF164: 330 | BG164: 321 | BH164: 325 | BI164: 333 | BJ164: 332 | BK164: 339 | BL164: 354 | BM164: 349 | BN164: 343 | BO164: 347 | BP164: 337 | BQ164: 350 | BR164: 362 | BS164: 345 | BT164: 353 | BU164: 348 | BV164: 336 | BW164: 350 | BX164: 354 | BY164: 336 | BZ164: 337 | CA164: 329
A165: 76400 | B165: 764003 | C165: 3 | D165: 76 | E165: 400 | F165: 400 | G165: VALLE DEL CAUCA | H165: LA UNIÓN | I165: Independiente | J165: 35 | K165: 77 | L165: 1005 | M165: 831 | N165: 953 | O165: 990 | P165: 1017 | Q165: 1023 | R165: 1042 | S165: 999 | T165: 1029 | U165: 1059 | V165: 1055 | W165: 1025 | X165: 1020 | Y165: 1020 | Z165: 1024 | AA165: 1047 | AB165: 1073 | AC165: 1064 | AD165: 1053 | AE165: 1061 | AF165: 1054 | AG165: 1065 | AH165: 1098 | AI165: 1097 | AJ165: 1087 | AK165: 1041 | AL165: FALSO | AQ165: 5250 | AR165: 52501 | AS165: 1 | AT165: 5 | AU165: 250 | AV165: 250 | AW165: ANTIOQUIA | AX165: EL BAGRE | AY165: Dep_No_priv | AZ165: 72 | BA165: 12 | BB165: 781 | BC165: 160 | BD165: 711 | BE165: 742 | BF165: 738 | BG165: 745 | BH165: 752 | BI165: 779 | BJ165: 766 | BK165: 755 | BL165: 744 | BM165: 719 | BN165: 735 | BO165: 739 | BP165: 712 | BQ165: 713 | BR165: 741 | BS165: 729 | BT165: 754 | BU165: 776 | BV165: 757 | BW165: 754 | BX165: 766 | BY165: 745 | BZ165: 753 | CA165: 746
A166: 25126 | B166: 251262 | C166: 2 | D166: 25 | E166: 126 | F166: 126 | G166: CUNDINAMARCA | H166: CAJICÁ | I166: Dep_sec_priv | J166: 679 | K166: 1369 | L166: 12963 | M166: 10987 | N166: 13248 | O166: 13731 | P166: 13657 | Q166: 13668 | R166: 13874 | S166: 14091 | T166: 14404 | U166: 14794 | V166: 15102 | W166: 15494 | X166: 15640 | Y166: 15187 | Z166: 15361 | AA166: 15810 | AB166: 16214 | AC166: 16103 | AD166: 16192 | AE166: 16239 | AF166: 16216 | AG166: 16647 | AH166: 16923 | AI166: 16801 | AJ166: 16556 | AK166: 16190 | AL166: FALSO | AQ166: 5364 | AR166: 53643 | AS166: 3 | AT166: 5 | AU166: 364 | AV166: 364 | AW166: ANTIOQUIA | AX166: JARDÍN | AY166: Independiente | AZ166: 22 | BA166: 47 | BB166: 444 | BC166: 440 | BD166: 437 | BE166: 436 | BF166: 427 | BG166: 428 | BH166: 438 | BI166: 440 | BJ166: 444 | BK166: 462 | BL166: 461 | BM166: 474 | BN166: 489 | BO166: 481 | BP166: 480 | BQ166: 492 | BR166: 496 | BS166: 507 | BT166: 519 | BU166: 523 | BV166: 526 | BW166: 518 | BX166: 529 | BY166: 554 | BZ166: 574 | CA166: 556
A167: 25662 | B167: 256623 | C167: 3 | D167: 25 | E167: 662 | F167: 662 | G167: CUNDINAMARCA | H167: SAN JUAN DE RÍO SECO | I167: Independiente | J167: 3 | K167: 19 | L167: 210 | M167: 150 | N167: 192 | O167: 207 | P167: 213 | Q167: 222 | R167: 222 | S167: 224 | T167: 225 | U167: 232 | V167: 232 | W167: 236 | X167: 233 | Y167: 238 | Z167: 225 | AA167: 224 | AB167: 218 | AC167: 215 | AD167: 225 | AE167: 223 | AF167: 202 | AG167: 202 | AH167: 201 | AI167: 215 | AJ167: 201 | AK167: 182 | AL167: FALSO | AQ167: 5045 | AR167: 50451 | AS167: 1 | AT167: 5 | AU167: 45 | AV167: 045 | AW167: ANTIOQUIA | AX167: APARTADÓ | AY167: Dep_No_priv | AZ167: 235 | BA167: 274 | BB167: 3324 | BC167: 2855 | BD167: 3084 | BE167: 3354 | BF167: 3639 | BG167: 3954 | BH167: 3944 | BI167: 3908 | BJ167: 3705 | BK167: 3815 | BL167: 3861 | BM167: 3792 | BN167: 3836 | BO167: 3574 | BP167: 3374 | BQ167: 3688 | BR167: 3950 | BS167: 4228 | BT167: 4629 | BU167: 4666 | BV167: 4524 | BW167: 4786 | BX167: 4856 | BY167: 4841 | BZ167: 4839 | CA167: 3550
A168: 25019 | B168: 250191 | C168: 1 | D168: 25 | E168: 19 | F168: 019 | G168: CUNDINAMARCA | H168: ALBÁN | I168: Dep_No_priv | J168: 1 | K168: 3 | L168: 151 | M168: 102 | N168: 106 | O168: 95 | P168: 95 | Q168: 95 | R168: 136 | S168: 135 | T168: 136 | U168: 141 | V168: 141 | W168: 141 | X168: 143 | Y168: 106 | Z168: 103 | AA168: 102 | AB168: 105 | AC168: 104 | AD168: 103 | AE168: 195 | AF168: 192 | AG168: 192 | AH168: 195 | AI168: 197 | AJ168: 195 | AK168: 104 | AL168: FALSO | AQ168: 5002 | AR168: 50022 | AS168: 2 | AT168: 5 | AU168: 2 | AV168: 002 | AW168: ANTIOQUIA | AX168: ABEJORRAL | AY168: Dep_sec_priv | AZ168: 267 | BA168: 267 | BB168: 2382 | BC168: 2086 | BD168: 2377 | BE168: 2398 | BF168: 2508 | BG168: 3604 | BH168: 3524 | BI168: 3603 | BJ168: 2885 | BK168: 2806 | BL168: 3220 | BM168: 2440 | BN168: 2317 | BO168: 2283 | BP168: 2130 | BQ168: 2749 | BR168: 3130 | BS168: 3141 | BT168: 3303 | BU168: 2727 | BV168: 2585 | BW168: 2569 | BX168: 2908 | BY168: 3424 | BZ168: 4731 | CA168: 3816
A169: 15759 | B169: 157591 | C169: 1 | D169: 15 | E169: 759 | F169: 759 | G169: BOYACÁ | H169: SOGAMOSO | I169: Dep_No_priv | J169: 173 | K169: 313 | L169: 2777 | M169: 2431 | N169: 2645 | O169: 2457 | P169: 2715 | Q169: 2731 | R169: 2704 | S169: 2733 | T169: 2782 | U169: 2929 | V169: 4875 | W169: 5059 | X169: 4982 | Y169: 2925 | Z169: 2648 | AA169: 3240 | AB169: 3383 | AC169: 3356 | AD169: 3474 | AE169: 6236 | AF169: 6241 | AG169: 6133 | AH169: 6253 | AI169: 6183 | AJ169: 6179 | AK169: 2819 | AL169: FALSO | AQ169: 5059 | AR169: 50593 | AS169: 3 | AT169: 5 | AU169: 59 | AV169: 059 | AW169: ANTIOQUIA | AX169: ARMENIA | AY169: Independiente | AZ169: 6 | BA169: 14 | BB169: 165 | BC169: 137 | BD169: 167 | BE169: 166 | BF169: 165 | BG169: 165 | BH169: 163 | BI169: 163 | BJ169: 161 | BK169: 164 | BL169: 167 | BM169: 171 | BN169: 172 | BO169: 179 | BP169: 182 | BQ169: 165 | BR169: 166 | BS169: 156 | BT169: 160 | BU169: 162 | BV169: 164 | BW169: 181 | BX169: 174 | BY169: 177 | BZ169: 182 | CA169: 174
A170: 68655 | B170: 686552 | C170: 2 | D170: 68 | E170: 655 | F170: 655 | G170: SANTANDER | H170: SABANA DE TORRES | I170: Dep_sec_priv | J170: 330 | K170: 604 | L170: 3284 | M170: 2559 | N170: 3176 | O170: 3217 | P170: 3270 | Q170: 3406 | R170: 3318 | S170: 3402 | T170: 3339 | U170: 3332 | V170: 3260 | W170: 3381 | X170: 3364 | Y170: 3357 | Z170: 3468 | AA170: 3587 | AB170: 3678 | AC170: 3701 | AD170: 3772 | AE170: 3851 | AF170: 3864 | AG170: 3784 | AH170: 3707 | AI170: 3712 | AJ170: 3976 | AK170: 3780 | AL170: FALSO | AQ170: 5310 | AR170: 53103 | AS170: 3 | AT170: 5 | AU170: 310 | AV170: 310 | AW170: ANTIOQUIA | AX170: GÓMEZ PLATA | AY170: Independiente | AZ170: 2 | BA170: 64 | BB170: 244 | BC170: 218 | BD170: 162 | BE170: 204 | BF170: 224 | BG170: 249 | BH170: 270 | BI170: 281 | BJ170: 285 | BK170: 286 | BL170: 275 | BM170: 278 | BN170: 277 | BO170: 261 | BP170: 195 | BQ170: 266 | BR170: 263 | BS170: 258 | BT170: 265 | BU170: 266 | BV170: 268 | BW170: 275 | BX170: 273 | BY170: 280 | BZ170: 283 | CA170: 274
A171: 95001 | B171: 950012 | C171: 2 | D171: 95 | E171: 1 | F171: 001 | G171: GUAVIARE | H171: SAN JOSÉ DEL GUAVIARE | I171: Dep_sec_priv | J171: 450 | K171: 781 | L171: 6322 | M171: 4824 | N171: 6073 | O171: 6401 | P171: 6960 | Q171: 6773 | R171: 6673 | S171: 7075 | T171: 7229 | U171: 7515 | V171: 8177 | W171: 8331 | X171: 9024 | Y171: 9066 | Z171: 9310 | AA171: 10575 | AB171: 11016 | AC171: 12171 | AD171: 12255 | AE171: 12154 | AF171: 12874 | AG171: 12751 | AH171: 13221 | AI171: 12691 | AJ171: 7773 | AK171: 9148 | AL171: FALSO | AQ171: 5086 | AR171: 50862 | AS171: 2 | AT171: 5 | AU171: 86 | AV171: 086 | AW171: ANTIOQUIA | AX171: BELMIRA | AY171: Dep_sec_priv | AZ171: 24 | BA171: 32 | BB171: 228 | BC171: 257 | BD171: 257 | BE171: 278 | BF171: 289 | BG171: 272 | BH171: 289 | BI171: 378 | BJ171: 330 | BK171: 363 | BL171: 303 | BM171: 267 | BN171: 294 | BO171: 297 | BP171: 241 | BQ171: 245 | BR171: 260 | BS171: 275 | BT171: 277 | BU171: 283 | BV171: 292 | BW171: 314 | BX171: 334 | BY171: 339 | BZ171: 455 | CA171: 409
A172: 25279 | B172: 252792 | C172: 2 | D172: 25 | E172: 279 | F172: 279 | G172: CUNDINAMARCA | H172: FOMEQUE | I172: Dep_sec_priv | J172: 33 | K172: 46 | L172: 855 | M172: 504 | N172: 808 | O172: 807 | P172: 752 | Q172: 771 | R172: 751 | S172: 752 | T172: 754 | U172: 768 | V172: 791 | W172: 783 | X172: 711 | Y172: 726 | Z172: 707 | AA172: 744 | AB172: 765 | AC172: 782 | AD172: 789 | AE172: 746 | AF172: 800 | AG172: 811 | AH172: 831 | AI172: 811 | AJ172: 827 | AK172: 823 | AL172: FALSO | AQ172: 5652 | AR172: 56522 | AS172: 2 | AT172: 5 | AU172: 652 | AV172: 652 | AW172: ANTIOQUIA | AX172: SAN FRANCISCO | AY172: Dep_sec_priv | AZ172: 5 | BA172: 37 | BB172: 53 | BC172: 81 | BD172: 38 | BE172: 46 | BF172: 60 | BG172: 81 | BH172: 91 | BI172: 115 | BJ172: 116 | BK172: 137 | BL172: 157 | BM172: 159 | BN172: 164 | BO172: 163 | BP172: 135 | BQ172: 125 | BR172: 126 | BS172: 122 | BT172: 124 | BU172: 121 | BV172: 130 | BW172: 121 | BX172: 129 | BY172: 146 | BZ172: 142 | CA172: 132
A173: 25320 | B173: 253202 | C173: 2 | D173: 25 | E173: 320 | F173: 320 | G173: CUNDINAMARCA | H173: GUADUAS | I173: Dep_sec_priv | J173: 59 | K173: 106 | L173: 1416 | M173: 730 | N173: 1414 | O173: 1487 | P173: 1486 | Q173: 1393 | R173: 1384 | S173: 1331 | T173: 1216 | U173: 1172 | V173: 1177 | W173: 1138 | X173: 1175 | Y173: 1115 | Z173: 1109 | AA173: 1166 | AB173: 1165 | AC173: 1206 | AD173: 1169 | AE173: 1167 | AF173: 1190 | AG173: 1204 | AH173: 1120 | AI173: 1093 | AJ173: 1122 | AK173: 1106 | AL173: FALSO | AQ173: 5308 | AR173: 53081 | AS173: 1 | AT173: 5 | AU173: 308 | AV173: 308 | AW173: ANTIOQUIA | AX173: GIRARDOTA | AY173: Dep_No_priv | AZ173: 62 | BA173: 98 | BB173: 971 | BC173: 743 | BD173: 951 | BE173: 1010 | BF173: 1042 | BG173: 1021 | BH173: 1036 | BI173: 1031 | BJ173: 1035 | BK173: 1077 | BL173: 1072 | BM173: 1067 | BN173: 1056 | BO173: 1015 | BP173: 985 | BQ173: 1027 | BR173: 1054 | BS173: 1064 | BT173: 1085 | BU173: 1077 | BV173: 1039 | BW173: 1061 | BX173: 1100 | BY173: 1113 | BZ173: 1102 | CA173: 1082
A174: 25758 | B174: 257582 | C174: 2 | D174: 25 | E174: 758 | F174: 758 | G174: CUNDINAMARCA | H174: SOPÓ | I174: Dep_sec_priv | J174: 189 | K174: 278 | L174: 3473 | M174: 3221 | N174: 3518 | O174: 3604 | P174: 3588 | Q174: 3803 | R174: 3633 | S174: 3572 | T174: 3557 | U174: 3616 | V174: 3595 | W174: 3638 | X174: 3684 | Y174: 3714 | Z174: 4192 | AA174: 4317 | AB174: 4367 | AC174: 4415 | AD174: 4438 | AE174: 4322 | AF174: 4345 | AG174: 4285 | AH174: 4374 | AI174: 4348 | AJ174: 4371 | AK174: 4288 | AL174: FALSO | AQ174: 5353 | AR174: 53532 | AS174: 2 | AT174: 5 | AU174: 353 | AV174: 353 | AW174: ANTIOQUIA | AX174: HISPANIA | AY174: Dep_sec_priv | AZ174: 4 | BA174: 42 | BB174: 227 | BC174: 124 | BD174: 186 | BE174: 192 | BF174: 202 | BG174: 195 | BH174: 186 | BI174: 187 | BJ174: 199 | BK174: 201 | BL174: 192 | BM174: 210 | BN174: 208 | BO174: 197 | BP174: 213 | BQ174: 216 | BR174: 220 | BS174: 220 | BT174: 211 | BU174: 215 | BV174: 212 | BW174: 203 | BX174: 197 | BY174: 185 | BZ174: 203 | CA174: 187
A175: 25592 | B175: 255923 | C175: 3 | D175: 25 | E175: 592 | F175: 592 | G175: CUNDINAMARCA | H175: QUEBRADANEGRA | I175: Independiente | J175: 2 | K175: 18 | L175: 84 | M175: 70 | N175: 77 | O175: 87 | P175: 87 | Q175: 95 | R175: 93 | S175: 94 | T175: 96 | U175: 94 | V175: 106 | W175: 106 | X175: 96 | Y175: 90 | Z175: 99 | AA175: 96 | AB175: 103 | AC175: 105 | AD175: 107 | AE175: 104 | AF175: 107 | AG175: 101 | AH175: 98 | AI175: 98 | AJ175: 94 | AK175: 93 | AL175: FALSO | AQ175: 5837 | AR175: 58371 | AS175: 1 | AT175: 5 | AU175: 837 | AV175: 837 | AW175: ANTIOQUIA | AX175: TURBO | AY175: Dep_No_priv | AZ175: 96 | BA175: 118 | BB175: 2713 | BC175: 2079 | BD175: 2486 | BE175: 2570 | BF175: 2718 | BG175: 2695 | BH175: 2780 | BI175: 2750 | BJ175: 4208 | BK175: 4223 | BL175: 4409 | BM175: 4468 | BN175: 4442 | BO175: 2686 | BP175: 2629 | BQ175: 2916 | BR175: 2968 | BS175: 4735 | BT175: 4828 | BU175: 4803 | BV175: 4728 | BW175: 4670 | BX175: 4932 | BY175: 4700 | BZ175: 4728 | CA175: 2394
A176: 25718 | B176: 257181 | C176: 1 | D176: 25 | E176: 718 | F176: 718 | G176: CUNDINAMARCA | H176: SASAIMA | I176: Dep_No_priv | J176: 2 | K176: 6 | L176: 335 | M176: 175 | N176: 172 | O176: 176 | P176: 174 | Q176: 177 | R176: 215 | S176: 212 | T176: 212 | U176: 217 | V176: 212 | W176: 281 | X176: 212 | Y176: 178 | Z176: 172 | AA176: 179 | AB176: 184 | AC176: 178 | AD176: 183 | AE176: 251 | AF176: 244 | AG176: 245 | AH176: 248 | AI176: 248 | AJ176: 245 | AK176: 177 | AL176: FALSO | AQ176: 5837 | AR176: 58372 | AS176: 2 | AT176: 5 | AU176: 837 | AV176: 837 | AW176: ANTIOQUIA | AX176: TURBO | AY176: Dep_sec_priv | AZ176: 165 | BA176: 391 | BB176: 7469 | BC176: 4566 | BD176: 7155 | BE176: 7465 | BF176: 7682 | BG176: 7820 | BH176: 7841 | BI176: 7743 | BJ176: 7781 | BK176: 7994 | BL176: 7996 | BM176: 8047 | BN176: 8094 | BO176: 7964 | BP176: 7675 | BQ176: 7912 | BR176: 8046 | BS176: 7935 | BT176: 7915 | BU176: 8045 | BV176: 8034 | BW176: 7975 | BX176: 7819 | BY176: 7982 | BZ176: 7986 | CA176: 7675
A177: 25328 | B177: 253283 | C177: 3 | D177: 25 | E177: 328 | F177: 328 | G177: CUNDINAMARCA | H177: GUAYABAL DE SIQUIMA | I177: Independiente | J177: 8 | K177: 16 | L177: 98 | M177: 105 | N177: 84 | O177: 97 | P177: 101 | Q177: 109 | R177: 105 | S177: 105 | T177: 108 | U177: 108 | V177: 107 | W177: 110 | X177: 113 | Y177: 114 | Z177: 101 | AA177: 114 | AB177: 119 | AC177: 119 | AD177: 119 | AE177: 116 | AF177: 117 | AG177: 118 | AH177: 124 | AI177: 126 | AJ177: 131 | AK177: 125 | AL177: FALSO | AQ177: 5147 | AR177: 51472 | AS177: 2 | AT177: 5 | AU177: 147 | AV177: 147 | AW177: ANTIOQUIA | AX177: CAREPA | AY177: Dep_sec_priv | AZ177: 133 | BA177: 532 | BB177: 4103 | BC177: 3055 | BD177: 3839 | BE177: 4019 | BF177: 4122 | BG177: 4198 | BH177: 4363 | BI177: 4371 | BJ177: 4237 | BK177: 4299 | BL177: 4381 | BM177: 4281 | BN177: 4299 | BO177: 4389 | BP177: 4282 | BQ177: 4372 | BR177: 4319 | BS177: 4234 | BT177: 4227 | BU177: 4248 | BV177: 4224 | BW177: 4179 | BX177: 4237 | BY177: 4248 | BZ177: 4100 | CA177: 4152
A178: 27006 | B178: 270062 | C178: 2 | D178: 27 | E178: 6 | F178: 006 | G178: CHOCÓ | H178: ACANDÍ | I178: Dep_sec_priv | J178: 81 | K178: 125 | L178: 5874 | M178: 1420 | N178: 4560 | O178: 4899 | P178: 5056 | Q178: 5153 | R178: 5262 | S178: 5292 | T178: 5240 | U178: 5252 | V178: 6041 | W178: 5146 | X178: 5212 | Y178: 4896 | Z178: 5064 | AA178: 5067 | AB178: 6023 | AC178: 4309 | AD178: 4270 | AE178: 4648 | AF178: 4376 | AG178: 4618 | AH178: 5247 | AI178: 4069 | AJ178: 4388 | AK178: 3990 | AL178: FALSO | AQ178: 5059 | AR178: 50591 | AS178: 1 | AT178: 5 | AU178: 59 | AV178: 059 | AW178: ANTIOQUIA | AX178: ARMENIA | AY178: Dep_No_priv | AZ178: 2 | BA178: 3 | BB178: 87 | BC178: 47 | BD178: 93 | BE178: 94 | BF178: 98 | BG178: 95 | BH178: 100 | BI178: 97 | BJ178: 99 | BK178: 102 | BL178: 91 | BM178: 95 | BN178: 100 | BO178: 96 | BP178: 87 | BQ178: 90 | BR178: 95 | BS178: 92 | BT178: 97 | BU178: 95 | BV178: 86 | BW178: 91 | BX178: 87 | BY178: 93 | BZ178: 99 | CA178: 76
A179: 25740 | B179: 257403 | C179: 3 | D179: 25 | E179: 740 | F179: 740 | G179: CUNDINAMARCA | H179: SIBATÉ | I179: Independiente | J179: 19 | K179: 170 | L179: 1078 | M179: 712 | N179: 891 | O179: 985 | P179: 884 | Q179: 946 | R179: 968 | S179: 1011 | T179: 1025 | U179: 937 | V179: 955 | W179: 960 | X179: 949 | Y179: 918 | Z179: 773 | AA179: 1051 | AB179: 1093 | AC179: 1089 | AD179: 1109 | AE179: 1110 | AF179: 1117 | AG179: 937 | AH179: 946 | AI179: 961 | AJ179: 954 | AK179: 883 | AL179: FALSO | AQ179: 5101 | AR179: 51012 | AS179: 2 | AT179: 5 | AU179: 101 | AV179: 101 | AW179: ANTIOQUIA | AX179: CIUDAD BOLÍVAR | AY179: Dep_sec_priv | AZ179: 86 | BA179: 230 | BB179: 1804 | BC179: 1450 | BD179: 1703 | BE179: 1850 | BF179: 1945 | BG179: 1895 | BH179: 1881 | BI179: 1907 | BJ179: 1916 | BK179: 1928 | BL179: 2013 | BM179: 1998 | BN179: 1914 | BO179: 1843 | BP179: 1874 | BQ179: 1898 | BR179: 1939 | BS179: 1959 | BT179: 1960 | BU179: 1949 | BV179: 1971 | BW179: 1967 | BX179: 1987 | BY179: 1961 | BZ179: 1955 | CA179: 1961
A180: 25817 | B180: 258172 | C180: 2 | D180: 25 | E180: 817 | F180: 817 | G180: CUNDINAMARCA | H180: TOCANCIPÁ | I180: Dep_sec_priv | J180: 602 | K180: 1096 | L180: 11746 | M180: 9259 | N180: 12189 | O180: 12832 | P180: 12948 | Q180: 13200 | R180: 13061 | S180: 12967 | T180: 13188 | U180: 13207 | V180: 13345 | W180: 14204 | X180: 13781 | Y180: 13767 | Z180: 14348 | AA180: 14590 | AB180: 14676 | AC180: 14639 | AD180: 14697 | AE180: 14715 | AF180: 15115 | AG180: 15148 | AH180: 15308 | AI180: 15307 | AJ180: 15225 | AK180: 14978 | AL180: FALSO | AQ180: 5591 | AR180: 55911 | AS180: 1 | AT180: 5 | AU180: 591 | AV180: 591 | AW180: ANTIOQUIA | AX180: PUERTO TRIUNFO | AY180: Dep_No_priv | AZ180: 14 | BA180: 17 | BB180: 631 | BC180: 392 | BD180: 601 | BE180: 525 | BF180: 555 | BG180: 522 | BH180: 502 | BI180: 524 | BJ180: 530 | BK180: 521 | BL180: 530 | BM180: 539 | BN180: 553 | BO180: 578 | BP180: 548 | BQ180: 534 | BR180: 557 | BS180: 534 | BT180: 614 | BU180: 651 | BV180: 653 | BW180: 710 | BX180: 681 | BY180: 770 | BZ180: 741 | CA180: 752
A181: 25718 | B181: 257183 | C181: 3 | D181: 25 | E181: 718 | F181: 718 | G181: CUNDINAMARCA | H181: SASAIMA | I181: Independiente | J181: 15 | K181: 31 | L181: 249 | M181: 261 | N181: 227 | O181: 233 | P181: 242 | Q181: 240 | R181: 246 | S181: 275 | T181: 276 | U181: 281 | V181: 284 | W181: 376 | X181: 380 | Y181: 371 | Z181: 373 | AA181: 374 | AB181: 375 | AC181: 367 | AD181: 368 | AE181: 307 | AF181: 313 | AG181: 316 | AH181: 314 | AI181: 327 | AJ181: 334 | AK181: 330 | AL181: FALSO | AQ181: 5172 | AR181: 51721 | AS181: 1 | AT181: 5 | AU181: 172 | AV181: 172 | AW181: ANTIOQUIA | AX181: CHIGORODÓ | AY181: Dep_No_priv | AZ181: 85 | BA181: 48 | BB181: 1795 | BC181: 660 | BD181: 1752 | BE181: 1778 | BF181: 1836 | BG181: 1774 | BH181: 1857 | BI181: 1882 | BJ181: 1850 | BK181: 1893 | BL181: 1923 | BM181: 1918 | BN181: 1661 | BO181: 1831 | BP181: 1749 | BQ181: 1780 | BR181: 1867 | BS181: 1786 | BT181: 1959 | BU181: 1804 | BV181: 1764 | BW181: 1742 | BX181: 1906 | BY181: 1877 | BZ181: 1712 | CA181: 1415
A182: 25875 | B182: 258752 | C182: 2 | D182: 25 | E182: 875 | F182: 875 | G182: CUNDINAMARCA | H182: VILLETA | I182: Dep_sec_priv | J182: 176 | K182: 212 | L182: 2192 | M182: 1812 | N182: 2180 | O182: 2376 | P182: 2380 | Q182: 2458 | R182: 2528 | S182: 2466 | T182: 2431 | U182: 2423 | V182: 2457 | W182: 2534 | X182: 2472 | Y182: 2454 | Z182: 2390 | AA182: 2557 | AB182: 2625 | AC182: 2682 | AD182: 2610 | AE182: 2574 | AF182: 2595 | AG182: 2679 | AH182: 2606 | AI182: 2683 | AJ182: 2704 | AK182: 2615 | AL182: FALSO | AQ182: 5895 | AR182: 58952 | AS182: 2 | AT182: 5 | AU182: 895 | AV182: 895 | AW182: ANTIOQUIA | AX182: ZARAGOZA | AY182: Dep_sec_priv | AZ182: 34 | BA182: 131 | BB182: 634 | BC182: 447 | BD182: 614 | BE182: 650 | BF182: 668 | BG182: 669 | BH182: 684 | BI182: 674 | BJ182: 702 | BK182: 713 | BL182: 797 | BM182: 726 | BN182: 692 | BO182: 692 | BP182: 637 | BQ182: 744 | BR182: 788 | BS182: 710 | BT182: 710 | BU182: 755 | BV182: 759 | BW182: 811 | BX182: 761 | BY182: 810 | BZ182: 816 | CA182: 739
A183: 15407 | B183: 154072 | C183: 2 | D183: 15 | E183: 407 | F183: 407 | G183: BOYACÁ | H183: VILLA DE LEYVA | I183: Dep_sec_priv | J183: 51 | K183: 92 | L183: 1276 | M183: 1013 | N183: 1289 | O183: 1325 | P183: 1376 | Q183: 1420 | R183: 1422 | S183: 1438 | T183: 1455 | U183: 1495 | V183: 1515 | W183: 1588 | X183: 1656 | Y183: 1625 | Z183: 1588 | AA183: 1620 | AB183: 1636 | AC183: 1672 | AD183: 1670 | AE183: 1628 | AF183: 1644 | AG183: 1699 | AH183: 1722 | AI183: 1781 | AJ183: 1828 | AK183: 1795 | AL183: FALSO | AQ183: 5631 | AR183: 56311 | AS183: 1 | AT183: 5 | AU183: 631 | AV183: 631 | AW183: ANTIOQUIA | AX183: SABANETA | AY183: Dep_No_priv | AZ183: 154 | BA183: 967 | BB183: 2157 | BC183: 2805 | BD183: 1983 | BE183: 2251 | BF183: 2556 | BG183: 2512 | BH183: 2566 | BI183: 2516 | BJ183: 2190 | BK183: 2544 | BL183: 2518 | BM183: 2557 | BN183: 2555 | BO183: 2487 | BP183: 2580 | BQ183: 2889 | BR183: 2947 | BS183: 2974 | BT183: 3120 | BU183: 3035 | BV183: 2375 | BW183: 3094 | BX183: 3199 | BY183: 3171 | BZ183: 3116 | CA183: 3022
A184: 25260 | B184: 252602 | C184: 2 | D184: 25 | E184: 260 | F184: 260 | G184: CUNDINAMARCA | H184: EL ROSAL | I184: Dep_sec_priv | J184: 143 | K184: 175 | L184: 2032 | M184: 1705 | N184: 2013 | O184: 2223 | P184: 2318 | Q184: 2330 | R184: 2375 | S184: 2351 | T184: 2326 | U184: 2203 | V184: 2363 | W184: 2407 | X184: 2409 | Y184: 2352 | Z184: 2430 | AA184: 2456 | AB184: 2568 | AC184: 2608 | AD184: 2593 | AE184: 2529 | AF184: 2510 | AG184: 2517 | AH184: 2515 | AI184: 2899 | AJ184: 2865 | AK184: 2722 | AL184: FALSO | AQ184: 5040 | AR184: 50402 | AS184: 2 | AT184: 5 | AU184: 40 | AV184: 040 | AW184: ANTIOQUIA | AX184: ANORÍ | AY184: Dep_sec_priv | AZ184: 17 | BA184: 127 | BB184: 577 | BC184: 398 | BD184: 469 | BE184: 588 | BF184: 552 | BG184: 561 | BH184: 561 | BI184: 603 | BJ184: 575 | BK184: 625 | BL184: 640 | BM184: 678 | BN184: 673 | BO184: 700 | BP184: 607 | BQ184: 654 | BR184: 643 | BS184: 607 | BT184: 600 | BU184: 633 | BV184: 646 | BW184: 691 | BX184: 702 | BY184: 661 | BZ184: 625 | CA184: 599
A185: 25799 | B185: 257992 | C185: 2 | D185: 25 | E185: 799 | F185: 799 | G185: CUNDINAMARCA | H185: TENJO | I185: Dep_sec_priv | J185: 191 | K185: 589 | L185: 6010 | M185: 5078 | N185: 5799 | O185: 6072 | P185: 6089 | Q185: 6079 | R185: 6086 | S185: 6210 | T185: 6231 | U185: 6291 | V185: 6017 | W185: 6331 | X185: 6478 | Y185: 6407 | Z185: 6131 | AA185: 6486 | AB185: 6535 | AC185: 6603 | AD185: 6488 | AE185: 6542 | AF185: 6632 | AG185: 6880 | AH185: 6977 | AI185: 6957 | AJ185: 7058 | AK185: 6948 | AL185: FALSO | AQ185: 5282 | AR185: 52822 | AS185: 2 | AT185: 5 | AU185: 282 | AV185: 282 | AW185: ANTIOQUIA | AX185: FREDONIA | AY185: Dep_sec_priv | AZ185: 69 | BA185: 98 | BB185: 1676 | BC185: 1107 | BD185: 1607 | BE185: 1638 | BF185: 1741 | BG185: 1747 | BH185: 1773 | BI185: 1598 | BJ185: 1769 | BK185: 1752 | BL185: 1803 | BM185: 1764 | BN185: 1788 | BO185: 1757 | BP185: 1812 | BQ185: 1795 | BR185: 1794 | BS185: 1764 | BT185: 1786 | BU185: 1769 | BV185: 1792 | BW185: 1825 | BX185: 1828 | BY185: 1817 | BZ185: 1809 | CA185: 1746
A186: 95001 | B186: 950011 | C186: 1 | D186: 95 | E186: 1 | F186: 001 | G186: GUAVIARE | H186: SAN JOSÉ DEL GUAVIARE | I186: Dep_No_priv | J186: 266 | K186: 244 | L186: 2685 | M186: 2622 | N186: 2390 | O186: 2470 | P186: 2543 | Q186: 2629 | R186: 3218 | S186: 3985 | T186: 4039 | U186: 4111 | V186: 4192 | W186: 4123 | X186: 4164 | Y186: 2689 | Z186: 2587 | AA186: 2666 | AB186: 3508 | AC186: 3574 | AD186: 3599 | AE186: 3576 | AF186: 3503 | AG186: 3494 | AH186: 3623 | AI186: 4523 | AJ186: 4437 | AK186: 2923 | AL186: FALSO | AQ186: 5036 | AR186: 50362 | AS186: 2 | AT186: 5 | AU186: 36 | AV186: 036 | AW186: ANTIOQUIA | AX186: ANGELÓPOLIS | AY186: Dep_sec_priv | AZ186: 10 | BA186: 94 | BB186: 427 | BC186: 195 | BD186: 386 | BE186: 391 | BF186: 397 | BG186: 403 | BH186: 385 | BI186: 403 | BJ186: 417 | BK186: 477 | BL186: 416 | BM186: 424 | BN186: 396 | BO186: 463 | BP186: 386 | BQ186: 430 | BR186: 479 | BS186: 508 | BT186: 523 | BU186: 554 | BV186: 570 | BW186: 653 | BX186: 664 | BY186: 602 | BZ186: 573 | CA186: 516
